Workbook

Sheet Sample
B2: 2023 Vehicle Miles Book
B3: The information in this spreadsheet is provided as a reference by the Wyoming Department of Transportation and is an estimate derived from permanent and short term traffic counts.
B4: For traffic studies or additional information, contact Transportation Surveys at 307-777-4190.
A5: SAMPLE FORMAT OF THE VEHICLE MILES BOOK
A8: TRAVEL DIRECTION FOR TRAFFIC VOLUME {B=BOTH, I=INCREASING MILE MARKERS, D=DECREASING MILE MARKERS} | N8: TRUCK VEHICLE MILES TRAVELED
N9: ALL VEHICLE MILES TRAVELED
A10: ROUTE DESIGNATION | F10: COUNTY ABBREVIATION | J10: ESTIMATED AVERAGE 24 HOUR TRAFFIC
D12: MILEPOST | F12: ROUTE SIGNS | J12: =N12-10 -> 2005 | L12: =N12-1 -> 2014 | N12: =VMB!DD1 -> 2015 | P12: =VMB!DV1 -> VEHICLE MILES
A13: ROUTE | B13: DIR | C13: SECTION DESCRIPTION | D13: BEGIN | E13: END | F13: SYS | G13: RTE | H13: CO | I13: FC | J13: ALL VEH. | K13: TRUCKS | L13: ALL VEH. | M13: TRUCKS | N13: ALL VEH. | O13: TRUCKS | P13: AVMT | Q13: TVMT
A14: 25 | B14: I | C14: WYOMING - COLORADO STATE LINE | D14: 0 | E14: 2.662 | F14: US | G14: 87 | H14: LA | I14: 1 | J14: 10000 | K14: 1800 | L14: 15200 | M14: 2600 | N14: 16080 | O14: 3280 | P14: =E14*N14 -> 42804.96 | Q14: =P14/N14*O14 -> 8731.36
A15: 25 | B15: I | C15: JCT SH 223 (TERRY ROAD INT) | D15: 2.662 | E15: 7.03 | F15: US | G15: 87 | H15: LA | I15: 1 | J15: 9960 | K15: 1780 | L15: 15400 | M15: 2700 | N15: 16180 | O15: 3240 | P15: =E15*N15 -> 113745.4 | Q15: =P15/N15*O15 -> 22777.2
A16: 25 | B16: I | C16: CHEYENNE SOUTH URBAN LIMITS | D16: 7.03 | E16: 7.853 | F16: US | G16: 87 | H16: LA | I16: 11 | J16: 9960 | K16: 1780 | L16: 15400 | M16: 2700 | N16: 16180 | O16: 3240 | P16: =E16*N16 -> 127061.54 | Q16: =P16/N16*O16 -> 25443.72
A17: 25 | B17: I | C17: JCT U 0212 (COLLEGE DRIVE INT) | D17: 7.853 | E17: 8.844 | F17: US | G17: 87 | H17: LA | I17: 11 | J17: 12580 | K17: 2150 | L17: 19300 | M17: 4300 | N17: 20860 | O17: 4170 | P17: =E17*N17 -> 184485.84 | Q17: =P17/N17*O17 -> 36879.48
A18: 25 | B18: I | C18: JCT I 80 ( I 25 & I 80 INT ) | D18: 8.844 | E18: 9.14 | F18: US | G18: 87 | H18: LA | I18: 11 | J18: 11890 | K18: 1900 | L18: 17400 | M18: 2700 | N18: 17190 | O18: 2500 | P18: =E18*N18 -> 157116.6 | Q18: =P18/N18*O18 -> 22850
C21: START OF SECTION | J21: FUNCTIONAL CLASSIFICATION CODE | Q21: DAILY VEHICLE MILES
C22: END OF SECTION | E22: SIGNED ROUTE DESIGNATIONS | J22: (See page III for description) | N22: AVERAGE DAILY
N23: TRAFFIC VOLUME

Sheet VMB
D1: MILEPOST | H1: ATR | I1: # of | J1: lane | K1: OLD ROAD # | M1: ROUTE SIGNS | R1: 1970 | T1: 1971 | V1: 1972 | X1: 1973 | Z1: 1974 | AB1: 1975 | AD1: 1976 | AF1: 1977 | AH1: 1978 | AJ1: 1979 | AL1: 1980 | AN1: 1981 | AP1: 1982 | AR1: 1983 | AT1: 1984 | AV1: 1985 | AX1: 1986 | AZ1: 1987 | BB1: 1988 | BD1: 1989 | BF1: 1990 | BH1: 1991 | BJ1: 1992 | BL1: 1993 | BN1: 1994 | BP1: 1995 | BR1: 1996 | BT1: 1997 | BV1: 1998 | BX1: 1999 | BZ1: 2000 | CB1: 2001 | CD1: 2002 | CF1: 2003 | CH1: 2004 | CJ1: 2005 | CL1: 2006 | CN1: 2007 | CP1: 2008 | CR1: 2009 | CT1: 2010 | CV1: 2011 | CX1: 2012 | CZ1: 2013 | DB1: 2014 | DD1: 2015 | DF1: 2016 | DH1: 2017 | DJ1: 2018 | DL1: 2019 | DN1: 2020 | DP1: 2021 | DR1: 2022 | DT1: 2023 | DV1: VEHICLE MILES
A2: ROUTE | B2: DIR | C2: SECTION DESCRIPTION | D2: BEGIN | E2: END | G2: LENGTH | H2: WIM | I2: lanes | J2: miles | K2: SYS1 | L2: RTE1 | M2: SYS | N2: RTE | O2: SYSTEM | P2: CO | Q2: FC | R2: ALL VEH. | S2: TRUCKS | T2: ALL VEH. | U2: TRUCKS | V2: ALL VEH. | W2: TRUCKS | X2: ALL VEH. | Y2: TRUCKS | Z2: ALL VEH. | AA2: TRUCKS | AB2: ALL VEH. | AC2: TRUCKS | AD2: ALL VEH. | AE2: TRUCKS | AF2: ALL VEH. | AG2: TRUCKS | AH2: ALL VEH. | AI2: TRUCKS | AJ2: ALL VEH. | AK2: TRUCKS | AL2: ALL VEH. | AM2: TRUCKS | AN2: ALL VEH. | AO2: TRUCKS | AP2: ALL VEH. | AQ2: TRUCKS | AR2: ALL VEH. | AS2: TRUCKS | AT2: ALL VEH. | AU2: TRUCKS | AV2: ALL VEH. | AW2: TRUCKS | AX2: ALL VEH. | AY2: TRUCKS | AZ2: ALL VEH. | BA2: TRUCKS | BB2: ALL VEH. | BC2: TRUCKS | BD2: ALL VEH. | BE2: TRUCKS | BF2: ALL VEH. | BG2: TRUCKS | BH2: ALL VEH. | BI2: TRUCKS | BJ2: ALL VEH. | BK2: TRUCKS | BL2: ALL VEH. | BM2: TRUCKS | BN2: ALL VEH. | BO2: TRUCKS | BP2: ALL VEH. | BQ2: TRUCKS | BR2: ALL VEH. | BS2: TRUCKS | BT2: ALL VEH. | BU2: TRUCKS | BV2: ALL VEH. | BW2: TRUCKS | BX2: ALL VEH. | BY2: TRUCKS | BZ2: ALL VEH. | CA2: TRUCKS | CB2: ALL VEH. | CC2: TRUCKS | CD2: ALL VEH. | CE2: TRUCKS | CF2: ALL VEH. | CG2: TRUCKS | CH2: ALL VEH. | CI2: TRUCKS | CJ2: ALL VEH. | CK2: TRUCKS | CL2: ALL VEH. | CM2: TRUCKS | CN2: ALL VEH. | CO2: TRUCKS | CP2: ALL VEH. | CQ2: TRUCKS | CR2: ALL VEH. | CS2: TRUCKS | CT2: ALL VEH. | CU2: TRUCKS | CV2: ALL VEH. | CW2: TRUCKS | CX2: ALL VEH. | CY2: TRUCKS | CZ2: ALL VEH. | DA2: TRUCKS | DB2: ALL VEH. | DC2: TRUCKS | DD2: ALL VEH. | DE2: TRUCKS | DF2: ALL VEH. | DG2: TRUCKS | DH2: ALL VEH. | DI2: TRUCKS | DJ2: ALL VEH. | DK2: TRUCKS | DL2: ALL VEH. | DM2: TRUCKS | DN2: ALL VEH. | DO2: TRUCKS | DP2: ALL VEH. | DQ2: TRUCKS | DR2: ALL VEH. | DS2: TRUCKS | DT2: ALL VEH. | DU2: TRUCKS | DV2: VEHICLE MILES | DW2: TVMT
A4: 9 | B4: B | C4: JCT ROUTE 10 (ALPINE JCT) | D4: 0 | E4: 2.37 | G4: 2.37 | H4: LN0100 | I4: 2 | J4: 4.74 | K4: P | L4: 10spr | M4: US | N4: 26 | O4: NHS | P4: LN | Q4: 2 | R4: 660 | S4: 88 | T4: 650 | U4: 95 | V4: 690 | W4: 92 | X4: 670 | Y4: 94 | Z4: 730 | AA4: 104 | AB4: 810 | AC4: 98 | AD4: 820 | AE4: 100 | AF4: 830 | AG4: 104 | AH4: 970 | AI4: 174 | AJ4: 880 | AK4: 170 | AL4: 820 | AM4: 175 | AN4: 860 | AO4: 170 | AP4: 900 | AQ4: 210 | AR4: 1140 | AS4: 220 | AT4: 1140 | AU4: 215 | AV4: 1210 | AW4: 220 | AX4: 1100 | AY4: 220 | AZ4: 1000 | BA4: 190 | BB4: 1060 | BC4: 195 | BD4: 1130 | BE4: 200 | BF4: 1140 | BG4: 200 | BH4: 1140 | BI4: 200 | BJ4: 1300 | BK4: 230 | BL4: 1450 | BM4: 230 | BN4: 1450 | BO4: 230 | BP4: 1450 | BQ4: 230 | BR4: 1450 | BS4: 230 | BT4: 1550 | BU4: 230 | BV4: 1600 | BW4: 230 | BX4: 1600 | BY4: 230 | BZ4: 1800 | CA4: 260 | CB4: 1700 | CC4: 300 | CD4: 1600 | CE4: 290 | CF4: 1600 | CG4: 280 | CH4: 1740 | CI4: 280 | CJ4: 2240 | CK4: 320 | CL4: 2310 | CM4: 330 | CN4: 2540 | CO4: 330 | CP4: 2500 | CQ4: 370 | CR4: 2496 | CS4: 342 | CT4: 2496 | CU4: 368.06688 | CV4: 2496 | CW4: 360 | CX4: 1944 | CY4: 279 | CZ4: 1940 | DA4: 288 | DB4: 1977 | DC4: 279 | DD4: 1709 | DE4: 292 | DF4: 2033 | DG4: 296 | DH4: 2324 | DI4: 315 | DJ4: 2328 | DK4: 316 | DL4: 2141 | DM4: 392 | DN4: 2633 | DO4: 382 | DP4: 2672 | DQ4: 387 | DR4: 2561 | DS4: 387 | DT4: 2663 | DU4: 388 | DV4: 6311.31 | DW4: 919.56
A5: 10 | B5: B | C5: WYOMING - IDAHO STATE LINE | D5: 54.926 | E5: 78.84 | G5: 22.889 | H5: LN0104 | I5: 2 | J5: 45.778 | K5: P | L5: 10 | M5: US | N5: 89 | O5: NHS | P5: LN | Q5: 2 | R5: 990 | S5: 98 | T5: 1010 | U5: 76 | V5: 1020 | W5: 70 | X5: 1030 | Y5: 84 | Z5: 980 | AA5: 94 | AB5: 1010 | AC5: 98 | AD5: 1110 | AE5: 138 | AF5: 1140 | AG5: 148 | AH5: 1150 | AI5: 136 | AJ5: 1180 | AK5: 142 | AL5: 1190 | AM5: 168 | AN5: 1100 | AO5: 140 | AP5: 1050 | AQ5: 165 | AR5: 1150 | AS5: 150 | AT5: 1140 | AU5: 145 | AV5: 1110 | AW5: 150 | AX5: 1140 | AY5: 150 | AZ5: 1160 | BA5: 155 | BB5: 1030 | BC5: 150 | BD5: 1080 | BE5: 165 | BF5: 1120 | BG5: 150 | BH5: 1230 | BI5: 160 | BJ5: 1350 | BK5: 180 | BL5: 1370 | BM5: 180 | BN5: 1370 | BO5: 180 | BP5: 1370 | BQ5: 160 | BR5: 1410 | BS5: 160 | BT5: 1400 | BU5: 160 | BV5: 1550 | BW5: 140 | BX5: 1500 | BY5: 140 | BZ5: 1500 | CA5: 140 | CB5: 1350 | CC5: 110 | CD5: 1250 | CE5: 130 | CF5: 1380 | CG5: 120 | CH5: 1400 | CI5: 120 | CJ5: 1400 | CK5: 130 | CL5: 1460 | CM5: 100 | CN5: 1420 | CO5: 100 | CP5: 1350 | CQ5: 90 | CR5: 1732 | CS5: 88 | CT5: 1732 | CU5: 92 | CV5: 1732 | CW5: 92 | CX5: 1335 | CY5: 101 | CZ5: 1317 | DA5: 105 | DB5: 1357 | DC5: 192 | DD5: 1253 | DE5: 181.5272675 | DF5: 1329 | DG5: 207 | DH5: 1318 | DI5: 178 | DJ5: 1158 | DK5: 127 | DL5: 1180 | DM5: 110 | DN5: 1129 | DO5: 109 | DP5: 1220 | DQ5: 102 | DR5: 1170 | DS5: 88 | DT5: 1186 | DU5: 91 | DV5: 27146.354 | DW5: 2082.899
A6: 10 | B6: B | C6: JCT ROUTE 1209 (WY 241) | D6: 78.84 | E6: 82.96 | G6: 4.12 | H6: 000159 | I6: 2 | J6: 8.24 | K6: P | L6: 10 | M6: US | N6: 89 | O6: NHS | P6: LN | Q6: 2 | R6: 1020 | S6: 94 | T6: 1050 | U6: 82 | V6: 1060 | W6: 83 | X6: 1140 | Y6: 106 | Z6: 1090 | AA6: 110 | AB6: 1120 | AC6: 106 | AD6: 1220 | AE6: 146 | AF6: 1250 | AG6: 156 | AH6: 1260 | AI6: 142 | AJ6: 1210 | AK6: 148 | AL6: 1220 | AM6: 174 | AN6: 1520 | AO6: 145 | AP6: 1480 | AQ6: 170 | AR6: 1460 | AS6: 160 | AT6: 1450 | AU6: 155 | AV6: 1500 | AW6: 160 | AX6: 1400 | AY6: 165 | AZ6: 1420 | BA6: 170 | BB6: 1400 | BC6: 165 | BD6: 1430 | BE6: 180 | BF6: 1470 | BG6: 160 | BH6: 1620 | BI6: 170 | BJ6: 1750 | BK6: 190 | BL6: 1790 | BM6: 190 | BN6: 1790 | BO6: 190 | BP6: 1670 | BQ6: 150 | BR6: 1710 | BS6: 150 | BT6: 1580 | BU6: 150 | BV6: 1760 | BW6: 130 | BX6: 1710 | BY6: 130 | BZ6: 1700 | CA6: 130 | CB6: 1700 | CC6: 110 | CD6: 1900 | CE6: 130 | CF6: 1720 | CG6: 130 | CH6: 1720 | CI6: 120 | CJ6: 1700 | CK6: 130 | CL6: 1720 | CM6: 120 | CN6: 1750 | CO6: 110 | CP6: 1680 | CQ6: 100 | CR6: 1785 | CS6: 107 | CT6: 1792 | CU6: 125 | CV6: 1634 | CW6: 104 | CX6: 1798 | CY6: 130 | CZ6: 1766 | DA6: 124 | DB6: 1786 | DC6: 110 | DD6: 1966 | DE6: 104 | DF6: 2146 | DG6: 131.27736 | DH6: 2114 | DI6: 131 | DJ6: 1995 | DK6: 125 | DL6: 2184 | DM6: 154 | DN6: 2166 | DO6: 181 | DP6: 2312 | DQ6: 181 | DR6: 2250 | DS6: 151 | DT6: 2336 | DU6: 174 | DV6: 9624.32 | DW6: 716.88
A7: 10 | B7: B | C7: JCT ROUTE 1204 (WY 236) | D7: 82.96 | E7: 84.984 | G7: 2.024 | H7: LN0108 | I7: 2 | J7: 4.048 | K7: P | L7: 10 | M7: US | N7: 89 | O7: NHS | P7: LN | Q7: 2 | R7: 2390 | S7: 184 | T7: 2450 | U7: 190 | V7: 2430 | W7: 140 | X7: 2420 | Y7: 168 | Z7: 2370 | AA7: 170 | AB7: 2440 | AC7: 168 | AD7: 2810 | AE7: 216 | AF7: 3010 | AG7: 226 | AH7: 3090 | AI7: 234 | AJ7: 3020 | AK7: 244 | AL7: 3040 | AM7: 268 | AN7: 4200 | AO7: 230 | AP7: 3880 | AQ7: 250 | AR7: 4200 | AS7: 270 | AT7: 4190 | AU7: 265 | AV7: 4360 | AW7: 270 | AX7: 4380 | AY7: 270 | AZ7: 4450 | BA7: 275 | BB7: 4430 | BC7: 270 | BD7: 4480 | BE7: 285 | BF7: 4580 | BG7: 260 | BH7: 5080 | BI7: 280 | BJ7: 5240 | BK7: 300 | BL7: 5300 | BM7: 300 | BN7: 5650 | BO7: 300 | BP7: 5700 | BQ7: 270 | BR7: 5750 | BS7: 270 | BT7: 5700 | BU7: 270 | BV7: 5900 | BW7: 250 | BX7: 5950 | BY7: 250 | BZ7: 6100 | CA7: 260 | CB7: 6460 | CC7: 280 | CD7: 7750 | CE7: 330 | CF7: 7000 | CG7: 300 | CH7: 7100 | CI7: 310 | CJ7: 7200 | CK7: 310 | CL7: 6060 | CM7: 300 | CN7: 6400 | CO7: 320 | CP7: 6300 | CQ7: 320 | CR7: 6917 | CS7: 277.0613031 | CT7: 6917 | CU7: 192 | CV7: 12983 | CW7: 192 | CX7: 5652 | CY7: 202 | CZ7: 5641 | DA7: 198 | DB7: 5748 | DC7: 203 | DD7: 5874 | DE7: 193.7084808 | DF7: 7777 | DG7: 749 | DH7: 6177 | DI7: 838 | DJ7: 6942 | DK7: 255 | DL7: 7074 | DM7: 223 | DN7: 6765 | DO7: 209 | DP7: 7315 | DQ7: 347 | DR7: 7012 | DS7: 185 | DT7: 7383 | DU7: 184 | DV7: 14943.192 | DW7: 372.416
A8: 10 | B8: B | C8: JCT ROUTE 1206 (WY 238) | D8: 84.984 | E8: 86.996 | G8: 2.012 | H8: LN0109 | I8: 2 | J8: 4.024 | K8: P | L8: 10 | M8: US | N8: 89 | O8: NHS | P8: LN | Q8: 2 | R8: 2380 | S8: 140 | T8: 2430 | U8: 150 | V8: 2500 | W8: 142 | X8: 2480 | Y8: 170 | Z8: 2460 | AA8: 172 | AB8: 2530 | AC8: 170 | AD8: 2900 | AE8: 218 | AF8: 3110 | AG8: 228 | AH8: 3200 | AI8: 268 | AJ8: 3150 | AK8: 280 | AL8: 3170 | AM8: 294 | AN8: 4400 | AO8: 255 | AP8: 4350 | AQ8: 275 | AR8: 4520 | AS8: 300 | AT8: 4510 | AU8: 195 | AV8: 4690 | AW8: 300 | AX8: 4710 | AY8: 305 | AZ8: 4800 | BA8: 310 | BB8: 4780 | BC8: 305 | BD8: 4850 | BE8: 320 | BF8: 4950 | BG8: 295 | BH8: 5450 | BI8: 315 | BJ8: 5610 | BK8: 330 | BL8: 5670 | BM8: 330 | BN8: 6170 | BO8: 330 | BP8: 6250 | BQ8: 300 | BR8: 6300 | BS8: 300 | BT8: 6200 | BU8: 300 | BV8: 6400 | BW8: 300 | BX8: 6500 | BY8: 300 | BZ8: 6600 | CA8: 300 | CB8: 6400 | CC8: 320 | CD8: 7680 | CE8: 330 | CF8: 6940 | CG8: 300 | CH8: 7400 | CI8: 310 | CJ8: 7500 | CK8: 310 | CL8: 6580 | CM8: 300 | CN8: 6800 | CO8: 350 | CP8: 6650 | CQ8: 350 | CR8: 7406 | CS8: 296.6482595 | CT8: 7406 | CU8: 312 | CV8: 10140 | CW8: 312 | CX8: 10037 | CY8: 321 | CZ8: 10017 | DA8: 323 | DB8: 10207 | DC8: 347 | DD8: 10432 | DE8: 332.3158569 | DF8: 12487 | DG8: 738 | DH8: 10969 | DI8: 1490 | DJ8: 11040 | DK8: 1298 | DL8: 11250 | DM8: 252 | DN8: 10759 | DO8: 229 | DP8: 11634 | DQ8: 361 | DR8: 11152 | DS8: 210 | DT8: 11742 | DU8: 204 | DV8: 23624.904 | DW8: 410.448
A9: 10 | B9: B | C9: KENNINGTON-BURTON LN (CR 136) ML7472B | D9: 86.996 | E9: 89.97 | G9: 2.974 | H9: LN0110 | I9: 2 | J9: 5.948 | K9: P | L9: 10 | M9: US | N9: 89 | O9: NHS | P9: LN | Q9: 2 | R9: 1640 | S9: 134 | T9: 1680 | U9: 146 | V9: 1750 | W9: 138 | X9: 1710 | Y9: 158 | Z9: 1660 | AA9: 160 | AB9: 1710 | AC9: 156 | AD9: 2080 | AE9: 204 | AF9: 2370 | AG9: 214 | AH9: 2440 | AI9: 254 | AJ9: 2260 | AK9: 265 | AL9: 2280 | AM9: 278 | AN9: 2500 | AO9: 240 | AP9: 2480 | AQ9: 260 | AR9: 2660 | AS9: 270 | AT9: 2630 | AU9: 265 | AV9: 2740 | AW9: 270 | AX9: 2750 | AY9: 270 | AZ9: 2800 | BA9: 275 | BB9: 2780 | BC9: 270 | BD9: 2850 | BE9: 285 | BF9: 2950 | BG9: 260 | BH9: 3120 | BI9: 280 | BJ9: 3280 | BK9: 295 | BL9: 3340 | BM9: 295 | BN9: 3570 | BO9: 295 | BP9: 3720 | BQ9: 265 | BR9: 3780 | BS9: 265 | BT9: 3700 | BU9: 250 | BV9: 3900 | BW9: 250 | BX9: 4000 | BY9: 250 | BZ9: 4500 | CA9: 280 | CB9: 7200 | CC9: 300 | CD9: 8640 | CE9: 320 | CF9: 9040 | CG9: 330 | CH9: 9600 | CI9: 340 | CJ9: 9700 | CK9: 340 | CL9: 4580 | CM9: 300 | CN9: 5350 | CO9: 370 | CP9: 5200 | CQ9: 370 | CR9: 5132 | CS9: 205.5629041 | CT9: 4830 | CU9: 221 | CV9: 4820 | CW9: 221 | CX9: 4249 | CY9: 230 | CZ9: 4241 | DA9: 229 | DB9: 4322 | DC9: 212 | DD9: 4978 | DE9: 204.1517487 | DF9: 4823 | DG9: 1228 | DH9: 4644 | DI9: 630 | DJ9: 5862 | DK9: 371 | DL9: 5974 | DM9: 279 | DN9: 5713 | DO9: 247 | DP9: 6177 | DQ9: 324 | DR9: 5922 | DS9: 234 | DT9: 6235 | DU9: 223 | DV9: 18542.89 | DW9: 663.202
A10: 10 | B10: B | C10: JCT ROUTE 1205 (WY 237) | D10: 89.97 | E10: 94.12 | G10: 4.15 | H10: LN0111 | I10: 2 | J10: 8.3 | K10: P | L10: 10 | M10: US | N10: 89 | O10: NHS | P10: LN | Q10: 2 | R10: 1360 | S10: 118 | T10: 1380 | U10: 144 | V10: 1450 | W10: 136 | X10: 1410 | Y10: 152 | Z10: 1350 | AA10: 154 | AB10: 1390 | AC10: 140 | AD10: 1590 | AE10: 198 | AF10: 2050 | AG10: 208 | AH10: 2110 | AI10: 248 | AJ10: 1900 | AK10: 258 | AL10: 1910 | AM10: 270 | AN10: 2120 | AO10: 230 | AP10: 1980 | AQ10: 250 | AR10: 1940 | AS10: 250 | AT10: 1920 | AU10: 245 | AV10: 2000 | AW10: 250 | AX10: 2060 | AY10: 260 | AZ10: 2100 | BA10: 265 | BB10: 2080 | BC10: 260 | BD10: 2180 | BE10: 275 | BF10: 2280 | BG10: 250 | BH10: 2390 | BI10: 260 | BJ10: 2550 | BK10: 275 | BL10: 2610 | BM10: 275 | BN10: 2790 | BO10: 275 | BP10: 2940 | BQ10: 245 | BR10: 2950 | BS10: 245 | BT10: 2900 | BU10: 230 | BV10: 3100 | BW10: 230 | BX10: 3200 | BY10: 230 | BZ10: 3400 | CA10: 240 | CB10: 4200 | CC10: 230 | CD10: 5040 | CE10: 250 | CF10: 5280 | CG10: 260 | CH10: 5600 | CI10: 270 | CJ10: 5710 | CK10: 270 | CL10: 3470 | CM10: 230 | CN10: 3900 | CO10: 400 | CP10: 3700 | CQ10: 400 | CR10: 4037 | CS10: 161.7025417 | CT10: 4037 | CU10: 177 | CV10: 4555 | CW10: 177 | CX10: 3362 | CY10: 187 | CZ10: 3355 | DA10: 198 | DB10: 3419 | DC10: 204 | DD10: 3494 | DE10: 197.8903961 | DF10: 3782 | DG10: 317 | DH10: 3674 | DI10: 498 | DJ10: 5476 | DK10: 368 | DL10: 5580 | DM10: 312 | DN10: 5336 | DO10: 272 | DP10: 5770 | DQ10: 319 | DR10: 5532 | DS10: 268 | DT10: 5824 | DU10: 251 | DV10: 24169.6 | DW10: 1041.65
A11: 10 | B11: B | C11: JCT ROUTE 1206 (WY 238) | D11: 94.12 | E11: 99.759 | G11: 5.639 | H11: LN0113 | I11: 2 | J11: 11.278 | K11: P | L11: 10 | M11: US | N11: 89 | O11: NHS | P11: LN | Q11: 2 | R11: 1520 | S11: 134 | T11: 1550 | U11: 141 | V11: 1640 | W11: 160 | X11: 1570 | Y11: 168 | Z11: 1520 | AA11: 170 | AB11: 1570 | AC11: 162 | AD11: 1720 | AE11: 200 | AF11: 1810 | AG11: 210 | AH11: 1860 | AI11: 250 | AJ11: 2100 | AK11: 256 | AL11: 2110 | AM11: 268 | AN11: 2410 | AO11: 230 | AP11: 2290 | AQ11: 260 | AR11: 2460 | AS11: 270 | AT11: 2440 | AU11: 265 | AV11: 2540 | AW11: 270 | AX11: 2620 | AY11: 280 | AZ11: 2660 | BA11: 285 | BB11: 2640 | BC11: 280 | BD11: 2740 | BE11: 295 | BF11: 2860 | BG11: 270 | BH11: 2860 | BI11: 290 | BJ11: 3020 | BK11: 305 | BL11: 3080 | BM11: 305 | BN11: 3480 | BO11: 305 | BP11: 3630 | BQ11: 275 | BR11: 3630 | BS11: 275 | BT11: 3600 | BU11: 250 | BV11: 3800 | BW11: 250 | BX11: 3900 | BY11: 250 | BZ11: 4000 | CA11: 260 | CB11: 4050 | CC11: 260 | CD11: 4860 | CE11: 240 | CF11: 5090 | CG11: 250 | CH11: 5400 | CI11: 270 | CJ11: 5510 | CK11: 270 | CL11: 5200 | CM11: 340 | CN11: 5700 | CO11: 380 | CP11: 5500 | CQ11: 380 | CR11: 5307 | CS11: 212.5725511 | CT11: 5307 | CU11: 228 | CV11: 5307 | CW11: 228 | CX11: 4442 | CY11: 238 | CZ11: 4433 | DA11: 235 | DB11: 4517 | DC11: 245 | DD11: 4616 | DE11: 241.8885193 | DF11: 4996 | DG11: 297 | DH11: 4854 | DI11: 658 | DJ11: 6388 | DK11: 592 | DL11: 6509 | DM11: 350 | DN11: 6225 | DO11: 304 | DP11: 6731 | DQ11: 360 | DR11: 6453 | DS11: 287 | DT11: 6794 | DU11: 288 | DV11: 38311.366 | DW11: 1624.032
A12: 10 | B12: B | C12: DANA ST IN THAYNE | D12: 99.759 | E12: 104.39 | G12: 4.631 | H12: LN0114 | I12: 2 | J12: 9.262 | K12: P | L12: 10 | M12: US | N12: 89 | O12: NHS | P12: LN | Q12: 2 | DJ12: 4849 | DK12: 570 | DL12: 4942 | DM12: 385 | DN12: 4726 | DO12: 340 | DP12: 5110 | DQ12: 330 | DR12: 4899 | DS12: 313 | DT12: 5158 | DU12: 334 | DV12: 23886.698 | DW12: 1546.754
A13: 10 | B13: B | C13: JCT ROUTE 1207 (WY 239) | D13: 104.39 | E13: 117.744 | G13: 13.336 | H13: 000022 | I13: 2 | J13: 26.672 | K13: P | L13: 10 | M13: US | N13: 89 | O13: NHS | P13: LN | Q13: 2 | R13: 1040 | S13: 106 | T13: 1140 | U13: 124 | V13: 1210 | W13: 130 | X13: 1170 | Y13: 125 | Z13: 1210 | AA13: 128 | AB13: 1250 | AC13: 128 | AD13: 1410 | AE13: 160 | AF13: 1480 | AG13: 170 | AH13: 1510 | AI13: 202 | AJ13: 1490 | AK13: 205 | AL13: 1500 | AM13: 216 | AN13: 1710 | AO13: 180 | AP13: 1710 | AQ13: 230 | AR13: 1690 | AS13: 230 | AT13: 1670 | AU13: 225 | AV13: 1740 | AW13: 230 | AX13: 1790 | AY13: 240 | AZ13: 1820 | BA13: 245 | BB13: 1800 | BC13: 240 | BD13: 1910 | BE13: 255 | BF13: 2030 | BG13: 230 | BH13: 2170 | BI13: 240 | BJ13: 2330 | BK13: 260 | BL13: 2390 | BM13: 260 | BN13: 2570 | BO13: 260 | BP13: 2720 | BQ13: 230 | BR13: 2720 | BS13: 230 | BT13: 2670 | BU13: 200 | BV13: 2840 | BW13: 200 | BX13: 2910 | BY13: 200 | BZ13: 3100 | CA13: 210 | CB13: 3300 | CC13: 210 | CD13: 3400 | CE13: 280 | CF13: 3560 | CG13: 280 | CH13: 3790 | CI13: 350 | CJ13: 3960 | CK13: 350 | CL13: 4130 | CM13: 280 | CN13: 4540 | CO13: 260 | CP13: 4250 | CQ13: 330 | CR13: 4269 | CS13: 171 | CT13: 4088 | CU13: 183 | CV13: 3798 | CW13: 183 | CX13: 3867 | CY13: 201.80134 | CZ13: 4037 | DA13: 197 | DB13: 4308 | DC13: 206 | DD13: 4672 | DE13: 206 | DF13: 4527 | DG13: 217 | DH13: 5057 | DI13: 653 | DJ13: 5436 | DK13: 640 | DL13: 5232 | DM13: 397 | DN13: 5093 | DO13: 321 | DP13: 5790 | DQ13: 299 | DR13: 6028 | DS13: 341 | DT13: 6269 | DU13: 252 | DV13: 83603.384 | DW13: 3360.672
A14: 10 | B14: B | C14: JCT GREYS RIVER ROAD | D14: 117.744 | E14: 118.32 | G14: 0.576 | H14: LN0116 | I14: 2 | J14: 1.152 | K14: P | L14: 10 | M14: US | N14: 89 | O14: NHS | P14: LN | Q14: 2 | R14: 1030 | S14: 96 | T14: 1040 | U14: 107 | V14: 1110 | W14: 116 | X14: 1140 | Y14: 100 | Z14: 1170 | AA14: 108 | AB14: 1240 | AC14: 138 | AD14: 1400 | AE14: 142 | AF14: 1470 | AG14: 152 | AH14: 1500 | AI14: 180 | AJ14: 1500 | AK14: 180 | AL14: 1510 | AM14: 196 | AN14: 1730 | AO14: 160 | AP14: 1700 | AQ14: 220 | AR14: 1680 | AS14: 220 | AT14: 1650 | AU14: 215 | AV14: 1900 | AW14: 220 | AX14: 1960 | AY14: 230 | AZ14: 1990 | BA14: 235 | BB14: 1970 | BC14: 230 | BD14: 2200 | BE14: 245 | BF14: 2320 | BG14: 220 | BH14: 2650 | BI14: 250 | BJ14: 2810 | BK14: 270 | BL14: 2880 | BM14: 270 | BN14: 3010 | BO14: 270 | BP14: 3160 | BQ14: 240 | BR14: 3160 | BS14: 240 | BT14: 3100 | BU14: 210 | BV14: 3300 | BW14: 210 | BX14: 3500 | BY14: 300 | BZ14: 3700 | CA14: 320 | CB14: 3500 | CC14: 320 | CD14: 3590 | CE14: 300 | CF14: 3760 | CG14: 320 | CH14: 3990 | CI14: 330 | CJ14: 4250 | CK14: 300 | CL14: 4580 | CM14: 300 | CN14: 5000 | CO14: 290 | CP14: 4720 | CQ14: 360 | CR14: 5389 | CS14: 215.8570714 | CT14: 5389 | CU14: 215.8570714 | CV14: 5389 | CW14: 215.8570714 | CX14: 4833 | CY14: 235 | CZ14: 4823 | DA14: 229 | DB14: 4915 | DC14: 243 | DD14: 5023 | DE14: 249.0824432 | DF14: 4016 | DG14: 538.2283 | DH14: 5282 | DI14: 717 | DJ14: 5316 | DK14: 626 | DL14: 5417 | DM14: 398 | DN14: 5180 | DO14: 404 | DP14: 5601 | DQ14: 398 | DR14: 5370 | DS14: 422 | DT14: 5444 | DU14: 389 | DV14: 3135.744 | DW14: 224.064
A15: 10 | B15: B | C15: JCT ROUTE 9 (ALPINE JCT) | D15: 118.32 | E15: 131.576 | G15: 13.256 | H15: 000074 | I15: 2 | J15: 26.512 | K15: P | L15: 10 | M15: US | N15: 89 | O15: NHS | P15: LN | Q15: 2 | R15: 1050 | S15: 102 | T15: 1090 | U15: 85 | V15: 1190 | W15: 126 | X15: 1180 | Y15: 122 | Z15: 1170 | AA15: 138 | AB15: 1360 | AC15: 124 | AD15: 1410 | AE15: 168 | AF15: 1560 | AG15: 178 | AH15: 1670 | AI15: 226 | AJ15: 1700 | AK15: 248 | AL15: 1770 | AM15: 255 | AN15: 2050 | AO15: 215 | AP15: 2040 | AQ15: 275 | AR15: 1860 | AS15: 240 | AT15: 1830 | AU15: 235 | AV15: 1800 | AW15: 275 | AX15: 1850 | AY15: 280 | AZ15: 1880 | BA15: 285 | BB15: 1920 | BC15: 290 | BD15: 2120 | BE15: 305 | BF15: 2240 | BG15: 290 | BH15: 2400 | BI15: 310 | BJ15: 2600 | BK15: 330 | BL15: 2480 | BM15: 330 | BN15: 2680 | BO15: 330 | BP15: 2850 | BQ15: 310 | BR15: 2850 | BS15: 310 | BT15: 2800 | BU15: 280 | BV15: 3000 | BW15: 280 | BX15: 3000 | BY15: 280 | BZ15: 3200 | CA15: 300 | CB15: 3400 | CC15: 330 | CD15: 3480 | CE15: 370 | CF15: 3500 | CG15: 390 | CH15: 3680 | CI15: 400 | CJ15: 3850 | CK15: 410 | CL15: 3800 | CM15: 410 | CN15: 3900 | CO15: 420 | CP15: 3620 | CQ15: 490 | CR15: 3660 | CS15: 146.6017594 | CT15: 3660 | CU15: 146.6017594 | CV15: 3783 | CW15: 534 | CX15: 3526 | CY15: 304.01713 | CZ15: 3601 | DA15: 291 | DB15: 3797 | DC15: 318 | DD15: 4120 | DE15: 337 | DF15: 4385 | DG15: 328 | DH15: 4799 | DI15: 658 | DJ15: 4802 | DK15: 419 | DL15: 4913 | DM15: 398 | DN15: 4913 | DO15: 400 | DP15: 5470 | DQ15: 427 | DR15: 5252 | DS15: 458 | DT15: 5455 | DU15: 423 | DV15: 72311.48 | DW15: 5607.288
A16: 10 | B16: B | C16: LINCOLN-TETON COUNTY LINE | D16: 131.576 | E16: 141.3 | G16: 9.724 | H16: 000074 | I16: 2 | J16: 19.448 | K16: P | L16: 10 | M16: US | N16: 89 | O16: NHS | P16: TE | Q16: 2 | R16: 1050 | S16: 102 | T16: 1090 | U16: 85 | V16: 1190 | W16: 126 | X16: 1180 | Y16: 122 | Z16: 1170 | AA16: 138 | AB16: 1360 | AC16: 124 | AD16: 1410 | AE16: 168 | AF16: 1560 | AG16: 178 | AH16: 1670 | AI16: 226 | AJ16: 1700 | AK16: 248 | AL16: 1770 | AM16: 255 | AN16: 2050 | AO16: 215 | AP16: 2040 | AQ16: 275 | AR16: 1860 | AS16: 240 | AT16: 1830 | AU16: 235 | AV16: 1800 | AW16: 275 | AX16: 1850 | AY16: 280 | AZ16: 1880 | BA16: 285 | BB16: 1920 | BC16: 290 | BD16: 2120 | BE16: 305 | BF16: 2240 | BG16: 290 | BH16: 2400 | BI16: 310 | BJ16: 2600 | BK16: 330 | BL16: 2480 | BM16: 330 | BN16: 2680 | BO16: 330 | BP16: 2850 | BQ16: 310 | BR16: 2850 | BS16: 310 | BT16: 2800 | BU16: 280 | BV16: 3000 | BW16: 280 | BX16: 3000 | BY16: 280 | BZ16: 3200 | CA16: 300 | CB16: 3400 | CC16: 330 | CD16: 3480 | CE16: 370 | CF16: 3500 | CG16: 390 | CH16: 3680 | CI16: 400 | CJ16: 3850 | CK16: 410 | CL16: 3800 | CM16: 410 | CN16: 3900 | CO16: 420 | CP16: 3620 | CQ16: 490 | CR16: 3660 | CS16: 146.6017594 | CT16: 3660 | CU16: 146.6017594 | CV16: 3783 | CW16: 534 | CX16: 3526 | CY16: 304.01713 | CZ16: 3601 | DA16: 291 | DB16: 3797 | DC16: 318 | DD16: 4120 | DE16: 337 | DF16: 4385 | DG16: 328 | DH16: 4799 | DI16: 658 | DJ16: 4802 | DK16: 419 | DL16: 4913 | DM16: 398 | DN16: 4913 | DO16: 400 | DP16: 5470 | DQ16: 427 | DR16: 5252 | DS16: 458 | DT16: 5455 | DU16: 423 | DV16: 53044.42 | DW16: 4113.252
A17: 10 | B17: B | C17: JCT ROUTE 13 (HOBACK JCT) | D17: 141.3 | E17: 145.25 | G17: 3.95 | H17: 000036 | I17: 2 | J17: 7.9 | K17: P | L17: 10 | M17: US | N17: 89 | O17: NHS | P17: TE | Q17: 2 | R17: 1470 | S17: 125 | T17: 1520 | U17: 113 | V17: 1710 | W17: 148 | X17: 1730 | Y17: 136 | Z17: 1720 | AA17: 182 | AB17: 1980 | AC17: 184 | AD17: 2150 | AE17: 208 | AF17: 2380 | AG17: 228 | AH17: 2440 | AI17: 326 | AJ17: 2300 | AK17: 358 | AL17: 2390 | AM17: 280 | AN17: 2690 | AO17: 240 | AP17: 2640 | AQ17: 340 | AR17: 2590 | AS17: 290 | AT17: 2500 | AU17: 285 | AV17: 2480 | AW17: 290 | AX17: 2660 | AY17: 300 | AZ17: 2820 | BA17: 320 | BB17: 2860 | BC17: 330 | BD17: 3180 | BE17: 345 | BF17: 3540 | BG17: 330 | BH17: 3740 | BI17: 350 | BJ17: 4080 | BK17: 370 | BL17: 4280 | BM17: 370 | BN17: 4560 | BO17: 370 | BP17: 4540 | BQ17: 350 | BR17: 4550 | BS17: 350 | BT17: 4500 | BU17: 320 | BV17: 4790 | BW17: 320 | BX17: 4770 | BY17: 320 | BZ17: 5120 | CA17: 340 | CB17: 5420 | CC17: 390 | CD17: 5300 | CE17: 410 | CF17: 5330 | CG17: 430 | CH17: 5320 | CI17: 400 | CJ17: 5520 | CK17: 410 | CL17: 5690 | CM17: 430 | CN17: 6010 | CO17: 470 | CP17: 5740 | CQ17: 600 | CR17: 5685 | CS17: 350 | CT17: 5916 | CU17: 350 | CV17: 6055 | CW17: 348 | CX17: 6214 | CY17: 384 | CZ17: 6269 | DA17: 379 | DB17: 6288 | DC17: 334 | DD17: 7912 | DE17: 404.4974365 | DF17: 8413 | DG17: 809 | DH17: 8500 | DI17: 2490 | DJ17: 11535 | DK17: 1356 | DL17: 11754 | DM17: 277 | DN17: 10324 | DO17: 382 | DP17: 11841 | DQ17: 651 | DR17: 11026 | DS17: 520 | DT17: 11439 | DU17: 476 | DV17: 45184.05 | DW17: 1880.2
A18: 10 | B18: B | C18: JCT ROUTE 391 (WY 391) | D18: 145.25 | E18: 147.653 | G18: 2.403 | H18: 000032 | I18: 2 | J18: 4.806 | K18: P | L18: 10 | M18: US | N18: 89 | O18: NHS | P18: TE | Q18: 2 | R18: 1540 | S18: 138 | T18: 1590 | U18: 126 | V18: 1780 | W18: 158 | X18: 1740 | Y18: 156 | Z18: 1730 | AA18: 204 | AB18: 1990 | AC18: 160 | AD18: 2150 | AE18: 208 | AF18: 2380 | AG18: 228 | AH18: 2440 | AI18: 326 | AJ18: 2300 | AK18: 358 | AL18: 2390 | AM18: 280 | AN18: 2690 | AO18: 240 | AP18: 2640 | AQ18: 340 | AR18: 2590 | AS18: 290 | AT18: 2500 | AU18: 285 | AV18: 2480 | AW18: 290 | AX18: 2900 | AY18: 300 | AZ18: 3060 | BA18: 320 | BB18: 3100 | BC18: 330 | BD18: 3420 | BE18: 345 | BF18: 3780 | BG18: 330 | BH18: 4010 | BI18: 350 | BJ18: 4350 | BK18: 370 | BL18: 4550 | BM18: 370 | BN18: 4750 | BO18: 370 | BP18: 4730 | BQ18: 350 | BR18: 4750 | BS18: 350 | BT18: 4900 | BU18: 320 | BV18: 5200 | BW18: 320 | BX18: 5200 | BY18: 320 | BZ18: 5600 | CA18: 340 | CB18: 6000 | CC18: 390 | CD18: 6200 | CE18: 410 | CF18: 6230 | CG18: 500 | CH18: 6840 | CI18: 460 | CJ18: 7000 | CK18: 470 | CL18: 7500 | CM18: 500 | CN18: 7500 | CO18: 500 | CP18: 7500 | CQ18: 630 | CR18: 7490 | CS18: 380.8040782 | CT18: 7535 | CU18: 380.8040782 | CV18: 7135 | CW18: 370 | CX18: 9621 | CY18: 430 | CZ18: 8004 | DA18: 392 | DB18: 8156 | DC18: 397 | DD18: 8335 | DE18: 501.0815125 | DF18: 9114 | DG18: 650 | DH18: 9566 | DI18: 942 | DJ18: 10109 | DK18: 531 | DL18: 9811 | DM18: 250 | DN18: 8216 | DO18: 481 | DP18: 10712 | DQ18: 656 | DR18: 10454 | DS18: 630 | DT18: 11154 | DU18: 627 | DV18: 26803.062 | DW18: 1506.681
A19: 10 | B19: B | C19: JACKSON URBAN LIMITS | D19: 147.653 | E19: 148.709 | G19: 1.056 | H19: 000032 | I19: 2 | J19: 2.112 | K19: P | L19: 10 | M19: US | N19: 89 | O19: NHS | P19: TE | Q19: 14 | R19: 1540 | S19: 138 | T19: 1590 | U19: 126 | V19: 1780 | W19: 158 | X19: 1740 | Y19: 156 | Z19: 1730 | AA19: 204 | AB19: 1990 | AC19: 160 | AD19: 2150 | AE19: 208 | AF19: 2380 | AG19: 228 | AH19: 2440 | AI19: 326 | AJ19: 2300 | AK19: 358 | AL19: 2390 | AM19: 280 | AN19: 2690 | AO19: 240 | AP19: 2640 | AQ19: 340 | AR19: 2590 | AS19: 290 | AT19: 2500 | AU19: 285 | AV19: 2480 | AW19: 290 | AX19: 2900 | AY19: 300 | AZ19: 3060 | BA19: 320 | BB19: 3100 | BC19: 330 | BD19: 3420 | BE19: 345 | BF19: 3780 | BG19: 330 | BH19: 4010 | BI19: 350 | BJ19: 4350 | BK19: 370 | BL19: 4550 | BM19: 370 | BN19: 4750 | BO19: 370 | BP19: 4730 | BQ19: 350 | BR19: 4750 | BS19: 350 | BT19: 4900 | BU19: 320 | BV19: 5200 | BW19: 320 | BX19: 5200 | BY19: 320 | BZ19: 5600 | CA19: 340 | CB19: 6000 | CC19: 390 | CD19: 6200 | CE19: 410 | CF19: 6230 | CG19: 500 | CH19: 6840 | CI19: 460 | CJ19: 7000 | CK19: 470 | CL19: 7500 | CM19: 500 | CN19: 7500 | CO19: 500 | CP19: 7500 | CQ19: 630 | CR19: 7490 | CS19: 380.8040782 | CT19: 7535 | CU19: 380.8040782 | CV19: 7135 | CW19: 370 | CX19: 9621 | CY19: 430 | CZ19: 8004 | DA19: 392 | DB19: 8156 | DC19: 397 | DD19: 8335 | DE19: 501.0815125 | DF19: 9114 | DG19: 650 | DH19: 9566 | DI19: 942 | DJ19: 10109 | DK19: 531 | DL19: 9811 | DM19: 250 | DN19: 8216 | DO19: 481 | DP19: 10712 | DQ19: 656 | DR19: 10454 | DS19: 630 | DT19: 11154 | DU19: 627 | DV19: 11778.624 | DW19: 662.112
A20: 10 | B20: B | C20: JCT SOUTH PARK ROAD (SOUTH LEG) | D20: 148.709 | E20: 149.784 | G20: 1.075 | H20: TE0105 | I20: 2 | J20: 2.15 | K20: P | L20: 10 | M20: US | N20: 89 | O20: NHS | P20: TE | Q20: 14 | R20: 1610 | S20: 152 | T20: 2220 | U20: 148 | V20: 1890 | W20: 172 | X20: 1850 | Y20: 176 | Z20: 1840 | AA20: 224 | AB20: 2110 | AC20: 176 | AD20: 2250 | AE20: 224 | AF20: 2490 | AG20: 244 | AH20: 2550 | AI20: 348 | AJ20: 2910 | AK20: 382 | AL20: 3020 | AM20: 308 | AN20: 3840 | AO20: 270 | AP20: 4100 | AQ20: 370 | AR20: 4000 | AS20: 330 | AT20: 3920 | AU20: 325 | AV20: 3890 | AW20: 330 | AX20: 4170 | AY20: 340 | AZ20: 4420 | BA20: 360 | BB20: 4460 | BC20: 370 | BD20: 4780 | BE20: 385 | BF20: 5140 | BG20: 370 | BH20: 5440 | BI20: 390 | BJ20: 5780 | BK20: 410 | BL20: 6010 | BM20: 410 | BN20: 6380 | BO20: 410 | BP20: 6380 | BQ20: 410 | BR20: 6400 | BS20: 410 | BT20: 6500 | BU20: 410 | BV20: 6800 | BW20: 400 | BX20: 6900 | BY20: 400 | BZ20: 7400 | CA20: 430 | CB20: 8000 | CC20: 490 | CD20: 8320 | CE20: 520 | CF20: 8360 | CG20: 520 | CH20: 8340 | CI20: 480 | CJ20: 8510 | CK20: 490 | CL20: 9190 | CM20: 560 | CN20: 9210 | CO20: 560 | CP20: 10010 | CQ20: 690 | CR20: 11226 | CS20: 449.658839 | CT20: 11226 | CU20: 449.658839 | CV20: 11226 | CW20: 517 | CX20: 11361 | CY20: 517 | CZ20: 11338 | DA20: 505 | DB20: 11553 | DC20: 423 | DD20: 11807 | DE20: 540.0427856 | DF20: 11337 | DG20: 499 | DH20: 12416 | DI20: 1686 | DJ20: 13121 | DK20: 1470 | DL20: 12734 | DM20: 227 | DN20: 12400 | DO20: 352 | DP20: 14222 | DQ20: 734 | DR20: 13243 | DS20: 440 | DT20: 13740 | DU20: 452 | DV20: 14770.5 | DW20: 485.9
A21: 10 | B21: B | C21: TENSLEEP DR ML17863B | D21: 149.784 | E21: 151.921 | G21: 2.137 | H21: TE0107 | I21: 2 | J21: 4.274 | K21: P | L21: 10 | M21: US | N21: 89 | O21: NHS | P21: TE | Q21: 14 | R21: 1610 | S21: 152 | T21: 2220 | U21: 148 | V21: 1890 | W21: 172 | X21: 1850 | Y21: 176 | Z21: 1840 | AA21: 224 | AB21: 2110 | AC21: 176 | AD21: 2250 | AE21: 224 | AF21: 2490 | AG21: 244 | AH21: 2550 | AI21: 348 | AJ21: 2910 | AK21: 382 | AL21: 3020 | AM21: 308 | AN21: 3840 | AO21: 270 | AP21: 4100 | AQ21: 370 | AR21: 4300 | AS21: 340 | AT21: 4210 | AU21: 335 | AV21: 4180 | AW21: 340 | AX21: 4480 | AY21: 350 | AZ21: 4750 | BA21: 370 | BB21: 4790 | BC21: 380 | BD21: 4880 | BE21: 395 | BF21: 5240 | BG21: 380 | BH21: 5550 | BI21: 400 | BJ21: 5890 | BK21: 420 | BL21: 6120 | BM21: 420 | BN21: 6480 | BO21: 420 | BP21: 6480 | BQ21: 420 | BR21: 6500 | BS21: 420 | BT21: 6600 | BU21: 420 | BV21: 6900 | BW21: 400 | BX21: 7000 | BY21: 400 | BZ21: 7500 | CA21: 430 | CB21: 8100 | CC21: 490 | CD21: 9500 | CE21: 520 | CF21: 9550 | CG21: 520 | CH21: 9530 | CI21: 480 | CJ21: 9700 | CK21: 490 | CL21: 10900 | CM21: 560 | CN21: 10930 | CO21: 560 | CP21: 11730 | CQ21: 690 | CR21: 11859 | CS21: 475.0137334 | CT21: 11859 | CU21: 475.0137334 | CV21: 11683 | CW21: 583 | CX21: 11823 | CY21: 583 | CZ21: 11799 | DA21: 572 | DB21: 12023 | DC21: 565 | DD21: 12288 | DE21: 716.5739136 | DF21: 13643 | DG21: 645 | DH21: 14940 | DI21: 996 | DJ21: 17302 | DK21: 1003 | DL21: 16792 | DM21: 220 | DN21: 13870 | DO21: 347 | DP21: 15907 | DQ21: 795 | DR21: 14812 | DS21: 434 | DT21: 15368 | DU21: 447 | DV21: 32841.416 | DW21: 955.239
A22: 10 | B22: B | C22: JCT HIGH SCHOOL ROAD | D22: 151.921 | E22: 152.516 | G22: 0.595 | H22: TE0108 | I22: 2 | J22: 1.19 | K22: P | L22: 10 | M22: US | N22: 89 | O22: NHS | P22: TE | Q22: 14 | R22: 1610 | S22: 152 | T22: 2220 | U22: 148 | V22: 3710 | W22: 232 | X22: 3670 | Y22: 266 | Z22: 3650 | AA22: 318 | AB22: 4190 | AC22: 248 | AD22: 4330 | AE22: 296 | AF22: 4790 | AG22: 320 | AH22: 4910 | AI22: 456 | AJ22: 5200 | AK22: 501 | AL22: 5300 | AM22: 427 | AN22: 6540 | AO22: 400 | AP22: 7700 | AQ22: 500 | AR22: 8000 | AS22: 500 | AT22: 7960 | AU22: 490 | AV22: 7900 | AW22: 495 | AX22: 8470 | AY22: 510 | AZ22: 8980 | BA22: 540 | BB22: 9020 | BC22: 550 | BD22: 9830 | BE22: 565 | BF22: 10190 | BG22: 550 | BH22: 10590 | BI22: 570 | BJ22: 10970 | BK22: 590 | BL22: 11200 | BM22: 590 | BN22: 12300 | BO22: 590 | BP22: 12400 | BQ22: 590 | BR22: 12400 | BS22: 590 | BT22: 12700 | BU22: 590 | BV22: 13000 | BW22: 600 | BX22: 13100 | BY22: 600 | BZ22: 14000 | CA22: 640 | CB22: 14500 | CC22: 700 | CD22: 14640 | CE22: 700 | CF22: 14710 | CG22: 690 | CH22: 14680 | CI22: 640 | CJ22: 14720 | CK22: 650 | CL22: 19290 | CM22: 700 | CN22: 19340 | CO22: 700 | CP22: 19340 | CQ22: 700 | CR22: 20370 | CS22: 815.9229066 | CT22: 20370 | CU22: 815.9229066 | CV22: 19068 | CW22: 859 | CX22: 19297 | CY22: 859 | CZ22: 19258 | DA22: 843 | DB22: 19984 | DC22: 979 | DD22: 20424 | DE22: 1213.759399 | DF22: 15971 | DG22: 680 | DH22: 21476 | DI22: 2917 | DJ22: 22695 | DK22: 2542 | DL22: 22025 | DM22: 206 | DN22: 21449 | DO22: 336 | DP22: 24600 | DQ22: 1114 | DR22: 22906 | DS22: 420 | DT22: 23766 | DU22: 436 | DV22: 14140.77 | DW22: 259.42
A23: 10 | B23: B | C23: JCT SOUTH PARK LOOP ROAD (NORTH LEG) | D23: 152.516 | E23: 153.05 | G23: 0.534 | H23: TE0109 | I23: 2 | J23: 1.068 | K23: P | L23: 10 | M23: US | N23: 89 | O23: NHS | P23: TE | Q23: 14 | R23: 1610 | S23: 152 | T23: 2220 | U23: 148 | V23: 3710 | W23: 232 | X23: 3670 | Y23: 266 | Z23: 3650 | AA23: 318 | AB23: 4190 | AC23: 248 | AD23: 4330 | AE23: 296 | AF23: 4790 | AG23: 320 | AH23: 4910 | AI23: 456 | AJ23: 5200 | AK23: 501 | AL23: 5300 | AM23: 427 | AN23: 6540 | AO23: 400 | AP23: 7700 | AQ23: 500 | AR23: 8000 | AS23: 500 | AT23: 7960 | AU23: 490 | AV23: 7900 | AW23: 495 | AX23: 8470 | AY23: 510 | AZ23: 8980 | BA23: 540 | BB23: 9020 | BC23: 550 | BD23: 9830 | BE23: 565 | BF23: 13550 | BG23: 600 | BH23: 14020 | BI23: 620 | BJ23: 14400 | BK23: 640 | BL23: 14650 | BM23: 640 | BN23: 16650 | BO23: 640 | BP23: 16750 | BQ23: 640 | BR23: 16750 | BS23: 640 | BT23: 17000 | BU23: 640 | BV23: 17400 | BW23: 650 | BX23: 17700 | BY23: 650 | BZ23: 18900 | CA23: 690 | CB23: 18700 | CC23: 720 | CD23: 18880 | CE23: 720 | CF23: 18980 | CG23: 700 | CH23: 18940 | CI23: 650 | CJ23: 19100 | CK23: 660 | CL23: 27660 | CM23: 710 | CN23: 27730 | CO23: 710 | CP23: 27730 | CQ23: 710 | CR23: 27500 | CS23: 1101.515951 | CT23: 27500 | CU23: 1101.515951 | CV23: 27500 | CW23: 1148 | CX23: 27830 | CY23: 1148 | CZ23: 27774 | DA23: 1111 | DB23: 27578 | DC23: 1350 | DD23: 28185 | DE23: 1665.547241 | DF23: 15971 | DG23: 680 | DH23: 29636 | DI23: 3000 | DJ23: 25770 | DK23: 114 | DL23: 26260 | DM23: 202 | DN23: 29599 | DO23: 333 | DP23: 33947 | DQ23: 974 | DR23: 31610 | DS23: 417 | DT23: 32796 | DU23: 432 | DV23: 17513.064 | DW23: 230.688
A24: 10 | B24: B | C24: JCT ROUTE 2000 (WY 22) | D24: 153.05 | E24: 154.071 | G24: 1.021 | H24: TE0111 | I24: 2 | J24: 2.042 | K24: P | L24: 10 | M24: US | N24: 26/89 | O24: NHS | P24: TE | Q24: 14 | R24: 4050 | S24: 210 | T24: 4100 | U24: 200 | V24: 5890 | W24: 280 | X24: 5690 | Y24: 314 | Z24: 5830 | AA24: 382 | AB24: 6010 | AC24: 298 | AD24: 6150 | AE24: 346 | AF24: 6810 | AG24: 370 | AH24: 7350 | AI24: 462 | AJ24: 9260 | AK24: 508 | AL24: 9360 | AM24: 436 | AN24: 8730 | AO24: 410 | AP24: 10300 | AQ24: 530 | AR24: 11000 | AS24: 550 | AT24: 10950 | AU24: 540 | AV24: 10860 | AW24: 545 | AX24: 11640 | AY24: 560 | AZ24: 12340 | BA24: 590 | BB24: 12380 | BC24: 600 | BD24: 13190 | BE24: 615 | BF24: 17910 | BG24: 640 | BH24: 18360 | BI24: 660 | BJ24: 18740 | BK24: 680 | BL24: 18990 | BM24: 680 | BN24: 19490 | BO24: 680 | BP24: 19590 | BQ24: 680 | BR24: 19590 | BS24: 680 | BT24: 19800 | BU24: 680 | BV24: 20200 | BW24: 680 | BX24: 20500 | BY24: 680 | BZ24: 21900 | CA24: 730 | CB24: 23900 | CC24: 790 | CD24: 24130 | CE24: 790 | CF24: 24250 | CG24: 780 | CH24: 24200 | CI24: 720 | CJ24: 24200 | CK24: 720 | CL24: 25400 | CM24: 740 | CN24: 25460 | CO24: 740 | CP24: 25460 | CQ24: 740 | CR24: 28821 | CS24: 1154.428772 | CT24: 28821 | CU24: 1154.428772 | CV24: 29906 | CW24: 1195 | CX24: 30265 | CY24: 1195 | CZ24: 30204 | DA24: 1162 | DB24: 28086 | DC24: 1377 | DD24: 28704 | DE24: 1687.182373 | DF24: 11178 | DG24: 676 | DH24: 33632 | DI24: 3708 | DJ24: 28846 | DK24: 1181 | DL24: 27995 | DM24: 199 | DN24: 23427 | DO24: 330 | DP24: 26389 | DQ24: 1454 | DR24: 24572 | DS24: 413 | DT24: 25494 | DU24: 429 | DV24: 26029.374 | DW24: 438.009
A25: 10 | B25: B | C25: JCT PEARL STREET | D25: 154.071 | E25: 154.481 | G25: 0.41 | H25: TE0112 | I25: 2 | J25: 0.82 | K25: P | L25: 10 | M25: US | N25: 26/89 | O25: NHS | P25: TE | Q25: 2 | R25: 3550 | S25: 142 | T25: 3620 | U25: 171 | V25: 4110 | W25: 195 | X25: 3990 | Y25: 234 | Z25: 3960 | AA25: 278 | AB25: 4060 | AC25: 216 | AD25: 4200 | AE25: 264 | AF25: 4650 | AG25: 290 | AH25: 5020 | AI25: 362 | AJ25: 5530 | AK25: 398 | AL25: 5630 | AM25: 324 | AN25: 6240 | AO25: 300 | AP25: 9000 | AQ25: 520 | AR25: 8000 | AS25: 500 | AT25: 7960 | AU25: 490 | AV25: 7900 | AW25: 485 | AX25: 8470 | AY25: 500 | AZ25: 9700 | BA25: 530 | BB25: 9740 | BC25: 540 | BD25: 10550 | BE25: 555 | BF25: 10910 | BG25: 540 | BH25: 11300 | BI25: 560 | BJ25: 11680 | BK25: 580 | BL25: 11930 | BM25: 580 | BN25: 12430 | BO25: 580 | BP25: 12530 | BQ25: 580 | BR25: 12530 | BS25: 580 | BT25: 12700 | BU25: 580 | BV25: 13000 | BW25: 580 | BX25: 13300 | BY25: 580 | BZ25: 13600 | CA25: 590 | CB25: 13700 | CC25: 500 | CD25: 17660 | CE25: 530 | CF25: 17750 | CG25: 540 | CH25: 17710 | CI25: 500 | CJ25: 17710 | CK25: 500 | CL25: 18000 | CM25: 520 | CN25: 18050 | CO25: 520 | CP25: 18050 | CQ25: 520 | CR25: 15078 | CS25: 603.9511824 | CT25: 15078 | CU25: 603.9511824 | CV25: 15078 | CW25: 654 | CX25: 15259 | CY25: 654 | CZ25: 15228 | DA25: 641 | DB25: 15517 | DC25: 760 | DD25: 15858 | DE25: 923.9016724 | DF25: 6952 | DG25: 219 | DH25: 13665 | DI25: 982 | DJ25: 14664 | DK25: 926 | DL25: 14482 | DM25: 193 | DN25: 16655 | DO25: 324 | DP25: 19101 | DQ25: 901 | DR25: 17786 | DS25: 406 | DT25: 18454 | DU25: 423 | DV25: 7566.14 | DW25: 173.43
A26: 10 | B26: B | C26: JCT CACHE STREET | D26: 154.481 | E26: 154.847 | G26: 0.366 | H26: TE0113 | I26: 2 | J26: 0.732 | K26: P | L26: 10 | M26: US | N26: 26/89 | O26: NHS | P26: TE | Q26: 2 | R26: 2420 | S26: 109 | T26: 2490 | U26: 109 | V26: 2750 | W26: 133 | X26: 2710 | Y26: 175 | Z26: 2680 | AA26: 208 | AB26: 2750 | AC26: 202 | AD26: 2890 | AE26: 250 | AF26: 3460 | AG26: 276 | AH26: 3730 | AI26: 344 | AJ26: 3560 | AK26: 378 | AL26: 3660 | AM26: 304 | AN26: 6240 | AO26: 300 | AP26: 6340 | AQ26: 450 | AR26: 6000 | AS26: 400 | AT26: 5970 | AU26: 395 | AV26: 5920 | AW26: 395 | AX26: 6350 | AY26: 410 | AZ26: 6200 | BA26: 425 | BB26: 6420 | BC26: 435 | BD26: 7050 | BE26: 450 | BF26: 7410 | BG26: 435 | BH26: 7710 | BI26: 455 | BJ26: 8050 | BK26: 475 | BL26: 8300 | BM26: 475 | BN26: 9130 | BO26: 475 | BP26: 9230 | BQ26: 475 | BR26: 9230 | BS26: 475 | BT26: 9300 | BU26: 475 | BV26: 9600 | BW26: 480 | BX26: 9900 | BY26: 480 | BZ26: 10100 | CA26: 490 | CB26: 10600 | CC26: 490 | CD26: 10120 | CE26: 520 | CF26: 10170 | CG26: 530 | CH26: 10150 | CI26: 490 | CJ26: 10150 | CK26: 490 | CL26: 9980 | CM26: 510 | CN26: 10000 | CO26: 510 | CP26: 10000 | CQ26: 510 | CR26: 11545 | CS26: 462.436424 | CT26: 11545 | CU26: 462.436424 | CV26: 11545 | CW26: 502 | CX26: 11684 | CY26: 502 | CZ26: 11661 | DA26: 499 | DB26: 11883 | DC26: 583 | DD26: 12144 | DE26: 705.5096436 | DF26: 6952 | DG26: 219 | DH26: 13319 | DI26: 982 | DJ26: 13993 | DK26: 884 | DL26: 13819 | DM26: 190 | DN26: 12753 | DO26: 322 | DP26: 14627 | DQ26: 733 | DR26: 13620 | DS26: 403 | DT26: 14131 | DU26: 420 | DV26: 5171.946 | DW26: 153.72
A27: 10 | B27: B | C27: PERRY AVE ML17757B | D27: 154.847 | E27: 164.908 | G27: 10.061 | H27: 000084 | I27: 2 | J27: 20.122 | K27: P | L27: 10 | M27: US | N27: 26/89 | O27: NHS | P27: TE | Q27: 2 | R27: 2420 | S27: 109 | T27: 2490 | U27: 109 | V27: 2750 | W27: 133 | X27: 2710 | Y27: 175 | Z27: 2680 | AA27: 208 | AB27: 2750 | AC27: 202 | AD27: 2890 | AE27: 250 | AF27: 3460 | AG27: 276 | AH27: 3730 | AI27: 344 | AJ27: 3560 | AK27: 378 | AL27: 3660 | AM27: 304 | AN27: 3800 | AO27: 280 | AP27: 3900 | AQ27: 350 | AR27: 4200 | AS27: 300 | AT27: 4160 | AU27: 295 | AV27: 4130 | AW27: 295 | AX27: 4430 | AY27: 305 | AZ27: 4560 | BA27: 315 | BB27: 4600 | BC27: 325 | BD27: 4810 | BE27: 340 | BF27: 5010 | BG27: 325 | BH27: 5090 | BI27: 340 | BJ27: 5390 | BK27: 360 | BL27: 5590 | BM27: 360 | BN27: 6590 | BO27: 360 | BP27: 6690 | BQ27: 360 | BR27: 6690 | BS27: 360 | BT27: 6800 | BU27: 360 | BV27: 7100 | BW27: 360 | BX27: 7400 | BY27: 360 | BZ27: 7600 | CA27: 370 | CB27: 7400 | CC27: 370 | CD27: 8630 | CE27: 390 | CF27: 8675 | CG27: 400 | CH27: 8660 | CI27: 370 | CJ27: 8660 | CK27: 370 | CL27: 8000 | CM27: 380 | CN27: 8020 | CO27: 380 | CP27: 8020 | CQ27: 380 | CR27: 8108 | CS27: 324.7669576 | CT27: 8108 | CU27: 324.7669576 | CV27: 7988 | CW27: 418 | CX27: 8084 | CY27: 440 | CZ27: 8068 | DA27: 427 | DB27: 8221 | DC27: 403 | DD27: 8119 | DE27: 476.5332947 | DF27: 8473 | DG27: 480 | DH27: 8868 | DI27: 1203 | DJ27: 8985 | DK27: 1057 | DL27: 8842 | DM27: 187 | DN27: 8256 | DO27: 320 | DP27: 9810 | DQ27: 551 | DR27: 9302 | DS27: 299 | DT27: 9653 | DU27: 418 | DV27: 97118.833 | DW27: 4205.498
A28: 10 | B28: B | C28: MEADOW RD ML17724B | D28: 164.908 | E28: 184.58 | G28: 19.672 | H28: 000081 | I28: 2 | J28: 39.344 | K28: P | L28: 10 | M28: US | N28: 26/89/189/191 | O28: NHS | P28: TE | Q28: 2 | R28: 1300 | S28: 66 | T28: 2080 | U28: 100 | V28: 1430 | W28: 80 | X28: 1350 | Y28: 116 | Z28: 1230 | AA28: 136 | AB28: 1400 | AC28: 116 | AD28: 1530 | AE28: 126 | AF28: 1950 | AG28: 152 | AH28: 2080 | AI28: 190 | AJ28: 2080 | AK28: 190 | AL28: 2170 | AM28: 140 | AN28: 2300 | AO28: 120 | AP28: 2040 | AQ28: 180 | AR28: 2030 | AS28: 140 | AT28: 1950 | AU28: 135 | AV28: 1930 | AW28: 135 | AX28: 2070 | AY28: 140 | AZ28: 2130 | BA28: 145 | BB28: 2150 | BC28: 150 | BD28: 2440 | BE28: 170 | BF28: 2540 | BG28: 160 | BH28: 2610 | BI28: 170 | BJ28: 2810 | BK28: 180 | BL28: 2910 | BM28: 180 | BN28: 3010 | BO28: 180 | BP28: 3010 | BQ28: 180 | BR28: 3010 | BS28: 180 | BT28: 3150 | BU28: 180 | BV28: 3150 | BW28: 180 | BX28: 3250 | BY28: 180 | BZ28: 3400 | CA28: 190 | CB28: 4000 | CC28: 200 | CD28: 3300 | CE28: 240 | CF28: 3320 | CG28: 150 | CH28: 3310 | CI28: 140 | CJ28: 3310 | CK28: 140 | CL28: 3020 | CM28: 150 | CN28: 3030 | CO28: 150 | CP28: 3030 | CQ28: 150 | CR28: 2600 | CS28: 208 | CT28: 2505 | CU28: 150 | CV28: 2270 | CW28: 110 | CX28: 2364 | CY28: 132.14658 | CZ28: 2443 | DA28: 115 | DB28: 2369 | DC28: 119 | DD28: 2674 | DE28: 104 | DF28: 2842 | DG28: 110 | DH28: 3068 | DI28: 144 | DJ28: 2998 | DK28: 136 | DL28: 2931 | DM28: 134 | DN28: 2972 | DO28: 134 | DP28: 3427 | DQ28: 145 | DR28: 2915 | DS28: 134 | DT28: 3102 | DU28: 134 | DV28: 61022.544 | DW28: 2636.048
A29: 10 | B29: B | C29: JCT ROUTE 30 (NEW MORAN JCT) | D29: 184.58 | E29: 188.802 | G29: 4.162 | H29: 000140 | I29: 2 | J29: 8.324 | K29: P | L29: 10 | M29: US | N29: 26/89/189/191 | O29: NHS | P29: TE | Q29: 2 | R29: 1230 | S29: 38 | T29: 2090 | U29: 72 | V29: 1480 | W29: 86 | X29: 1390 | Y29: 84 | Z29: 1240 | AA29: 100 | AB29: 1370 | AC29: 90 | AD29: 1540 | AE29: 102 | AF29: 1850 | AG29: 130 | AH29: 1980 | AI29: 160 | AJ29: 1980 | AK29: 146 | AL29: 2070 | AM29: 95 | AN29: 2170 | AO29: 100 | AP29: 1920 | AQ29: 110 | AR29: 1940 | AS29: 100 | AT29: 1860 | AU29: 100 | AV29: 1840 | AW29: 100 | AX29: 1970 | AY29: 105 | AZ29: 2030 | BA29: 110 | BB29: 1750 | BC29: 100 | BD29: 1850 | BE29: 120 | BF29: 2050 | BG29: 110 | BH29: 2130 | BI29: 120 | BJ29: 2230 | BK29: 130 | BL29: 2330 | BM29: 110 | BN29: 2430 | BO29: 110 | BP29: 2430 | BQ29: 110 | BR29: 2430 | BS29: 110 | BT29: 2500 | BU29: 110 | BV29: 2500 | BW29: 110 | BX29: 2550 | BY29: 110 | BZ29: 2500 | CA29: 110 | CB29: 2500 | CC29: 120 | CD29: 2520 | CE29: 120 | CF29: 2550 | CG29: 150 | CH29: 2540 | CI29: 140 | CJ29: 2540 | CK29: 140 | CL29: 2510 | CM29: 150 | CN29: 2520 | CO29: 150 | CP29: 2520 | CQ29: 150 | CR29: 1950 | CS29: 156 | CT29: 1931 | CU29: 117 | CV29: 1730 | CW29: 79 | CX29: 1812 | CY29: 107.14685 | CZ29: 1822 | DA29: 100 | DB29: 1852 | DC29: 84 | DD29: 2077 | DE29: 73.41176605 | DF29: 2234 | DG29: 77 | DH29: 2489 | DI29: 126 | DJ29: 2371 | DK29: 118 | DL29: 2314 | DM29: 110 | DN29: 2329 | DO29: 109 | DP29: 2688 | DQ29: 112 | DR29: 2176 | DS29: 88 | DT29: 2410 | DU29: 94 | DV29: 10030.42 | DW29: 391.228
A30: 10 | B30: B | C30: COLTER BAY VILLAGE | D30: 188.802 | E30: 211.62 | G30: 22.818 | H30: 000083 | I30: 2 | J30: 45.636 | K30: P | L30: 10 | M30: US | N30: 26/89/189/191 | O30: NHS | P30: TE | Q30: 2 | R30: 1390 | S30: 38 | T30: 1280 | U30: 46 | V30: 1360 | W30: 48 | X30: 1280 | Y30: 60 | Z30: 1160 | AA30: 72 | AB30: 1280 | AC30: 66 | AD30: 1750 | AE30: 78 | AF30: 1850 | AG30: 104 | AH30: 1980 | AI30: 130 | AJ30: 1980 | AK30: 118 | AL30: 2070 | AM30: 68 | AN30: 2200 | AO30: 80 | AP30: 1950 | AQ30: 85 | AR30: 1520 | AS30: 90 | AT30: 1410 | AU30: 85 | AV30: 1400 | AW30: 85 | AX30: 1500 | AY30: 90 | AZ30: 1550 | BA30: 95 | BB30: 1340 | BC30: 85 | BD30: 1540 | BE30: 105 | BF30: 1740 | BG30: 95 | BH30: 1790 | BI30: 105 | BJ30: 1890 | BK30: 115 | BL30: 1990 | BM30: 95 | BN30: 2090 | BO30: 95 | BP30: 2090 | BQ30: 95 | BR30: 2090 | BS30: 95 | BT30: 2200 | BU30: 95 | BV30: 2200 | BW30: 90 | BX30: 2250 | BY30: 90 | BZ30: 2200 | CA30: 90 | CB30: 2200 | CC30: 100 | CD30: 2100 | CE30: 110 | CF30: 1800 | CG30: 90 | CH30: 1660 | CI30: 80 | CJ30: 1660 | CK30: 80 | CL30: 2630 | CM30: 90 | CN30: 2640 | CO30: 90 | CP30: 2640 | CQ30: 90 | CR30: 2169 | CS30: 106.90713 | CT30: 2169 | CU30: 106.90713 | CV30: 2169 | CW30: 69 | CX30: 1564 | CY30: 93.10006 | CZ30: 1543 | DA30: 94 | DB30: 1608 | DC30: 78 | DD30: 2307 | DE30: 68.16806793 | DF30: 1808 | DG30: 62 | DH30: 1851 | DI30: 251 | DJ30: 1863 | DK30: 219 | DL30: 1899 | DM30: 125 | DN30: 1816 | DO30: 109 | DP30: 2082 | DQ30: 95 | DR30: 1939 | DS30: 88 | DT30: 1798 | DU30: 86 | DV30: 41026.764 | DW30: 1962.348
A31: 11 | B31: B | C31: JCT I 80 (US 189 INT) | D31: 0 | E31: 20.791 | G31: 20.791 | H31: 000064 | I31: 2 | J31: 41.582 | K31: P | L31: 11 | M31: US | N31: 189 | O31: STP | P31: UI | Q31: 6 | R31: 470 | S31: 90 | T31: 470 | U31: 94 | V31: 410 | W31: 96 | X31: 390 | Y31: 72 | Z31: 400 | AA31: 84 | AB31: 440 | AC31: 86 | AD31: 590 | AE31: 130 | AF31: 590 | AG31: 138 | AH31: 670 | AI31: 190 | AJ31: 630 | AK31: 160 | AL31: 640 | AM31: 172 | AN31: 950 | AO31: 192 | AP31: 800 | AQ31: 180 | AR31: 730 | AS31: 120 | AT31: 740 | AU31: 125 | AV31: 890 | AW31: 250 | AX31: 850 | AY31: 240 | AZ31: 700 | BA31: 190 | BB31: 690 | BC31: 190 | BD31: 700 | BE31: 190 | BF31: 720 | BG31: 195 | BH31: 820 | BI31: 210 | BJ31: 830 | BK31: 210 | BL31: 870 | BM31: 220 | BN31: 970 | BO31: 220 | BP31: 970 | BQ31: 220 | BR31: 990 | BS31: 220 | BT31: 1000 | BU31: 220 | BV31: 1000 | BW31: 220 | BX31: 1000 | BY31: 220 | BZ31: 1000 | CA31: 220 | CB31: 1150 | CC31: 160 | CD31: 1100 | CE31: 150 | CF31: 1100 | CG31: 130 | CH31: 1150 | CI31: 180 | CJ31: 1170 | CK31: 190 | CL31: 1290 | CM31: 220 | CN31: 1320 | CO31: 230 | CP31: 1320 | CQ31: 250 | CR31: 1222 | CS31: 208 | CT31: 1158 | CU31: 174 | CV31: 1214 | CW31: 171.36635 | CX31: 1101 | CY31: 158.63537 | CZ31: 988 | DA31: 137 | DB31: 978 | DC31: 135 | DD31: 1034 | DE31: 105 | DF31: 1029 | DG31: 102 | DH31: 1094 | DI31: 230 | DJ31: 1071 | DK31: 128 | DL31: 1058 | DM31: 127 | DN31: 1001 | DO31: 125 | DP31: 1135 | DQ31: 127 | DR31: 1102 | DS31: 134 | DT31: 1134 | DU31: 154 | DV31: 23576.994 | DW31: 3201.814
A32: 11 | B32: B | C32: UINTA - LINCOLN COUNTY LINE | D32: 20.791 | E32: 21.41 | G32: 0.619 | H32: 000064 | I32: 2 | J32: 1.238 | K32: P | L32: 11 | M32: US | N32: 189 | O32: STP | P32: LN | Q32: 6 | R32: 450 | S32: 90 | T32: 450 | U32: 90 | V32: 400 | W32: 92 | X32: 380 | Y32: 72 | Z32: 400 | AA32: 84 | AB32: 440 | AC32: 86 | AD32: 590 | AE32: 130 | AF32: 590 | AG32: 138 | AH32: 670 | AI32: 190 | AJ32: 630 | AK32: 160 | AL32: 640 | AM32: 172 | AN32: 950 | AO32: 192 | AP32: 800 | AQ32: 180 | AR32: 730 | AS32: 120 | AT32: 740 | AU32: 125 | AV32: 890 | AW32: 250 | AX32: 850 | AY32: 240 | AZ32: 700 | BA32: 190 | BB32: 690 | BC32: 190 | BD32: 700 | BE32: 190 | BF32: 720 | BG32: 195 | BH32: 820 | BI32: 210 | BJ32: 830 | BK32: 210 | BL32: 870 | BM32: 220 | BN32: 970 | BO32: 220 | BP32: 970 | BQ32: 220 | BR32: 990 | BS32: 220 | BT32: 1000 | BU32: 220 | BV32: 1000 | BW32: 220 | BX32: 1000 | BY32: 220 | BZ32: 1000 | CA32: 220 | CB32: 1150 | CC32: 160 | CD32: 1070 | CE32: 150 | CF32: 1070 | CG32: 130 | CH32: 1120 | CI32: 180 | CJ32: 1140 | CK32: 190 | CL32: 1250 | CM32: 210 | CN32: 1280 | CO32: 220 | CP32: 1280 | CQ32: 240 | CR32: 1373 | CS32: 198 | CT32: 1357 | CU32: 169.80236 | CV32: 1342 | CW32: 169 | CX32: 1272 | CY32: 169 | CZ32: 1210 | DA32: 149 | DB32: 1175 | DC32: 147 | DD32: 1164 | DE32: 123.9379425 | DF32: 1141 | DG32: 181.48668 | DH32: 1242 | DI32: 234 | DJ32: 1071 | DK32: 128 | DL32: 1058 | DM32: 127 | DN32: 1001 | DO32: 125 | DP32: 1135 | DQ32: 127 | DR32: 1102 | DS32: 134 | DT32: 1134 | DU32: 154 | DV32: 701.946 | DW32: 95.326
A33: 11 | B33: B | C33: JCT ROUTE 2103 (WY 412) | D33: 21.41 | E33: 32.737 | G33: 11.327 | H33: LN0120 | I33: 2 | J33: 22.654 | K33: P | L33: 11 | M33: US | N33: 189 | O33: STP | P33: LN | Q33: 6 | R33: 450 | S33: 90 | T33: 450 | U33: 90 | V33: 400 | W33: 92 | X33: 380 | Y33: 72 | Z33: 420 | AA33: 88 | AB33: 460 | AC33: 90 | AD33: 630 | AE33: 134 | AF33: 630 | AG33: 142 | AH33: 710 | AI33: 196 | AJ33: 660 | AK33: 165 | AL33: 670 | AM33: 178 | AN33: 990 | AO33: 196 | AP33: 840 | AQ33: 185 | AR33: 790 | AS33: 130 | AT33: 800 | AU33: 1350 | AV33: 970 | AW33: 270 | AX33: 920 | AY33: 260 | AZ33: 720 | BA33: 195 | BB33: 710 | BC33: 195 | BD33: 710 | BE33: 195 | BF33: 730 | BG33: 200 | BH33: 1000 | BI33: 220 | BJ33: 1010 | BK33: 220 | BL33: 1050 | BM33: 230 | BN33: 1120 | BO33: 230 | BP33: 1120 | BQ33: 230 | BR33: 1140 | BS33: 230 | BT33: 1150 | BU33: 230 | BV33: 1150 | BW33: 230 | BX33: 1150 | BY33: 230 | BZ33: 1200 | CA33: 250 | CB33: 1360 | CC33: 170 | CD33: 1250 | CE33: 150 | CF33: 1250 | CG33: 130 | CH33: 1310 | CI33: 180 | CJ33: 1340 | CK33: 190 | CL33: 1500 | CM33: 240 | CN33: 1550 | CO33: 250 | CP33: 1550 | CQ33: 270 | CR33: 1690 | CS33: 228 | CT33: 1670 | CU33: 208.96827 | CV33: 1653 | CW33: 223 | CX33: 1567 | CY33: 223 | CZ33: 1490 | DA33: 209 | DB33: 1447 | DC33: 207 | DD33: 1434 | DE33: 180.0695801 | DF33: 1137 | DG33: 223.47833 | DH33: 1529 | DI33: 240 | DJ33: 1559 | DK33: 310 | DL33: 1491 | DM33: 127 | DN33: 1512 | DO33: 50 | DP33: 1636 | DQ33: 50 | DR33: 1574 | DS33: 127 | DT33: 1676 | DU33: 127 | DV33: 18984.052 | DW33: 1438.529
A34: 11 | B34: B | C34: JCT COUNTY ROAD WEST TO ELKOL | D34: 32.737 | E34: 34.452 | G34: 1.715 | H34: LN0123 | I34: 2 | J34: 3.43 | K34: P | L34: 11 | M34: US | N34: 189 | O34: STP | P34: LN | Q34: 6 | R34: 510 | S34: 92 | T34: 510 | U34: 86 | V34: 450 | W34: 90 | X34: 430 | Y34: 74 | Z34: 620 | AA34: 106 | AB34: 680 | AC34: 106 | AD34: 850 | AE34: 150 | AF34: 830 | AG34: 158 | AH34: 1150 | AI34: 146 | AJ34: 1120 | AK34: 109 | AL34: 1130 | AM34: 121 | AN34: 1560 | AO34: 218 | AP34: 1420 | AQ34: 210 | AR34: 1250 | AS34: 170 | AT34: 1260 | AU34: 175 | AV34: 1450 | AW34: 350 | AX34: 1390 | AY34: 335 | AZ34: 1230 | BA34: 255 | BB34: 1210 | BC34: 255 | BD34: 1190 | BE34: 255 | BF34: 1250 | BG34: 270 | BH34: 1250 | BI34: 290 | BJ34: 1260 | BK34: 290 | BL34: 1300 | BM34: 300 | BN34: 1450 | BO34: 300 | BP34: 1450 | BQ34: 300 | BR34: 1470 | BS34: 300 | BT34: 1500 | BU34: 300 | BV34: 1500 | BW34: 300 | BX34: 1500 | BY34: 300 | BZ34: 1500 | CA34: 300 | CB34: 1650 | CC34: 270 | CD34: 1430 | CE34: 250 | CF34: 1430 | CG34: 220 | CH34: 1480 | CI34: 270 | CJ34: 1510 | CK34: 280 | CL34: 3150 | CM34: 440 | CN34: 3300 | CO34: 450 | CP34: 3300 | CQ34: 470 | CR34: 3320 | CS34: 133.9420695 | CT34: 3280 | CU34: 133.9420695 | CV34: 3280 | CW34: 133.9420695 | CX34: 3076 | CY34: 133.9420695 | CZ34: 2975 | DA34: 125 | DB34: 2925 | DC34: 124 | DD34: 3267 | DE34: 113.531189 | DF34: 3170 | DG34: 111 | DH34: 2990 | DI34: 260 | DJ34: 1980 | DK34: 300 | DL34: 926 | DM34: 201 | DN34: 962 | DO34: 50 | DP34: 1041 | DQ34: 50 | DR34: 1001 | DS34: 120 | DT34: 1066 | DU34: 261 | DV34: 1828.19 | DW34: 447.615
A35: 11 | B35: B | C35: us 30 EB ramps | D35: 34.452 | E35: 34.566 | G35: 0.114 | H35: LN0124 | I35: 2 | J35: 0.228 | K35: P | L35: 11 | M35: US | N35: 189 | O35: STP | P35: LN | Q35: 6 | R35: 630 | S35: 92 | T35: 620 | U35: 86 | V35: 560 | W35: 90 | X35: 560 | Y35: 76 | Z35: 900 | AA35: 112 | AB35: 1640 | AC35: 106 | AD35: 1950 | AE35: 150 | AF35: 1900 | AG35: 158 | AH35: 2160 | AI35: 218 | AJ35: 1700 | AK35: 164 | AL35: 1720 | AM35: 176 | AN35: 3150 | AO35: 250 | AP35: 2980 | AQ35: 240 | AR35: 2900 | AS35: 220 | AT35: 2930 | AU35: 230 | AV35: 3170 | AW35: 460 | AX35: 3040 | AY35: 445 | AZ35: 2770 | BA35: 335 | BB35: 2750 | BC35: 335 | BD35: 2560 | BE35: 335 | BF35: 2620 | BG35: 350 | BH35: 2510 | BI35: 350 | BJ35: 2480 | BK35: 340 | BL35: 2520 | BM35: 350 | BN35: 2520 | BO35: 350 | BP35: 2500 | BQ35: 315 | BR35: 2500 | BS35: 315 | BT35: 2900 | BU35: 315 | BV35: 2900 | BW35: 320 | BX35: 2900 | BY35: 320 | BZ35: 2900 | CA35: 320 | CB35: 3360 | CC35: 300 | CD35: 3440 | CE35: 280 | CF35: 3430 | CG35: 250 | CH35: 3580 | CI35: 300 | CJ35: 3610 | CK35: 310 | CL35: 3130 | CM35: 180 | CN35: 3250 | CO35: 190 | CP35: 3250 | CQ35: 200 | CR35: 3321 | CS35: 133.9824135 | CT35: 3281 | CU35: 133.9824135 | CV35: 3248 | CW35: 133.9824135 | CX35: 2561 | CY35: 133.9824135 | CZ35: 2436 | DA35: 130 | DB35: 2365 | DC35: 127 | DD35: 2207 | DE35: 117.6430664 | DF35: 2138 | DG35: 344.04529 | DH35: 2500 | DI35: 30 | DJ35: 3808 | DK35: 757 | DL35: 1931 | DM35: 97 | DN35: 2006 | DO35: 50 | DP35: 2170 | DQ35: 50 | DR35: 2089 | DS35: 119 | DT35: 2224 | DU35: 124 | DV35: 253.536 | DW35: 14.136
A36: 11 | B36: B | C36: US 30 WB ramps | D36: 34.566 | E36: 35.334 | G36: 0.768 | H36: LN0125 | I36: 3 | J36: 2.304 | K36: P | L36: 12 | M36: US | N36: 190 | O36: STP | P36: LN | Q36: 6 | R36: 630 | S36: 92 | T36: 620 | U36: 86 | V36: 560 | W36: 90 | X36: 560 | Y36: 76 | Z36: 900 | AA36: 112 | AB36: 1640 | AC36: 106 | AD36: 1950 | AE36: 150 | AF36: 1900 | AG36: 158 | AH36: 2160 | AI36: 218 | AJ36: 1700 | AK36: 164 | AL36: 1720 | AM36: 176 | AN36: 3150 | AO36: 250 | AP36: 2980 | AQ36: 240 | AR36: 2900 | AS36: 220 | AT36: 2930 | AU36: 230 | AV36: 3170 | AW36: 460 | AX36: 3040 | AY36: 445 | AZ36: 2770 | BA36: 335 | BB36: 2750 | BC36: 335 | BD36: 2560 | BE36: 335 | BF36: 2620 | BG36: 350 | BH36: 2510 | BI36: 350 | BJ36: 2480 | BK36: 340 | BL36: 2520 | BM36: 350 | BN36: 2520 | BO36: 350 | BP36: 2500 | BQ36: 315 | BR36: 2500 | BS36: 315 | BT36: 2900 | BU36: 315 | BV36: 2900 | BW36: 320 | BX36: 2900 | BY36: 320 | BZ36: 2900 | CA36: 320 | CB36: 3360 | CC36: 300 | CD36: 3440 | CE36: 280 | CF36: 3430 | CG36: 250 | CH36: 3580 | CI36: 300 | CJ36: 3610 | CK36: 310 | CL36: 3130 | CM36: 180 | CN36: 3250 | CO36: 190 | CP36: 3250 | CQ36: 200 | CR36: 3321 | CS36: 133.9824135 | CT36: 3281 | CU36: 133.9824135 | CV36: 3248 | CW36: 133.9824135 | CX36: 2561 | CY36: 133.9824135 | CZ36: 2436 | DA36: 130 | DB36: 2365 | DC36: 127 | DD36: 2207 | DE36: 117.6430664 | DF36: 2138 | DG36: 344.04529 | DH36: 2500 | DI36: 30 | DJ36: 3808 | DK36: 757 | DL36: 3575 | DM36: 395 | DN36: 3495 | DO36: 50 | DP36: 3781 | DQ36: 50 | DR36: 3639 | DS36: 119 | DT36: 3875 | DU36: 115 | DV36: 2976 | DW36: 88.32
A37: 11 | B37: B | C37: US 30 | D37: 35.334 | E37: 36.508 | G37: 1.174 | H37: LN0126 | I37: 2 | J37: 2.348 | K37: P | L37: 11 | M37: US | N37: 189 | O37: STP | P37: LN | Q37: 6 | R37: 1040 | S37: 92 | T37: 990 | U37: 86 | V37: 930 | W37: 98 | X37: 1110 | Y37: 136 | Z37: 910 | AA37: 112 | AB37: 1060 | AC37: 106 | AD37: 1970 | AE37: 156 | AF37: 1950 | AG37: 164 | AH37: 2210 | AI37: 226 | AJ37: 1740 | AK37: 171 | AL37: 1770 | AM37: 181 | AN37: 5500 | AO37: 300 | AP37: 4330 | AQ37: 280 | AR37: 4500 | AS37: 250 | AT37: 4550 | AU37: 260 | AV37: 4820 | AW37: 520 | AX37: 4630 | AY37: 500 | AZ37: 4330 | BA37: 390 | BB37: 4310 | BC37: 390 | BD37: 4120 | BE37: 390 | BF37: 4180 | BG37: 405 | BH37: 4100 | BI37: 405 | BJ37: 4070 | BK37: 395 | BL37: 5290 | BM37: 405 | BN37: 5290 | BO37: 405 | BP37: 5150 | BQ37: 370 | BR37: 5150 | BS37: 370 | BT37: 5150 | BU37: 370 | BV37: 5150 | BW37: 370 | BX37: 5150 | BY37: 370 | BZ37: 5200 | CA37: 380 | CB37: 4500 | CC37: 380 | CD37: 3070 | CE37: 360 | CF37: 3060 | CG37: 320 | CH37: 3200 | CI37: 370 | CJ37: 3230 | CK37: 380 | CL37: 3460 | CM37: 200 | CN37: 3600 | CO37: 210 | CP37: 3600 | CQ37: 220 | CR37: 4211 | CS37: 169.8885707 | CT37: 4160 | CU37: 169.8885707 | CV37: 4119 | CW37: 169.8885707 | CX37: 3293 | CY37: 169.8885707 | CZ37: 3132 | DA37: 162 | DB37: 3050 | DC37: 159 | DD37: 3145 | DE37: 148.3468933 | DF37: 3047 | DG37: 145 | DH37: 3200 | DI37: 652 | DJ37: 3833 | DK37: 229 | DL37: 3844 | DM37: 799 | DN37: 3898 | DO37: 50 | DP37: 4218 | DQ37: 50 | DR37: 4059 | DS37: 118 | DT37: 4322 | DU37: 108 | DV37: 5074.028 | DW37: 126.792
A38: 11 | B38: B | C38: Moose St | D38: 36.508 | E38: 38.07 | G38: 1.562 | H38: LN0127 | I38: 2 | J38: 3.124 | K38: P | L38: 11 | M38: US | N38: 189 | O38: STP | P38: LN | Q38: 6 | R38: 1040 | S38: 92 | T38: 990 | U38: 86 | V38: 930 | W38: 98 | X38: 1110 | Y38: 136 | Z38: 910 | AA38: 112 | AB38: 1060 | AC38: 106 | AD38: 1970 | AE38: 156 | AF38: 1950 | AG38: 164 | AH38: 2210 | AI38: 226 | AJ38: 1740 | AK38: 171 | AL38: 1770 | AM38: 181 | AN38: 6200 | AO38: 300 | AP38: 5500 | AQ38: 280 | AR38: 6000 | AS38: 250 | AT38: 6060 | AU38: 260 | AV38: 6420 | AW38: 520 | AX38: 6160 | AY38: 500 | AZ38: 5810 | BA38: 390 | BB38: 5790 | BC38: 390 | BD38: 5600 | BE38: 390 | BF38: 5660 | BG38: 405 | BH38: 5580 | BI38: 405 | BJ38: 5550 | BK38: 395 | BL38: 5290 | BM38: 405 | BN38: 5290 | BO38: 405 | BP38: 5150 | BQ38: 370 | BR38: 5150 | BS38: 370 | BT38: 5150 | BU38: 370 | BV38: 5150 | BW38: 370 | BX38: 5150 | BY38: 370 | BZ38: 5200 | CA38: 380 | CB38: 5450 | CC38: 400 | CD38: 5100 | CE38: 380 | CF38: 5090 | CG38: 340 | CH38: 5300 | CI38: 390 | CJ38: 5330 | CK38: 400 | CL38: 5390 | CM38: 320 | CN38: 5500 | CO38: 330 | CP38: 5500 | CQ38: 340 | CR38: 5063 | CS38: 204.261656 | CT38: 5002 | CU38: 204.261656 | CV38: 4950 | CW38: 204.261656 | CX38: 3337 | CY38: 204.261656 | CZ38: 3173 | DA38: 200 | DB38: 3730 | DC38: 199 | DD38: 3696 | DE38: 186.8484344 | DF38: 3581 | DG38: 775 | DH38: 3770 | DI38: 652 | DJ38: 2565 | DK38: 798 | DL38: 3733 | DM38: 229 | DN38: 2735 | DO38: 50 | DP38: 2959 | DQ38: 50 | DR38: 2848 | DS38: 117 | DT38: 3032 | DU38: 203 | DV38: 4735.984 | DW38: 317.086
A39: 11 | B39: B | C39: WY 233 | D39: 38.07 | E39: 39.1 | G39: 1.03 | H39: LN0128 | I39: 2 | J39: 2.06 | K39: P | L39: 11 | M39: US | N39: 189 | O39: STP | P39: LN | Q39: 6 | R39: 580 | S39: 54 | T39: 580 | U39: 54 | V39: 560 | W39: 50 | X39: 580 | Y39: 58 | Z39: 650 | AA39: 60 | AB39: 650 | AC39: 62 | AD39: 670 | AE39: 60 | AF39: 660 | AG39: 68 | AH39: 590 | AI39: 92 | AJ39: 700 | AK39: 70 | AL39: 700 | AM39: 73 | AN39: 920 | AO39: 90 | AP39: 850 | AQ39: 50 | AR39: 1500 | AS39: 100 | AT39: 1700 | AU39: 105 | AV39: 1910 | AW39: 210 | AX39: 1790 | AY39: 200 | AZ39: 1540 | BA39: 150 | BB39: 1520 | BC39: 150 | BD39: 1380 | BE39: 150 | BF39: 1440 | BG39: 165 | BH39: 1240 | BI39: 165 | BJ39: 1210 | BK39: 155 | BL39: 1250 | BM39: 165 | BN39: 1100 | BO39: 165 | BP39: 1060 | BQ39: 130 | BR39: 1040 | BS39: 130 | BT39: 1450 | BU39: 130 | BV39: 1450 | BW39: 130 | BX39: 1450 | BY39: 130 | BZ39: 1500 | CA39: 140 | CB39: 1500 | CC39: 140 | CD39: 2770 | CE39: 140 | CF39: 2760 | CG39: 120 | CH39: 2870 | CI39: 170 | CJ39: 2930 | CK39: 170 | CL39: 1360 | CM39: 170 | CN39: 1500 | CO39: 180 | CP39: 1500 | CQ39: 190 | CR39: 1312 | CS39: 103 | CT39: 1296 | CU39: 162.16939 | CV39: 1283 | CW39: 162.16939 | CX39: 988 | CY39: 162.16939 | CZ39: 940 | DA39: 159 | DB39: 913 | DC39: 157 | DD39: 911 | DE39: 148.6628876 | DF39: 883 | DG39: 142.03997 | DH39: 971 | DI39: 192 | DJ39: 3283 | DK39: 121 | DL39: 1572 | DM39: 126 | DN39: 1152 | DO39: 50 | DP39: 1246 | DQ39: 50 | DR39: 1199 | DS39: 117 | DT39: 1277 | DU39: 108 | DV39: 1315.31 | DW39: 111.24
A40: 11 | B40: B | C40: Aspen Springs Rd CR 319 (ML7569B) | D40: 39.1 | E40: 42.466 | G40: 3.366 | H40: LN0129 | I40: 2 | J40: 6.732 | K40: P | L40: 11 | M40: US | N40: 189 | O40: STP | P40: LN | Q40: 6 | R40: 580 | S40: 54 | T40: 580 | U40: 54 | V40: 560 | W40: 50 | X40: 580 | Y40: 58 | Z40: 650 | AA40: 60 | AB40: 650 | AC40: 62 | AD40: 670 | AE40: 60 | AF40: 660 | AG40: 68 | AH40: 590 | AI40: 92 | AJ40: 700 | AK40: 70 | AL40: 700 | AM40: 73 | AN40: 920 | AO40: 90 | AP40: 850 | AQ40: 50 | AR40: 700 | AS40: 70 | AT40: 840 | AU40: 75 | AV40: 1030 | AW40: 150 | AX40: 960 | AY40: 140 | AZ40: 730 | BA40: 100 | BB40: 710 | BC40: 100 | BD40: 690 | BE40: 100 | BF40: 750 | BG40: 115 | BH40: 740 | BI40: 115 | BJ40: 710 | BK40: 105 | BL40: 750 | BM40: 115 | BN40: 700 | BO40: 115 | BP40: 660 | BQ40: 80 | BR40: 640 | BS40: 80 | BT40: 700 | BU40: 80 | BV40: 700 | BW40: 80 | BX40: 700 | BY40: 80 | BZ40: 700 | CA40: 80 | CB40: 810 | CC40: 80 | CD40: 890 | CE40: 80 | CF40: 820 | CG40: 70 | CH40: 860 | CI40: 100 | CJ40: 920 | CK40: 100 | CL40: 860 | CM40: 100 | CN40: 920 | CO40: 110 | CP40: 920 | CQ40: 120 | CR40: 926 | CS40: 80 | CT40: 915 | CU40: 114.49459 | CV40: 915 | CW40: 114.49459 | CX40: 865 | CY40: 114.49459 | CZ40: 830 | DA40: 108 | DB40: 810 | DC40: 90 | DD40: 913 | DE40: 86.48860931 | DF40: 688 | DG40: 82 | DH40: 725 | DI40: 135 | DJ40: 690 | DK40: 95 | DL40: 1500 | DM40: 123 | DN40: 575 | DO40: 50 | DP40: 622 | DQ40: 50 | DR40: 599 | DS40: 115 | DT40: 637 | DU40: 115 | DV40: 2144.142 | DW40: 387.09
A41: 11 | B41: B | C41: Sublette Pomeroy Basin Rd CR 306 | D41: 42.466 | E41: 57.49 | G41: 15.024 | H41: 0131SW | I41: 2 | J41: 30.048 | K41: P | L41: 11 | M41: US | N41: 189 | O41: STP | P41: LN | Q41: 6 | R41: 380 | S41: 50 | T41: 380 | U41: 45 | V41: 360 | W41: 47 | X41: 380 | Y41: 54 | Z41: 440 | AA41: 56 | AB41: 440 | AC41: 60 | AD41: 430 | AE41: 58 | AF41: 480 | AG41: 66 | AH41: 410 | AI41: 90 | AJ41: 420 | AK41: 69 | AL41: 420 | AM41: 71 | AN41: 530 | AO41: 85 | AP41: 520 | AQ41: 40 | AR41: 460 | AS41: 60 | AT41: 600 | AU41: 65 | AV41: 770 | AW41: 130 | AX41: 720 | AY41: 120 | AZ41: 490 | BA41: 90 | BB41: 470 | BC41: 90 | BD41: 470 | BE41: 90 | BF41: 530 | BG41: 105 | BH41: 520 | BI41: 105 | BJ41: 490 | BK41: 95 | BL41: 530 | BM41: 105 | BN41: 570 | BO41: 105 | BP41: 530 | BQ41: 70 | BR41: 510 | BS41: 70 | BT41: 560 | BU41: 70 | BV41: 560 | BW41: 70 | BX41: 560 | BY41: 70 | BZ41: 560 | CA41: 70 | CB41: 590 | CC41: 70 | CD41: 650 | CE41: 60 | CF41: 580 | CG41: 50 | CH41: 700 | CI41: 80 | CJ41: 760 | CK41: 80 | CL41: 810 | CM41: 90 | CN41: 870 | CO41: 100 | CP41: 910 | CQ41: 110 | CR41: 825 | CS41: 75 | CT41: 764 | CU41: 61 | CV41: 749 | CW41: 60.30184 | CX41: 694 | CY41: 60.18732 | CZ41: 664 | DA41: 60 | DB41: 657 | DC41: 50 | DD41: 719 | DE41: 51 | DF41: 688 | DG41: 109.43281 | DH41: 708 | DI41: 51 | DJ41: 690 | DK41: 57 | DL41: 659 | DM41: 46 | DN41: 651 | DO41: 50 | DP41: 662 | DQ41: 50 | DR41: 589 | DS41: 113 | DT41: 627 | DU41: 50 | DV41: 9420.048 | DW41: 751.2
A42: 11 | B42: B | C42: WY 240 ML1202B | D42: 57.49 | E42: 61.369 | G42: 3.879 | H42: 0131NE | I42: 2 | J42: 7.758 | K42: P | L42: 11 | M42: US | N42: 189 | O42: STP | P42: LN | Q42: 6 | R42: 400 | S42: 54 | T42: 450 | U42: 52 | V42: 400 | W42: 54 | X42: 420 | Y42: 70 | Z42: 480 | AA42: 72 | AB42: 460 | AC42: 78 | AD42: 450 | AE42: 76 | AF42: 550 | AG42: 84 | AH42: 470 | AI42: 114 | AJ42: 450 | AK42: 90 | AL42: 450 | AM42: 92 | AN42: 660 | AO42: 105 | AP42: 640 | AQ42: 80 | AR42: 650 | AS42: 100 | AT42: 670 | AU42: 105 | AV42: 860 | AW42: 210 | AX42: 800 | AY42: 165 | AZ42: 580 | BA42: 120 | BB42: 540 | BC42: 110 | BD42: 570 | BE42: 115 | BF42: 640 | BG42: 130 | BH42: 630 | BI42: 130 | BJ42: 590 | BK42: 120 | BL42: 640 | BM42: 130 | BN42: 680 | BO42: 130 | BP42: 620 | BQ42: 90 | BR42: 600 | BS42: 90 | BT42: 670 | BU42: 90 | BV42: 660 | BW42: 90 | BX42: 730 | BY42: 90 | BZ42: 730 | CA42: 90 | CB42: 770 | CC42: 90 | CD42: 850 | CE42: 120 | CF42: 820 | CG42: 100 | CH42: 850 | CI42: 150 | CJ42: 950 | CK42: 160 | CL42: 1040 | CM42: 190 | CN42: 1100 | CO42: 200 | CP42: 1140 | CQ42: 210 | CR42: 922 | CS42: 138 | CT42: 879 | CU42: 114 | CV42: 871 | CW42: 115.93852 | CX42: 781 | CY42: 100.70581 | CZ42: 731 | DA42: 94 | DB42: 723 | DC42: 91 | DD42: 787 | DE42: 80 | DF42: 769 | DG42: 122.31661 | DH42: 843 | DI42: 99 | DJ42: 884 | DK42: 112 | DL42: 849 | DM42: 102 | DN42: 727 | DO42: 82 | DP42: 772 | DQ42: 82 | DR42: 672 | DS42: 101 | DT42: 716 | DU42: 82 | DV42: 2777.364 | DW42: 318.078
A43: 11 | B43: B | C43: WY 372 (ML1906B) | D43: 61.369 | E43: 66.518 | G43: 5.149 | H43: LN0130 | I43: 2 | J43: 10.298 | K43: P | L43: 11 | M43: US | N43: 189 | O43: STP | P43: LN | Q43: 6 | R43: 420 | S43: 58 | T43: 410 | U43: 55 | V43: 410 | W43: 61 | X43: 390 | Y43: 74 | Z43: 460 | AA43: 76 | AB43: 480 | AC43: 94 | AD43: 470 | AE43: 92 | AF43: 570 | AG43: 100 | AH43: 490 | AI43: 136 | AJ43: 430 | AK43: 106 | AL43: 430 | AM43: 107 | AN43: 650 | AO43: 120 | AP43: 560 | AQ43: 95 | AR43: 570 | AS43: 120 | AT43: 590 | AU43: 125 | AV43: 760 | AW43: 250 | AX43: 710 | AY43: 195 | AZ43: 530 | BA43: 145 | BB43: 490 | BC43: 135 | BD43: 660 | BE43: 140 | BF43: 730 | BG43: 155 | BH43: 720 | BI43: 155 | BJ43: 680 | BK43: 145 | BL43: 780 | BM43: 155 | BN43: 740 | BO43: 155 | BP43: 640 | BQ43: 105 | BR43: 620 | BS43: 105 | BT43: 670 | BU43: 105 | BV43: 660 | BW43: 100 | BX43: 730 | BY43: 100 | BZ43: 690 | CA43: 90 | CB43: 810 | CC43: 90 | CD43: 860 | CE43: 120 | CF43: 830 | CG43: 100 | CH43: 860 | CI43: 150 | CJ43: 960 | CK43: 160 | CL43: 1080 | CM43: 190 | CN43: 1290 | CO43: 260 | CP43: 1270 | CQ43: 270 | CR43: 1163 | CS43: 147 | CT43: 1149 | CU43: 143.77518 | CV43: 1117 | CW43: 145 | CX43: 791 | CY43: 155.93007 | CZ43: 752 | DA43: 149 | DB43: 730 | DC43: 140 | DD43: 655 | DE43: 122.4036331 | DF43: 635 | DG43: 102.11608 | DH43: 772 | DI43: 107 | DJ43: 796 | DK43: 255 | DL43: 762 | DM43: 86 | DN43: 792 | DO43: 89 | DP43: 857 | DQ43: 89 | DR43: 824 | DS43: 98 | DT43: 878 | DU43: 323 | DV43: 4520.822 | DW43: 1663.127
A44: 11 | B44: B | C44: Fontenelle Dam CR 313 (ML7564B) | D44: 66.518 | E44: 83.938 | G44: 17.42 | H44: LN0132 | I44: 2 | J44: 34.84 | K44: P | L44: 11 | M44: US | N44: 189 | O44: STP | P44: LN | Q44: 6 | R44: 510 | S44: 74 | T44: 500 | U44: 64 | V44: 500 | W44: 70 | X44: 480 | Y44: 82 | Z44: 550 | AA44: 84 | AB44: 570 | AC44: 92 | AD44: 620 | AE44: 100 | AF44: 640 | AG44: 110 | AH44: 550 | AI44: 150 | AJ44: 480 | AK44: 118 | AL44: 500 | AM44: 121 | AN44: 710 | AO44: 135 | AP44: 690 | AQ44: 110 | AR44: 720 | AS44: 130 | AT44: 740 | AU44: 135 | AV44: 950 | AW44: 270 | AX44: 890 | AY44: 210 | AZ44: 690 | BA44: 160 | BB44: 650 | BC44: 150 | BD44: 770 | BE44: 155 | BF44: 840 | BG44: 170 | BH44: 830 | BI44: 170 | BJ44: 790 | BK44: 160 | BL44: 960 | BM44: 170 | BN44: 920 | BO44: 170 | BP44: 820 | BQ44: 130 | BR44: 800 | BS44: 130 | BT44: 900 | BU44: 130 | BV44: 900 | BW44: 130 | BX44: 950 | BY44: 130 | BZ44: 890 | CA44: 120 | CB44: 940 | CC44: 120 | CD44: 970 | CE44: 160 | CF44: 940 | CG44: 140 | CH44: 970 | CI44: 210 | CJ44: 1060 | CK44: 220 | CL44: 1640 | CM44: 300 | CN44: 1710 | CO44: 320 | CP44: 1690 | CQ44: 330 | CR44: 1502 | CS44: 161 | CT44: 1484 | CU44: 158 | CV44: 1443 | CW44: 158 | CX44: 1368 | CY44: 158 | CZ44: 1301 | DA44: 150 | DB44: 1263 | DC44: 148 | DD44: 1252 | DE44: 127.4291992 | DF44: 1318 | DG44: 195.16578 | DH44: 1335 | DI44: 264 | DJ44: 1361 | DK44: 270 | DL44: 1302 | DM44: 98 | DN44: 1320 | DO44: 96 | DP44: 715 | DQ44: 131 | DR44: 688 | DS44: 95 | DT44: 733 | DU44: 131 | DV44: 12768.86 | DW44: 2282.02
A45: 11 | B45: B | C45: LaBarge Cr Rd (ML7566B) | D45: 83.938 | E45: 84.87 | G45: 0.932 | H45: LN0133 | I45: 2 | J45: 1.864 | K45: P | L45: 11 | M45: US | N45: 189 | O45: STP | P45: LN | Q45: 6 | R45: 630 | S45: 78 | T45: 540 | U45: 66 | V45: 540 | W45: 72 | X45: 520 | Y45: 84 | Z45: 590 | AA45: 84 | AB45: 610 | AC45: 92 | AD45: 660 | AE45: 100 | AF45: 680 | AG45: 110 | AH45: 580 | AI45: 150 | AJ45: 510 | AK45: 118 | AL45: 530 | AM45: 121 | AN45: 740 | AO45: 135 | AP45: 950 | AQ45: 110 | AR45: 960 | AS45: 150 | AT45: 980 | AU45: 160 | AV45: 1260 | AW45: 320 | AX45: 1170 | AY45: 245 | AZ45: 970 | BA45: 200 | BB45: 930 | BC45: 190 | BD45: 1010 | BE45: 195 | BF45: 1080 | BG45: 205 | BH45: 1070 | BI45: 205 | BJ45: 1030 | BK45: 195 | BL45: 1250 | BM45: 205 | BN45: 1200 | BO45: 205 | BP45: 1100 | BQ45: 165 | BR45: 1080 | BS45: 165 | BT45: 1120 | BU45: 165 | BV45: 1120 | BW45: 160 | BX45: 1150 | BY45: 160 | BZ45: 1100 | CA45: 160 | CB45: 1100 | CC45: 140 | CD45: 1140 | CE45: 170 | CF45: 1110 | CG45: 160 | CH45: 1510 | CI45: 270 | CJ45: 1610 | CK45: 280 | CL45: 1770 | CM45: 320 | CN45: 1840 | CO45: 340 | CP45: 1820 | CQ45: 350 | CR45: 1693 | CS45: 168 | CT45: 1673 | CU45: 165 | CV45: 1627 | CW45: 165 | CX45: 1542 | CY45: 165 | CZ45: 1466 | DA45: 161 | DB45: 1423 | DC45: 159 | DD45: 1410 | DE45: 135.7185974 | DF45: 1213 | DG45: 219.81997 | DH45: 1504 | DI45: 298 | DJ45: 1533 | DK45: 305 | DL45: 1467 | DM45: 143 | DN45: 1488 | DO45: 87 | DP45: 1609 | DQ45: 87 | DR45: 1549 | DS45: 95 | DT45: 1649 | DU45: 95 | DV45: 1536.868 | DW45: 88.54
A46: 11 | B46: B | C46: LaBarge Cr Rd (ML7566B) | D46: 84.87 | E46: 85.426 | G46: 0.556 | H46: LN0135 | I46: 2 | J46: 1.112 | K46: P | L46: 11 | M46: US | N46: 189 | O46: STP | P46: LN | Q46: 6 | R46: 760 | S46: 88 | T46: 710 | U46: 72 | V46: 710 | W46: 76 | X46: 690 | Y46: 92 | Z46: 760 | AA46: 92 | AB46: 790 | AC46: 96 | AD46: 840 | AE46: 104 | AF46: 860 | AG46: 114 | AH46: 740 | AI46: 156 | AJ46: 650 | AK46: 126 | AL46: 670 | AM46: 121 | AN46: 880 | AO46: 135 | AP46: 1100 | AQ46: 110 | AR46: 1300 | AS46: 180 | AT46: 1330 | AU46: 190 | AV46: 1710 | AW46: 380 | AX46: 1590 | AY46: 295 | AZ46: 1350 | BA46: 240 | BB46: 1310 | BC46: 230 | BD46: 1550 | BE46: 235 | BF46: 1620 | BG46: 250 | BH46: 1530 | BI46: 240 | BJ46: 1510 | BK46: 240 | BL46: 1850 | BM46: 220 | BN46: 1800 | BO46: 220 | BP46: 1750 | BQ46: 200 | BR46: 1730 | BS46: 200 | BT46: 1750 | BU46: 200 | BV46: 1750 | BW46: 200 | BX46: 1750 | BY46: 200 | BZ46: 1600 | CA46: 190 | CB46: 1600 | CC46: 200 | CD46: 1650 | CE46: 220 | CF46: 1620 | CG46: 210 | CH46: 2620 | CI46: 350 | CJ46: 2720 | CK46: 360 | CL46: 2250 | CM46: 360 | CN46: 2590 | CO46: 410 | CP46: 2570 | CQ46: 420 | CR46: 2266 | CS46: 191 | CT46: 2239 | CU46: 187 | CV46: 2178 | CW46: 187 | CX46: 1843 | CY46: 187 | CZ46: 1753 | DA46: 182 | DB46: 1702 | DC46: 178 | DD46: 1687 | DE46: 151.7772217 | DF46: 1634 | DG46: 262.92504 | DH46: 1799 | DI46: 356 | DJ46: 1834 | DK46: 364 | DL46: 1754 | DM46: 143 | DN46: 1779 | DO46: 84 | DP46: 1925 | DQ46: 84 | DR46: 1852 | DS46: 95 | DT46: 1972 | DU46: 95 | DV46: 1096.432 | DW46: 52.82
A47: 11 | B47: B | C47: 1st ave | D47: 85.426 | E47: 85.92 | G47: 0.494 | H47: LN0136 | I47: 2 | J47: 0.988 | K47: P | L47: 11 | M47: US | N47: 189 | O47: STP | P47: LN | Q47: 6 | R47: 580 | S47: 88 | T47: 540 | U47: 72 | V47: 540 | W47: 76 | X47: 520 | Y47: 92 | Z47: 590 | AA47: 92 | AB47: 610 | AC47: 96 | AD47: 660 | AE47: 104 | AF47: 720 | AG47: 114 | AH47: 610 | AI47: 156 | AJ47: 540 | AK47: 126 | AL47: 560 | AM47: 128 | AN47: 830 | AO47: 140 | AP47: 790 | AQ47: 120 | AR47: 820 | AS47: 160 | AT47: 840 | AU47: 170 | AV47: 1080 | AW47: 340 | AX47: 1010 | AY47: 265 | AZ47: 950 | BA47: 215 | BB47: 910 | BC47: 205 | BD47: 940 | BE47: 210 | BF47: 960 | BG47: 210 | BH47: 880 | BI47: 200 | BJ47: 860 | BK47: 200 | BL47: 1810 | BM47: 180 | BN47: 1760 | BO47: 180 | BP47: 1730 | BQ47: 160 | BR47: 1710 | BS47: 160 | BT47: 1730 | BU47: 160 | BV47: 1730 | BW47: 160 | BX47: 1730 | BY47: 160 | BZ47: 1600 | CA47: 150 | CB47: 1660 | CC47: 180 | CD47: 1710 | CE47: 200 | CF47: 1710 | CG47: 200 | CH47: 2710 | CI47: 340 | CJ47: 2810 | CK47: 350 | CL47: 2470 | CM47: 300 | CN47: 2720 | CO47: 350 | CP47: 2700 | CQ47: 360 | CR47: 1968 | CS47: 179 | CT47: 1944 | CU47: 175 | CV47: 1892 | CW47: 175 | CX47: 1628 | CY47: 175 | CZ47: 1548 | DA47: 169 | DB47: 1503 | DC47: 168 | DD47: 1253 | DE47: 143.1600494 | DF47: 1215 | DG47: 195.32484 | DH47: 1588 | DI47: 315 | DJ47: 1262 | DK47: 130 | DL47: 1207 | DM47: 137 | DN47: 1254 | DO47: 83 | DP47: 1357 | DQ47: 83 | DR47: 1306 | DS47: 95 | DT47: 1390 | DU47: 163 | DV47: 686.66 | DW47: 80.522
A48: 11 | B48: B | C48: Schmid Dr | D48: 85.92 | E48: 102.76 | G48: 16.84 | H48: 000061 | I48: 2 | J48: 33.68 | K48: P | L48: 11 | M48: US | N48: 189 | O48: STP | P48: SB | Q48: 6 | R48: 510 | S48: 84 | T48: 480 | U48: 68 | V48: 480 | W48: 70 | X48: 460 | Y48: 86 | Z48: 530 | AA48: 86 | AB48: 550 | AC48: 88 | AD48: 600 | AE48: 100 | AF48: 670 | AG48: 110 | AH48: 570 | AI48: 152 | AJ48: 500 | AK48: 122 | AL48: 520 | AM48: 166 | AN48: 790 | AO48: 175 | AP48: 750 | AQ48: 150 | AR48: 850 | AS48: 170 | AT48: 870 | AU48: 180 | AV48: 1120 | AW48: 360 | AX48: 1040 | AY48: 280 | AZ48: 980 | BA48: 230 | BB48: 940 | BC48: 220 | BD48: 1000 | BE48: 225 | BF48: 1020 | BG48: 225 | BH48: 890 | BI48: 215 | BJ48: 870 | BK48: 215 | BL48: 970 | BM48: 195 | BN48: 930 | BO48: 195 | BP48: 910 | BQ48: 175 | BR48: 890 | BS48: 175 | BT48: 900 | BU48: 175 | BV48: 900 | BW48: 180 | BX48: 900 | BY48: 180 | BZ48: 840 | CA48: 170 | CB48: 880 | CC48: 180 | CD48: 910 | CE48: 190 | CF48: 920 | CG48: 190 | CH48: 1330 | CI48: 320 | CJ48: 1430 | CK48: 330 | CL48: 1470 | CM48: 240 | CN48: 1620 | CO48: 290 | CP48: 1600 | CQ48: 300 | CR48: 1283 | CS48: 205 | CT48: 1194 | CU48: 191 | CV48: 1189 | CW48: 164.09856 | CX48: 1118 | CY48: 170.025 | CZ48: 1051 | DA48: 144 | DB48: 1021 | DC48: 143 | DD48: 993 | DE48: 120 | DF48: 907 | DG48: 115 | DH48: 907 | DI48: 106 | DJ48: 944 | DK48: 98 | DL48: 873 | DM48: 93 | DN48: 796 | DO48: 80 | DP48: 843 | DQ48: 80 | DR48: 776 | DS48: 96 | DT48: 814 | DU48: 109 | DV48: 13707.76 | DW48: 1835.56
A49: 11 | B49: B | C49: CALPET RD CR134 | D49: 102.76 | E49: 105.815 | G49: 3.055 | H49: SB0105 | I49: 2 | J49: 6.11 | K49: P | L49: 11 | M49: US | N49: 189 | O49: STP | P49: SB | Q49: 6 | R49: 680 | S49: 98 | T49: 630 | U49: 82 | V49: 630 | W49: 84 | X49: 610 | Y49: 88 | Z49: 680 | AA49: 88 | AB49: 710 | AC49: 90 | AD49: 760 | AE49: 102 | AF49: 840 | AG49: 112 | AH49: 720 | AI49: 152 | AJ49: 630 | AK49: 122 | AL49: 650 | AM49: 168 | AN49: 970 | AO49: 175 | AP49: 1050 | AQ49: 150 | AR49: 1110 | AS49: 190 | AT49: 1120 | AU49: 200 | AV49: 1440 | AW49: 400 | AX49: 1340 | AY49: 310 | AZ49: 1200 | BA49: 260 | BB49: 1160 | BC49: 250 | BD49: 1220 | BE49: 255 | BF49: 1240 | BG49: 255 | BH49: 1140 | BI49: 245 | BJ49: 1120 | BK49: 245 | BL49: 1220 | BM49: 225 | BN49: 1220 | BO49: 225 | BP49: 1200 | BQ49: 205 | BR49: 1180 | BS49: 205 | BT49: 1250 | BU49: 200 | BV49: 1250 | BW49: 200 | BX49: 1250 | BY49: 200 | BZ49: 1200 | CA49: 200 | CB49: 1200 | CC49: 200 | CD49: 1320 | CE49: 210 | CF49: 1330 | CG49: 220 | CH49: 1800 | CI49: 350 | CJ49: 1900 | CK49: 360 | CL49: 2450 | CM49: 520 | CN49: 2500 | CO49: 570 | CP49: 2480 | CQ49: 580 | CR49: 1720 | CS49: 495 | CT49: 1699 | CU49: 491 | CV49: 1666 | CW49: 326 | CX49: 1579 | CY49: 311.26875 | CZ49: 1502 | DA49: 260 | DB49: 1458 | DC49: 149 | DD49: 1445 | DE49: 125.0349655 | DF49: 1390 | DG49: 225.22799 | DH49: 1541 | DI49: 305 | DJ49: 1571 | DK49: 312 | DL49: 1898 | DM49: 157 | DN49: 1925 | DO49: 66 | DP49: 2083 | DQ49: 66 | DR49: 2004 | DS49: 114 | DT49: 2134 | DU49: 114 | DV49: 6519.37 | DW49: 348.27
A50: 11 | B50: B | C50: Quealy Ave | D50: 105.815 | E50: 105.94 | G50: 0.125 | H50: SB0106 | I50: 2 | J50: 0.25 | K50: P | L50: 11 | M50: US | N50: 189 | O50: STP | P50: SB | Q50: 6 | R50: 690 | S50: 108 | T50: 640 | U50: 92 | V50: 640 | W50: 94 | X50: 620 | Y50: 98 | Z50: 690 | AA50: 96 | AB50: 720 | AC50: 92 | AD50: 770 | AE50: 104 | AF50: 850 | AG50: 114 | AH50: 730 | AI50: 156 | AJ50: 640 | AK50: 126 | AL50: 660 | AM50: 174 | AN50: 980 | AO50: 180 | AP50: 1060 | AQ50: 155 | AR50: 1120 | AS50: 190 | AT50: 1140 | AU50: 200 | AV50: 1460 | AW50: 400 | AX50: 1360 | AY50: 310 | AZ50: 1220 | BA50: 260 | BB50: 1180 | BC50: 250 | BD50: 1240 | BE50: 255 | BF50: 1260 | BG50: 255 | BH50: 1160 | BI50: 245 | BJ50: 1140 | BK50: 245 | BL50: 1240 | BM50: 225 | BN50: 1240 | BO50: 225 | BP50: 1220 | BQ50: 205 | BR50: 1200 | BS50: 205 | BT50: 1250 | BU50: 205 | BV50: 1250 | BW50: 200 | BX50: 1250 | BY50: 200 | BZ50: 1200 | CA50: 200 | CB50: 1200 | CC50: 200 | CD50: 1320 | CE50: 210 | CF50: 1330 | CG50: 220 | CH50: 1800 | CI50: 350 | CJ50: 1900 | CK50: 360 | CL50: 2550 | CM50: 550 | CN50: 2570 | CO50: 600 | CP50: 2550 | CQ50: 610 | CR50: 2565 | CS50: 515 | CT50: 2534 | CU50: 511 | CV50: 2534 | CW50: 487 | CX50: 1995 | CY50: 393.27495 | CZ50: 1897 | DA50: 328 | DB50: 1842 | DC50: 301 | DD50: 1825 | DE50: 252.5874176 | DF50: 1390 | DG50: 284.55711 | DH50: 1947 | DI50: 385 | DJ50: 1984 | DK50: 394 | DL50: 2630 | DM50: 159 | DN50: 2667 | DO50: 64 | DP50: 2931 | DQ50: 201 | DR50: 2820 | DS50: 118 | DT50: 3003 | DU50: 201 | DV50: 375.375 | DW50: 25.125
A51: 11 | B51: B | C51: WY 350 | D51: 105.94 | E51: 107.62 | G51: 1.676 | H51: SB0107 | I51: 2 | J51: 3.352 | K51: P | L51: 11 | M51: US | N51: 189 | O51: STP | P51: SB | Q51: 6 | R51: 980 | S51: 132 | T51: 910 | U51: 124 | V51: 910 | W51: 120 | X51: 870 | Y51: 124 | Z51: 950 | AA51: 122 | AB51: 980 | AC51: 106 | AD51: 1030 | AE51: 128 | AF51: 1040 | AG51: 138 | AH51: 1070 | AI51: 186 | AJ51: 1280 | AK51: 151 | AL51: 1310 | AM51: 204 | AN51: 1700 | AO51: 205 | AP51: 1540 | AQ51: 180 | AR51: 2000 | AS51: 210 | AT51: 2040 | AU51: 220 | AV51: 2620 | AW51: 440 | AX51: 2440 | AY51: 340 | AZ51: 2250 | BA51: 290 | BB51: 2210 | BC51: 280 | BD51: 2270 | BE51: 285 | BF51: 2290 | BG51: 285 | BH51: 2010 | BI51: 275 | BJ51: 2010 | BK51: 275 | BL51: 2110 | BM51: 255 | BN51: 2110 | BO51: 255 | BP51: 2090 | BQ51: 235 | BR51: 2070 | BS51: 235 | BT51: 2100 | BU51: 235 | BV51: 2150 | BW51: 240 | BX51: 2150 | BY51: 240 | BZ51: 2200 | CA51: 250 | CB51: 2000 | CC51: 240 | CD51: 2400 | CE51: 250 | CF51: 2420 | CG51: 260 | CH51: 3350 | CI51: 390 | CJ51: 3560 | CK51: 400 | CL51: 4180 | CM51: 800 | CN51: 4200 | CO51: 850 | CP51: 4180 | CQ51: 860 | CR51: 3033 | CS51: 755 | CT51: 2997 | CU51: 750 | CV51: 2915 | CW51: 570.0175 | CX51: 2763 | CY51: 544.67102 | CZ51: 2628 | DA51: 454 | DB51: 2552 | DC51: 355 | DD51: 2529 | DE51: 297.9020996 | DF51: 2431 | DG51: 394.14898 | DH51: 2697 | DI51: 535 | DJ51: 2749 | DK51: 546 | DL51: 3041 | DM51: 159 | DN51: 3158 | DO51: 64 | DP51: 3417 | DQ51: 64 | DR51: 3288 | DS51: 119 | DT51: 5164 | DU51: 954 | DV51: 8654.864 | DW51: 1598.904
A52: 11 | B52: B | C52: Osterhout St | D52: 107.616 | E52: 108.778 | G52: 1.162 | H52: SB0110 | I52: 2 | J52: 2.324 | K52: P | L52: 11 | M52: US | N52: 189 | O52: STP | P52: SB | Q52: 6 | R52: 590 | S52: 64 | T52: 620 | U52: 66 | V52: 620 | W52: 62 | X52: 580 | Y52: 66 | Z52: 660 | AA52: 62 | AB52: 670 | AC52: 46 | AD52: 720 | AE52: 68 | AF52: 800 | AG52: 78 | AH52: 820 | AI52: 114 | AJ52: 1060 | AK52: 94 | AL52: 1090 | AM52: 144 | AN52: 1400 | AO52: 145 | AP52: 1380 | AQ52: 140 | AR52: 1650 | AS52: 160 | AT52: 1720 | AU52: 165 | AV52: 2210 | AW52: 330 | AX52: 2060 | AY52: 255 | AZ52: 1800 | BA52: 190 | BB52: 1760 | BC52: 180 | BD52: 1820 | BE52: 185 | BF52: 1840 | BG52: 185 | BH52: 1640 | BI52: 175 | BJ52: 1660 | BK52: 175 | BL52: 1760 | BM52: 155 | BN52: 1760 | BO52: 155 | BP52: 1760 | BQ52: 145 | BR52: 1740 | BS52: 145 | BT52: 1750 | BU52: 145 | BV52: 1850 | BW52: 150 | BX52: 1850 | BY52: 150 | BZ52: 1900 | CA52: 160 | CB52: 1800 | CC52: 160 | CD52: 1650 | CE52: 150 | CF52: 2510 | CG52: 340 | CH52: 3110 | CI52: 420 | CJ52: 3260 | CK52: 440 | CL52: 4520 | CM52: 830 | CN52: 4510 | CO52: 990 | CP52: 4560 | CQ52: 1000 | CR52: 3725 | CS52: 950 | CT52: 3680 | CU52: 880 | CV52: 3580 | CW52: 700.0558 | CX52: 3394 | CY52: 669.06025 | CZ52: 3228 | DA52: 558 | DB52: 3134 | DC52: 523 | DD52: 3106 | DE52: 438.881134 | DF52: 2988 | DG52: 807 | DH52: 3312 | DI52: 657 | DJ52: 3377 | DK52: 671 | DL52: 3230 | DM52: 162 | DN52: 3276 | DO52: 63 | DP52: 3544 | DQ52: 63 | DR52: 3410 | DS52: 122 | DT52: 3631 | DU52: 122 | DV52: 4219.222 | DW52: 141.764
A53: 11 | B53: B | C53: Big Piney Airport RD | D53: 108.778 | E53: 109.38 | G53: 0.602 | H53: SB0111 | I53: 2 | J53: 1.204 | K53: P | L53: 11 | M53: US | N53: 189 | O53: STP | P53: SB | Q53: 6 | R53: 570 | S53: 64 | T53: 610 | U53: 66 | V53: 580 | W53: 62 | X53: 540 | Y53: 66 | Z53: 620 | AA53: 62 | AB53: 630 | AC53: 46 | AD53: 680 | AE53: 64 | AF53: 730 | AG53: 74 | AH53: 750 | AI53: 100 | AJ53: 950 | AK53: 83 | AL53: 980 | AM53: 133 | AN53: 1000 | AO53: 135 | AP53: 900 | AQ53: 130 | AR53: 1200 | AS53: 150 | AT53: 1260 | AU53: 155 | AV53: 1620 | AW53: 310 | AX53: 1510 | AY53: 240 | AZ53: 1290 | BA53: 175 | BB53: 1250 | BC53: 165 | BD53: 1320 | BE53: 170 | BF53: 1340 | BG53: 170 | BH53: 1190 | BI53: 160 | BJ53: 1210 | BK53: 160 | BL53: 1310 | BM53: 140 | BN53: 1310 | BO53: 140 | BP53: 1310 | BQ53: 130 | BR53: 1290 | BS53: 130 | BT53: 1250 | BU53: 130 | BV53: 1400 | BW53: 130 | BX53: 1400 | BY53: 130 | BZ53: 1400 | CA53: 130 | CB53: 1500 | CC53: 130 | CD53: 1350 | CE53: 120 | CF53: 2210 | CG53: 310 | CH53: 2620 | CI53: 400 | CJ53: 2700 | CK53: 420 | CL53: 4070 | CM53: 740 | CN53: 4020 | CO53: 980 | CP53: 4070 | CQ53: 990 | CR53: 3255 | CS53: 890 | CT53: 3216 | CU53: 820 | CV53: 3128 | CW53: 611.66887 | CX53: 2424 | CY53: 477.84385 | CZ53: 2305 | DA53: 399 | DB53: 2238 | DC53: 381 | DD53: 1926 | DE53: 319.7202759 | DF53: 2988 | DG53: 807 | DH53: 3312 | DI53: 657 | DJ53: 2107 | DK53: 237 | DL53: 2144 | DM53: 163 | DN53: 2031 | DO53: 62 | DP53: 2198 | DQ53: 62 | DR53: 2115 | DS53: 124 | DT53: 2252 | DU53: 124 | DV53: 1355.704 | DW53: 74.648
A54: 11 | B54: B | C54: WY 351 | D54: 109.38 | E54: 119.195 | G54: 9.815 | H54: SB0112 | I54: 2 | J54: 19.63 | K54: P | L54: 11 | M54: US | N54: 189 | O54: STP | P54: SB | Q54: 6 | R54: 430 | S54: 42 | T54: 460 | U54: 44 | V54: 460 | W54: 37 | X54: 410 | Y54: 42 | Z54: 430 | AA54: 46 | AB54: 510 | AC54: 54 | AD54: 560 | AE54: 62 | AF54: 580 | AG54: 72 | AH54: 650 | AI54: 84 | AJ54: 650 | AK54: 70 | AL54: 670 | AM54: 80 | AN54: 750 | AO54: 93 | AP54: 700 | AQ54: 90 | AR54: 740 | AS54: 120 | AT54: 810 | AU54: 125 | AV54: 1040 | AW54: 250 | AX54: 970 | AY54: 195 | AZ54: 770 | BA54: 130 | BB54: 700 | BC54: 125 | BD54: 770 | BE54: 135 | BF54: 790 | BG54: 135 | BH54: 730 | BI54: 125 | BJ54: 770 | BK54: 130 | BL54: 760 | BM54: 130 | BN54: 790 | BO54: 130 | BP54: 800 | BQ54: 130 | BR54: 780 | BS54: 130 | BT54: 800 | BU54: 130 | BV54: 980 | BW54: 100 | BX54: 980 | BY54: 100 | BZ54: 1000 | CA54: 100 | CB54: 1200 | CC54: 100 | CD54: 1250 | CE54: 100 | CF54: 1100 | CG54: 140 | CH54: 1310 | CI54: 160 | CJ54: 1370 | CK54: 160 | CL54: 1430 | CM54: 280 | CN54: 1660 | CO54: 200 | CP54: 1710 | CQ54: 210 | CR54: 1623 | CS54: 165 | CT54: 1604 | CU54: 160 | CV54: 1560 | CW54: 160 | CX54: 1149 | CY54: 226.50272 | CZ54: 1093 | DA54: 189 | DB54: 1061 | DC54: 180 | DD54: 1051 | DE54: 151.0489502 | DF54: 1034 | DG54: 207 | DH54: 1122 | DI54: 222 | DJ54: 1638 | DK54: 166 | DL54: 1666 | DM54: 166 | DN54: 1265 | DO54: 62 | DP54: 1369 | DQ54: 62 | DR54: 1185 | DS54: 126 | DT54: 1261 | DU54: 126 | DV54: 12376.715 | DW54: 1236.69
A55: 11 | B55: B | C55: Cottonwood Ryegrass Rd(ML8294B) | D55: 119.195 | E55: 131.45 | G55: 12.255 | H55: 00017S | I55: 2 | J55: 24.51 | K55: P | L55: 11 | M55: US | N55: 189 | O55: STP | P55: SB | Q55: 6 | R55: 570 | S55: 62 | T55: 590 | U55: 70 | V55: 590 | W55: 58 | X55: 560 | Y55: 58 | Z55: 590 | AA55: 58 | AB55: 590 | AC55: 66 | AD55: 660 | AE55: 70 | AF55: 660 | AG55: 80 | AH55: 770 | AI55: 88 | AJ55: 730 | AK55: 75 | AL55: 750 | AM55: 85 | AN55: 900 | AO55: 90 | AP55: 960 | AQ55: 95 | AR55: 770 | AS55: 110 | AT55: 860 | AU55: 115 | AV55: 1110 | AW55: 175 | AX55: 1030 | AY55: 135 | AZ55: 790 | BA55: 105 | BB55: 720 | BC55: 100 | BD55: 790 | BE55: 110 | BF55: 790 | BG55: 110 | BH55: 830 | BI55: 115 | BJ55: 870 | BK55: 120 | BL55: 860 | BM55: 120 | BN55: 910 | BO55: 120 | BP55: 920 | BQ55: 120 | BR55: 900 | BS55: 120 | BT55: 1000 | BU55: 100 | BV55: 1030 | BW55: 100 | BX55: 1020 | BY55: 100 | BZ55: 1000 | CA55: 100 | CB55: 1110 | CC55: 100 | CD55: 1170 | CE55: 110 | CF55: 1250 | CG55: 110 | CH55: 1260 | CI55: 110 | CJ55: 1320 | CK55: 110 | CL55: 1470 | CM55: 140 | CN55: 1540 | CO55: 150 | CP55: 1590 | CQ55: 160 | CR55: 1583 | CS55: 113 | CT55: 1510 | CU55: 108 | CV55: 1475 | CW55: 108 | CX55: 1390 | CY55: 274.01112 | CZ55: 1363 | DA55: 270 | DB55: 1317 | DC55: 254 | DD55: 1322 | DE55: 213.1468658 | DF55: 1300 | DG55: 196 | DH55: 1342 | DI55: 265 | DJ55: 1366 | DK55: 271 | DL55: 1318 | DM55: 108 | DN55: 1288 | DO55: 51 | DP55: 1421 | DQ55: 51 | DR55: 1348 | DS55: 133 | DT55: 1380 | DU55: 133 | DV55: 16911.9 | DW55: 1629.915
A56: 12 | B56: B | C56: WYOMING - IDAHO STATE LINE | D56: 0 | E56: 0.241 | G56: 12.255 | H56: LN0137 | I56: 2 | J56: 24.51 | K56: P | L56: 12 | M56: US | N56: 30 | O56: NHS | P56: LN | Q56: 2 | R56: 740 | S56: 178 | T56: 720 | U56: 251 | V56: 710 | W56: 270 | X56: 790 | Y56: 308 | Z56: 790 | AA56: 304 | AB56: 840 | AC56: 366 | AD56: 950 | AE56: 452 | AF56: 960 | AG56: 440 | AH56: 980 | AI56: 484 | AJ56: 970 | AK56: 400 | AL56: 1020 | AM56: 527 | AN56: 1160 | AO56: 480 | AP56: 1120 | AQ56: 320 | AR56: 1000 | AS56: 340 | AT56: 990 | AU56: 540 | AV56: 1140 | AW56: 735 | AX56: 1150 | AY56: 730 | AZ56: 1160 | BA56: 740 | BB56: 1120 | BC56: 665 | BD56: 1200 | BE56: 715 | BF56: 1220 | BG56: 720 | BH56: 1230 | BI56: 750 | BJ56: 1400 | BK56: 780 | BL56: 1430 | BM56: 870 | BN56: 1430 | BO56: 910 | BP56: 1600 | BQ56: 910 | BR56: 1700 | BS56: 970 | BT56: 2050 | BU56: 970 | BV56: 2100 | BW56: 970 | BX56: 2150 | BY56: 970 | BZ56: 2200 | CA56: 1000 | CB56: 1700 | CC56: 700 | CD56: 1700 | CE56: 860 | CF56: 1700 | CG56: 810 | CH56: 1440 | CI56: 890 | CJ56: 1700 | CK56: 900 | CL56: 1700 | CM56: 950 | CN56: 1770 | CO56: 980 | CP56: 1730 | CQ56: 920 | CR56: 1654 | CS56: 820 | CT56: 1654 | CU56: 850 | CV56: 1617 | CW56: 838 | CX56: 1052 | CY56: 802 | CZ56: 1000 | DA56: 602 | DB56: 1172 | DC56: 588 | DD56: 954 | DE56: 533.1704102 | DF56: 925 | DG56: 148.72046 | DH56: 1239 | DI56: 246 | DJ56: 1049 | DK56: 553 | DL56: 1030 | DM56: 566 | DN56: 997 | DO56: 579 | DP56: 1011 | DQ56: 532 | DR56: 969 | DS56: 532 | DT56: 1103 | DU56: 409 | DV56: 13517.265 | DW56: 5012.295
A57: 12 | B57: B | C57: JCT ROUTE 1217 (BORDER JCT) | D57: 0.241 | E57: 10.58 | G57: 10.408 | H57: LN0138 | I57: 2 | J57: 20.816 | K57: P | L57: 12 | M57: US/WY | N57: 30/89 | O57: NHS | P57: LN | Q57: 2 | R57: 1090 | S57: 227 | T57: 960 | U57: 292 | V57: 970 | W57: 254 | X57: 1000 | Y57: 324 | Z57: 980 | AA57: 350 | AB57: 1080 | AC57: 354 | AD57: 1180 | AE57: 440 | AF57: 1190 | AG57: 430 | AH57: 1220 | AI57: 474 | AJ57: 1210 | AK57: 498 | AL57: 1300 | AM57: 625 | AN57: 1330 | AO57: 580 | AP57: 1350 | AQ57: 340 | AR57: 1300 | AS57: 360 | AT57: 1290 | AU57: 560 | AV57: 1430 | AW57: 760 | AX57: 1440 | AY57: 755 | AZ57: 1450 | BA57: 800 | BB57: 1400 | BC57: 725 | BD57: 1500 | BE57: 770 | BF57: 1540 | BG57: 775 | BH57: 1640 | BI57: 835 | BJ57: 1770 | BK57: 865 | BL57: 1800 | BM57: 880 | BN57: 1840 | BO57: 920 | BP57: 1990 | BQ57: 920 | BR57: 2050 | BS57: 980 | BT57: 2050 | BU57: 980 | BV57: 2100 | BW57: 980 | BX57: 2150 | BY57: 980 | BZ57: 2200 | CA57: 1000 | CB57: 2200 | CC57: 1000 | CD57: 2600 | CE57: 1100 | CF57: 2500 | CG57: 1080 | CH57: 1990 | CI57: 940 | CJ57: 2000 | CK57: 950 | CL57: 2020 | CM57: 1000 | CN57: 2110 | CO57: 1030 | CP57: 2040 | CQ57: 970 | CR57: 2029 | CS57: 870 | CT57: 2029 | CU57: 900 | CV57: 1984 | CW57: 888 | CX57: 2094 | CY57: 863 | CZ57: 1991 | DA57: 641 | DB57: 1686 | DC57: 612 | DD57: 1755 | DE57: 554.9324951 | DF57: 924 | DG57: 376 | DH57: 1871 | DI57: 371 | DJ57: 1850 | DK57: 379 | DL57: 1825 | DM57: 571 | DN57: 1727 | DO57: 579 | DP57: 1867 | DQ57: 524 | DR57: 1790 | DS57: 775 | DT57: 1815 | DU57: 416 | DV57: 18890.52 | DW57: 4329.728
A58: 12 | B58: B | C58: JCT ROUTE 1200 & 1201 (WY 231 & 232) | D58: 10.58 | E58: 29.89 | G58: 19.344 | H58: 000078 | I58: 2 | J58: 38.688 | K58: P | L58: 12 | M58: US/WY | N58: 30/89 | O58: NHS | P58: LN | Q58: 2 | R58: 1060 | S58: 234 | T58: 970 | U58: 284 | V58: 1140 | W58: 260 | X58: 1150 | Y58: 324 | Z58: 1130 | AA58: 350 | AB58: 1140 | AC58: 356 | AD58: 1240 | AE58: 442 | AF58: 1300 | AG58: 450 | AH58: 1330 | AI58: 496 | AJ58: 1320 | AK58: 521 | AL58: 1400 | AM58: 648 | AN58: 1430 | AO58: 600 | AP58: 1450 | AQ58: 360 | AR58: 1500 | AS58: 390 | AT58: 1490 | AU58: 560 | AV58: 1650 | AW58: 760 | AX58: 1660 | AY58: 755 | AZ58: 1600 | BA58: 795 | BB58: 1550 | BC58: 720 | BD58: 1650 | BE58: 765 | BF58: 1690 | BG58: 770 | BH58: 1750 | BI58: 830 | BJ58: 1850 | BK58: 860 | BL58: 1980 | BM58: 875 | BN58: 2180 | BO58: 915 | BP58: 2280 | BQ58: 915 | BR58: 2310 | BS58: 975 | BT58: 2350 | BU58: 975 | BV58: 2400 | BW58: 980 | BX58: 2450 | BY58: 980 | BZ58: 2500 | CA58: 1000 | CB58: 2490 | CC58: 1010 | CD58: 3100 | CE58: 1120 | CF58: 3000 | CG58: 1090 | CH58: 2500 | CI58: 980 | CJ58: 2520 | CK58: 990 | CL58: 2090 | CM58: 1030 | CN58: 2180 | CO58: 1060 | CP58: 2110 | CQ58: 1000 | CR58: 2651 | CS58: 900 | CT58: 2651 | CU58: 930 | CV58: 2651 | CW58: 918 | CX58: 2683 | CY58: 897 | CZ58: 2678 | DA58: 656 | DB58: 2729 | DC58: 623 | DD58: 2789 | DE58: 564.9067383 | DF58: 2714 | DG58: 398 | DH58: 1344 | DI58: 458 | DJ58: 1908 | DK58: 610 | DL58: 1828 | DM58: 595 | DN58: 1833 | DO58: 595 | DP58: 1756 | DQ58: 521 | DR58: 1866 | DS58: 548 | DT58: 1905 | DU58: 608 | DV58: 36850.32 | DW58: 11761.152
A59: 12 | B59: B | C59: JCT ROUTE 1211 (SAGE JCT) | D59: 29.89 | E59: 52.49 | G59: 22.454 | H59: 000178 | I59: 2 | J59: 44.908 | K59: P | L59: 12 | M59: US/WY | N59: 30/89 | O59: NHS | P59: LN | Q59: 2 | R59: 920 | S59: 230 | T59: 880 | U59: 260 | V59: 1050 | W59: 232 | X59: 1090 | Y59: 312 | Z59: 1080 | AA59: 340 | AB59: 1080 | AC59: 352 | AD59: 1170 | AE59: 428 | AF59: 1260 | AG59: 440 | AH59: 1200 | AI59: 448 | AJ59: 1330 | AK59: 545 | AL59: 1410 | AM59: 670 | AN59: 1450 | AO59: 740 | AP59: 1350 | AQ59: 495 | AR59: 1320 | AS59: 400 | AT59: 1330 | AU59: 540 | AV59: 1470 | AW59: 735 | AX59: 1460 | AY59: 730 | AZ59: 1340 | BA59: 770 | BB59: 1340 | BC59: 650 | BD59: 1440 | BE59: 700 | BF59: 1490 | BG59: 710 | BH59: 1500 | BI59: 800 | BJ59: 1580 | BK59: 830 | BL59: 1570 | BM59: 830 | BN59: 1600 | BO59: 870 | BP59: 1600 | BQ59: 870 | BR59: 1620 | BS59: 940 | BT59: 1720 | BU59: 940 | BV59: 1780 | BW59: 940 | BX59: 1840 | BY59: 940 | BZ59: 2000 | CA59: 1000 | CB59: 1750 | CC59: 1000 | CD59: 1760 | CE59: 930 | CF59: 1710 | CG59: 900 | CH59: 1640 | CI59: 850 | CJ59: 1640 | CK59: 870 | CL59: 1630 | CM59: 850 | CN59: 1700 | CO59: 830 | CP59: 1640 | CQ59: 770 | CR59: 1549 | CS59: 666 | CT59: 1619 | CU59: 696 | CV59: 1591 | CW59: 685 | CX59: 1526 | CY59: 646.60816 | CZ59: 1487 | DA59: 622 | DB59: 1504 | DC59: 622 | DD59: 1490 | DE59: 564 | DF59: 1444 | DG59: 237.71525 | DH59: 1420 | DI59: 615 | DJ59: 1554 | DK59: 626 | DL59: 1517 | DM59: 566 | DN59: 1444 | DO59: 609 | DP59: 1552 | DQ59: 666 | DR59: 1503 | DS59: 641 | DT59: 1406 | DU59: 578 | DV59: 31570.324 | DW59: 12978.412
A60: 12 | B60: B | C60: JCT ROUTE 1210 & KEMMERER WCL | D60: 52.49 | E60: 54.55 | G60: 2.06 | H60: LN0146 | I60: 2 | J60: 4.12 | K60: P | L60: 12 | M60: US/WY | N60: 30/89 | O60: NHS | P60: LN | Q60: 2 | R60: 1350 | S60: 288 | T60: 1320 | U60: 315 | V60: 1360 | W60: 282 | X60: 1400 | Y60: 362 | Z60: 1670 | AA60: 373 | AB60: 1860 | AC60: 384 | AD60: 1950 | AE60: 460 | AF60: 2040 | AG60: 480 | AH60: 1980 | AI60: 488 | AJ60: 2090 | AK60: 593 | AL60: 2170 | AM60: 708 | AN60: 1450 | AO60: 730 | AP60: 1360 | AQ60: 550 | AR60: 1300 | AS60: 570 | AT60: 1310 | AU60: 580 | AV60: 1450 | AW60: 790 | AX60: 1440 | AY60: 780 | AZ60: 1400 | BA60: 810 | BB60: 1400 | BC60: 690 | BD60: 1470 | BE60: 740 | BF60: 1520 | BG60: 750 | BH60: 1520 | BI60: 800 | BJ60: 1600 | BK60: 830 | BL60: 1650 | BM60: 830 | BN60: 1570 | BO60: 880 | BP60: 1570 | BQ60: 880 | BR60: 1590 | BS60: 950 | BT60: 1600 | BU60: 950 | BV60: 1650 | BW60: 950 | BX60: 1700 | BY60: 950 | BZ60: 1700 | CA60: 950 | CB60: 1640 | CC60: 980 | CD60: 1500 | CE60: 950 | CF60: 1460 | CG60: 880 | CH60: 1400 | CI60: 800 | CJ60: 1550 | CK60: 850 | CL60: 1580 | CM60: 870 | CN60: 1650 | CO60: 850 | CP60: 1570 | CQ60: 790 | CR60: 1463 | CS60: 699 | CT60: 1463 | CU60: 699 | CV60: 1622 | CW60: 699 | CX60: 1396 | CY60: 660 | CZ60: 1393 | DA60: 640 | DB60: 1419 | DC60: 640 | DD60: 1430 | DE60: 646.5368042 | DF60: 1386 | DG60: 525 | DH60: 1525 | DI60: 206 | DJ60: 1494 | DK60: 647 | DL60: 1523 | DM60: 570 | DN60: 1456 | DO60: 609 | DP60: 1575 | DQ60: 765 | DR60: 1510 | DS60: 847 | DT60: 1531 | DU60: 574 | DV60: 3153.86 | DW60: 1182.44
A61: 12 | B61: B | C61: JCT ROUTE 11 (US 189) | D61: 54.55 | E61: 69.32 | G61: 13.345 | H61: LN0148 | I61: 2 | J61: 26.69 | K61: P | L61: 12 | M61: US/WY | N61: 30/89 | O61: NHS | P61: LN | Q61: 2 | R61: 1070 | S61: 240 | T61: 1040 | U61: 264 | AP61: 1650 | AQ61: 510 | AR61: 1600 | AS61: 550 | AT61: 1610 | AU61: 560 | AV61: 1780 | AW61: 760 | AX61: 1770 | AY61: 750 | AZ61: 1750 | BA61: 770 | BB61: 1730 | BC61: 650 | BD61: 1810 | BE61: 700 | BF61: 1840 | BG61: 710 | BH61: 1950 | BI61: 760 | BJ61: 2030 | BK61: 790 | BL61: 2250 | BM61: 1090 | BN61: 2300 | BO61: 1390 | BP61: 2300 | BQ61: 1390 | BR61: 2320 | BS61: 1460 | BT61: 2350 | BU61: 1460 | BV61: 2400 | BW61: 1460 | BX61: 2450 | BY61: 1460 | BZ61: 2400 | CA61: 1500 | CB61: 2570 | CC61: 1240 | CD61: 1900 | CE61: 1000 | CF61: 1840 | CG61: 960 | CH61: 1770 | CI61: 870 | CJ61: 1900 | CK61: 910 | CL61: 2580 | CM61: 1100 | CN61: 3070 | CO61: 1300 | CP61: 2990 | CQ61: 1260 | CR61: 2983 | CS61: 1161 | CT61: 2983 | CU61: 1161 | CV61: 1517 | CW61: 1161 | CX61: 2127 | CY61: 1152 | CZ61: 2123 | DA61: 1150 | DB61: 2163 | DC61: 1150 | DD61: 2005 | DE61: 1242.447021 | DF61: 1943 | DG61: 234.34627 | DH61: 1825 | DI61: 476 | DJ61: 2026 | DK61: 878 | DL61: 2065 | DM61: 575 | DN61: 1975 | DO61: 609 | DP61: 2135 | DQ61: 765 | DR61: 2047 | DS61: 1170 | DT61: 2075 | DU61: 574 | DV61: 27690.875 | DW61: 7660.03
A62: 12 | B62: B | C62: JCT ROUTE 1208 (WY 240) | D62: 69.32 | E62: 95.574 | G62: 26.424 | H62: LN0151 | I62: 2 | J62: 52.848 | K62: P | L62: 12 | M62: US | N62: 30 | O62: NHS | P62: LN | Q62: 2 | R62: 990 | S62: 242 | T62: 890 | U62: 242 | V62: 1030 | W62: 274 | X62: 1060 | Y62: 372 | Z62: 1040 | AA62: 354 | AB62: 1260 | AC62: 326 | AD62: 1480 | AE62: 380 | AF62: 1580 | AG62: 440 | AH62: 1610 | AI62: 450 | AJ62: 1600 | AK62: 641 | AL62: 1440 | AM62: 762 | AN62: 1340 | AO62: 589 | AP62: 1390 | AQ62: 465 | AR62: 1300 | AS62: 500 | AT62: 1310 | AU62: 510 | AV62: 1390 | AW62: 640 | AX62: 1380 | AY62: 635 | AZ62: 1350 | BA62: 680 | BB62: 1330 | BC62: 560 | BD62: 1340 | BE62: 610 | BF62: 1370 | BG62: 620 | BH62: 1510 | BI62: 670 | BJ62: 1590 | BK62: 700 | BL62: 1740 | BM62: 1000 | BN62: 1960 | BO62: 1300 | BP62: 1960 | BQ62: 1300 | BR62: 1980 | BS62: 1370 | BT62: 2000 | BU62: 1370 | BV62: 2050 | BW62: 1370 | BX62: 2100 | BY62: 1370 | BZ62: 2100 | CA62: 1400 | CB62: 1940 | CC62: 1100 | CD62: 1940 | CE62: 1100 | CF62: 1880 | CG62: 990 | CH62: 1800 | CI62: 900 | CJ62: 1980 | CK62: 930 | CL62: 2050 | CM62: 890 | CN62: 2300 | CO62: 1240 | CP62: 2220 | CQ62: 1200 | CR62: 2244 | CS62: 1101 | CT62: 2244 | CU62: 817 | CV62: 3092 | CW62: 817 | CX62: 3213 | CY62: 837 | CZ62: 3207 | DA62: 848 | DB62: 1513 | DC62: 848 | DD62: 1489 | DE62: 970.6045532 | DF62: 1431 | DG62: 230.15883 | DH62: 1575 | DI62: 312 | DJ62: 1521 | DK62: 836 | DL62: 1455 | DM62: 580 | DN62: 1424 | DO62: 609 | DP62: 1540 | DQ62: 765 | DR62: 1476 | DS62: 1034 | DT62: 1496 | DU62: 574 | DV62: 39530.304 | DW62: 15167.376
A63: 12 | B63: B | C63: JCT ROUTE 1910 (WY 374) | D63: 95.574 | E63: 100.03 | G63: 4.456 | H63: 000172 | I63: 2 | J63: 8.912 | K63: P | L63: 12 | M63: US | N63: 30 | O63: NHS | P63: LN | Q63: 2 | R63: 880 | S63: 235 | T63: 870 | U63: 267 | V63: 1010 | W63: 270 | X63: 1040 | Y63: 368 | Z63: 1040 | AA63: 374 | AB63: 1350 | AC63: 366 | AD63: 1420 | AE63: 400 | AF63: 1400 | AG63: 420 | AH63: 1600 | AI63: 430 | AJ63: 1830 | AK63: 557 | AL63: 1450 | AM63: 680 | AN63: 1710 | AO63: 480 | AP63: 1220 | AQ63: 440 | AR63: 1170 | AS63: 420 | AT63: 1180 | AU63: 430 | AV63: 1250 | AW63: 540 | AX63: 1240 | AY63: 535 | AZ63: 1220 | BA63: 580 | BB63: 1200 | BC63: 460 | BD63: 1290 | BE63: 510 | BF63: 1310 | BG63: 515 | BH63: 1470 | BI63: 565 | BJ63: 1550 | BK63: 595 | BL63: 1700 | BM63: 895 | BN63: 2100 | BO63: 1235 | BP63: 2100 | BQ63: 1235 | BR63: 2120 | BS63: 1310 | BT63: 2150 | BU63: 1310 | BV63: 2200 | BW63: 1310 | BX63: 2250 | BY63: 1310 | BZ63: 2200 | CA63: 1300 | CB63: 1940 | CC63: 1100 | CD63: 2000 | CE63: 1140 | CF63: 1940 | CG63: 1020 | CH63: 2200 | CI63: 960 | CJ63: 2310 | CK63: 970 | CL63: 2580 | CM63: 1130 | CN63: 2750 | CO63: 1240 | CP63: 2670 | CQ63: 1200 | CR63: 2699 | CS63: 1129 | CT63: 2699 | CU63: 845 | CV63: 2700 | CW63: 850 | CX63: 2525 | CY63: 852 | CZ63: 2456 | DA63: 832 | DB63: 2300 | DC63: 830 | DD63: 2532 | DE63: 1145 | DF63: 2532 | DG63: 307 | DH63: 1850 | DI63: 783 | DJ63: 1872 | DK63: 779 | DL63: 1814 | DM63: 742 | DN63: 1693 | DO63: 689 | DP63: 1789 | DQ63: 699 | DR63: 1770 | DS63: 689 | DT63: 1736 | DU63: 653 | DV63: 7735.616 | DW63: 2909.768
A64: 13 | B64: B | C64: JCT ROUTE 53 (I-80 BUS & US 30 BUS INT) | D64: 0 | E64: 0.644 | G64: 0.644 | H64: RS0883 | I64: 4 | J64: 2.576 | K64: P | L64: 13 | M64: US | N64: 191 | O64: STP | P64: SW | Q64: 14 | R64: 7870 | S64: 260 | T64: 8150 | U64: 240 | V64: 8180 | W64: 245 | X64: 10170 | Y64: 296 | Z64: 11150 | AA64: 444 | AB64: 13380 | AC64: 490 | AN64: 12000 | AO64: 550 | AP64: 11650 | AQ64: 530 | AR64: 11300 | AS64: 500 | AT64: 11350 | AU64: 505 | AV64: 11500 | AW64: 525 | AX64: 11440 | AY64: 525 | AZ64: 11300 | BA64: 415 | BB64: 11180 | BC64: 415 | BD64: 11200 | BE64: 415 | BF64: 11260 | BG64: 415 | BH64: 11260 | BI64: 415 | BJ64: 11360 | BK64: 425 | BL64: 10950 | BM64: 425 | BN64: 11350 | BO64: 425 | BP64: 11550 | BQ64: 425 | BR64: 11450 | BS64: 410 | BT64: 11600 | BU64: 410 | BV64: 11900 | BW64: 450 | BX64: 12500 | BY64: 450 | BZ64: 12900 | CA64: 460 | CB64: 13300 | CC64: 480 | CD64: 13860 | CE64: 500 | CF64: 14060 | CG64: 500 | CH64: 14180 | CI64: 500 | CJ64: 14660 | CK64: 520 | CL64: 16390 | CM64: 530 | CN64: 16400 | CO64: 530 | CP64: 15910 | CQ64: 530 | CR64: 16021 | CS64: 263.3237346 | CT64: 15490 | CU64: 264 | CV64: 16617 | CW64: 264 | CX64: 15753 | CY64: 286 | CZ64: 14981 | DA64: 288 | DB64: 14547 | DC64: 331 | DD64: 14416 | DE64: 297.5738831 | DF64: 13513 | DG64: 420 | DH64: 13700 | DI64: 565 | DJ64: 14561 | DK64: 483 | DL64: 7550 | DM64: 499 | DN64: 7083 | DO64: 259 | DP64: 7710 | DQ64: 248 | DR64: 7639 | DS64: 248 | DT64: 7711 | DU64: 283 | DV64: 4965.884 | DW64: 182.252
A65: 13 | B65: B | C65: Springs Dr | D65: 0.644 | E65: 1.471 | G65: 0.827 | H65: SW0105 | I65: 4 | J65: 3.308 | K65: P | L65: 13 | M65: US | N65: 191 | O65: STP | P65: SW | Q65: 14 | DL65: 13429 | DM65: 737 | DN65: 11307 | DO65: 258 | DP65: 12308 | DQ65: 249 | DR65: 12194 | DS65: 942 | DT65: 12310 | DU65: 283 | DV65: 10180.37 | DW65: 234.041
A66: 13 | B66: B | C66: JCT I 80 (ELK ST INT) | D66: 1.471 | E66: 2.047 | G66: 0.576 | H66: RS2307 | I66: 4 | J66: 2.304 | K66: P | L66: 13 | M66: US | N66: 191 | O66: NHS | P66: SW | Q66: 14 | R66: 6760 | S66: 240 | T66: 6990 | U66: 220 | V66: 7020 | W66: 225 | X66: 7880 | Y66: 274 | Z66: 8860 | AA66: 410 | AB66: 10630 | AC66: 450 | AD66: 12010 | AE66: 454 | AF66: 12290 | AG66: 460 | AH66: 13650 | AI66: 680 | AJ66: 13720 | AK66: 573 | AL66: 13800 | AM66: 599 | AN66: 17000 | AO66: 650 | AP66: 16500 | AQ66: 620 | AR66: 12000 | AS66: 600 | AT66: 12050 | AU66: 605 | AV66: 12200 | AW66: 630 | AX66: 12140 | AY66: 630 | AZ66: 12000 | BA66: 515 | BB66: 11880 | BC66: 515 | BD66: 11900 | BE66: 515 | BF66: 11960 | BG66: 515 | BH66: 11960 | BI66: 700 | BJ66: 12180 | BK66: 710 | BL66: 12480 | BM66: 710 | BN66: 12980 | BO66: 710 | BP66: 13180 | BQ66: 710 | BR66: 13080 | BS66: 700 | BT66: 13450 | BU66: 800 | BV66: 13700 | BW66: 900 | BX66: 14000 | BY66: 900 | BZ66: 14100 | CA66: 930 | CB66: 14700 | CC66: 960 | CD66: 15300 | CE66: 1000 | CF66: 15600 | CG66: 1000 | CH66: 15640 | CI66: 1000 | CJ66: 16260 | CK66: 1030 | CL66: 19300 | CM66: 1060 | CN66: 19320 | CO66: 1050 | CP66: 18740 | CQ66: 1000 | CR66: 18871 | CS66: 940 | CT66: 22983 | CU66: 900 | CV66: 24662 | CW66: 900 | CX66: 23380 | CY66: 829 | CZ66: 13000 | DA66: 792 | DB66: 12623 | DC66: 792 | DD66: 12509 | DE66: 712.0197144 | DF66: 12045 | DG66: 500 | DH66: 13500 | DI66: 555 | DJ66: 14349 | DK66: 904 | DL66: 12151 | DM66: 522 | DN66: 11669 | DO66: 258 | DP66: 12702 | DQ66: 251 | DR66: 12585 | DS66: 251 | DT66: 12704 | DU66: 284 | DV66: 7317.504 | DW66: 163.584
A67: 13 | B67: B | C67: MOHAWK RD | D67: 2.047 | E67: 2.396 | G67: 0.349 | H67: SW0106 | I67: 2 | J67: 0.698 | K67: P | L67: 13 | M67: US | N67: 191 | O67: NHS | P67: SW | Q67: 14 | R67: 1980 | S67: 204 | T67: 1960 | U67: 188 | V67: 1990 | W67: 180 | X67: 2130 | Y67: 222 | Z67: 3110 | AA67: 354 | AB67: 3830 | AC67: 422 | AD67: 4330 | AE67: 424 | AF67: 4430 | AG67: 430 | AH67: 4920 | AI67: 636 | AJ67: 4700 | AK67: 536 | AL67: 4730 | AM67: 560 | AN67: 6500 | AO67: 600 | AP67: 6300 | AQ67: 570 | AR67: 6200 | AS67: 550 | AT67: 6230 | AU67: 555 | AV67: 6350 | AW67: 580 | AX67: 6320 | AY67: 580 | AZ67: 6190 | BA67: 465 | BB67: 6070 | BC67: 465 | BD67: 6090 | BE67: 465 | BF67: 6150 | BG67: 465 | BH67: 6150 | BI67: 565 | BJ67: 6370 | BK67: 575 | BL67: 5290 | BM67: 575 | BN67: 5390 | BO67: 575 | BP67: 5490 | BQ67: 575 | BR67: 5390 | BS67: 560 | BT67: 5700 | BU67: 560 | BV67: 5900 | BW67: 640 | BX67: 6100 | BY67: 640 | BZ67: 6300 | CA67: 660 | CB67: 6500 | CC67: 690 | CD67: 6500 | CE67: 900 | CF67: 6800 | CG67: 900 | CH67: 6860 | CI67: 900 | CJ67: 8420 | CK67: 870 | CL67: 8630 | CM67: 900 | CN67: 8640 | CO67: 900 | CP67: 8380 | CQ67: 900 | CR67: 6035 | CS67: 827 | CT67: 6035 | CU67: 787 | CV67: 5303 | CW67: 787 | CX67: 5027 | CY67: 683 | CZ67: 4781 | DA67: 631 | DB67: 4642 | DC67: 631 | DD67: 4600 | DE67: 567.2783203 | DF67: 12185 | DG67: 740 | DH67: 4906 | DI67: 974 | DJ67: 5201 | DK67: 994 | DL67: 4939 | DM67: 508 | DN67: 4158 | DO67: 257 | DP67: 4526 | DQ67: 253 | DR67: 4485 | DS67: 253 | DT67: 4527 | DU67: 284 | DV67: 1579.923 | DW67: 99.116
A68: 13 | B68: B | C68: ROCK SPRINGS NORTH URBAN LIMITS | D68: 2.396 | E68: 4.302 | G68: 1.906 | H68: SW0106 | I68: 2 | J68: 3.812 | K68: P | L68: 13 | M68: US | N68: 191 | O68: NHS | P68: SW | Q68: 2 | R68: 1980 | S68: 204 | T68: 1960 | U68: 188 | V68: 1990 | W68: 180 | X68: 2130 | Y68: 222 | Z68: 3110 | AA68: 354 | AB68: 3830 | AC68: 422 | AD68: 4330 | AE68: 424 | AF68: 4430 | AG68: 430 | AH68: 4920 | AI68: 636 | AJ68: 4700 | AK68: 536 | AL68: 4730 | AM68: 560 | AN68: 6500 | AO68: 600 | AP68: 3850 | AQ68: 540 | AR68: 3900 | AS68: 510 | AT68: 3940 | AU68: 515 | AV68: 4040 | AW68: 535 | AX68: 4020 | AY68: 535 | AZ68: 3900 | BA68: 420 | BB68: 3780 | BC68: 420 | BD68: 3800 | BE68: 420 | BF68: 3860 | BG68: 420 | BH68: 3860 | BI68: 520 | BJ68: 4080 | BK68: 530 | BL68: 4130 | BM68: 530 | BN68: 4230 | BO68: 530 | BP68: 4310 | BQ68: 530 | BR68: 4210 | BS68: 520 | BT68: 4250 | BU68: 450 | BV68: 4450 | BW68: 530 | BX68: 4600 | BY68: 530 | BZ68: 4700 | CA68: 540 | CB68: 5000 | CC68: 530 | CD68: 5200 | CE68: 700 | CF68: 5500 | CG68: 700 | CH68: 5550 | CI68: 700 | CJ68: 5700 | CK68: 700 | CL68: 8610 | CM68: 890 | CN68: 8620 | CO68: 880 | CP68: 8360 | CQ68: 880 | CR68: 6962 | CS68: 802 | CT68: 5299 | CU68: 762 | CV68: 5746 | CW68: 762 | CX68: 5067 | CY68: 661 | CZ68: 5346 | DA68: 599 | DB68: 5191 | DC68: 599 | DD68: 5144 | DE68: 538.5098267 | DF68: 2453 | DG68: 367.16095 | DH68: 1810 | DI68: 340 | DJ68: 2500 | DK68: 298 | DL68: 2401 | DM68: 346 | DN68: 4158 | DO68: 257 | DP68: 4526 | DQ68: 253 | DR68: 4485 | DS68: 253 | DT68: 4527 | DU68: 284 | DV68: 8628.462 | DW68: 541.304
A69: 13 | B69: B | C69: JCT RELIANCE ROAD | D69: 4.302 | E69: 4.922 | G69: 0.62 | H69: RS2276 | I69: 1 | J69: 0.62 | K69: P | L69: 12 | M69: US | N69: 190 | O69: NHS | P69: SW | Q69: 2 | R69: 1000 | S69: 150 | T69: 1080 | U69: 131 | V69: 1070 | W69: 173 | X69: 1240 | Y69: 158 | Z69: 1290 | AA69: 184 | AB69: 1510 | AC69: 216 | AD69: 1670 | AE69: 230 | AF69: 1770 | AG69: 236 | AH69: 2180 | AI69: 356 | AJ69: 2050 | AK69: 300 | AL69: 2060 | AM69: 322 | AN69: 2070 | AO69: 360 | AP69: 1890 | AQ69: 330 | AR69: 1800 | AS69: 290 | AT69: 1830 | AU69: 295 | AV69: 1900 | AW69: 310 | AX69: 1880 | AY69: 340 | AZ69: 1790 | BA69: 240 | BB69: 1750 | BC69: 240 | BD69: 1770 | BE69: 240 | BF69: 1830 | BG69: 240 | BH69: 1830 | BI69: 240 | BJ69: 2050 | BK69: 250 | BL69: 2050 | BM69: 250 | BN69: 2100 | BO69: 250 | BP69: 2180 | BQ69: 250 | BR69: 2080 | BS69: 240 | BT69: 2000 | BU69: 240 | BV69: 2200 | BW69: 320 | BX69: 2300 | BY69: 320 | BZ69: 2400 | CA69: 330 | CB69: 2320 | CC69: 350 | CD69: 2420 | CE69: 370 | CF69: 2720 | CG69: 410 | CH69: 2620 | CI69: 550 | CJ69: 2700 | CK69: 670 | CL69: 2810 | CM69: 770 | CN69: 2690 | CO69: 520 | CP69: 3000 | CQ69: 650 | CR69: 2773 | CS69: 582 | CT69: 2711 | CU69: 542 | CV69: 2666 | CW69: 537.72549 | CX69: 2417 | CY69: 423.76737 | CZ69: 2321 | DA69: 377 | DB69: 2391 | DC69: 406 | DD69: 2339 | DE69: 365 | DF69: 2180 | DG69: 327 | DH69: 2401 | DI69: 382 | DJ69: 2392 | DK69: 378 | DL69: 2401 | DM69: 346 | DN69: 2050 | DO69: 254 | DP69: 2061 | DQ69: 265 | DR69: 2000 | DS69: 286 | DT69: 5013 | DU69: 284 | DV69: 3108.06 | DW69: 176.08
A70: 13 | B70: B | C70: JCT JY RD | D70: 4.922 | E70: 12.149 | G70: 7.227 | H70: 000038 | I70: 2 | J70: 14.454 | K70: P | L70: 13 | M70: US | N70: 191 | O70: NHS | P70: SW | Q70: 2 | R70: 1000 | S70: 150 | T70: 1080 | U70: 131 | V70: 1070 | W70: 173 | X70: 1240 | Y70: 158 | Z70: 1290 | AA70: 184 | AB70: 1510 | AC70: 216 | AD70: 1670 | AE70: 230 | AF70: 1770 | AG70: 236 | AH70: 2180 | AI70: 356 | AJ70: 2050 | AK70: 300 | AL70: 2060 | AM70: 322 | AN70: 2070 | AO70: 360 | AP70: 1890 | AQ70: 330 | AR70: 1800 | AS70: 290 | AT70: 1830 | AU70: 295 | AV70: 1900 | AW70: 310 | AX70: 1880 | AY70: 340 | AZ70: 1790 | BA70: 240 | BB70: 1750 | BC70: 240 | BD70: 1770 | BE70: 240 | BF70: 1830 | BG70: 240 | BH70: 1830 | BI70: 240 | BJ70: 2050 | BK70: 250 | BL70: 2050 | BM70: 250 | BN70: 2100 | BO70: 250 | BP70: 2180 | BQ70: 250 | BR70: 2080 | BS70: 240 | BT70: 2000 | BU70: 240 | BV70: 2200 | BW70: 320 | BX70: 2300 | BY70: 320 | BZ70: 2400 | CA70: 330 | CB70: 2320 | CC70: 350 | CD70: 2420 | CE70: 370 | CF70: 2720 | CG70: 410 | CH70: 2620 | CI70: 550 | CJ70: 2700 | CK70: 670 | CL70: 2810 | CM70: 770 | CN70: 2690 | CO70: 520 | CP70: 3000 | CQ70: 650 | CR70: 2773 | CS70: 582 | CT70: 2711 | CU70: 542 | CV70: 2666 | CW70: 537.72549 | CX70: 2417 | CY70: 423.76737 | CZ70: 2321 | DA70: 377 | DB70: 2391 | DC70: 406 | DD70: 2339 | DE70: 365 | DF70: 2180 | DG70: 327 | DH70: 2401 | DI70: 382 | DJ70: 2392 | DK70: 378 | DL70: 2401 | DM70: 346 | DN70: 2050 | DO70: 254 | DP70: 2061 | DQ70: 265 | DR70: 2000 | DS70: 286 | DT70: 2063 | DU70: 284 | DV70: 14909.301 | DW70: 2052.468
A71: 13 | B71: B | C71: YELLOWSTONE RD | D71: 12.149 | E71: 40.45 | G71: 28.301 | H71: SW0108 | I71: 2 | J71: 56.602 | K71: P | L71: 13 | M71: US | N71: 191 | O71: NHS | P71: SW | Q71: 2 | R71: 950 | S71: 150 | T71: 1020 | U71: 131 | V71: 1050 | W71: 173 | X71: 1180 | Y71: 158 | Z71: 1210 | AA71: 190 | AB71: 1330 | AC71: 210 | AD71: 1490 | AE71: 224 | AF71: 1590 | AG71: 230 | AH71: 1930 | AI71: 330 | AJ71: 1850 | AK71: 278 | AL71: 1860 | AM71: 300 | AN71: 2010 | AO71: 345 | AP71: 1450 | AQ71: 320 | AR71: 1400 | AS71: 280 | AT71: 1420 | AU71: 285 | AV71: 1480 | AW71: 295 | AX71: 1470 | AY71: 325 | AZ71: 1400 | BA71: 230 | BB71: 1360 | BC71: 230 | BD71: 1380 | BE71: 230 | BF71: 1440 | BG71: 230 | BH71: 1440 | BI71: 230 | BJ71: 1660 | BK71: 240 | BL71: 1700 | BM71: 240 | BN71: 1810 | BO71: 240 | BP71: 1890 | BQ71: 240 | BR71: 1890 | BS71: 230 | BT71: 1890 | BU71: 230 | BV71: 2100 | BW71: 310 | BX71: 2200 | BY71: 310 | BZ71: 2300 | CA71: 320 | CB71: 2300 | CC71: 340 | CD71: 2400 | CE71: 360 | CF71: 2700 | CG71: 400 | CH71: 2840 | CI71: 560 | CJ71: 2900 | CK71: 680 | CL71: 3010 | CM71: 800 | CN71: 3130 | CO71: 760 | CP71: 3030 | CQ71: 740 | CR71: 3256 | CS71: 673 | CT71: 3256 | CU71: 633 | CV71: 3443 | CW71: 673.26596 | CX71: 3264 | CY71: 643.43331 | CZ71: 3104 | DA71: 595 | DB71: 3014 | DC71: 407 | DD71: 2987 | DE71: 364.2351685 | DF71: 1819 | DG71: 304 | DH71: 2650 | DI71: 631 | DJ71: 3247 | DK71: 645 | DL71: 3309 | DM71: 417 | DN71: 2939 | DO71: 247 | DP71: 3178 | DQ71: 269 | DR71: 3047 | DS71: 269 | DT71: 3089 | DU71: 284 | DV71: 87421.789 | DW71: 8037.484
A72: 13 | B72: B | C72: JCT ROUTE 14 (FARSON) | D72: 40.45 | E72: 41.155 | G72: 0.705 | H72: SW0111 | I72: 2 | J72: 1.41 | K72: P | L72: 13 | M72: US | N72: 191 | O72: NHS | P72: SW | Q72: 2 | R72: 670 | S72: 88 | T72: 720 | U72: 84 | V72: 790 | W72: 102 | X72: 810 | Y72: 116 | Z72: 820 | AA72: 116 | AB72: 1100 | AC72: 120 | AD72: 1150 | AE72: 136 | AF72: 1240 | AG72: 142 | AH72: 1360 | AI72: 214 | AJ72: 1160 | AK72: 180 | AL72: 1170 | AM72: 198 | AN72: 1390 | AO72: 210 | AP72: 1220 | AQ72: 190 | AR72: 1150 | AS72: 190 | AT72: 1170 | AU72: 190 | AV72: 1280 | AW72: 205 | AX72: 1270 | AY72: 225 | AZ72: 1210 | BA72: 160 | BB72: 1170 | BC72: 160 | BD72: 1190 | BE72: 160 | BF72: 1240 | BG72: 160 | BH72: 1240 | BI72: 160 | BJ72: 1460 | BK72: 170 | BL72: 1560 | BM72: 190 | BN72: 1580 | BO72: 190 | BP72: 1660 | BQ72: 190 | BR72: 1460 | BS72: 180 | BT72: 1560 | BU72: 180 | BV72: 1800 | BW72: 270 | BX72: 1850 | BY72: 270 | BZ72: 1900 | CA72: 280 | CB72: 1980 | CC72: 290 | CD72: 2270 | CE72: 380 | CF72: 2570 | CG72: 430 | CH72: 2660 | CI72: 590 | CJ72: 3110 | CK72: 710 | CL72: 3850 | CM72: 880 | CN72: 3820 | CO72: 840 | CP72: 3720 | CQ72: 820 | CR72: 3371 | CS72: 750 | CT72: 3371 | CU72: 710 | CV72: 3441 | CW72: 672.87486 | CX72: 2389 | CY72: 470.94429 | CZ72: 2272 | DA72: 424 | DB72: 2206 | DC72: 398 | DD72: 2186 | DE72: 354.4740295 | DF72: 2378 | DG72: 390 | DH72: 2331 | DI72: 463 | DJ72: 2377 | DK72: 473 | DL72: 2422 | DM72: 297 | DN72: 2905 | DO72: 239 | DP72: 3142 | DQ72: 265 | DR72: 3012 | DS72: 265 | DT72: 3171 | DU72: 278 | DV72: 2235.555 | DW72: 195.99
A73: 13 | B73: B | C73: JCT FARSON CUTOFF ROAD | D73: 41.155 | E73: 49.556 | G73: 8.39 | H73: SB0115 | I73: 2 | J73: 16.78 | K73: P | L73: 13 | M73: US | N73: 191 | O73: NHS | P73: SW | Q73: 2 | R73: 600 | S73: 82 | T73: 650 | U73: 80 | V73: 720 | W73: 100 | X73: 740 | Y73: 110 | Z73: 750 | AA73: 112 | AB73: 850 | AC73: 116 | AD73: 900 | AE73: 132 | AF73: 980 | AG73: 138 | AH73: 1070 | AI73: 190 | AJ73: 1070 | AK73: 160 | AL73: 1080 | AM73: 178 | AN73: 1300 | AO73: 190 | AP73: 1130 | AQ73: 170 | AR73: 1080 | AS73: 170 | AT73: 1100 | AU73: 170 | AV73: 1200 | AW73: 185 | AX73: 1190 | AY73: 205 | AZ73: 1130 | BA73: 145 | BB73: 1090 | BC73: 145 | BD73: 1110 | BE73: 145 | BF73: 1160 | BG73: 145 | BH73: 1160 | BI73: 145 | BJ73: 1380 | BK73: 155 | BL73: 1430 | BM73: 175 | BN73: 1450 | BO73: 175 | BP73: 1530 | BQ73: 175 | BR73: 1330 | BS73: 160 | BT73: 1330 | BU73: 160 | BV73: 1560 | BW73: 250 | BX73: 1600 | BY73: 250 | BZ73: 1600 | CA73: 250 | CB73: 1900 | CC73: 290 | CD73: 2190 | CE73: 350 | CF73: 3490 | CG73: 410 | CH73: 2590 | CI73: 570 | CJ73: 2940 | CK73: 700 | CL73: 3670 | CM73: 890 | CN73: 3650 | CO73: 850 | CP73: 3550 | CQ73: 830 | CR73: 3334 | CS73: 760 | CT73: 3334 | CU73: 720 | CV73: 3403 | CW73: 665.4441 | CX73: 3226 | CY73: 536 | CZ73: 3068 | DA73: 493 | DB73: 2979 | DC73: 478 | DD73: 2952 | DE73: 425.6012268 | DF73: 1900 | DG73: 307 | DH73: 3148 | DI73: 624 | DJ73: 3209 | DK73: 637 | DL73: 3270 | DM73: 296 | DN73: 2420 | DO73: 239 | DP73: 2617 | DQ73: 264 | DR73: 2508 | DS73: 519 | DT73: 2641 | DU73: 278 | DV73: 22157.99 | DW73: 2332.42
A74: 13 | B74: B | C74: JCT BIG SANDY RESERVOIR ROAD | D74: 49.556 | E74: 51.615 | G74: 2.059 | H74: 000143 | I74: 2 | J74: 4.118 | K74: P | L74: 13 | M74: US | N74: 191 | O74: NHS | P74: SW | Q74: 2 | R74: 570 | S74: 80 | T74: 620 | U74: 78 | V74: 670 | W74: 98 | X74: 690 | Y74: 104 | Z74: 680 | AA74: 106 | AB74: 770 | AC74: 108 | AD74: 820 | AE74: 124 | AF74: 900 | AG74: 130 | AH74: 990 | AI74: 180 | AJ74: 990 | AK74: 152 | AL74: 1000 | AM74: 168 | AN74: 1200 | AO74: 180 | AP74: 1020 | AQ74: 160 | AR74: 990 | AS74: 140 | AT74: 1010 | AU74: 140 | AV74: 1100 | AW74: 150 | AX74: 1090 | AY74: 165 | AZ74: 1040 | BA74: 115 | BB74: 1000 | BC74: 115 | BD74: 1020 | BE74: 115 | BF74: 1070 | BG74: 115 | BH74: 1050 | BI74: 115 | BJ74: 1270 | BK74: 125 | BL74: 1320 | BM74: 145 | BN74: 1320 | BO74: 145 | BP74: 1400 | BQ74: 145 | BR74: 1200 | BS74: 130 | BT74: 1200 | BU74: 130 | BV74: 1400 | BW74: 220 | BX74: 1450 | BY74: 220 | BZ74: 1500 | CA74: 240 | CB74: 1580 | CC74: 240 | CD74: 1580 | CE74: 270 | CF74: 1930 | CG74: 330 | CH74: 2570 | CI74: 490 | CJ74: 2920 | CK74: 640 | CL74: 3340 | CM74: 840 | CN74: 3470 | CO74: 800 | CP74: 3370 | CQ74: 780 | CR74: 3265 | CS74: 711 | CT74: 3265 | CU74: 671 | CV74: 3332 | CW74: 651.56031 | CX74: 2240 | CY74: 441.57188 | CZ74: 2130 | DA74: 392 | DB74: 2118 | DC74: 392 | DD74: 2722 | DE74: 348.2042236 | DF74: 1866 | DG74: 297 | DH74: 1995 | DI74: 395 | DJ74: 2298 | DK74: 375 | DL74: 2045 | DM74: 331 | DN74: 1748 | DO74: 238 | DP74: 1782 | DQ74: 233 | DR74: 1737 | DS74: 254 | DT74: 1788 | DU74: 272 | DV74: 3681.492 | DW74: 560.048
A75: 13 | B75: B | C75: SWEETWATER - SUBLETTE CO LINE | D75: 51.615 | E75: 73.078 | G75: 21.463 | H75: 000143 | I75: 2 | J75: 42.926 | K75: P | L75: 13 | M75: US | N75: 191 | O75: NHS | P75: SB | Q75: 2 | R75: 570 | S75: 80 | T75: 620 | U75: 78 | V75: 670 | W75: 98 | X75: 690 | Y75: 100 | Z75: 680 | AA75: 106 | AB75: 770 | AC75: 108 | AD75: 820 | AE75: 124 | AF75: 900 | AG75: 130 | AH75: 990 | AI75: 180 | AJ75: 990 | AK75: 152 | AL75: 1000 | AM75: 168 | AN75: 1200 | AO75: 180 | AP75: 1020 | AQ75: 160 | AR75: 990 | AS75: 140 | AT75: 1010 | AU75: 140 | AV75: 1100 | AW75: 150 | AX75: 1090 | AY75: 165 | AZ75: 1040 | BA75: 115 | BB75: 1000 | BC75: 115 | BD75: 1020 | BE75: 115 | BF75: 1070 | BG75: 115 | BH75: 1050 | BI75: 115 | BJ75: 1270 | BK75: 125 | BL75: 1320 | BM75: 145 | BN75: 1320 | BO75: 145 | BP75: 1400 | BQ75: 145 | BR75: 1200 | BS75: 130 | BT75: 1200 | BU75: 130 | BV75: 1400 | BW75: 220 | BX75: 1450 | BY75: 220 | BZ75: 1500 | CA75: 240 | CB75: 1580 | CC75: 240 | CD75: 1580 | CE75: 270 | CF75: 1930 | CG75: 330 | CH75: 2570 | CI75: 480 | CJ75: 2920 | CK75: 640 | CL75: 3340 | CM75: 840 | CN75: 3470 | CO75: 800 | CP75: 3370 | CQ75: 780 | CR75: 3694 | CS75: 711 | CT75: 3694 | CU75: 671 | CV75: 2470 | CW75: 533.0132 | CX75: 2082 | CY75: 385.0093 | CZ75: 2029 | DA75: 333 | DB75: 2109 | DC75: 392 | DD75: 2071 | DE75: 347 | DF75: 1954 | DG75: 295 | DH75: 1914 | DI75: 395 | DJ75: 1956 | DK75: 370 | DL75: 2045 | DM75: 331 | DN75: 1748 | DO75: 238 | DP75: 1782 | DQ75: 233 | DR75: 1737 | DS75: 254 | DT75: 1788 | DU75: 272 | DV75: 38375.844 | DW75: 5837.936
A76: 13 | B76: B | C76: JCT SPEEDWAY ROAD | D76: 73.078 | E76: 76.75 | G76: 3.672 | H76: 00142S | I76: 2 | J76: 7.344 | K76: P | L76: 13 | M76: US | N76: 191 | O76: NHS | P76: SB | Q76: 2 | R76: 590 | S76: 69 | T76: 640 | U76: 65 | V76: 690 | W76: 87 | X76: 700 | Y76: 86 | Z76: 690 | AA76: 92 | AB76: 780 | AC76: 94 | AD76: 840 | AE76: 114 | AF76: 910 | AG76: 120 | AH76: 1000 | AI76: 166 | AJ76: 810 | AK76: 150 | AL76: 820 | AM76: 166 | AN76: 1070 | AO76: 180 | AP76: 990 | AQ76: 160 | AR76: 970 | AS76: 140 | AT76: 990 | AU76: 140 | AV76: 1080 | AW76: 150 | AX76: 1070 | AY76: 165 | AZ76: 1020 | BA76: 115 | BB76: 980 | BC76: 115 | BD76: 1000 | BE76: 115 | BF76: 1050 | BG76: 115 | BH76: 1050 | BI76: 115 | BJ76: 1270 | BK76: 125 | BL76: 1320 | BM76: 145 | BN76: 1320 | BO76: 145 | BP76: 1400 | BQ76: 145 | BR76: 1200 | BS76: 130 | BT76: 1200 | BU76: 130 | BV76: 1400 | BW76: 220 | BX76: 1450 | BY76: 220 | BZ76: 1500 | CA76: 240 | CB76: 1400 | CC76: 200 | CD76: 1400 | CE76: 270 | CF76: 1750 | CG76: 330 | CH76: 2380 | CI76: 470 | CJ76: 2770 | CK76: 630 | CL76: 2830 | CM76: 640 | CN76: 3120 | CO76: 670 | CP76: 2980 | CQ76: 650 | CR76: 2539 | CS76: 533 | CT76: 2603 | CU76: 497 | CV76: 2462 | CW76: 493.75444 | CX76: 2003 | CY76: 379 | CZ76: 2253 | DA76: 328 | DB76: 2268 | DC76: 402 | DD76: 1950 | DE76: 355.8520508 | DF76: 2000 | DG76: 294 | DH76: 2051 | DI76: 277 | DJ76: 2282 | DK76: 362 | DL76: 2325 | DM76: 370 | DN76: 2224 | DO76: 251 | DP76: 2404 | DQ76: 215 | DR76: 2305 | DS76: 469 | DT76: 2427 | DU76: 250 | DV76: 8911.944 | DW76: 918
A77: 13 | B77: B | C77: JCT ROUTE 1801 (WY 351) | D77: 76.75 | E77: 83.333 | G77: 6.583 | H77: 000142 | I77: 2 | J77: 13.166 | K77: P | L77: 13 | M77: US | N77: 191 | O77: NHS | P77: SB | Q77: 2 | R77: 530 | S77: 54 | T77: 580 | U77: 50 | V77: 630 | W77: 72 | X77: 640 | Y77: 66 | Z77: 630 | AA77: 76 | AB77: 710 | AC77: 78 | AD77: 790 | AE77: 98 | AF77: 870 | AG77: 104 | AH77: 740 | AI77: 120 | AJ77: 700 | AK77: 101 | AL77: 710 | AM77: 127 | AN77: 920 | AO77: 140 | AP77: 960 | AQ77: 125 | AR77: 940 | AS77: 120 | AT77: 960 | AU77: 120 | AV77: 1050 | AW77: 130 | AX77: 1040 | AY77: 145 | AZ77: 990 | BA77: 100 | BB77: 950 | BC77: 100 | BD77: 970 | BE77: 100 | BF77: 1020 | BG77: 100 | BH77: 1020 | BI77: 100 | BJ77: 1240 | BK77: 110 | BL77: 1200 | BM77: 130 | BN77: 1200 | BO77: 130 | BP77: 1380 | BQ77: 130 | BR77: 1100 | BS77: 120 | BT77: 1100 | BU77: 120 | BV77: 1250 | BW77: 150 | BX77: 1250 | BY77: 150 | BZ77: 1300 | CA77: 160 | CB77: 1200 | CC77: 180 | CD77: 1300 | CE77: 270 | CF77: 1350 | CG77: 180 | CH77: 1740 | CI77: 250 | CJ77: 1910 | CK77: 270 | CL77: 2280 | CM77: 240 | CN77: 2370 | CO77: 240 | CP77: 2530 | CQ77: 280 | CR77: 2369 | CS77: 284 | CT77: 2299 | CU77: 219 | CV77: 2311 | CW77: 222.73498 | CX77: 1916 | CY77: 191.27809 | CZ77: 1831 | DA77: 179 | DB77: 1949 | DC77: 187 | DD77: 1936 | DE77: 165.5331573 | DF77: 1862 | DG77: 175 | DH77: 1954 | DI77: 315 | DJ77: 1997 | DK77: 241 | DL77: 2325 | DM77: 370 | DN77: 1997 | DO77: 251 | DP77: 2160 | DQ77: 210 | DR77: 2070 | DS77: 203 | DT77: 2180 | DU77: 245 | DV77: 14350.94 | DW77: 1612.835
A78: 13 | B78: B | C78: JCT FISH HATCHERY ROAD | D78: 83.333 | E78: 87.8 | G78: 4.467 | H78: SB0116 | I78: 2 | J78: 8.934 | K78: P | L78: 13 | M78: US | N78: 191 | O78: NHS | P78: SB | Q78: 2 | R78: 550 | S78: 57 | T78: 600 | U78: 52 | V78: 640 | W78: 78 | X78: 650 | Y78: 78 | Z78: 640 | AA78: 78 | AB78: 720 | AC78: 80 | AD78: 800 | AE78: 94 | AF78: 880 | AG78: 100 | AH78: 750 | AI78: 116 | AJ78: 730 | AK78: 98 | AL78: 740 | AM78: 123 | AN78: 990 | AO78: 135 | AP78: 980 | AQ78: 120 | AR78: 960 | AS78: 120 | AT78: 980 | AU78: 120 | AV78: 1070 | AW78: 130 | AX78: 1060 | AY78: 145 | AZ78: 1010 | BA78: 100 | BB78: 970 | BC78: 100 | BD78: 990 | BE78: 100 | BF78: 1040 | BG78: 100 | BH78: 1040 | BI78: 100 | BJ78: 1260 | BK78: 110 | BL78: 1220 | BM78: 130 | BN78: 1220 | BO78: 130 | BP78: 1300 | BQ78: 130 | BR78: 1050 | BS78: 120 | BT78: 1050 | BU78: 120 | BV78: 1200 | BW78: 150 | BX78: 1200 | BY78: 150 | BZ78: 1200 | CA78: 150 | CB78: 1200 | CC78: 160 | CD78: 1400 | CE78: 220 | CF78: 1550 | CG78: 190 | CH78: 1870 | CI78: 260 | CJ78: 2050 | CK78: 280 | CL78: 2570 | CM78: 270 | CN78: 2660 | CO78: 270 | CP78: 2840 | CQ78: 310 | CR78: 3030 | CS78: 295 | CT78: 3030 | CU78: 235 | CV78: 2887 | CW78: 235 | CX78: 2737 | CY78: 205 | CZ78: 2603 | DA78: 190 | DB78: 2528 | DC78: 191 | DD78: 2505 | DE78: 169.0739746 | DF78: 1862 | DG78: 171 | DH78: 2689 | DI78: 365 | DJ78: 2707 | DK78: 318 | DL78: 2758 | DM78: 327 | DN78: 2638 | DO78: 250 | DP78: 2852 | DQ78: 201 | DR78: 2734 | DS78: 301 | DT78: 2879 | DU78: 237 | DV78: 12860.493 | DW78: 1058.679
A79: 13 | B79: B | C79: JCT ROUTE 1804 (WY 353) | D79: 87.8 | E79: 98.464 | G79: 10.653 | H79: 000191 | I79: 2 | J79: 21.306 | K79: P | L79: 13 | M79: US | N79: 191 | O79: NHS | P79: SB | Q79: 2 | R79: 700 | S79: 74 | T79: 750 | U79: 60 | V79: 750 | W79: 71 | X79: 760 | Y79: 82 | Z79: 830 | AA79: 102 | AB79: 880 | AC79: 96 | AD79: 990 | AE79: 110 | AF79: 980 | AG79: 116 | AH79: 910 | AI79: 126 | AJ79: 1050 | AK79: 106 | AL79: 1060 | AM79: 146 | AN79: 1230 | AO79: 155 | AP79: 1020 | AQ79: 140 | AR79: 1200 | AS79: 140 | AT79: 1220 | AU79: 140 | AV79: 1330 | AW79: 150 | AX79: 1320 | AY79: 165 | AZ79: 1260 | BA79: 115 | BB79: 1240 | BC79: 120 | BD79: 1260 | BE79: 120 | BF79: 1310 | BG79: 120 | BH79: 1330 | BI79: 120 | BJ79: 1550 | BK79: 130 | BL79: 1500 | BM79: 150 | BN79: 1500 | BO79: 150 | BP79: 1550 | BQ79: 150 | BR79: 1450 | BS79: 140 | BT79: 1450 | BU79: 140 | BV79: 1600 | BW79: 170 | BX79: 1600 | BY79: 170 | BZ79: 1600 | CA79: 170 | CB79: 1300 | CC79: 180 | CD79: 1450 | CE79: 220 | CF79: 1850 | CG79: 270 | CH79: 2230 | CI79: 280 | CJ79: 2450 | CK79: 310 | CL79: 2610 | CM79: 280 | CN79: 2700 | CO79: 280 | CP79: 2890 | CQ79: 320 | CR79: 3604 | CS79: 300 | CT79: 3604 | CU79: 240 | CV79: 2999 | CW79: 240 | CX79: 2843 | CY79: 210 | CZ79: 2704 | DA79: 210 | DB79: 2626 | DC79: 208 | DD79: 2506 | DE79: 184.1224518 | DF79: 2411 | DG79: 367 | DH79: 5406 | DI79: 733 | DJ79: 3118 | DK79: 620 | DL79: 3177 | DM79: 331 | DN79: 3416 | DO79: 250 | DP79: 3563 | DQ79: 234 | DR79: 3479 | DS79: 221 | DT79: 3598 | DU79: 231 | DV79: 38329.494 | DW79: 2460.843
A80: 13 | B80: B | C80: JCT COUNTY ROAD 221 EAST & WEST | D80: 98.464 | E80: 98.828 | G80: 0.364 | H80: SB0122 | I80: 2 | J80: 0.728 | K80: P | L80: 13 | M80: US | N80: 191 | O80: NHS | P80: SB | Q80: 2 | R80: 780 | S80: 80 | T80: 830 | U80: 66 | V80: 830 | W80: 77 | X80: 840 | Y80: 88 | Z80: 890 | AA80: 108 | AB80: 940 | AC80: 98 | AD80: 1050 | AE80: 112 | AF80: 1040 | AG80: 118 | AH80: 970 | AI80: 128 | AJ80: 1120 | AK80: 106 | AL80: 1130 | AM80: 146 | AN80: 1310 | AO80: 160 | AP80: 1100 | AQ80: 145 | AR80: 1270 | AS80: 150 | AT80: 1300 | AU80: 150 | AV80: 1420 | AW80: 165 | AX80: 1410 | AY80: 185 | AZ80: 1340 | BA80: 130 | BB80: 1300 | BC80: 135 | BD80: 1320 | BE80: 135 | BF80: 1370 | BG80: 135 | BH80: 1380 | BI80: 135 | BJ80: 1600 | BK80: 145 | BL80: 1550 | BM80: 165 | BN80: 1570 | BO80: 165 | BP80: 1650 | BQ80: 165 | BR80: 1550 | BS80: 150 | BT80: 1550 | BU80: 150 | BV80: 1700 | BW80: 180 | BX80: 1700 | BY80: 180 | BZ80: 1800 | CA80: 190 | CB80: 1600 | CC80: 210 | CD80: 1600 | CE80: 280 | CF80: 2970 | CG80: 330 | CH80: 2970 | CI80: 330 | CJ80: 3260 | CK80: 360 | CL80: 3560 | CM80: 360 | CN80: 3650 | CO80: 360 | CP80: 3900 | CQ80: 400 | CR80: 3943 | CS80: 392 | CT80: 3943 | CU80: 332 | CV80: 4740 | CW80: 332 | CX80: 4494 | CY80: 300 | CZ80: 4274 | DA80: 300 | DB80: 4150 | DC80: 300 | DD80: 4113 | DE80: 265.5612183 | DF80: 3957 | DG80: 641.16809 | DH80: 4386 | DI80: 870 | DJ80: 4471 | DK80: 889 | DL80: 3653 | DM80: 284 | DN80: 5064 | DO80: 239 | DP80: 5476 | DQ80: 188 | DR80: 5250 | DS80: 188 | DT80: 5527 | DU80: 215 | DV80: 2011.828 | DW80: 78.26
A81: 13 | B81: B | C81: JCT FREMONT LAKE ROAD | D81: 98.828 | E81: 100.354 | G81: 1.526 | H81: SB0123 | I81: 2 | J81: 3.052 | K81: P | L81: 13 | M81: US | N81: 191 | O81: NHS | P81: SB | Q81: 2 | R81: 2350 | S81: 160 | T81: 2380 | U81: 148 | V81: 2380 | W81: 142 | X81: 2400 | Y81: 146 | Z81: 2420 | AA81: 168 | AB81: 2510 | AC81: 152 | AD81: 2620 | AE81: 166 | AF81: 2640 | AG81: 172 | AH81: 2700 | AI81: 188 | AJ81: 2810 | AK81: 188 | AL81: 2830 | AM81: 220 | AN81: 3270 | AO81: 230 | AP81: 3730 | AQ81: 210 | AR81: 4000 | AS81: 240 | AT81: 4040 | AU81: 245 | AV81: 4400 | AW81: 265 | AX81: 4360 | AY81: 295 | AZ81: 4140 | BA81: 210 | BB81: 4100 | BC81: 215 | BD81: 4210 | BE81: 215 | BF81: 4260 | BG81: 215 | BH81: 4260 | BI81: 215 | BJ81: 4480 | BK81: 225 | BL81: 4320 | BM81: 225 | BN81: 4320 | BO81: 225 | BP81: 4400 | BQ81: 225 | BR81: 4350 | BS81: 210 | BT81: 4400 | BU81: 210 | BV81: 4550 | BW81: 240 | BX81: 4550 | BY81: 240 | BZ81: 4600 | CA81: 240 | CB81: 4800 | CC81: 350 | CD81: 4800 | CE81: 270 | CF81: 4880 | CG81: 340 | CH81: 5480 | CI81: 340 | CJ81: 5670 | CK81: 360 | CL81: 7070 | CM81: 370 | CN81: 7070 | CO81: 370 | CP81: 7560 | CQ81: 410 | CR81: 9549 | CS81: 399 | CT81: 9549 | CU81: 339 | CV81: 9523 | CW81: 339 | CX81: 8802 | CY81: 311 | CZ81: 8371 | DA81: 311 | DB81: 8128 | DC81: 309 | DD81: 8055 | DE81: 273.5280457 | DF81: 4960 | DG81: 773 | DH81: 8590 | DI81: 1705 | DJ81: 9828 | DK81: 449 | DL81: 10015 | DM81: 330 | DN81: 9217 | DO81: 238 | DP81: 9966 | DQ81: 188 | DR81: 9554 | DS81: 556 | DT81: 10059 | DU81: 214 | DV81: 15350.034 | DW81: 326.564
A82: 13 | B82: B | C82: BOOTSTRAP TRL (IN PINEDALE) | D82: 100.354 | E82: 101.036 | G82: 0.682 | H82: SB0124 | I82: 2 | J82: 1.364 | K82: P | L82: 13 | M82: US | N82: 191 | O82: NHS | P82: SB | Q82: 2 | R82: 1160 | S82: 106 | T82: 1190 | U82: 102 | V82: 1190 | W82: 96 | X82: 1200 | Y82: 102 | Z82: 1210 | AA82: 126 | AB82: 1210 | AC82: 98 | AD82: 1380 | AE82: 120 | AF82: 1400 | AG82: 126 | AH82: 1630 | AI82: 140 | AJ82: 1640 | AK82: 145 | AL82: 1660 | AM82: 188 | AN82: 2220 | AO82: 200 | AP82: 2150 | AQ82: 180 | AR82: 2140 | AS82: 180 | AT82: 2180 | AU82: 180 | AV82: 2380 | AW82: 195 | AX82: 2360 | AY82: 215 | AZ82: 2240 | BA82: 150 | BB82: 2200 | BC82: 155 | BD82: 2310 | BE82: 155 | BF82: 2360 | BG82: 155 | BH82: 2360 | BI82: 155 | BJ82: 2580 | BK82: 165 | BL82: 2420 | BM82: 165 | BN82: 2730 | BO82: 165 | BP82: 2810 | BQ82: 200 | BR82: 2760 | BS82: 190 | BT82: 2800 | BU82: 190 | BV82: 2950 | BW82: 220 | BX82: 2950 | BY82: 220 | BZ82: 3000 | CA82: 230 | CB82: 3100 | CC82: 240 | CD82: 5000 | CE82: 320 | CF82: 4890 | CG82: 330 | CH82: 5140 | CI82: 320 | CJ82: 5330 | CK82: 340 | CL82: 6690 | CM82: 360 | CN82: 6690 | CO82: 360 | CP82: 7150 | CQ82: 400 | CR82: 8850 | CS82: 354.4878607 | CT82: 8850 | CU82: 324 | CV82: 8826 | CW82: 324 | CX82: 5284 | CY82: 297 | CZ82: 5025 | DA82: 297 | DB82: 4879 | DC82: 297 | DD82: 4835 | DE82: 262.9056091 | DF82: 4663 | DG82: 1212 | DH82: 5156 | DI82: 1024 | DJ82: 5256 | DK82: 1045 | DL82: 2977 | DM82: 328 | DN82: 4759 | DO82: 236 | DP82: 5146 | DQ82: 188 | DR82: 4933 | DS82: 188 | DT82: 5193 | DU82: 212 | DV82: 3541.626 | DW82: 144.584
A83: 13 | B83: B | C83: JCT COUNTY ROAD 144 NORTH | D83: 101.036 | E83: 105.54 | G83: 4.504 | H83: SB0125 | I83: 2 | J83: 9.008 | K83: P | L83: 13 | M83: US | N83: 191 | O83: NHS | P83: SB | Q83: 2 | R83: 1080 | S83: 97 | T83: 1000 | U83: 98 | V83: 1030 | W83: 90 | X83: 1050 | Y83: 96 | Z83: 1060 | AA83: 120 | AB83: 1060 | AC83: 92 | AD83: 1230 | AE83: 114 | AF83: 1290 | AG83: 120 | AH83: 1510 | AI83: 156 | AJ83: 1470 | AK83: 161 | AL83: 1480 | AM83: 206 | AN83: 1720 | AO83: 220 | AP83: 1680 | AQ83: 195 | AR83: 1680 | AS83: 190 | AT83: 1720 | AU83: 190 | AV83: 1880 | AW83: 205 | AX83: 1860 | AY83: 225 | AZ83: 1770 | BA83: 160 | BB83: 1730 | BC83: 165 | BD83: 1840 | BE83: 165 | BF83: 1890 | BG83: 165 | BH83: 1890 | BI83: 165 | BJ83: 2110 | BK83: 175 | BL83: 1950 | BM83: 175 | BN83: 2100 | BO83: 175 | BP83: 2180 | BQ83: 210 | BR83: 2130 | BS83: 200 | BT83: 2200 | BU83: 200 | BV83: 2350 | BW83: 230 | BX83: 2350 | BY83: 230 | BZ83: 2400 | CA83: 240 | CB83: 2500 | CC83: 300 | CD83: 3410 | CE83: 310 | CF83: 3280 | CG83: 320 | CH83: 3410 | CI83: 300 | CJ83: 3600 | CK83: 320 | CL83: 3890 | CM83: 330 | CN83: 3890 | CO83: 330 | CP83: 4160 | CQ83: 370 | CR83: 3460 | CS83: 331 | CT83: 5388 | CU83: 301 | CV83: 5259 | CW83: 301 | CX83: 2975 | CY83: 288 | CZ83: 2829 | DA83: 288 | DB83: 2747 | DC83: 288 | DD83: 2722 | DE83: 254.9387817 | DF83: 2629 | DG83: 950 | DH83: 2634 | DI83: 522 | DJ83: 1894 | DK83: 243 | DL83: 4077 | DM83: 328 | DN83: 2679 | DO83: 235 | DP83: 2897 | DQ83: 188 | DR83: 2777 | DS83: 188 | DT83: 2924 | DU83: 211 | DV83: 13169.696 | DW83: 950.344
A84: 13 | B84: B | C84: JCT ROUTE 352 (WY 352) | D84: 105.54 | E84: 110.47 | G84: 4.93 | H84: 00017E | I84: 2 | J84: 9.86 | K84: P | L84: 13 | M84: US | N84: 191 | O84: NHS | P84: SB | Q84: 2 | R84: 920 | S84: 80 | T84: 860 | U84: 90 | V84: 900 | W84: 78 | X84: 920 | Y84: 90 | Z84: 880 | AA84: 108 | AB84: 910 | AC84: 88 | AD84: 1040 | AE84: 104 | AF84: 1100 | AG84: 110 | AH84: 1290 | AI84: 146 | AJ84: 1270 | AK84: 153 | AL84: 1280 | AM84: 198 | AN84: 1370 | AO84: 210 | AP84: 1440 | AQ84: 185 | AR84: 1310 | AS84: 185 | AT84: 1340 | AU84: 185 | AV84: 1460 | AW84: 200 | AX84: 1450 | AY84: 220 | AZ84: 1380 | BA84: 155 | BB84: 1340 | BC84: 160 | BD84: 1450 | BE84: 160 | BF84: 1500 | BG84: 160 | BH84: 1560 | BI84: 160 | BJ84: 1780 | BK84: 170 | BL84: 1620 | BM84: 170 | BN84: 1710 | BO84: 170 | BP84: 1790 | BQ84: 205 | BR84: 1740 | BS84: 200 | BT84: 1780 | BU84: 200 | BV84: 1900 | BW84: 230 | BX84: 1900 | BY84: 230 | BZ84: 1900 | CA84: 230 | CB84: 2000 | CC84: 260 | CD84: 2480 | CE84: 260 | CF84: 2210 | CG84: 270 | CH84: 2230 | CI84: 200 | CJ84: 2370 | CK84: 210 | CL84: 2590 | CM84: 250 | CN84: 2580 | CO84: 250 | CP84: 2760 | CQ84: 270 | CR84: 2808 | CS84: 252 | CT84: 2707 | CU84: 232 | CV84: 2524 | CW84: 232 | CX84: 2528 | CY84: 216 | CZ84: 2488 | DA84: 216 | DB84: 2469 | DC84: 216 | DD84: 2570 | DE84: 191.2040863 | DF84: 2570 | DG84: 413 | DH84: 2704 | DI84: 536 | DJ84: 2765 | DK84: 549 | DL84: 2582 | DM84: 322 | DN84: 2686 | DO84: 228 | DP84: 3044 | DQ84: 188 | DR84: 2881 | DS84: 188 | DT84: 2948 | DU84: 203 | DV84: 14533.64 | DW84: 1000.79
A85: 13 | B85: B | C85: JCT ROUTE 11 (DANIEL JCT) | D85: 110.467 | E85: 110.75 | G85: 0.283 | H85: 00017W | I85: 2 | J85: 0.566 | K85: P | L85: 13 | M85: US | N85: 189/191 | O85: NHS | P85: SB | Q85: 2 | R85: 670 | S85: 76 | T85: 690 | U85: 90 | V85: 750 | W85: 77 | X85: 770 | Y85: 80 | Z85: 720 | AA85: 84 | AB85: 750 | AC85: 84 | AD85: 850 | AE85: 96 | AF85: 910 | AG85: 106 | AH85: 1010 | AI85: 142 | AJ85: 940 | AK85: 120 | AL85: 1130 | AM85: 196 | AN85: 1100 | AO85: 175 | AP85: 1140 | AQ85: 160 | AR85: 1030 | AS85: 160 | AT85: 1060 | AU85: 160 | AV85: 1100 | AW85: 170 | AX85: 1090 | AY85: 190 | AZ85: 1200 | BA85: 135 | BB85: 1160 | BC85: 140 | BD85: 1260 | BE85: 140 | BF85: 1310 | BG85: 140 | BH85: 1330 | BI85: 140 | BJ85: 1620 | BK85: 150 | BL85: 1390 | BM85: 150 | BN85: 1430 | BO85: 150 | BP85: 1510 | BQ85: 190 | BR85: 1530 | BS85: 190 | BT85: 1580 | BU85: 170 | BV85: 1640 | BW85: 170 | BX85: 1670 | BY85: 170 | BZ85: 1700 | CA85: 170 | CB85: 1810 | CC85: 180 | CD85: 1880 | CE85: 210 | CF85: 1910 | CG85: 200 | CH85: 1930 | CI85: 200 | CJ85: 1980 | CK85: 200 | CL85: 2150 | CM85: 240 | CN85: 2280 | CO85: 260 | CP85: 2250 | CQ85: 280 | CR85: 2291 | CS85: 263 | CT85: 2235 | CU85: 243 | CV85: 2143 | CW85: 243 | CX85: 2116 | CY85: 225 | CZ85: 2077 | DA85: 200 | DB85: 2092 | DC85: 200 | DD85: 2220 | DE85: 177.0408173 | DF85: 2282 | DG85: 362.97335 | DH85: 2335 | DI85: 316 | DJ85: 2411 | DK85: 284 | DL85: 2385 | DM85: 312 | DN85: 2437 | DO85: 218 | DP85: 2710 | DQ85: 189 | DR85: 2534 | DS85: 190 | DT85: 2565 | DU85: 195 | DV85: 725.895 | DW85: 55.185
A86: 13 | B86: B | C86: JCT ROUTE 354 (WY 354) | D86: 110.75 | E86: 117.565 | G86: 6.705 | H86: SB0126 | I86: 2 | J86: 13.41 | K86: P | L86: 13 | M86: US | N86: 189/191 | O86: NHS | P86: SB | Q86: 2 | R86: 630 | S86: 74 | T86: 690 | U86: 88 | V86: 690 | W86: 66 | X86: 710 | Y86: 86 | Z86: 690 | AA86: 84 | AB86: 720 | AC86: 84 | AD86: 830 | AE86: 94 | AF86: 890 | AG86: 104 | AH86: 930 | AI86: 140 | AJ86: 870 | AK86: 118 | AL86: 920 | AM86: 163 | AN86: 1050 | AO86: 170 | AP86: 1040 | AQ86: 155 | AR86: 970 | AS86: 140 | AT86: 980 | AU86: 140 | AV86: 1020 | AW86: 150 | AX86: 1070 | AY86: 160 | AZ86: 1180 | BA86: 110 | BB86: 1140 | BC86: 130 | BD86: 1240 | BE86: 130 | BF86: 1290 | BG86: 130 | BH86: 1290 | BI86: 130 | BJ86: 1580 | BK86: 140 | BL86: 1350 | BM86: 140 | BN86: 1390 | BO86: 140 | BP86: 1450 | BQ86: 200 | BR86: 1470 | BS86: 200 | BT86: 1470 | BU86: 180 | BV86: 1530 | BW86: 180 | BX86: 1560 | BY86: 180 | BZ86: 1600 | CA86: 180 | CB86: 1700 | CC86: 170 | CD86: 1820 | CE86: 210 | CF86: 1950 | CG86: 200 | CH86: 1950 | CI86: 200 | CJ86: 2000 | CK86: 200 | CL86: 2170 | CM86: 230 | CN86: 2170 | CO86: 220 | CP86: 2140 | CQ86: 220 | CR86: 2121 | CS86: 201 | CT86: 2121 | CU86: 181 | CV86: 2121 | CW86: 181 | CX86: 1964 | CY86: 162 | CZ86: 1960 | DA86: 150 | DB86: 1997 | DC86: 150 | DD86: 1749 | DE86: 132.7806091 | DF86: 1682 | DG86: 340 | DH86: 2146 | DI86: 291 | DJ86: 2297 | DK86: 243 | DL86: 2341 | DM86: 311 | DN86: 2238 | DO86: 217 | DP86: 2420 | DQ86: 190 | DR86: 2320 | DS86: 318 | DT86: 2352 | DU86: 194 | DV86: 15770.16 | DW86: 1300.77
A87: 13 | B87: B | C87: JCT FISH HATCHERY ROAD (CR 150) | D87: 117.565 | E87: 127.541 | G87: 9.976 | H87: SB0129 | I87: 2 | J87: 19.952 | K87: P | L87: 13 | M87: US | N87: 189/191 | O87: NHS | P87: SB | Q87: 2 | R87: 610 | S87: 62 | T87: 670 | U87: 88 | V87: 680 | W87: 68 | X87: 710 | Y87: 84 | Z87: 690 | AA87: 86 | AB87: 720 | AC87: 84 | AD87: 830 | AE87: 94 | AF87: 890 | AG87: 104 | AH87: 920 | AI87: 140 | AJ87: 860 | AK87: 118 | AL87: 910 | AM87: 163 | AN87: 1020 | AO87: 170 | AP87: 1000 | AQ87: 155 | AR87: 930 | AS87: 140 | AT87: 940 | AU87: 140 | AV87: 980 | AW87: 150 | AX87: 1030 | AY87: 160 | AZ87: 1130 | BA87: 110 | BB87: 1090 | BC87: 130 | BD87: 1190 | BE87: 130 | BF87: 1240 | BG87: 130 | BH87: 1240 | BI87: 130 | BJ87: 1530 | BK87: 140 | BL87: 1330 | BM87: 140 | BN87: 1370 | BO87: 140 | BP87: 1430 | BQ87: 200 | BR87: 1450 | BS87: 200 | BT87: 1450 | BU87: 180 | BV87: 1520 | BW87: 180 | BX87: 1550 | BY87: 180 | BZ87: 1600 | CA87: 190 | CB87: 1700 | CC87: 170 | CD87: 1810 | CE87: 210 | CF87: 1940 | CG87: 200 | CH87: 1940 | CI87: 200 | CJ87: 1990 | CK87: 200 | CL87: 1800 | CM87: 230 | CN87: 1800 | CO87: 220 | CP87: 1770 | CQ87: 220 | CR87: 1875 | CS87: 200 | CT87: 1875 | CU87: 180 | CV87: 1875 | CW87: 180 | CX87: 1697 | CY87: 161 | CZ87: 1694 | DA87: 148 | DB87: 1726 | DC87: 148 | DD87: 1573 | DE87: 131.0102081 | DF87: 1513 | DG87: 187 | DH87: 1855 | DI87: 251 | DJ87: 1867 | DK87: 220 | DL87: 1988 | DM87: 289 | DN87: 1901 | DO87: 199 | DP87: 2056 | DQ87: 197 | DR87: 1971 | DS87: 197 | DT87: 1998 | DU87: 182 | DV87: 19932.048 | DW87: 1815.632
A88: 13 | B88: B | C88: TETON NATIONAL FOREST BOUNDRY | D88: 127.541 | E88: 138.98 | G88: 11.439 | H88: 000073 | I88: 2 | J88: 22.878 | K88: P | L88: 13 | M88: US | N88: 189/191 | O88: NHS | P88: SB | Q88: 2 | R88: 560 | S88: 62 | T88: 670 | U88: 88 | V88: 680 | W88: 68 | X88: 710 | Y88: 84 | Z88: 690 | AA88: 86 | AB88: 720 | AC88: 84 | AD88: 830 | AE88: 94 | AF88: 890 | AG88: 104 | AH88: 900 | AI88: 136 | AJ88: 840 | AK88: 115 | AL88: 890 | AM88: 160 | AN88: 1000 | AO88: 170 | AP88: 970 | AQ88: 150 | AR88: 900 | AS88: 135 | AT88: 910 | AU88: 135 | AV88: 950 | AW88: 145 | AX88: 990 | AY88: 150 | AZ88: 1090 | BA88: 105 | BB88: 1050 | BC88: 125 | BD88: 1170 | BE88: 125 | BF88: 1220 | BG88: 125 | BH88: 1220 | BI88: 125 | BJ88: 1510 | BK88: 135 | BL88: 1510 | BM88: 135 | BN88: 1550 | BO88: 135 | BP88: 1600 | BQ88: 190 | BR88: 1620 | BS88: 190 | BT88: 1620 | BU88: 170 | BV88: 1700 | BW88: 170 | BX88: 1730 | BY88: 170 | BZ88: 1700 | CA88: 170 | CB88: 1600 | CC88: 170 | CD88: 1700 | CE88: 180 | CF88: 1820 | CG88: 170 | CH88: 1820 | CI88: 170 | CJ88: 1860 | CK88: 170 | CL88: 1820 | CM88: 230 | CN88: 1810 | CO88: 220 | CP88: 1740 | CQ88: 220 | CR88: 1912 | CS88: 204 | CT88: 1912 | CU88: 184 | CV88: 1912 | CW88: 184 | CX88: 1383 | CY88: 160.01814 | CZ88: 1367 | DA88: 146 | DB88: 1417 | DC88: 150 | DD88: 1514 | DE88: 132.7806091 | DF88: 1527 | DG88: 190 | DH88: 1558 | DI88: 209 | DJ88: 1592 | DK88: 147 | DL88: 1643 | DM88: 154 | DN88: 1681 | DO88: 162 | DP88: 1905 | DQ88: 175 | DR88: 1796 | DS88: 173 | DT88: 1868 | DU88: 163 | DV88: 21368.052 | DW88: 1864.557
A89: 13 | B89: B | C89: HOBACK RIVER | D89: 138.98 | E89: 145.341 | G89: 6.361 | H89: 000073 | I89: 2 | J89: 12.722 | K89: P | L89: 13 | M89: US | N89: 189/191 | O89: NHS | P89: SB | Q89: 2 | R89: 560 | S89: 62 | T89: 670 | U89: 88 | V89: 680 | W89: 68 | X89: 710 | Y89: 84 | Z89: 690 | AA89: 86 | AB89: 720 | AC89: 84 | AD89: 830 | AE89: 94 | AF89: 890 | AG89: 104 | AH89: 900 | AI89: 136 | AJ89: 840 | AK89: 115 | AL89: 890 | AM89: 160 | AN89: 1000 | AO89: 170 | AP89: 970 | AQ89: 150 | AR89: 900 | AS89: 135 | AT89: 910 | AU89: 135 | AV89: 950 | AW89: 145 | AX89: 990 | AY89: 150 | AZ89: 1090 | BA89: 105 | BB89: 1050 | BC89: 125 | BD89: 1170 | BE89: 125 | BF89: 1220 | BG89: 125 | BH89: 1220 | BI89: 125 | BJ89: 1510 | BK89: 135 | BL89: 1510 | BM89: 135 | BN89: 1550 | BO89: 135 | BP89: 1600 | BQ89: 190 | BR89: 1620 | BS89: 190 | BT89: 1620 | BU89: 170 | BV89: 1700 | BW89: 170 | BX89: 1730 | BY89: 170 | BZ89: 1700 | CA89: 170 | CB89: 1600 | CC89: 170 | CD89: 1700 | CE89: 180 | CF89: 1820 | CG89: 170 | CH89: 1820 | CI89: 170 | CJ89: 1860 | CK89: 170 | CL89: 1850 | CM89: 240 | CN89: 1830 | CO89: 220 | CP89: 1760 | CQ89: 220 | CR89: 1779 | CS89: 205 | CT89: 1779 | CU89: 185 | CV89: 1753 | CW89: 185 | CX89: 1774 | CY89: 161 | CZ89: 1770 | DA89: 148 | DB89: 1804 | DC89: 151 | DD89: 1844 | DE89: 133.6658173 | DF89: 1774 | DG89: 255.23395 | DH89: 1938 | DI89: 262 | DJ89: 1951 | DK89: 230 | DL89: 1643 | DM89: 154 | DN89: 1681 | DO89: 162 | DP89: 1905 | DQ89: 175 | DR89: 1796 | DS89: 173 | DT89: 1868 | DU89: 163 | DV89: 11882.348 | DW89: 1036.843
A90: 13 | B90: B | C90: BONDURANT | D90: 145.341 | E90: 154.745 | G90: 9.404 | H90: TE0125 | I90: 2 | J90: 18.808 | K90: P | L90: 13 | M90: US | N90: 189/191 | O90: NHS | P90: SB | Q90: 2 | R90: 610 | S90: 59 | T90: 680 | U90: 88 | V90: 710 | W90: 70 | X90: 720 | Y90: 82 | Z90: 710 | AA90: 86 | AB90: 740 | AC90: 84 | AD90: 840 | AE90: 94 | AF90: 930 | AG90: 104 | AH90: 930 | AI90: 130 | AJ90: 890 | AK90: 110 | AL90: 940 | AM90: 155 | AN90: 1130 | AO90: 180 | AP90: 1120 | AQ90: 165 | AR90: 1050 | AS90: 130 | AT90: 1060 | AU90: 130 | AV90: 1100 | AW90: 140 | AX90: 1150 | AY90: 145 | AZ90: 1270 | BA90: 100 | BB90: 1230 | BC90: 120 | BD90: 1330 | BE90: 120 | BF90: 1380 | BG90: 120 | BH90: 1430 | BI90: 120 | BJ90: 1720 | BK90: 130 | BL90: 1680 | BM90: 130 | BN90: 1720 | BO90: 130 | BP90: 1750 | BQ90: 190 | BR90: 1770 | BS90: 190 | BT90: 1770 | BU90: 170 | BV90: 1850 | BW90: 170 | BX90: 1880 | BY90: 170 | BZ90: 1900 | CA90: 170 | CB90: 1900 | CC90: 180 | CD90: 1900 | CE90: 180 | CF90: 1930 | CG90: 170 | CH90: 1930 | CI90: 170 | CJ90: 1970 | CK90: 170 | CL90: 2000 | CM90: 260 | CN90: 1850 | CO90: 210 | CP90: 1780 | CQ90: 210 | CR90: 2004 | CS90: 170 | CT90: 2004 | CU90: 165 | CV90: 2004 | CW90: 252.51982 | CX90: 1838 | CY90: 230 | CZ90: 1834 | DA90: 168 | DB90: 1869 | DC90: 169 | DD90: 1728 | DE90: 149.5994873 | DF90: 1662 | DG90: 145 | DH90: 1817 | DI90: 246 | DJ90: 2208 | DK90: 197 | DL90: 2602 | DM90: 154 | DN90: 2525 | DO90: 162 | DP90: 2529 | DQ90: 307 | DR90: 2355 | DS90: 307 | DT90: 2444 | DU90: 169 | DV90: 22983.376 | DW90: 1589.276
A91: 13 | B91: B | C91: SUBLETTE -TETON COUNTY LINE | D91: 154.745 | E91: 163.554 | G91: 8.69 | H91: TE0125 | I91: 2 | J91: 17.38 | K91: P | L91: 13 | M91: US | N91: 189/191 | O91: NHS | P91: TE | Q91: 2 | R91: 620 | S91: 59 | T91: 690 | U91: 88 | V91: 710 | W91: 70 | X91: 720 | Y91: 82 | Z91: 710 | AA91: 86 | AB91: 740 | AC91: 84 | AD91: 840 | AE91: 94 | AF91: 930 | AG91: 140 | AH91: 930 | AI91: 130 | AJ91: 890 | AK91: 110 | AL91: 940 | AM91: 155 | AN91: 1130 | AO91: 180 | AP91: 1120 | AQ91: 165 | AR91: 1050 | AS91: 130 | AT91: 1060 | AU91: 130 | AV91: 1100 | AW91: 140 | AX91: 1150 | AY91: 145 | AZ91: 1270 | BA91: 100 | BB91: 1230 | BC91: 120 | BD91: 1330 | BE91: 120 | BF91: 1380 | BG91: 120 | BH91: 1430 | BI91: 120 | BJ91: 1720 | BK91: 130 | BL91: 1820 | BM91: 130 | BN91: 1890 | BO91: 130 | BP91: 1910 | BQ91: 190 | BR91: 1930 | BS91: 190 | BT91: 2000 | BU91: 170 | BV91: 2200 | BW91: 170 | BX91: 2230 | BY91: 170 | BZ91: 2200 | CA91: 170 | CB91: 2060 | CC91: 180 | CD91: 2110 | CE91: 180 | CF91: 2260 | CG91: 170 | CH91: 2260 | CI91: 170 | CJ91: 2300 | CK91: 170 | CL91: 2000 | CM91: 260 | CN91: 2010 | CO91: 260 | CP91: 1980 | CQ91: 260 | CR91: 2232 | CS91: 189 | CT91: 2232 | CU91: 179 | CV91: 1676 | CW91: 241 | CX91: 1696 | CY91: 243.16867 | CZ91: 1693 | DA91: 180 | DB91: 2387 | DC91: 173 | DD91: 2187 | DE91: 153.1403046 | DF91: 2203 | DG91: 113 | DH91: 2538 | DI91: 203 | DJ91: 2554 | DK91: 204 | DL91: 2602 | DM91: 154 | DN91: 2525 | DO91: 162 | DP91: 2529 | DQ91: 307 | DR91: 2355 | DS91: 307 | DT91: 2444 | DU91: 169 | DV91: 21238.36 | DW91: 1468.61
A92: 14 | B92: B | C92: JCT ROUTE 13 (FARSON) | D92: 0 | E92: 1 | G92: 1 | H92: SW0114 | I92: 2 | J92: 2 | K92: P | L92: 14 | M92: WY | N92: 28 | O92: STP | P92: SW | Q92: 6 | R92: 490 | S92: 93 | T92: 500 | U92: 74 | V92: 550 | W92: 90 | X92: 540 | Y92: 90 | Z92: 690 | AA92: 108 | AB92: 760 | AC92: 140 | AD92: 750 | AE92: 128 | AF92: 770 | AG92: 134 | AH92: 840 | AI92: 184 | AJ92: 960 | AK92: 174 | AL92: 910 | AM92: 184 | AN92: 1040 | AO92: 215 | AP92: 990 | AQ92: 165 | AR92: 850 | AS92: 160 | AT92: 750 | AU92: 155 | AV92: 820 | AW92: 180 | AX92: 830 | AY92: 340 | AZ92: 900 | BA92: 340 | BB92: 970 | BC92: 350 | BD92: 960 | BE92: 340 | BF92: 1090 | BG92: 340 | BH92: 1090 | BI92: 370 | BJ92: 1170 | BK92: 400 | BL92: 1320 | BM92: 370 | BN92: 1390 | BO92: 370 | BP92: 1410 | BQ92: 370 | BR92: 1380 | BS92: 370 | BT92: 1450 | BU92: 370 | BV92: 1550 | BW92: 370 | BX92: 1600 | BY92: 370 | BZ92: 1600 | CA92: 370 | CB92: 1530 | CC92: 360 | CD92: 1710 | CE92: 360 | CF92: 1640 | CG92: 340 | CH92: 1500 | CI92: 340 | CJ92: 1550 | CK92: 360 | CL92: 1840 | CM92: 360 | CN92: 1890 | CO92: 370 | CP92: 1920 | CQ92: 370 | CR92: 2615 | CS92: 370 | CT92: 2584 | CU92: 269 | CV92: 2547 | CW92: 269 | CX92: 1798 | CY92: 269 | CZ92: 1784 | DA92: 262 | DB92: 1813 | DC92: 256 | DD92: 1825 | DE92: 222.7085266 | DF92: 1338 | DG92: 178.60362 | DH92: 2036 | DI92: 182.1756924 | DJ92: 1978 | DK92: 282 | DL92: 2012 | DM92: 282 | DN92: 1577 | DO92: 282 | DP92: 1706 | DQ92: 282 | DR92: 1642 | DS92: 293 | DT92: 1729 | DU92: 293 | DV92: 1729 | DW92: 293
A93: 14 | B93: B | C93: JCT COUNTY ROAD NORTH | D93: 1 | E93: 4.951 | G93: 3.951 | H93: SW0115 | I93: 2 | J93: 7.902 | K93: P | L93: 14 | M93: WY | N93: 28 | O93: STP | P93: SW | Q93: 6 | R93: 490 | S93: 93 | T93: 500 | U93: 74 | V93: 550 | W93: 90 | X93: 540 | Y93: 90 | Z93: 630 | AA93: 98 | AB93: 690 | AC93: 136 | AD93: 680 | AE93: 124 | AF93: 700 | AG93: 130 | AH93: 760 | AI93: 178 | AJ93: 970 | AK93: 168 | AL93: 920 | AM93: 178 | AN93: 1050 | AO93: 210 | AP93: 1000 | AQ93: 160 | AR93: 860 | AS93: 150 | AT93: 760 | AU93: 145 | AV93: 830 | AW93: 170 | AX93: 840 | AY93: 320 | AZ93: 840 | BA93: 320 | BB93: 910 | BC93: 330 | BD93: 900 | BE93: 320 | BF93: 1030 | BG93: 320 | BH93: 1030 | BI93: 350 | BJ93: 1110 | BK93: 380 | BL93: 1060 | BM93: 360 | BN93: 1110 | BO93: 360 | BP93: 1130 | BQ93: 360 | BR93: 1100 | BS93: 360 | BT93: 1150 | BU93: 360 | BV93: 1200 | BW93: 360 | BX93: 1250 | BY93: 360 | BZ93: 1200 | CA93: 360 | CB93: 1150 | CC93: 350 | CD93: 1200 | CE93: 340 | CF93: 1130 | CG93: 320 | CH93: 1140 | CI93: 330 | CJ93: 1290 | CK93: 350 | CL93: 1350 | CM93: 350 | CN93: 1400 | CO93: 360 | CP93: 1430 | CQ93: 360 | CR93: 1439 | CS93: 360 | CT93: 1422 | CU93: 258 | CV93: 1409 | CW93: 258 | CX93: 1408 | CY93: 258 | CZ93: 1397 | DA93: 255 | DB93: 1419 | DC93: 247 | DD93: 1463 | DE93: 214.8789368 | DF93: 1460 | DG93: 194.85204 | DH93: 1594 | DI93: 198.7490808 | DJ93: 1635 | DK93: 184 | DL93: 1664 | DM93: 183 | DN93: 1627 | DO93: 184 | DP93: 1760 | DQ93: 184 | DR93: 1694 | DS93: 184 | DT93: 1783 | DU93: 290 | DV93: 7044.633 | DW93: 1145.79
A94: 14 | B94: B | C94: JCT EDEN RESERVIOR 10I ROAD | D94: 4.951 | E94: 13.466 | G94: 8.515 | H94: SW0116 | I94: 2 | J94: 17.03 | K94: P | L94: 14 | M94: WY | N94: 28 | O94: STP | P94: SW | Q94: 6 | R94: 470 | S94: 90 | T94: 480 | U94: 71 | V94: 530 | W94: 88 | X94: 520 | Y94: 70 | Z94: 510 | AA94: 82 | AB94: 560 | AC94: 116 | AD94: 550 | AE94: 114 | AF94: 570 | AG94: 106 | AH94: 620 | AI94: 160 | AJ94: 830 | AK94: 151 | AL94: 790 | AM94: 161 | AN94: 850 | AO94: 190 | AP94: 820 | AQ94: 140 | AR94: 760 | AS94: 130 | AT94: 670 | AU94: 125 | AV94: 730 | AW94: 145 | AX94: 740 | AY94: 275 | AZ94: 740 | BA94: 275 | BB94: 810 | BC94: 285 | BD94: 800 | BE94: 275 | BF94: 930 | BG94: 275 | BH94: 930 | BI94: 305 | BJ94: 1010 | BK94: 335 | BL94: 970 | BM94: 315 | BN94: 1010 | BO94: 315 | BP94: 1030 | BQ94: 315 | BR94: 1000 | BS94: 315 | BT94: 1050 | BU94: 315 | BV94: 1100 | BW94: 320 | BX94: 1150 | BY94: 320 | BZ94: 1100 | CA94: 320 | CB94: 1160 | CC94: 310 | CD94: 1200 | CE94: 300 | CF94: 1130 | CG94: 280 | CH94: 1130 | CI94: 290 | CJ94: 1280 | CK94: 310 | CL94: 1300 | CM94: 320 | CN94: 1350 | CO94: 330 | CP94: 1380 | CQ94: 330 | CR94: 1388 | CS94: 330 | CT94: 1371 | CU94: 228 | CV94: 1359 | CW94: 232 | CX94: 1098 | CY94: 232 | CZ94: 1362 | DA94: 230 | DB94: 1384 | DC94: 230 | DD94: 1437 | DE94: 200.0896912 | DF94: 881 | DG94: 117.60758 | DH94: 962 | DI94: 119.9597316 | DJ94: 1452 | DK94: 291 | DL94: 1478 | DM94: 292 | DN94: 1158 | DO94: 291 | DP94: 1253 | DQ94: 291 | DR94: 1206 | DS94: 299 | DT94: 1270 | DU94: 299 | DV94: 10814.05 | DW94: 2545.985
A95: 14 | B95: B | C95: SWEETWATER - SUBLETTE CO LINE | D95: 13.466 | E95: 24.408 | G95: 3.73 | H95: FR0100 | I95: 2 | J95: 7.46 | K95: P | L95: 14 | M95: WY | N95: 28 | O95: STP | P95: SB | Q95: 6 | R95: 470 | S95: 90 | T95: 480 | U95: 71 | V95: 530 | W95: 88 | X95: 520 | Y95: 70 | Z95: 510 | AA95: 82 | AB95: 560 | AC95: 116 | AD95: 550 | AE95: 114 | AF95: 570 | AG95: 106 | AH95: 620 | AI95: 160 | AJ95: 830 | AK95: 151 | AL95: 790 | AM95: 161 | AN95: 850 | AO95: 190 | AP95: 820 | AQ95: 140 | AR95: 760 | AS95: 130 | AT95: 670 | AU95: 125 | AV95: 730 | AW95: 145 | AX95: 740 | AY95: 275 | AZ95: 740 | BA95: 275 | BB95: 810 | BC95: 285 | BD95: 800 | BE95: 275 | BF95: 930 | BG95: 275 | BH95: 930 | BI95: 305 | BJ95: 1010 | BK95: 335 | BL95: 970 | BM95: 315 | BN95: 1010 | BO95: 315 | BP95: 1030 | BQ95: 315 | BR95: 1000 | BS95: 315 | BT95: 1050 | BU95: 315 | BV95: 1100 | BW95: 320 | BX95: 1150 | BY95: 320 | BZ95: 1100 | CA95: 320 | CB95: 1100 | CC95: 310 | CD95: 1140 | CE95: 300 | CF95: 1070 | CG95: 280 | CH95: 1080 | CI95: 290 | CJ95: 1230 | CK95: 310 | CL95: 1300 | CM95: 320 | CN95: 1350 | CO95: 330 | CP95: 1380 | CQ95: 330 | CR95: 1388 | CS95: 330 | CT95: 1371 | CU95: 228 | CV95: 1359 | CW95: 232 | CX95: 1358 | CY95: 232 | CZ95: 1347 | DA95: 230 | DB95: 1369 | DC95: 230 | DD95: 1411 | DE95: 200.0896912 | DF95: 881 | DG95: 117.60758 | DH95: 962 | DI95: 119.9597316 | DJ95: 1452 | DK95: 291 | DL95: 1229 | DM95: 232 | DN95: 1202 | DO95: 232 | DP95: 1300 | DQ95: 232 | DR95: 1251 | DS95: 227 | DT95: 1333 | DU95: 286 | DV95: 4972.09 | DW95: 1066.78
A96: 14 | B96: B | C96: SUBLETTE - FREMONT COUNTY LINE | D96: 24.408 | E96: 33.342 | G96: 8.934 | H96: FR0100 | I96: 2 | J96: 17.868 | K96: P | L96: 14 | M96: WY | N96: 28 | O96: STP | P96: FR | Q96: 6 | R96: 470 | S96: 90 | T96: 480 | U96: 71 | V96: 530 | W96: 88 | X96: 520 | Y96: 70 | Z96: 510 | AA96: 82 | AB96: 560 | AC96: 116 | AD96: 550 | AE96: 114 | AF96: 570 | AG96: 106 | AH96: 620 | AI96: 160 | AJ96: 830 | AK96: 151 | AL96: 790 | AM96: 161 | AN96: 850 | AO96: 190 | AP96: 820 | AQ96: 140 | AR96: 760 | AS96: 130 | AT96: 670 | AU96: 125 | AV96: 730 | AW96: 145 | AX96: 740 | AY96: 275 | AZ96: 740 | BA96: 275 | BB96: 810 | BC96: 285 | BD96: 800 | BE96: 275 | BF96: 930 | BG96: 275 | BH96: 930 | BI96: 305 | BJ96: 1010 | BK96: 335 | BL96: 970 | BM96: 315 | BN96: 1010 | BO96: 315 | BP96: 1030 | BQ96: 315 | BR96: 1000 | BS96: 315 | BT96: 1050 | BU96: 315 | BV96: 1100 | BW96: 320 | BX96: 1150 | BY96: 320 | BZ96: 1100 | CA96: 320 | CB96: 1100 | CC96: 310 | CD96: 1140 | CE96: 300 | CF96: 1070 | CG96: 280 | CH96: 1080 | CI96: 290 | CJ96: 1230 | CK96: 310 | CL96: 1300 | CM96: 320 | CN96: 1350 | CO96: 330 | CP96: 1380 | CQ96: 330 | CR96: 1583 | CS96: 330 | CT96: 1564 | CU96: 228 | CV96: 1038 | CW96: 232 | CX96: 1037 | CY96: 232 | CZ96: 1029 | DA96: 230 | DB96: 1045 | DC96: 230 | DD96: 1077 | DE96: 200.0896912 | DF96: 1075 | DG96: 143.52768 | DH96: 568 | DI96: 146.3982336 | DJ96: 1208 | DK96: 232 | DL96: 1229 | DM96: 232 | DN96: 1202 | DO96: 232 | DP96: 1300 | DQ96: 232 | DR96: 1251 | DS96: 227 | DT96: 1333 | DU96: 286 | DV96: 11909.022 | DW96: 2555.124
A97: 14 | B97: B | C97: JCT COUNTY ROAD TO SOUTH PASS | D97: 33.342 | E97: 44.7 | G97: 11.358 | H97: FR0101 | I97: 2 | J97: 22.716 | K97: P | L97: 14 | M97: WY | N97: 28 | O97: STP | P97: FR | Q97: 6 | R97: 510 | S97: 92 | T97: 450 | U97: 85 | V97: 500 | W97: 84 | X97: 510 | Y97: 74 | Z97: 500 | AA97: 86 | AB97: 590 | AC97: 122 | AD97: 580 | AE97: 100 | AF97: 590 | AG97: 110 | AH97: 730 | AI97: 182 | AJ97: 860 | AK97: 171 | AL97: 820 | AM97: 181 | AN97: 880 | AO97: 210 | AP97: 850 | AQ97: 150 | AR97: 770 | AS97: 130 | AT97: 680 | AU97: 125 | AV97: 750 | AW97: 145 | AX97: 760 | AY97: 275 | AZ97: 760 | BA97: 275 | BB97: 830 | BC97: 285 | BD97: 820 | BE97: 275 | BF97: 950 | BG97: 275 | BH97: 950 | BI97: 305 | BJ97: 1030 | BK97: 335 | BL97: 1000 | BM97: 315 | BN97: 1040 | BO97: 315 | BP97: 1060 | BQ97: 315 | BR97: 1030 | BS97: 315 | BT97: 1100 | BU97: 315 | BV97: 1150 | BW97: 320 | BX97: 1200 | BY97: 320 | BZ97: 1200 | CA97: 320 | CB97: 1250 | CC97: 310 | CD97: 1300 | CE97: 300 | CF97: 1220 | CG97: 280 | CH97: 1190 | CI97: 290 | CJ97: 1300 | CK97: 310 | CL97: 1300 | CM97: 320 | CN97: 1350 | CO97: 330 | CP97: 1380 | CQ97: 330 | CR97: 1388 | CS97: 330 | CT97: 1371 | CU97: 228 | CV97: 1359 | CW97: 232 | CX97: 1358 | CY97: 232 | CZ97: 1347 | DA97: 230 | DB97: 1369 | DC97: 230 | DD97: 1411 | DE97: 200.0896912 | DF97: 1075 | DG97: 188.01739 | DH97: 578 | DI97: 191.7777378 | DJ97: 1253 | DK97: 232 | DL97: 1275 | DM97: 232 | DN97: 1247 | DO97: 232 | DP97: 1349 | DQ97: 232 | DR97: 1298 | DS97: 226 | DT97: 1382 | DU97: 286 | DV97: 15696.756 | DW97: 3248.388
A98: 14 | B98: B | C98: JCT WEST ROAD TO ATLANTIC CITY | D98: 44.7 | E98: 45.83 | G98: 1.13 | H98: 000071 | I98: 2 | J98: 2.26 | K98: P | L98: 14 | M98: WY | N98: 28 | O98: STP | P98: FR | Q98: 6 | R98: 510 | S98: 92 | T98: 450 | U98: 85 | V98: 500 | W98: 84 | X98: 510 | Y98: 74 | Z98: 670 | AA98: 104 | AB98: 740 | AC98: 136 | AD98: 730 | AE98: 140 | AF98: 750 | AG98: 138 | AH98: 900 | AI98: 198 | AJ98: 1060 | AK98: 187 | AL98: 820 | AM98: 181 | AN98: 880 | AO98: 210 | AP98: 850 | AQ98: 150 | AR98: 770 | AS98: 130 | AT98: 680 | AU98: 125 | AV98: 750 | AW98: 145 | AX98: 790 | AY98: 28 | AZ98: 790 | BA98: 280 | BB98: 860 | BC98: 290 | BD98: 840 | BE98: 280 | BF98: 970 | BG98: 280 | BH98: 970 | BI98: 310 | BJ98: 1050 | BK98: 340 | BL98: 1050 | BM98: 320 | BN98: 1090 | BO98: 320 | BP98: 1110 | BQ98: 320 | BR98: 1080 | BS98: 320 | BT98: 1150 | BU98: 320 | BV98: 1200 | BW98: 320 | BX98: 1250 | BY98: 320 | BZ98: 1200 | CA98: 320 | CB98: 1290 | CC98: 310 | CD98: 1320 | CE98: 310 | CF98: 1236 | CG98: 290 | CH98: 1200 | CI98: 300 | CJ98: 1310 | CK98: 320 | CL98: 1300 | CM98: 330 | CN98: 1350 | CO98: 340 | CP98: 1380 | CQ98: 340 | CR98: 1388 | CS98: 340 | CT98: 1371 | CU98: 238 | CV98: 1359 | CW98: 243 | CX98: 1358 | CY98: 243 | CZ98: 1347 | DA98: 210 | DB98: 1369 | DC98: 225 | DD98: 1411 | DE98: 195.7399139 | DF98: 1409 | DG98: 188.01739 | DH98: 580 | DI98: 191.7777378 | DJ98: 1577 | DK98: 177 | DL98: 1690 | DM98: 185 | DN98: 1633 | DO98: 192 | DP98: 1818 | DQ98: 254 | DR98: 1520 | DS98: 222 | DT98: 1751 | DU98: 278 | DV98: 1978.63 | DW98: 314.14
A99: 14 | B99: B | C99: JCT LOUIS LAKE LOOP ROAD | D99: 45.83 | E99: 46.92 | G99: 1.09 | H99: 000071 | I99: 2 | J99: 2.18 | K99: P | L99: 14 | M99: WY | N99: 28 | O99: STP | P99: FR | Q99: 6 | R99: 510 | S99: 92 | T99: 450 | U99: 85 | V99: 500 | W99: 84 | X99: 510 | Y99: 74 | Z99: 670 | AA99: 104 | AB99: 740 | AC99: 136 | AD99: 730 | AE99: 140 | AF99: 750 | AG99: 138 | AH99: 900 | AI99: 198 | AJ99: 1060 | AK99: 187 | AL99: 1010 | AM99: 197 | AN99: 1090 | AO99: 225 | AP99: 1020 | AQ99: 160 | AR99: 950 | AS99: 140 | AT99: 800 | AU99: 130 | AV99: 880 | AW99: 150 | AX99: 920 | AY99: 290 | AZ99: 920 | BA99: 290 | BB99: 990 | BC99: 300 | BD99: 950 | BE99: 290 | BF99: 1080 | BG99: 290 | BH99: 1080 | BI99: 320 | BJ99: 1160 | BK99: 350 | BL99: 1170 | BM99: 330 | BN99: 1210 | BO99: 330 | BP99: 1230 | BQ99: 330 | BR99: 1200 | BS99: 330 | BT99: 1250 | BU99: 330 | BV99: 1300 | BW99: 330 | BX99: 1350 | BY99: 330 | BZ99: 1300 | CA99: 330 | CB99: 1400 | CC99: 320 | CD99: 1450 | CE99: 310 | CF99: 1360 | CG99: 290 | CH99: 1310 | CI99: 300 | CJ99: 1350 | CK99: 320 | CL99: 1300 | CM99: 330 | CN99: 1350 | CO99: 340 | CP99: 1380 | CQ99: 340 | CR99: 1388 | CS99: 340 | CT99: 1371 | CU99: 238 | CV99: 1148 | CW99: 243 | CX99: 1147 | CY99: 243 | CZ99: 1138 | DA99: 210 | DB99: 1155 | DC99: 224 | DD99: 1191 | DE99: 194.8699646 | DF99: 1409 | DG99: 158.61549 | DH99: 585 | DI99: 161.7877998 | DJ99: 1331 | DK99: 150 | DL99: 1690 | DM99: 185 | DN99: 1633 | DO99: 192 | DP99: 1818 | DQ99: 254 | DR99: 1520 | DS99: 222 | DT99: 1751 | DU99: 278 | DV99: 1908.59 | DW99: 303.02
A100: 14 | B100: B | C100: JCT ROUTE 9470 | D100: 46.92 | E100: 49.05 | G100: 2.13 | H100: 000071 | I100: 2 | J100: 4.26 | K100: P | L100: 14 | M100: WY | N100: 28 | O100: STP | P100: FR | Q100: 6 | R100: 510 | S100: 92 | T100: 450 | U100: 85 | V100: 500 | W100: 84 | X100: 510 | Y100: 74 | Z100: 670 | AA100: 104 | AB100: 740 | AC100: 136 | AD100: 730 | AE100: 140 | AF100: 750 | AG100: 138 | AH100: 900 | AI100: 198 | AJ100: 1060 | AK100: 187 | AL100: 1010 | AM100: 197 | AN100: 1090 | AO100: 225 | AP100: 1020 | AQ100: 160 | AR100: 950 | AS100: 140 | AT100: 800 | AU100: 130 | AV100: 880 | AW100: 150 | AX100: 920 | AY100: 290 | AZ100: 920 | BA100: 290 | BB100: 990 | BC100: 300 | BD100: 950 | BE100: 290 | BF100: 1080 | BG100: 290 | BH100: 1080 | BI100: 320 | BJ100: 1160 | BK100: 350 | BL100: 1170 | BM100: 330 | BN100: 1210 | BO100: 330 | BP100: 1230 | BQ100: 330 | BR100: 1200 | BS100: 330 | BT100: 1250 | BU100: 330 | BV100: 1300 | BW100: 330 | BX100: 1350 | BY100: 330 | BZ100: 1300 | CA100: 330 | CB100: 1400 | CC100: 320 | CD100: 1450 | CE100: 310 | CF100: 1360 | CG100: 290 | CH100: 1310 | CI100: 300 | CJ100: 1350 | CK100: 320 | CL100: 1300 | CM100: 330 | CN100: 1350 | CO100: 340 | CP100: 1380 | CQ100: 340 | CR100: 1145 | CS100: 340 | CT100: 1131 | CU100: 238 | CV100: 1119 | CW100: 243 | CX100: 1118 | CY100: 243 | CZ100: 1109 | DA100: 210 | DB100: 1127 | DC100: 224 | DD100: 1162 | DE100: 194.8699646 | DF100: 1146 | DG100: 154.74682 | DH100: 587 | DI100: 157.8417564 | DJ100: 1414 | DK100: 292 | DL100: 1690 | DM100: 185 | DN100: 1633 | DO100: 192 | DP100: 1818 | DQ100: 254 | DR100: 1520 | DS100: 222 | DT100: 1751 | DU100: 278 | DV100: 3729.63 | DW100: 592.14
A101: 14 | B101: B | C101: JCT ROUTE 9470 | D101: 49.05 | E101: 67.211 | G101: 16.358 | H101: 000071 | I101: 2 | J101: 32.716 | K101: P | L101: 14 | M101: WY | N101: 28 | O101: STP | P101: FR | Q101: 6 | R101: 720 | S101: 113 | T101: 800 | U101: 100 | V101: 780 | W101: 116 | X101: 820 | Y101: 108 | Z101: 820 | AA101: 112 | AB101: 890 | AC101: 140 | AD101: 910 | AE101: 150 | AF101: 890 | AG101: 164 | AH101: 990 | AI101: 200 | AJ101: 1170 | AK101: 187 | AL101: 1110 | AM101: 199 | AN101: 1280 | AO101: 230 | AP101: 1210 | AQ101: 170 | AR101: 1090 | AS101: 150 | AT101: 910 | AU101: 145 | AV101: 1000 | AW101: 170 | AX101: 1010 | AY101: 320 | AZ101: 1010 | BA101: 320 | BB101: 1080 | BC101: 330 | BD101: 1000 | BE101: 320 | BF101: 1130 | BG101: 320 | BH101: 1130 | BI101: 350 | BJ101: 1210 | BK101: 380 | BL101: 1240 | BM101: 360 | BN101: 1280 | BO101: 360 | BP101: 1300 | BQ101: 360 | BR101: 1270 | BS101: 360 | BT101: 1300 | BU101: 360 | BV101: 1350 | BW101: 360 | BX101: 1400 | BY101: 360 | BZ101: 1400 | CA101: 360 | CB101: 1330 | CC101: 330 | CD101: 1350 | CE101: 310 | CF101: 1260 | CG101: 290 | CH101: 1280 | CI101: 300 | CJ101: 1400 | CK101: 320 | CL101: 1450 | CM101: 330 | CN101: 1500 | CO101: 340 | CP101: 1530 | CQ101: 340 | CR101: 1873 | CS101: 340 | CT101: 1851 | CU101: 238 | CV101: 1830 | CW101: 243 | CX101: 1828 | CY101: 243 | CZ101: 1756 | DA101: 210 | DB101: 1784 | DC101: 225 | DD101: 1839 | DE101: 195.7399139 | DF101: 1769 | DG101: 238.05219 | DH101: 2697 | DI101: 242.8132338 | DJ101: 1997 | DK101: 225 | DL101: 1690 | DM101: 185 | DN101: 1633 | DO101: 192 | DP101: 1818 | DQ101: 254 | DR101: 1520 | DS101: 222 | DT101: 1751 | DU101: 278 | DV101: 28642.858 | DW101: 4547.524
A102: 14 | B102: B | C102: LITTLE POPO AGIE RIVER | D102: 67.211 | E102: 67.67 | G102: 0.459 | H102: 000071 | I102: 2 | J102: 0.918 | K102: P | L102: 14 | M102: WY | N102: 28 | O102: STP | P102: FR | Q102: 6 | R102: 720 | S102: 113 | T102: 800 | U102: 100 | V102: 780 | W102: 116 | X102: 820 | Y102: 108 | Z102: 820 | AA102: 112 | AB102: 890 | AC102: 140 | AD102: 910 | AE102: 150 | AF102: 890 | AG102: 164 | AH102: 990 | AI102: 200 | AJ102: 1170 | AK102: 187 | AL102: 1110 | AM102: 199 | AN102: 1280 | AO102: 230 | AP102: 1210 | AQ102: 170 | AR102: 1090 | AS102: 150 | AT102: 960 | AU102: 145 | AV102: 1050 | AW102: 170 | AX102: 1060 | AY102: 320 | AZ102: 1060 | BA102: 320 | BB102: 1100 | BC102: 330 | BD102: 1020 | BE102: 320 | BF102: 1150 | BG102: 320 | BH102: 1150 | BI102: 350 | BJ102: 1230 | BK102: 380 | BL102: 1260 | BM102: 360 | BN102: 1300 | BO102: 360 | BP102: 1320 | BQ102: 360 | BR102: 1290 | BS102: 360 | BT102: 1300 | BU102: 360 | BV102: 1350 | BW102: 360 | BX102: 1400 | BY102: 360 | BZ102: 1400 | CA102: 360 | CB102: 1340 | CC102: 330 | CD102: 1390 | CE102: 320 | CF102: 1300 | CG102: 300 | CH102: 1590 | CI102: 300 | CJ102: 1650 | CK102: 320 | CL102: 1720 | CM102: 330 | CN102: 1770 | CO102: 340 | CP102: 1800 | CQ102: 340 | CR102: 1811 | CS102: 340 | CT102: 1789 | CU102: 238 | CV102: 1772 | CW102: 243 | CX102: 1770 | CY102: 243 | CZ102: 1706 | DA102: 210 | DB102: 1733 | DC102: 225 | DD102: 1787 | DE102: 195.7399139 | DF102: 1769 | DG102: 238.05219 | DH102: 2697 | DI102: 242.8132338 | DJ102: 1997 | DK102: 225 | DL102: 1690 | DM102: 185 | DN102: 1633 | DO102: 192 | DP102: 1818 | DQ102: 254 | DR102: 1520 | DS102: 222 | DT102: 1751 | DU102: 278 | DV102: 803.709 | DW102: 127.602
A103: 14 | B103: B | C103: JCT RED CANYON ROAD | D103: 67.67 | E103: 68.21 | G103: 0.54 | H103: 000071 | I103: 2 | J103: 1.08 | K103: P | L103: 14 | M103: WY | N103: 28 | O103: STP | P103: FR | Q103: 6 | R103: 720 | S103: 113 | T103: 800 | U103: 100 | V103: 780 | W103: 116 | X103: 820 | Y103: 108 | Z103: 820 | AA103: 112 | AB103: 890 | AC103: 140 | AD103: 910 | AE103: 150 | AF103: 890 | AG103: 164 | AH103: 990 | AI103: 200 | AJ103: 1170 | AK103: 187 | AL103: 1110 | AM103: 199 | AN103: 1280 | AO103: 230 | AP103: 1210 | AQ103: 170 | AR103: 1090 | AS103: 150 | AT103: 960 | AU103: 145 | AV103: 1050 | AW103: 170 | AX103: 1060 | AY103: 320 | AZ103: 1060 | BA103: 320 | BB103: 1130 | BC103: 330 | BD103: 1050 | BE103: 320 | BF103: 1180 | BG103: 320 | BH103: 1180 | BI103: 350 | BJ103: 1260 | BK103: 380 | BL103: 1290 | BM103: 360 | BN103: 1360 | BO103: 360 | BP103: 1380 | BQ103: 360 | BR103: 1350 | BS103: 360 | BT103: 1450 | BU103: 360 | BV103: 1480 | BW103: 360 | BX103: 1510 | BY103: 360 | BZ103: 1500 | CA103: 360 | CB103: 1560 | CC103: 330 | CD103: 1620 | CE103: 350 | CF103: 1520 | CG103: 330 | CH103: 1590 | CI103: 300 | CJ103: 1650 | CK103: 320 | CL103: 1720 | CM103: 330 | CN103: 1770 | CO103: 340 | CP103: 1800 | CQ103: 340 | CR103: 1741 | CS103: 340 | CT103: 1700 | CU103: 238 | CV103: 1626 | CW103: 243 | CX103: 1708 | CY103: 241.57398 | CZ103: 1634 | DA103: 209 | DB103: 1682 | DC103: 223 | DD103: 1691 | DE103: 194 | DF103: 1667 | DG103: 163 | DH103: 1667 | DI103: 391 | DJ103: 1710 | DK103: 222 | DL103: 1690 | DM103: 185 | DN103: 1633 | DO103: 192 | DP103: 1818 | DQ103: 254 | DR103: 1520 | DS103: 222 | DT103: 1751 | DU103: 278 | DV103: 945.54 | DW103: 150.12
A104: 15 | B104: B | C104: JCT Buena Vista St | D104: 0 | E104: 0.224 | G104: 0.274 | H104: FR0107 | I104: 4 | J104: 1.096 | K104: P | L104: 15 | M104: US | N104: 287 | O104: NHS | P104: FR | Q104: 14 | DL104: 16331 | DM104: 490 | DN104: 15256 | DO104: 490 | DP104: 16606 | DQ104: 490 | DR104: 16453 | DS104: 490 | DT104: 17323 | DU104: 490 | DV104: 4746.502 | DW104: 134.26
A105: 15 | B105: B | C105: JCT ROUTE 20 (US 287 & WY 789) | D105: 0.224 | E105: 0.476 | G105: 0.252 | H105: FR0108 | I105: 4 | J105: 1.008 | K105: P | L105: 15 | M105: US | N105: 287 | O105: NHS | P105: FR | Q105: 14 | R105: 7580 | S105: 292 | T105: 7630 | U105: 294 | V105: 7130 | W105: 296 | X105: 7120 | Y105: 384 | Z105: 7100 | AA105: 390 | AB105: 7450 | AC105: 140 | AD105: 7650 | AE105: 156 | AF105: 8010 | AG105: 170 | AH105: 8350 | AI105: 180 | AJ105: 7470 | AK105: 296 | AL105: 9300 | AM105: 368 | AN105: 10850 | AO105: 460 | AP105: 11000 | AQ105: 420 | AR105: 10500 | AS105: 400 | AT105: 10280 | AU105: 375 | AV105: 10080 | AW105: 370 | AX105: 10020 | AY105: 365 | AZ105: 9950 | BA105: 365 | BB105: 9930 | BC105: 365 | BD105: 9950 | BE105: 365 | BF105: 9980 | BG105: 365 | BH105: 10090 | BI105: 365 | BJ105: 10150 | BK105: 365 | BL105: 10220 | BM105: 365 | BN105: 10700 | BO105: 365 | BP105: 10800 | BQ105: 365 | BR105: 10700 | BS105: 365 | BT105: 11300 | BU105: 365 | BV105: 11400 | BW105: 360 | BX105: 11500 | BY105: 360 | BZ105: 11700 | CA105: 370 | CB105: 10900 | CC105: 340 | CD105: 13100 | CE105: 400 | CF105: 12100 | CG105: 370 | CH105: 14410 | CI105: 380 | CJ105: 14430 | CK105: 380 | CL105: 14430 | CM105: 380 | CN105: 14660 | CO105: 400 | CP105: 14660 | CQ105: 400 | CR105: 14763 | CS105: 483 | CT105: 14763 | CU105: 483 | CV105: 17043 | CW105: 747 | CX105: 16838 | CY105: 707 | CZ105: 18244 | DA105: 705 | DB105: 16182 | DC105: 859 | DD105: 16376 | DE105: 827.8655396 | DF105: 16349 | DG105: 812 | DH105: 16000 | DI105: 828.24 | DJ105: 15921 | DK105: 635 | DL105: 13766 | DM105: 550 | DN105: 12860 | DO105: 550 | DP105: 13998 | DQ105: 550 | DR105: 13869 | DS105: 550 | DT105: 14602 | DU105: 550 | DV105: 3679.704 | DW105: 138.6
A106: 15 | B106: B | C106: JCT ROUTE 701 (WY 131) | D106: 0.476 | E106: 1.168 | G106: 0.692 | H106: LD1376 | I106: 4 | J106: 2.768 | K106: P | L106: 15 | M106: US | N106: 287 | O106: NHS | P106: FR | Q106: 14 | R106: 6630 | S106: 238 | T106: 6680 | U106: 240 | V106: 6750 | W106: 242 | X106: 6740 | Y106: 314 | Z106: 6720 | AA106: 320 | AB106: 7060 | AC106: 116 | AD106: 7260 | AE106: 132 | AF106: 7600 | AG106: 150 | AH106: 7920 | AI106: 160 | AJ106: 7000 | AK106: 263 | AL106: 8720 | AM106: 364 | AN106: 9600 | AO106: 400 | AP106: 9800 | AQ106: 36 | AR106: 9850 | AS106: 350 | AT106: 9640 | AU106: 330 | AV106: 9440 | AW106: 325 | AX106: 9380 | AY106: 325 | AZ106: 9320 | BA106: 325 | BB106: 9300 | BC106: 325 | BD106: 9320 | BE106: 325 | BF106: 9350 | BG106: 325 | BH106: 9450 | BI106: 325 | BJ106: 9510 | BK106: 325 | BL106: 9560 | BM106: 325 | BN106: 9960 | BO106: 325 | BP106: 10060 | BQ106: 325 | BR106: 10000 | BS106: 325 | BT106: 10500 | BU106: 325 | BV106: 10600 | BW106: 325 | BX106: 10700 | BY106: 320 | BZ106: 10900 | CA106: 330 | CB106: 10000 | CC106: 300 | CD106: 12030 | CE106: 340 | CF106: 11110 | CG106: 310 | CH106: 12500 | CI106: 330 | CJ106: 12510 | CK106: 330 | CL106: 12510 | CM106: 330 | CN106: 12740 | CO106: 350 | CP106: 12740 | CQ106: 350 | CR106: 12829 | CS106: 422 | CT106: 12829 | CU106: 422 | CV106: 10405 | CW106: 661 | CX106: 10280 | CY106: 659 | CZ106: 13627 | DA106: 658 | DB106: 13641 | DC106: 624 | DD106: 13805 | DE106: 601.3831177 | DF106: 13782 | DG106: 598 | DH106: 12200 | DI106: 609.96 | DJ106: 12808 | DK106: 637 | DL106: 10732 | DM106: 377 | DN106: 10147 | DO106: 377 | DP106: 11045 | DQ106: 377 | DR106: 10943 | DS106: 377 | DT106: 11091 | DU106: 377 | DV106: 7674.972 | DW106: 260.884
A107: 15 | B107: B | C107: JCT BALDWIN CREEK RD | D107: 1.168 | E107: 1.635 | G107: 0.379 | H107: FR0109 | I107: 4 | J107: 1.516 | K107: P | L107: 15 | M107: US | N107: 287 | O107: NHS | P107: FR | Q107: 14 | R107: 1800 | S107: 98 | T107: 1800 | U107: 98 | V107: 1920 | W107: 130 | X107: 1910 | Y107: 170 | Z107: 1830 | AA107: 176 | AB107: 2120 | AC107: 64 | AD107: 2320 | AE107: 80 | AF107: 2430 | AG107: 100 | AH107: 2530 | AI107: 110 | AJ107: 2490 | AK107: 180 | AL107: 3550 | AM107: 272 | AN107: 3700 | AO107: 300 | AP107: 4100 | AQ107: 260 | AR107: 4400 | AS107: 250 | AT107: 4180 | AU107: 230 | AV107: 4030 | AW107: 230 | AX107: 4000 | AY107: 230 | AZ107: 3950 | BA107: 230 | BB107: 3930 | BC107: 230 | BD107: 3920 | BE107: 230 | BF107: 3980 | BG107: 230 | BH107: 4030 | BI107: 230 | BJ107: 4070 | BK107: 230 | BL107: 5350 | BM107: 230 | BN107: 5370 | BO107: 230 | BP107: 5420 | BQ107: 230 | BR107: 5350 | BS107: 230 | BT107: 5450 | BU107: 230 | BV107: 5500 | BW107: 230 | BX107: 5550 | BY107: 230 | BZ107: 5600 | CA107: 230 | CB107: 6930 | CC107: 220 | CD107: 8330 | CE107: 300 | CF107: 7690 | CG107: 280 | CH107: 8280 | CI107: 290 | CJ107: 8280 | CK107: 290 | CL107: 8280 | CM107: 290 | CN107: 8510 | CO107: 310 | CP107: 8510 | CQ107: 310 | CR107: 8570 | CS107: 282 | CT107: 8570 | CU107: 282 | CV107: 7096 | CW107: 519 | CX107: 7011 | CY107: 593.34623 | CZ107: 9260 | DA107: 592 | DB107: 9269 | DC107: 492 | DD107: 9380 | DE107: 474.1674805 | DF107: 13781 | DG107: 575 | DH107: 8400 | DI107: 586.5 | DJ107: 8832 | DK107: 440 | DL107: 9355 | DM107: 319 | DN107: 8739 | DO107: 319 | DP107: 9512 | DQ107: 319 | DR107: 9424 | DS107: 319 | DT107: 9923 | DU107: 319 | DV107: 3760.817 | DW107: 120.901
A108: 15 | B108: B | C108: JCT TWEED LANE | D108: 1.635 | E108: 1.94 | G108: 0.305 | H108: FR0109 | I108: 4 | J108: 1.22 | K108: P | L108: 15 | M108: US | N108: 287 | O108: NHS | P108: FR | Q108: 14 | R108: 1800 | S108: 98 | T108: 1800 | U108: 98 | V108: 1920 | W108: 130 | X108: 1910 | Y108: 170 | Z108: 1830 | AA108: 176 | AB108: 2120 | AC108: 64 | AD108: 2320 | AE108: 80 | AF108: 2430 | AG108: 100 | AH108: 2530 | AI108: 110 | AJ108: 2490 | AK108: 180 | AL108: 3550 | AM108: 272 | AN108: 3700 | AO108: 300 | AP108: 4100 | AQ108: 260 | AR108: 4400 | AS108: 250 | AT108: 4180 | AU108: 230 | AV108: 4030 | AW108: 230 | AX108: 4000 | AY108: 230 | AZ108: 3950 | BA108: 230 | BB108: 3920 | BC108: 230 | BD108: 3920 | BE108: 230 | BF108: 3980 | BG108: 230 | BH108: 4030 | BI108: 230 | BJ108: 4070 | BK108: 230 | BL108: 2720 | BM108: 145 | BN108: 2740 | BO108: 145 | BP108: 2760 | BQ108: 145 | BR108: 2700 | BS108: 145 | BT108: 3500 | BU108: 145 | BV108: 3550 | BW108: 140 | BX108: 3600 | BY108: 140 | BZ108: 3700 | CA108: 140 | CB108: 5760 | CC108: 180 | CD108: 6930 | CE108: 250 | CF108: 6400 | CG108: 230 | CH108: 5550 | CI108: 240 | CJ108: 5550 | CK108: 240 | CL108: 5080 | CM108: 170 | CN108: 5310 | CO108: 190 | CP108: 5310 | CQ108: 190 | CR108: 5347 | CS108: 196 | CT108: 5347 | CU108: 196 | CV108: 5401 | CW108: 395 | CX108: 5336 | CY108: 451.58971 | CZ108: 6388 | DA108: 450 | DB108: 6394 | DC108: 339 | DD108: 6471 | DE108: 326.7129517 | DF108: 9365 | DG108: 707 | DH108: 3350 | DI108: 721.14 | DJ108: 7071 | DK108: 352 | DL108: 9355 | DM108: 319 | DN108: 8739 | DO108: 319 | DP108: 9512 | DQ108: 319 | DR108: 9424 | DS108: 319 | DT108: 9923 | DU108: 319 | DV108: 3026.515 | DW108: 97.295
A109: 15 | B109: B | C109: BALDWIN CREEK | D109: 1.94 | E109: 2.34 | G109: 0.4 | H109: FR0109 | I109: 2 | J109: 0.8 | K109: P | L109: 15 | M109: US | N109: 287 | O109: NHS | P109: FR | Q109: 14 | R109: 1800 | S109: 98 | T109: 1800 | U109: 98 | V109: 1920 | W109: 130 | X109: 1910 | Y109: 170 | Z109: 1830 | AA109: 176 | AB109: 2120 | AC109: 64 | AD109: 2320 | AE109: 80 | AF109: 2430 | AG109: 100 | AH109: 2480 | AI109: 110 | AJ109: 1880 | AK109: 115 | AL109: 2680 | AM109: 192 | AN109: 2680 | AO109: 210 | AP109: 2770 | AQ109: 170 | AR109: 2900 | AS109: 170 | AT109: 2730 | AU109: 145 | AV109: 2620 | AW109: 145 | AX109: 2600 | AY109: 145 | AZ109: 2560 | BA109: 145 | BB109: 2540 | BC109: 145 | BD109: 2560 | BE109: 145 | BF109: 2590 | BG109: 145 | BH109: 2660 | BI109: 145 | BJ109: 2690 | BK109: 145 | BL109: 2720 | BM109: 145 | BN109: 2740 | BO109: 145 | BP109: 2760 | BQ109: 145 | BR109: 2700 | BS109: 145 | BT109: 2700 | BU109: 145 | BV109: 2700 | BW109: 140 | BX109: 2750 | BY109: 140 | BZ109: 2800 | CA109: 140 | CB109: 3680 | CC109: 160 | CD109: 4430 | CE109: 180 | CF109: 4090 | CG109: 170 | CH109: 4550 | CI109: 180 | CJ109: 4550 | CK109: 180 | CL109: 4500 | CM109: 160 | CN109: 4730 | CO109: 180 | CP109: 4730 | CQ109: 180 | CR109: 5787 | CS109: 190 | CT109: 5787 | CU109: 190 | CV109: 5868 | CW109: 409 | CX109: 5798 | CY109: 490.68912 | CZ109: 5752 | DA109: 489 | DB109: 5758 | DC109: 305 | DD109: 5827 | DE109: 293.945282 | DF109: 5818 | DG109: 316 | DH109: 5201 | DI109: 215 | DJ109: 5529 | DK109: 303 | DL109: 9355 | DM109: 319 | DN109: 8739 | DO109: 319 | DP109: 9512 | DQ109: 319 | DR109: 9424 | DS109: 319 | DT109: 9923 | DU109: 319 | DV109: 3969.2 | DW109: 127.6
A110: 15 | B110: B | C110: LANDER WEST URBAN LIMITS | D110: 2.34 | E110: 4.616 | G110: 2.276 | H110: FR0109 | I110: 2 | J110: 4.552 | K110: P | L110: 15 | M110: US | N110: 287 | O110: NHS | P110: FR | Q110: 2 | R110: 1800 | S110: 98 | T110: 1800 | U110: 98 | V110: 1920 | W110: 130 | X110: 1910 | Y110: 170 | Z110: 1830 | AA110: 176 | AB110: 2120 | AC110: 64 | AD110: 2320 | AE110: 80 | AF110: 2430 | AG110: 100 | AH110: 2480 | AI110: 110 | AJ110: 1880 | AK110: 115 | AL110: 2680 | AM110: 192 | AN110: 2680 | AO110: 210 | AP110: 2770 | AQ110: 170 | AR110: 2900 | AS110: 170 | AT110: 2730 | AU110: 145 | AV110: 2620 | AW110: 145 | AX110: 2600 | AY110: 145 | AZ110: 2560 | BA110: 145 | BB110: 2540 | BC110: 145 | BD110: 2560 | BE110: 145 | BF110: 2590 | BG110: 145 | BH110: 2660 | BI110: 145 | BJ110: 2690 | BK110: 145 | BL110: 2720 | BM110: 145 | BN110: 2740 | BO110: 145 | BP110: 2760 | BQ110: 145 | BR110: 2700 | BS110: 145 | BT110: 2700 | BU110: 145 | BV110: 2700 | BW110: 140 | BX110: 2750 | BY110: 140 | BZ110: 2800 | CA110: 140 | CB110: 3680 | CC110: 160 | CD110: 4430 | CE110: 180 | CF110: 4090 | CG110: 170 | CH110: 4550 | CI110: 180 | CJ110: 4550 | CK110: 180 | CL110: 4500 | CM110: 160 | CN110: 4730 | CO110: 180 | CP110: 4730 | CQ110: 180 | CR110: 4288 | CS110: 140 | CT110: 4288 | CU110: 140 | CV110: 4348 | CW110: 318 | CX110: 4296 | CY110: 363.57373 | CZ110: 4262 | DA110: 363 | DB110: 4266 | DC110: 296 | DD110: 4317 | DE110: 291.6661072 | DF110: 5818 | DG110: 316 | DH110: 5201 | DI110: 215 | DJ110: 5529 | DK110: 303 | DL110: 9355 | DM110: 319 | DN110: 8739 | DO110: 319 | DP110: 9512 | DQ110: 319 | DR110: 9424 | DS110: 319 | DT110: 9923 | DU110: 319 | DV110: 22584.748 | DW110: 726.044
A111: 15 | B111: B | C111: MILFORD | D111: 4.616 | E111: 8.324 | G111: 3.708 | H111: FR0113 | I111: 2 | J111: 7.416 | K111: P | L111: 15 | M111: US | N111: 287 | O111: NHS | P111: FR | Q111: 2 | R111: 1550 | S111: 89 | T111: 1600 | U111: 90 | V111: 1680 | W111: 122 | X111: 1670 | Y111: 160 | Z111: 1640 | AA111: 166 | AB111: 1900 | AC111: 60 | AD111: 2100 | AE111: 76 | AF111: 2200 | AG111: 96 | AH111: 2210 | AI111: 106 | AJ111: 1680 | AK111: 110 | AL111: 2390 | AM111: 185 | AN111: 2300 | AO111: 205 | AP111: 2540 | AQ111: 155 | AR111: 2550 | AS111: 170 | AT111: 2400 | AU111: 145 | AV111: 2300 | AW111: 145 | AX111: 2290 | AY111: 145 | AZ111: 2260 | BA111: 145 | BB111: 2240 | BC111: 145 | BD111: 2260 | BE111: 145 | BF111: 2290 | BG111: 145 | BH111: 2340 | BI111: 145 | BJ111: 2370 | BK111: 145 | BL111: 2400 | BM111: 145 | BN111: 2420 | BO111: 145 | BP111: 2440 | BQ111: 145 | BR111: 2400 | BS111: 145 | BT111: 2400 | BU111: 145 | BV111: 2400 | BW111: 140 | BX111: 2450 | BY111: 140 | BZ111: 2500 | CA111: 150 | CB111: 2400 | CC111: 140 | CD111: 3100 | CE111: 120 | CF111: 2860 | CG111: 110 | CH111: 2860 | CI111: 110 | CJ111: 2860 | CK111: 110 | CL111: 2370 | CM111: 100 | CN111: 3430 | CO111: 130 | CP111: 3430 | CQ111: 130 | CR111: 3468 | CS111: 138.9111753 | CT111: 3468 | CU111: 138.9111753 | CV111: 3416 | CW111: 321 | CX111: 3457 | CY111: 321 | CZ111: 3450 | DA111: 320 | DB111: 3516 | DC111: 298 | DD111: 3593 | DE111: 293.6368408 | DF111: 4310 | DG111: 297 | DH111: 3778 | DI111: 229 | DJ111: 3802 | DK111: 447 | DL111: 3875 | DM111: 237 | DN111: 3705 | DO111: 236 | DP111: 4007 | DQ111: 236 | DR111: 3841 | DS111: 236 | DT111: 4044 | DU111: 236 | DV111: 14995.152 | DW111: 875.088
A112: 15 | B112: B | C112: JCT PLUNKETT ROAD | D112: 8.324 | E112: 9.276 | G112: 0.952 | H112: FR0113 | I112: 2 | J112: 1.904 | K112: P | L112: 15 | M112: US | N112: 287 | O112: NHS | P112: FR | Q112: 2 | R112: 1510 | S112: 82 | T112: 1560 | U112: 84 | V112: 1640 | W112: 120 | X112: 1630 | Y112: 162 | Z112: 1600 | AA112: 168 | AB112: 1860 | AC112: 94 | AD112: 2060 | AE112: 110 | AF112: 2160 | AG112: 130 | AH112: 2170 | AI112: 140 | AJ112: 1590 | AK112: 146 | AL112: 2260 | AM112: 203 | AN112: 2040 | AO112: 225 | AP112: 2200 | AQ112: 170 | AR112: 2300 | AS112: 160 | AT112: 2160 | AU112: 135 | AV112: 2070 | AW112: 135 | AX112: 2060 | AY112: 135 | AZ112: 2030 | BA112: 135 | BB112: 2010 | BC112: 135 | BD112: 2030 | BE112: 135 | BF112: 2060 | BG112: 135 | BH112: 2110 | BI112: 135 | BJ112: 2140 | BK112: 135 | BL112: 2170 | BM112: 135 | BN112: 2190 | BO112: 135 | BP112: 2200 | BQ112: 135 | BR112: 2160 | BS112: 135 | BT112: 2200 | BU112: 135 | BV112: 2200 | BW112: 130 | BX112: 2250 | BY112: 130 | BZ112: 2300 | CA112: 140 | CB112: 2390 | CC112: 140 | CD112: 3000 | CE112: 120 | CF112: 2770 | CG112: 110 | CH112: 2550 | CI112: 110 | CJ112: 2550 | CK112: 110 | CL112: 2030 | CM112: 90 | CN112: 2300 | CO112: 80 | CP112: 2300 | CQ112: 80 | CR112: 3127 | CS112: 125.2523775 | CT112: 3127 | CU112: 125.2523775 | CV112: 2927 | CW112: 322 | CX112: 2962 | CY112: 322 | CZ112: 2956 | DA112: 322 | DB112: 2336 | DC112: 300 | DD112: 2387 | DE112: 295.6075439 | DF112: 3587 | DG112: 157 | DH112: 2511 | DI112: 152 | DJ112: 2527 | DK112: 298 | DL112: 3875 | DM112: 237 | DN112: 3705 | DO112: 236 | DP112: 4007 | DQ112: 236 | DR112: 3841 | DS112: 236 | DT112: 4044 | DU112: 236 | DV112: 3849.888 | DW112: 224.672
A113: 15 | B113: B | C113: JCT ROUTE 703 (WY 132) | D113: 9.276 | E113: 14.754 | G113: 5.478 | H113: FR0116 | I113: 2 | J113: 10.956 | K113: P | L113: 15 | M113: US | N113: 287 | O113: NHS | P113: FR | Q113: 2 | R113: 1120 | S113: 51 | T113: 1160 | U113: 56 | V113: 1190 | W113: 70 | X113: 1190 | Y113: 112 | Z113: 1160 | AA113: 114 | AB113: 1420 | AC113: 76 | AD113: 1480 | AE113: 84 | AF113: 1700 | AG113: 104 | AH113: 1640 | AI113: 106 | AJ113: 1240 | AK113: 111 | AL113: 2550 | AM113: 171 | AN113: 2170 | AO113: 190 | AP113: 2000 | AQ113: 150 | AR113: 2100 | AS113: 140 | AT113: 1970 | AU113: 120 | AV113: 1890 | AW113: 120 | AX113: 1880 | AY113: 120 | AZ113: 1850 | BA113: 120 | BB113: 1830 | BC113: 120 | BD113: 1850 | BE113: 120 | BF113: 1880 | BG113: 120 | BH113: 1880 | BI113: 120 | BJ113: 1910 | BK113: 110 | BL113: 1930 | BM113: 110 | BN113: 1950 | BO113: 110 | BP113: 1960 | BQ113: 110 | BR113: 1920 | BS113: 110 | BT113: 1950 | BU113: 110 | BV113: 1950 | BW113: 110 | BX113: 2000 | BY113: 110 | BZ113: 2000 | CA113: 110 | CB113: 2080 | CC113: 110 | CD113: 2060 | CE113: 90 | CF113: 1900 | CG113: 80 | CH113: 1700 | CI113: 80 | CJ113: 1700 | CK113: 80 | CL113: 1400 | CM113: 90 | CN113: 1480 | CO113: 80 | CP113: 1460 | CQ113: 80 | CR113: 2151 | CS113: 86.15857496 | CT113: 2151 | CU113: 86.15857496 | CV113: 2151 | CW113: 310 | CX113: 2177 | CY113: 312.13337 | CZ113: 2173 | DA113: 311 | DB113: 4302 | DC113: 309 | DD113: 4397 | DE113: 304.475769 | DF113: 2383 | DG113: 138 | DH113: 4623 | DI113: 280 | DJ113: 4653 | DK113: 548 | DL113: 4137 | DM113: 96 | DN113: 3956 | DO113: 96 | DP113: 4278 | DQ113: 96 | DR113: 4101 | DS113: 81 | DT113: 4317 | DU113: 81 | DV113: 23648.526 | DW113: 443.718
A114: 15 | B114: B | C114: JCT WIND RIVER ROAD | D114: 14.754 | E114: 15.663 | G114: 0.909 | H114: FR0117 | I114: 2 | J114: 1.818 | K114: P | L114: 15 | M114: US | N114: 287 | O114: NHS | P114: FR | Q114: 2 | R114: 1150 | S114: 50 | T114: 1190 | U114: 51 | V114: 1220 | W114: 64 | X114: 1220 | Y114: 92 | Z114: 1190 | AA114: 94 | AB114: 1460 | AC114: 62 | AD114: 1520 | AE114: 70 | AF114: 1740 | AG114: 80 | AH114: 1680 | AI114: 88 | AJ114: 1860 | AK114: 120 | AL114: 2650 | AM114: 180 | AN114: 2600 | AO114: 200 | AP114: 2650 | AQ114: 160 | AR114: 2700 | AS114: 150 | AT114: 2540 | AU114: 130 | AV114: 2440 | AW114: 130 | AX114: 2420 | AY114: 130 | AZ114: 2390 | BA114: 130 | BB114: 2370 | BC114: 130 | BD114: 2390 | BE114: 130 | BF114: 2420 | BG114: 130 | BH114: 2520 | BI114: 130 | BJ114: 2550 | BK114: 120 | BL114: 2570 | BM114: 120 | BN114: 2670 | BO114: 120 | BP114: 2680 | BQ114: 120 | BR114: 2640 | BS114: 120 | BT114: 2650 | BU114: 120 | BV114: 2650 | BW114: 120 | BX114: 2700 | BY114: 120 | BZ114: 2700 | CA114: 120 | CB114: 2360 | CC114: 120 | CD114: 2540 | CE114: 110 | CF114: 2350 | CG114: 100 | CH114: 2760 | CI114: 100 | CJ114: 2750 | CK114: 100 | CL114: 2440 | CM114: 90 | CN114: 2570 | CO114: 80 | CP114: 2540 | CQ114: 80 | CR114: 3862 | CS114: 154.6928947 | CT114: 3862 | CU114: 154.6928947 | CV114: 3547 | CW114: 311 | CX114: 3590 | CY114: 311 | CZ114: 3583 | DA114: 309 | DB114: 3753 | DC114: 301 | DD114: 3836 | DE114: 296.5928955 | DF114: 3829 | DG114: 200 | DH114: 4033 | DI114: 244 | DJ114: 4059 | DK114: 477 | DL114: 1421 | DM114: 52 | DN114: 1359 | DO114: 52 | DP114: 1469 | DQ114: 52 | DR114: 1408 | DS114: 52 | DT114: 1483 | DU114: 52 | DV114: 1348.047 | DW114: 47.268
A115: 15 | B115: B | C115: FORT WASHAKIE | D115: 15.663 | E115: 27.242 | G115: 11.579 | H115: 00128S | I115: 2 | J115: 23.158 | K115: P | L115: 15 | M115: US | N115: 287 | O115: NHS | P115: FR | Q115: 2 | R115: 490 | S115: 36 | T115: 540 | U115: 44 | V115: 560 | W115: 40 | X115: 550 | Y115: 60 | Z115: 530 | AA115: 62 | AB115: 610 | AC115: 68 | AD115: 670 | AE115: 76 | AF115: 770 | AG115: 84 | AH115: 560 | AI115: 92 | AJ115: 650 | AK115: 96 | AL115: 660 | AM115: 154 | AN115: 880 | AO115: 170 | AP115: 850 | AQ115: 125 | AR115: 850 | AS115: 120 | AT115: 680 | AU115: 105 | AV115: 610 | AW115: 105 | AX115: 610 | AY115: 105 | AZ115: 640 | BA115: 105 | BB115: 620 | BC115: 105 | BD115: 640 | BE115: 105 | BF115: 670 | BG115: 105 | BH115: 690 | BI115: 105 | BJ115: 710 | BK115: 95 | BL115: 730 | BM115: 95 | BN115: 750 | BO115: 95 | BP115: 760 | BQ115: 95 | BR115: 720 | BS115: 95 | BT115: 720 | BU115: 95 | BV115: 700 | BW115: 90 | BX115: 720 | BY115: 90 | BZ115: 730 | CA115: 90 | CB115: 770 | CC115: 90 | CD115: 820 | CE115: 80 | CF115: 760 | CG115: 70 | CH115: 730 | CI115: 60 | CJ115: 710 | CK115: 60 | CL115: 670 | CM115: 50 | CN115: 670 | CO115: 50 | CP115: 650 | CQ115: 50 | CR115: 1253 | CS115: 50.18907227 | CT115: 1253 | CU115: 50.18907227 | CV115: 1253 | CW115: 180 | CX115: 1268 | CY115: 181.80299 | CZ115: 1265 | DA115: 180 | DB115: 1289 | DC115: 182 | DD115: 1317 | DE115: 179.3352356 | DF115: 1406 | DG115: 171 | DH115: 529 | DI115: 31 | DJ115: 532 | DK115: 63 | DL115: 642 | DM115: 46 | DN115: 618 | DO115: 43 | DP115: 639 | DQ115: 47 | DR115: 622 | DS115: 56 | DT115: 635 | DU115: 49 | DV115: 7352.665 | DW115: 567.371
A116: 15 | B116: B | C116: JCT WINKLEMAN OIL FIELD ROAD | D116: 27.242 | E116: 28.442 | G116: 1.2 | H116: 00128S | I116: 2 | J116: 2.4 | K116: P | L116: 15 | M116: US | N116: 287 | O116: NHS | P116: FR | Q116: 2 | R116: 480 | S116: 30 | T116: 530 | U116: 38 | V116: 540 | W116: 30 | X116: 530 | Y116: 40 | Z116: 510 | AA116: 40 | AB116: 590 | AC116: 56 | AD116: 640 | AE116: 64 | AF116: 740 | AG116: 72 | AH116: 540 | AI116: 80 | AJ116: 620 | AK116: 83 | AL116: 630 | AM116: 121 | AN116: 780 | AO116: 140 | AP116: 740 | AQ116: 100 | AR116: 720 | AS116: 100 | AT116: 550 | AU116: 60 | AV116: 490 | AW116: 60 | AX116: 490 | AY116: 60 | AZ116: 510 | BA116: 60 | BB116: 490 | BC116: 60 | BD116: 510 | BE116: 60 | BF116: 540 | BG116: 60 | BH116: 560 | BI116: 60 | BJ116: 580 | BK116: 50 | BL116: 580 | BM116: 50 | BN116: 600 | BO116: 50 | BP116: 610 | BQ116: 50 | BR116: 570 | BS116: 50 | BT116: 570 | BU116: 50 | BV116: 550 | BW116: 50 | BX116: 560 | BY116: 50 | BZ116: 570 | CA116: 50 | CB116: 550 | CC116: 50 | CD116: 570 | CE116: 50 | CF116: 530 | CG116: 50 | CH116: 510 | CI116: 40 | CJ116: 490 | CK116: 30 | CL116: 510 | CM116: 40 | CN116: 500 | CO116: 40 | CP116: 480 | CQ116: 40 | CR116: 485 | CS116: 38 | CT116: 485 | CU116: 38 | CV116: 522 | CW116: 69 | CX116: 484 | CY116: 69.39483 | CZ116: 483 | DA116: 68 | DB116: 565 | DC116: 79 | DD116: 577 | DE116: 77.84332275 | DF116: 1451 | DG116: 42 | DH116: 607 | DI116: 36 | DJ116: 611 | DK116: 72 | DL116: 642 | DM116: 46 | DN116: 618 | DO116: 43 | DP116: 639 | DQ116: 47 | DR116: 622 | DS116: 56 | DT116: 635 | DU116: 49 | DV116: 762 | DW116: 58.8
A117: 15 | B117: B | C117: JCT COUNTY ROAD TO ENOS BASIN | D117: 28.442 | E117: 31.65 | G117: 3.208 | H117: 00128S | I117: 2 | J117: 6.416 | K117: P | L117: 15 | M117: US | N117: 287 | O117: NHS | P117: FR | Q117: 2 | R117: 480 | S117: 29 | T117: 530 | U117: 38 | V117: 540 | W117: 30 | X117: 520 | Y117: 34 | Z117: 500 | AA117: 34 | AB117: 580 | AC117: 48 | AD117: 630 | AE117: 56 | AF117: 730 | AG117: 64 | AH117: 530 | AI117: 72 | AJ117: 590 | AK117: 75 | AL117: 600 | AM117: 112 | AN117: 700 | AO117: 120 | AP117: 650 | AQ117: 80 | AR117: 710 | AS117: 100 | AT117: 540 | AU117: 60 | AV117: 480 | AW117: 60 | AX117: 480 | AY117: 60 | AZ117: 500 | BA117: 60 | BB117: 480 | BC117: 60 | BD117: 500 | BE117: 60 | BF117: 530 | BG117: 60 | BH117: 540 | BI117: 60 | BJ117: 560 | BK117: 50 | BL117: 580 | BM117: 50 | BN117: 600 | BO117: 50 | BP117: 610 | BQ117: 50 | BR117: 570 | BS117: 50 | BT117: 570 | BU117: 50 | BV117: 550 | BW117: 50 | BX117: 560 | BY117: 50 | BZ117: 570 | CA117: 50 | CB117: 540 | CC117: 50 | CD117: 570 | CE117: 50 | CF117: 530 | CG117: 50 | CH117: 510 | CI117: 40 | CJ117: 490 | CK117: 30 | CL117: 530 | CM117: 40 | CN117: 510 | CO117: 40 | CP117: 490 | CQ117: 40 | CR117: 523 | CS117: 40 | CT117: 534 | CU117: 40 | CV117: 522 | CW117: 39 | CX117: 530 | CY117: 39.27769 | CZ117: 512 | DA117: 39 | DB117: 574 | DC117: 46 | DD117: 565 | DE117: 45.32648849 | DF117: 646 | DG117: 42 | DH117: 625 | DI117: 38 | DJ117: 593 | DK117: 40 | DL117: 642 | DM117: 46 | DN117: 618 | DO117: 43 | DP117: 639 | DQ117: 47 | DR117: 622 | DS117: 56 | DT117: 635 | DU117: 49 | DV117: 2037.08 | DW117: 157.192
A118: 16 | B118: B | C118: JCT I 80 (CARTER - MTN VIEW INT) | D118: 93.88 | E118: 93.955 | G118: 0.075 | H118: UI0101 | I118: 2 | J118: 0.15 | K118: P | L118: 16 | M118: WY | N118: 414 | O118: STP | P118: UI | Q118: 6 | R118: 230 | S118: 20 | T118: 190 | U118: 20 | V118: 210 | W118: 20 | X118: 250 | Y118: 26 | Z118: 210 | AA118: 26 | AB118: 200 | AC118: 22 | AD118: 220 | AE118: 10 | AF118: 230 | AG118: 14 | AH118: 220 | AI118: 32 | AJ118: 450 | AK118: 60 | AL118: 500 | AM118: 65 | AN118: 800 | AO118: 70 | AP118: 1000 | AQ118: 140 | AR118: 700 | AS118: 110 | AT118: 680 | AU118: 105 | AV118: 680 | AW118: 105 | AX118: 680 | AY118: 105 | AZ118: 720 | BA118: 110 | BB118: 720 | BC118: 110 | BD118: 730 | BE118: 110 | BF118: 730 | BG118: 110 | BH118: 740 | BI118: 120 | BJ118: 760 | BK118: 120 | BL118: 780 | BM118: 120 | BN118: 980 | BO118: 120 | BP118: 1000 | BQ118: 120 | BR118: 1000 | BS118: 120 | BT118: 1020 | BU118: 120 | BV118: 1050 | BW118: 120 | BX118: 1100 | BY118: 120 | BZ118: 1100 | CA118: 120 | CB118: 1140 | CC118: 110 | CD118: 1260 | CE118: 80 | CF118: 1260 | CG118: 80 | CH118: 1360 | CI118: 90 | CJ118: 1370 | CK118: 90 | CL118: 2070 | CM118: 180 | CN118: 2140 | CO118: 190 | CP118: 2080 | CQ118: 180 | CR118: 1502 | CS118: 122 | CT118: 1484 | CU118: 120 | CV118: 1433 | CW118: 120 | CX118: 1292 | CY118: 120 | CZ118: 1282 | DA118: 120 | DB118: 1303 | DC118: 120 | DD118: 1210 | DE118: 93.33333588 | DF118: 1179 | DG118: 114 | DH118: 1319 | DI118: 156 | DJ118: 1352 | DK118: 146 | DL118: 1376 | DM118: 149 | DN118: 1200 | DO118: 149 | DP118: 1298 | DQ118: 149 | DR118: 1249 | DS118: 149 | DT118: 1315 | DU118: 149 | DV118: 98.625 | DW118: 11.175
A119: 16 | B119: B | C119: JCT I 80 EB Ramps | D119: 93.955 | E119: 95.17 | G119: 1.215 | H119: UI0102 | I119: 2 | J119: 2.43 | K119: P | L119: 16 | M119: WY | N119: 414 | O119: STP | P119: UI | Q119: 6 | R119: 230 | S119: 20 | T119: 190 | U119: 20 | V119: 210 | W119: 20 | X119: 250 | Y119: 26 | Z119: 210 | AA119: 26 | AB119: 200 | AC119: 22 | AD119: 220 | AE119: 10 | AF119: 230 | AG119: 14 | AH119: 220 | AI119: 32 | AJ119: 450 | AK119: 60 | AL119: 500 | AM119: 65 | AN119: 800 | AO119: 70 | AP119: 1000 | AQ119: 140 | AR119: 700 | AS119: 110 | AT119: 680 | AU119: 105 | AV119: 680 | AW119: 105 | AX119: 680 | AY119: 105 | AZ119: 720 | BA119: 110 | BB119: 720 | BC119: 110 | BD119: 730 | BE119: 110 | BF119: 730 | BG119: 110 | BH119: 740 | BI119: 120 | BJ119: 760 | BK119: 120 | BL119: 780 | BM119: 120 | BN119: 980 | BO119: 120 | BP119: 1000 | BQ119: 120 | BR119: 1000 | BS119: 120 | BT119: 1020 | BU119: 120 | BV119: 1050 | BW119: 120 | BX119: 1100 | BY119: 120 | BZ119: 1100 | CA119: 120 | CB119: 1140 | CC119: 110 | CD119: 1260 | CE119: 80 | CF119: 1260 | CG119: 80 | CH119: 1360 | CI119: 90 | CJ119: 1370 | CK119: 90 | CL119: 2070 | CM119: 180 | CN119: 2140 | CO119: 190 | CP119: 2080 | CQ119: 180 | CR119: 1502 | CS119: 122 | CT119: 1484 | CU119: 120 | CV119: 1433 | CW119: 120 | CX119: 1292 | CY119: 120 | CZ119: 1282 | DA119: 120 | DB119: 1303 | DC119: 120 | DD119: 1210 | DE119: 93.33333588 | DF119: 1179 | DG119: 114 | DH119: 1319 | DI119: 156 | DJ119: 1352 | DK119: 146 | DL119: 4099 | DM119: 173 | DN119: 4008 | DO119: 172 | DP119: 4336 | DQ119: 172 | DR119: 4173 | DS119: 178 | DT119: 4393 | DU119: 178 | DV119: 5337.495 | DW119: 216.27
A120: 16 | B120: B | C120: JCT COUNTY RD 234 EAST & 229 WEST | D120: 95.17 | E120: 96.686 | G120: 1.516 | H120: UI0103 | I120: 2 | J120: 3.032 | K120: P | L120: 16 | M120: WY | N120: 414 | O120: STP | P120: UI | Q120: 6 | R120: 230 | S120: 20 | T120: 190 | U120: 20 | V120: 210 | W120: 20 | X120: 250 | Y120: 26 | Z120: 210 | AA120: 26 | AB120: 200 | AC120: 22 | AD120: 220 | AE120: 10 | AF120: 230 | AG120: 14 | AH120: 220 | AI120: 32 | AJ120: 450 | AK120: 60 | AL120: 1000 | AM120: 85 | AN120: 800 | AO120: 70 | AP120: 1000 | AQ120: 140 | AR120: 1200 | AS120: 130 | AT120: 1190 | AU120: 125 | AV120: 1190 | AW120: 125 | AX120: 1200 | AY120: 125 | AZ120: 1260 | BA120: 130 | BB120: 1260 | BC120: 130 | BD120: 1270 | BE120: 130 | BF120: 1270 | BG120: 130 | BH120: 1370 | BI120: 140 | BJ120: 1390 | BK120: 140 | BL120: 1410 | BM120: 140 | BN120: 2380 | BO120: 140 | BP120: 2400 | BQ120: 140 | BR120: 2400 | BS120: 140 | BT120: 2450 | BU120: 140 | BV120: 2550 | BW120: 140 | BX120: 2600 | BY120: 140 | BZ120: 2600 | CA120: 140 | CB120: 2700 | CC120: 130 | CD120: 2700 | CE120: 140 | CF120: 2700 | CG120: 140 | CH120: 2900 | CI120: 150 | CJ120: 2920 | CK120: 150 | CL120: 3220 | CM120: 230 | CN120: 3330 | CO120: 250 | CP120: 3230 | CQ120: 240 | CR120: 2390 | CS120: 192 | CT120: 2361 | CU120: 190 | CV120: 2327 | CW120: 190 | CX120: 2325 | CY120: 190 | CZ120: 2306 | DA120: 190 | DB120: 3497 | DC120: 190 | DD120: 3605 | DE120: 147.7777863 | DF120: 3514 | DG120: 574 | DH120: 3928 | DI120: 467 | DJ120: 4029 | DK120: 454 | DL120: 6312 | DM120: 233 | DN120: 4901 | DO120: 234 | DP120: 5302 | DQ120: 234 | DR120: 5102 | DS120: 236 | DT120: 5372 | DU120: 236 | DV120: 8143.952 | DW120: 357.776
A121: 16 | B121: B | C121: JCT ROUTE 2106 (I-80 BUS INT) | D121: 96.686 | E121: 99.07 | G121: 2.384 | H121: UI0104 | I121: 2 | J121: 4.768 | K121: P | L121: 16 | M121: WY | N121: 414 | O121: STP | P121: UI | Q121: 6 | Z121: 1340 | AA121: 126 | AB121: 1270 | AC121: 124 | AD121: 1420 | AE121: 130 | AF121: 1460 | AG121: 136 | AH121: 1560 | AI121: 168 | AJ121: 2250 | AK121: 181 | AL121: 2350 | AM121: 194 | AN121: 3000 | AO121: 200 | AP121: 3500 | AQ121: 300 | AR121: 3500 | AS121: 280 | AT121: 3480 | AU121: 270 | AV121: 3460 | AW121: 270 | AX121: 3500 | AY121: 270 | AZ121: 3680 | BA121: 300 | BB121: 3680 | BC121: 300 | BD121: 3690 | BE121: 300 | BF121: 3690 | BG121: 300 | BH121: 3790 | BI121: 310 | BJ121: 3830 | BK121: 310 | BL121: 4700 | BM121: 310 | BN121: 5130 | BO121: 260 | BP121: 5150 | BQ121: 260 | BR121: 5150 | BS121: 260 | BT121: 5200 | BU121: 260 | BV121: 5300 | BW121: 260 | BX121: 5350 | BY121: 260 | BZ121: 5300 | CA121: 260 | CB121: 6000 | CC121: 210 | CD121: 5400 | CE121: 270 | CF121: 5400 | CG121: 270 | CH121: 5830 | CI121: 290 | CJ121: 5840 | CK121: 290 | CL121: 5950 | CM121: 300 | CN121: 6150 | CO121: 320 | CP121: 5970 | CQ121: 310 | CR121: 6006 | CS121: 242.306045 | CT121: 5934 | CU121: 240 | CV121: 5881 | CW121: 240 | CX121: 5566 | CY121: 240 | CZ121: 5521 | DA121: 240 | DB121: 7685 | DC121: 240 | DD121: 5569 | DE121: 186.6666718 | DF121: 6220 | DG121: 741.88205 | DH121: 6067 | DI121: 722 | DJ121: 6204 | DK121: 231 | DL121: 6452 | DM121: 342 | DN121: 5005 | DO121: 342 | DP121: 5415 | DQ121: 342 | DR121: 5211 | DS121: 220 | DT121: 5486 | DU121: 220 | DV121: 13078.624 | DW121: 524.48
A122: 16 | B122: B | C122: MOUNTAIN VIEW NORTH CORP LIMITS | D122: 99.07 | E122: 99.87 | G122: 0.8 | H122: UI0104 | I122: 2 | J122: 1.6 | K122: P | L122: 16 | M122: WY | N122: 414 | O122: STP | P122: UI | Q122: 6 | Z122: 1340 | AA122: 126 | AB122: 1270 | AC122: 124 | AD122: 1420 | AE122: 130 | AF122: 1460 | AG122: 136 | AH122: 1560 | AI122: 168 | AJ122: 2250 | AK122: 181 | AL122: 2350 | AM122: 194 | AN122: 3000 | AO122: 200 | AP122: 3500 | AQ122: 300 | AR122: 3500 | AS122: 280 | AT122: 3480 | AU122: 270 | AV122: 3460 | AW122: 270 | AX122: 3460 | AY122: 270 | AZ122: 3630 | BA122: 300 | BB122: 3630 | BC122: 300 | BD122: 3640 | BE122: 300 | BF122: 3640 | BG122: 300 | BH122: 3740 | BI122: 310 | BJ122: 3780 | BK122: 310 | BL122: 4380 | BM122: 310 | BN122: 4810 | BO122: 260 | BP122: 4830 | BQ122: 260 | BR122: 4830 | BS122: 260 | BT122: 5100 | BU122: 260 | BV122: 5200 | BW122: 260 | BX122: 5250 | BY122: 260 | BZ122: 5200 | CA122: 260 | CB122: 6400 | CC122: 230 | CD122: 5700 | CE122: 290 | CF122: 5700 | CG122: 290 | CH122: 6150 | CI122: 310 | CJ122: 6160 | CK122: 310 | CL122: 6270 | CM122: 320 | CN122: 6490 | CO122: 340 | CP122: 6300 | CQ122: 320 | CR122: 5698 | CS122: 229.880094 | CT122: 5630 | CU122: 228 | CV122: 5549 | CW122: 228 | CX122: 5712 | CY122: 228 | CZ122: 5666 | DA122: 228 | DB122: 6800 | DC122: 228 | DD122: 7011 | DE122: 177.3333435 | DF122: 6220 | DG122: 307 | DH122: 7638 | DI122: 909 | DJ122: 6342 | DK122: 215 | DL122: 6452 | DM122: 342 | DN122: 5005 | DO122: 342 | DP122: 5415 | DQ122: 342 | DR122: 5211 | DS122: 220 | DT122: 5486 | DU122: 220 | DV122: 4388.8 | DW122: 176
A123: 16 | B123: B | C123: JCT ROUTE 2101 (WY 410) | D123: 99.87 | E123: 101.06 | G123: 0.819 | H123: UI0105 | I123: 2 | J123: 1.638 | K123: P | L123: 16 | M123: WY | N123: 414 | O123: STP | P123: UI | Q123: 6 | R123: 320 | S123: 22 | T123: 330 | U123: 24 | V123: 240 | W123: 220 | X123: 290 | Y123: 36 | Z123: 280 | AA123: 32 | AB123: 280 | AC123: 30 | AD123: 320 | AE123: 34 | AF123: 730 | AG123: 80 | AH123: 780 | AI123: 100 | AJ123: 930 | AK123: 108 | AL123: 990 | AM123: 120 | AN123: 1400 | AO123: 130 | AP123: 1300 | AQ123: 190 | AR123: 1500 | AS123: 180 | AT123: 1490 | AU123: 175 | AV123: 1480 | AW123: 175 | AX123: 1480 | AY123: 175 | AZ123: 1550 | BA123: 195 | BB123: 1550 | BC123: 195 | BD123: 1560 | BE123: 195 | BF123: 1560 | BG123: 300 | BH123: 1660 | BI123: 310 | BJ123: 1680 | BK123: 310 | BL123: 1710 | BM123: 310 | BN123: 1730 | BO123: 260 | BP123: 1750 | BQ123: 260 | BR123: 1750 | BS123: 260 | BT123: 1750 | BU123: 260 | BV123: 1800 | BW123: 260 | BX123: 1850 | BY123: 260 | BZ123: 1800 | CA123: 260 | CB123: 1700 | CC123: 180 | CD123: 1700 | CE123: 170 | CF123: 1700 | CG123: 170 | CH123: 1800 | CI123: 180 | CJ123: 1800 | CK123: 180 | CL123: 1900 | CM123: 180 | CN123: 1930 | CO123: 190 | CP123: 1870 | CQ123: 180 | CR123: 1807 | CS123: 146 | CT123: 1784 | CU123: 144 | CV123: 1760 | CW123: 144 | CX123: 1682 | CY123: 144 | CZ123: 1669 | DA123: 144 | DB123: 1696 | DC123: 144 | DD123: 1444 | DE123: 112 | DF123: 1408 | DG123: 217.80615 | DH123: 1781 | DI123: 275 | DJ123: 1827 | DK123: 206 | DL123: 1788 | DM123: 221 | DN123: 1386 | DO123: 221 | DP123: 1500 | DQ123: 221 | DR123: 1443 | DS123: 94 | DT123: 1520 | DU123: 94 | DV123: 1244.88 | DW123: 76.986
A124: 16 | B124: B | C124: MOUNTAIN VIEW EAST CORP LIMITS | D124: 101.06 | E124: 101.292 | G124: 0.232 | H124: UI0105 | I124: 2 | J124: 0.464 | K124: P | L124: 16 | M124: WY | N124: 414 | O124: STP | P124: UI | Q124: 6 | R124: 320 | S124: 22 | T124: 330 | U124: 24 | V124: 240 | W124: 220 | X124: 290 | Y124: 36 | Z124: 280 | AA124: 32 | AB124: 280 | AC124: 30 | AD124: 320 | AE124: 34 | AF124: 330 | AG124: 40 | AH124: 340 | AI124: 60 | AJ124: 570 | AK124: 64 | AL124: 620 | AM124: 67 | AN124: 900 | AO124: 70 | AP124: 800 | AQ124: 110 | AR124: 750 | AS124: 100 | AT124: 740 | AU124: 95 | AV124: 740 | AW124: 95 | AX124: 750 | AY124: 95 | AZ124: 790 | BA124: 105 | BB124: 790 | BC124: 105 | BD124: 800 | BE124: 105 | BF124: 800 | BG124: 105 | BH124: 850 | BI124: 115 | BJ124: 870 | BK124: 115 | BL124: 890 | BM124: 115 | BN124: 910 | BO124: 115 | BP124: 910 | BQ124: 115 | BR124: 910 | BS124: 115 | BT124: 910 | BU124: 115 | BV124: 920 | BW124: 120 | BX124: 930 | BY124: 120 | BZ124: 930 | CA124: 120 | CB124: 870 | CC124: 60 | CD124: 890 | CE124: 60 | CF124: 890 | CG124: 60 | CH124: 960 | CI124: 70 | CJ124: 960 | CK124: 70 | CL124: 1050 | CM124: 50 | CN124: 1700 | CO124: 60 | CP124: 1600 | CQ124: 60 | CR124: 1610 | CS124: 64.95383493 | CT124: 1591 | CU124: 65 | CV124: 1576 | CW124: 65 | CX124: 1574 | CY124: 65 | CZ124: 1561 | DA124: 65 | DB124: 1586 | DC124: 88 | DD124: 1635 | DE124: 68.44444275 | DF124: 1408 | DG124: 217.80615 | DH124: 1781 | DI124: 275 | DJ124: 1827 | DK124: 206 | DL124: 1788 | DM124: 221 | DN124: 1386 | DO124: 221 | DP124: 1500 | DQ124: 221 | DR124: 1443 | DS124: 94 | DT124: 1520 | DU124: 94 | DV124: 352.64 | DW124: 21.808
A125: 16 | B125: B | C125: JCT COUNTY ROAD NORTH | D125: 101.292 | E125: 120.61 | G125: 15.49 | H125: UI0107 | I125: 2 | J125: 30.98 | K125: P | L125: 16 | M125: WY | N125: 414 | O125: STP | P125: UI | Q125: 6 | R125: 210 | S125: 18 | T125: 220 | U125: 20 | V125: 230 | W125: 22 | X125: 280 | Y125: 36 | Z125: 270 | AA125: 32 | AB125: 270 | AC125: 30 | AD125: 300 | AE125: 34 | AF125: 310 | AG125: 40 | AH125: 300 | AI125: 60 | AJ125: 560 | AK125: 64 | AL125: 570 | AM125: 67 | AN125: 500 | AO125: 70 | AP125: 490 | AQ125: 75 | AR125: 440 | AS125: 60 | AT125: 440 | AU125: 60 | AV125: 440 | AW125: 60 | AX125: 450 | AY125: 60 | AZ125: 470 | BA125: 65 | BB125: 470 | BC125: 65 | BD125: 480 | BE125: 65 | BF125: 480 | BG125: 65 | BH125: 500 | BI125: 75 | BJ125: 520 | BK125: 75 | BL125: 540 | BM125: 75 | BN125: 550 | BO125: 75 | BP125: 560 | BQ125: 75 | BR125: 560 | BS125: 75 | BT125: 560 | BU125: 115 | BV125: 570 | BW125: 120 | BX125: 580 | BY125: 120 | BZ125: 580 | CA125: 120 | CB125: 890 | CC125: 60 | CD125: 620 | CE125: 60 | CF125: 620 | CG125: 60 | CH125: 670 | CI125: 70 | CJ125: 670 | CK125: 70 | CL125: 750 | CM125: 50 | CN125: 760 | CO125: 60 | CP125: 740 | CQ125: 60 | CR125: 1038 | CS125: 41.87706871 | CT125: 1026 | CU125: 41 | CV125: 1011 | CW125: 41 | CX125: 636 | CY125: 70 | CZ125: 631 | DA125: 70 | DB125: 641 | DC125: 90 | DD125: 700 | DE125: 70 | DF125: 1594 | DG125: 58.15901 | DH125: 476 | DI125: 17 | DJ125: 1076 | DK125: 178 | DL125: 1095 | DM125: 181 | DN125: 858 | DO125: 181 | DP125: 928 | DQ125: 181 | DR125: 563 | DS125: 92 | DT125: 593 | DU125: 92 | DV125: 9185.57 | DW125: 1425.08
A126: 16 | B126: B | C126: HENRY'S FORK RIVER | D126: 120.61 | E126: 121.81 | G126: 1.2 | H126: UI0107 | I126: 2 | J126: 2.4 | K126: P | L126: 16 | M126: WY | N126: 414 | O126: STP | P126: UI | Q126: 6 | R126: 210 | S126: 18 | T126: 220 | U126: 20 | V126: 230 | W126: 22 | X126: 280 | Y126: 36 | Z126: 270 | AA126: 32 | AB126: 270 | AC126: 30 | AD126: 300 | AE126: 34 | AF126: 310 | AG126: 40 | AH126: 300 | AI126: 60 | AJ126: 560 | AK126: 64 | AL126: 570 | AM126: 67 | AN126: 500 | AO126: 70 | AP126: 490 | AQ126: 75 | AR126: 440 | AS126: 60 | AT126: 440 | AU126: 60 | AV126: 440 | AW126: 60 | AX126: 450 | AY126: 60 | AZ126: 470 | BA126: 65 | BB126: 470 | BC126: 65 | BD126: 480 | BE126: 65 | BF126: 480 | BG126: 65 | BH126: 500 | BI126: 75 | BJ126: 520 | BK126: 75 | BL126: 540 | BM126: 75 | BN126: 550 | BO126: 75 | BP126: 560 | BQ126: 75 | BR126: 560 | BS126: 75 | BT126: 560 | BU126: 115 | BV126: 570 | BW126: 120 | BX126: 580 | BY126: 120 | BZ126: 580 | CA126: 120 | CB126: 890 | CC126: 60 | CD126: 620 | CE126: 60 | CF126: 620 | CG126: 60 | CH126: 670 | CI126: 70 | CJ126: 670 | CK126: 70 | CL126: 590 | CM126: 50 | CN126: 600 | CO126: 60 | CP126: 580 | CQ126: 60 | CR126: 1028 | CS126: 41.47362877 | CT126: 1016 | CU126: 40 | CV126: 1001 | CW126: 40 | CX126: 591 | CY126: 72 | CZ126: 586 | DA126: 72 | DB126: 595 | DC126: 84 | DD126: 599 | DE126: 65.33333588 | DF126: 584 | DG126: 79.82357 | DH126: 653 | DI126: 89 | DJ126: 669 | DK126: 75 | DL126: 1095 | DM126: 181 | DN126: 858 | DO126: 181 | DP126: 928 | DQ126: 181 | DR126: 563 | DS126: 92 | DT126: 593 | DU126: 92 | DV126: 711.6 | DW126: 110.4
A127: 16 | B127: B | C127: LONETREE | D127: 121.81 | E127: 123.429 | G127: 1.619 | H127: UI0109 | I127: 2 | J127: 3.238 | K127: P | L127: 16 | M127: WY | N127: 414 | O127: STP | P127: UI | Q127: 6 | R127: 180 | S127: 14 | T127: 190 | U127: 16 | V127: 200 | W127: 18 | X127: 240 | Y127: 28 | Z127: 230 | AA127: 26 | AB127: 230 | AC127: 26 | AD127: 260 | AE127: 30 | AF127: 270 | AG127: 36 | AH127: 260 | AI127: 26 | AJ127: 540 | AK127: 35 | AL127: 550 | AM127: 38 | AN127: 400 | AO127: 40 | AP127: 430 | AQ127: 70 | AR127: 400 | AS127: 50 | AT127: 400 | AU127: 50 | AV127: 400 | AW127: 50 | AX127: 400 | AY127: 50 | AZ127: 420 | BA127: 55 | BB127: 420 | BC127: 55 | BD127: 430 | BE127: 55 | BF127: 430 | BG127: 55 | BH127: 450 | BI127: 65 | BJ127: 470 | BK127: 65 | BL127: 490 | BM127: 65 | BN127: 500 | BO127: 65 | BP127: 510 | BQ127: 65 | BR127: 510 | BS127: 65 | BT127: 510 | BU127: 65 | BV127: 520 | BW127: 70 | BX127: 530 | BY127: 70 | BZ127: 530 | CA127: 70 | CB127: 730 | CC127: 50 | CD127: 550 | CE127: 40 | CF127: 550 | CG127: 40 | CH127: 660 | CI127: 40 | CJ127: 660 | CK127: 40 | CL127: 580 | CM127: 40 | CN127: 590 | CO127: 40 | CP127: 570 | CQ127: 40 | CR127: 573 | CS127: 23.11711019 | CT127: 566 | CU127: 22 | CV127: 561 | CW127: 22 | CX127: 560 | CY127: 67 | CZ127: 556 | DA127: 67 | DB127: 565 | DC127: 79 | DD127: 583 | DE127: 61.44444656 | DF127: 572 | DG127: 77.63132 | DH127: 635 | DI127: 86 | DJ127: 651 | DK127: 73 | DL127: 662 | DM127: 72 | DN127: 647 | DO127: 72 | DP127: 700 | DQ127: 72 | DR127: 53 | DS127: 13 | DT127: 57 | DU127: 13 | DV127: 92.283 | DW127: 21.047
A128: 16 | B128: B | C128: UINTA - SWEETWATER COUNTY LINE | D128: 123.429 | E128: 132.534 | G128: 9.105 | H128: SW0117 | I128: 2 | J128: 18.21 | K128: P | L128: 16 | M128: WY | N128: 414 | O128: STP | P128: SW | Q128: 6 | X128: 230 | Y128: 28 | Z128: 220 | AA128: 26 | AB128: 220 | AC128: 26 | AD128: 250 | AE128: 30 | AF128: 260 | AG128: 36 | AH128: 250 | AI128: 26 | AJ128: 380 | AK128: 28 | AL128: 390 | AM128: 31 | AN128: 600 | AO128: 35 | AP128: 500 | AQ128: 60 | AR128: 450 | AS128: 60 | AT128: 450 | AU128: 60 | AV128: 450 | AW128: 60 | AX128: 460 | AY128: 60 | AZ128: 480 | BA128: 65 | BB128: 480 | BC128: 65 | BD128: 490 | BE128: 65 | BF128: 490 | BG128: 65 | BH128: 530 | BI128: 75 | BJ128: 550 | BK128: 75 | BL128: 570 | BM128: 75 | BN128: 580 | BO128: 75 | BP128: 600 | BQ128: 75 | BR128: 600 | BS128: 75 | BT128: 600 | BU128: 75 | BV128: 610 | BW128: 80 | BX128: 620 | BY128: 80 | BZ128: 620 | CA128: 80 | CB128: 660 | CC128: 50 | CD128: 540 | CE128: 30 | CF128: 540 | CG128: 30 | CH128: 650 | CI128: 30 | CJ128: 650 | CK128: 30 | CL128: 580 | CM128: 30 | CN128: 590 | CO128: 30 | CP128: 570 | CQ128: 30 | CR128: 584 | CS128: 23.56089416 | CT128: 577 | CU128: 23 | CV128: 569 | CW128: 23 | CX128: 568 | CY128: 68.25408 | CZ128: 563 | DA128: 68.25408 | DB128: 572 | DC128: 80 | DD128: 590 | DE128: 67.76470947 | DF128: 583 | DG128: 78.53401 | DH128: 643 | DI128: 86 | DJ128: 659 | DK128: 74 | DL128: 670 | DM128: 72 | DN128: 656 | DO128: 72 | DP128: 709 | DQ128: 72 | DR128: 683 | DS128: 72 | DT128: 727 | DU128: 72 | DV128: 6619.335 | DW128: 655.56
A129: 16 | B129: B | C129: BURNT FORK CREEK | D129: 132.534 | E129: 140.36 | G129: 7.826 | H129: SW0118 | I129: 2 | J129: 15.652 | K129: P | L129: 16 | M129: WY | N129: 414 | O129: STP | P129: SW | Q129: 6 | X129: 230 | Y129: 28 | Z129: 220 | AA129: 26 | AB129: 220 | AC129: 26 | AD129: 250 | AE129: 30 | AF129: 260 | AG129: 36 | AH129: 250 | AI129: 26 | AJ129: 380 | AK129: 28 | AL129: 390 | AM129: 31 | AN129: 600 | AO129: 35 | AP129: 500 | AQ129: 60 | AR129: 450 | AS129: 60 | AT129: 450 | AU129: 60 | AV129: 450 | AW129: 60 | AX129: 460 | AY129: 60 | AZ129: 480 | BA129: 65 | BB129: 480 | BC129: 65 | BD129: 490 | BE129: 65 | BF129: 490 | BG129: 65 | BH129: 530 | BI129: 75 | BJ129: 550 | BK129: 75 | BL129: 570 | BM129: 75 | BN129: 580 | BO129: 75 | BP129: 600 | BQ129: 75 | BR129: 600 | BS129: 75 | BT129: 600 | BU129: 75 | BV129: 610 | BW129: 80 | BX129: 620 | BY129: 80 | BZ129: 620 | CA129: 80 | CB129: 660 | CC129: 50 | CD129: 540 | CE129: 30 | CF129: 540 | CG129: 30 | CH129: 650 | CI129: 30 | CJ129: 650 | CK129: 30 | CL129: 660 | CM129: 30 | CN129: 670 | CO129: 30 | CP129: 650 | CQ129: 30 | CR129: 659 | CS129: 26.58669392 | CT129: 651 | CU129: 26 | CV129: 642 | CW129: 26 | CX129: 516 | CY129: 62.00546 | CZ129: 512 | DA129: 62.00546 | DB129: 520 | DC129: 72 | DD129: 582 | DE129: 60.98823547 | DF129: 589 | DG129: 77.50237 | DH129: 634 | DI129: 83 | DJ129: 1004 | DK129: 101 | DL129: 1021 | DM129: 102 | DN129: 801 | DO129: 102 | DP129: 866 | DQ129: 102 | DR129: 834 | DS129: 109 | DT129: 888 | DU129: 109 | DV129: 6949.488 | DW129: 853.034
A130: 17 | B130: B | C130: JCT I 80 (FLAMING GORGE INT) | D130: 499.945 | E130: 500.158 | G130: 0.213 | H130: SW0260 | I130: 2 | J130: 0.426 | K130: P | L130: 17 | M130: US | N130: 191 | O130: STP | P130: SW | Q130: 6 | R130: 270 | S130: 34 | T130: 320 | U130: 40 | V130: 380 | W130: 44 | X130: 400 | Y130: 50 | Z130: 440 | AA130: 42 | AB130: 1880 | AC130: 272 | AD130: 2230 | AE130: 520 | AF130: 2050 | AG130: 530 | AH130: 2240 | AI130: 560 | AJ130: 2240 | AK130: 520 | AL130: 2760 | AM130: 520 | AN130: 2700 | AO130: 500 | AP130: 2500 | AQ130: 450 | AR130: 2400 | AS130: 430 | AT130: 2450 | AU130: 445 | AV130: 2380 | AW130: 435 | AX130: 2380 | AY130: 435 | AZ130: 2380 | BA130: 435 | BB130: 2370 | BC130: 435 | BD130: 2380 | BE130: 435 | BF130: 2390 | BG130: 435 | BH130: 2460 | BI130: 455 | BJ130: 2460 | BK130: 455 | BL130: 2490 | BM130: 455 | BN130: 2290 | BO130: 340 | BP130: 2350 | BQ130: 340 | BR130: 2350 | BS130: 340 | BT130: 2400 | BU130: 340 | BV130: 2450 | BW130: 340 | BX130: 2470 | BY130: 340 | BZ130: 2500 | CA130: 340 | CB130: 3040 | CC130: 480 | CD130: 3200 | CE130: 360 | CF130: 3200 | CG130: 370 | CH130: 2760 | CI130: 370 | CJ130: 3280 | CK130: 810 | CL130: 3880 | CM130: 940 | CN130: 4030 | CO130: 980 | CP130: 4000 | CQ130: 960 | CR130: 5603 | CS130: 452 | CT130: 5536 | CU130: 692.72357 | CV130: 5495 | CW130: 654.97008 | CX130: 4176 | CY130: 501.81166 | CZ130: 4143 | DA130: 501.81166 | DB130: 4209 | DC130: 596 | DD130: 4053 | DE130: 504.8470764 | DF130: 4043 | DG130: 465 | DH130: 4248 | DI130: 488 | DJ130: 4180 | DK130: 275 | DL130: 4348 | DM130: 820 | DN130: 4251 | DO130: 740 | DP130: 4599 | DQ130: 740 | DR130: 4426 | DS130: 873 | DT130: 4713 | DU130: 710 | DV130: 1003.869 | DW130: 151.23
A131: 17 | B131: B | C131: JCT COUNTY ROAD 51 EAST | D131: 500.158 | E131: 500.758 | G131: 0.6 | H131: SW0120 | I131: 2 | J131: 1.2 | K131: P | L131: 17 | M131: US | N131: 191 | O131: STP | P131: SW | Q131: 6 | R131: 270 | S131: 34 | T131: 320 | U131: 40 | V131: 380 | W131: 44 | X131: 400 | Y131: 50 | Z131: 440 | AA131: 42 | AB131: 430 | AC131: 48 | AD131: 480 | AE131: 54 | AF131: 440 | AG131: 60 | AH131: 530 | AI131: 64 | AJ131: 370 | AK131: 59 | AL131: 380 | AM131: 60 | AN131: 500 | AO131: 70 | AP131: 450 | AQ131: 60 | AR131: 920 | AS131: 200 | AT131: 940 | AU131: 205 | AV131: 910 | AW131: 200 | AX131: 900 | AY131: 200 | AZ131: 900 | BA131: 200 | BB131: 890 | BC131: 200 | BD131: 900 | BE131: 200 | BF131: 910 | BG131: 200 | BH131: 960 | BI131: 220 | BJ131: 960 | BK131: 220 | BL131: 980 | BM131: 220 | BN131: 1030 | BO131: 160 | BP131: 1050 | BQ131: 160 | BR131: 1050 | BS131: 160 | BT131: 1150 | BU131: 160 | BV131: 1200 | BW131: 160 | BX131: 1220 | BY131: 160 | BZ131: 1200 | CA131: 160 | CB131: 1340 | CC131: 200 | CD131: 1410 | CE131: 160 | CF131: 1410 | CG131: 170 | CH131: 1410 | CI131: 170 | CJ131: 1450 | CK131: 320 | CL131: 1870 | CM131: 410 | CN131: 1940 | CO131: 430 | CP131: 1910 | CQ131: 410 | CR131: 3074 | CS131: 248 | CT131: 3037 | CU131: 380.02194 | CV131: 3015 | CW131: 359.36939 | CX131: 2179 | CY131: 261.8409 | CZ131: 2162 | DA131: 261.8409 | DB131: 2197 | DC131: 311 | DD131: 2004 | DE131: 263.4353027 | DF131: 1999 | DG131: 375 | DH131: 5600 | DI131: 661 | DJ131: 4398 | DK131: 278 | DL131: 4536 | DM131: 862 | DN131: 3555 | DO131: 740 | DP131: 3847 | DQ131: 740 | DR131: 3702 | DS131: 873 | DT131: 3942 | DU131: 710 | DV131: 2365.2 | DW131: 426
A132: 17 | B132: B | C132: JCT COUNTY ROAD WEST | D132: 500.758 | E132: 513.585 | G132: 10.499 | H132: SW0121 | I132: 2 | J132: 20.998 | K132: P | L132: 17 | M132: US | N132: 191 | O132: STP | P132: SW | Q132: 6 | R132: 270 | S132: 34 | T132: 320 | U132: 40 | V132: 380 | W132: 44 | X132: 400 | Y132: 50 | Z132: 440 | AA132: 42 | AB132: 430 | AC132: 48 | AD132: 480 | AE132: 54 | AF132: 440 | AG132: 60 | AH132: 530 | AI132: 64 | AJ132: 370 | AK132: 59 | AL132: 380 | AM132: 60 | AN132: 500 | AO132: 70 | AP132: 450 | AQ132: 60 | AR132: 450 | AS132: 80 | AT132: 460 | AU132: 85 | AV132: 450 | AW132: 80 | AX132: 450 | AY132: 80 | AZ132: 450 | BA132: 80 | BB132: 440 | BC132: 80 | BD132: 450 | BE132: 80 | BF132: 460 | BG132: 80 | BH132: 460 | BI132: 80 | BJ132: 460 | BK132: 80 | BL132: 470 | BM132: 80 | BN132: 670 | BO132: 80 | BP132: 680 | BQ132: 80 | BR132: 680 | BS132: 80 | BT132: 680 | BU132: 80 | BV132: 690 | BW132: 80 | BX132: 710 | BY132: 80 | BZ132: 710 | CA132: 80 | CB132: 720 | CC132: 100 | CD132: 570 | CE132: 90 | CF132: 560 | CG132: 100 | CH132: 680 | CI132: 110 | CJ132: 690 | CK132: 180 | CL132: 700 | CM132: 130 | CN132: 700 | CO132: 130 | CP132: 690 | CQ132: 130 | CR132: 1032 | CS132: 84 | CT132: 1020 | CU132: 127.63332 | CV132: 1012 | CW132: 120.62415 | CX132: 780 | CY132: 93.72919 | CZ132: 774 | DA132: 93.72919 | DB132: 786 | DC132: 111 | DD132: 753 | DE132: 94.02352905 | DF132: 751 | DG132: 70 | DH132: 821 | DI132: 97 | DJ132: 912 | DK132: 138 | DL132: 928 | DM132: 141 | DN132: 727 | DO132: 141 | DP132: 787 | DQ132: 141 | DR132: 757 | DS132: 149 | DT132: 806 | DU132: 143 | DV132: 8462.194 | DW132: 1501.357
A133: 17 | B133: B | C133: JCT CO 33 RD W TO FLAMING GORGE RES | D133: 513.585 | E133: 550.679 | G133: 37.5 | H133: SW0123 | I133: 2 | J133: 75 | K133: P | L133: 17 | M133: US | N133: 191 | O133: STP | P133: SW | Q133: 6 | R133: 140 | S133: 18 | T133: 190 | U133: 24 | V133: 200 | W133: 24 | X133: 210 | Y133: 30 | Z133: 190 | AA133: 22 | AB133: 180 | AC133: 20 | AD133: 200 | AE133: 26 | AF133: 180 | AG133: 30 | AH133: 220 | AI133: 32 | AJ133: 300 | AK133: 30 | AL133: 300 | AM133: 30 | AN133: 400 | AO133: 40 | AP133: 390 | AQ133: 35 | AR133: 380 | AS133: 60 | AT133: 390 | AU133: 60 | AV133: 380 | AW133: 60 | AX133: 380 | AY133: 60 | AZ133: 380 | BA133: 60 | BB133: 370 | BC133: 60 | BD133: 380 | BE133: 60 | BF133: 390 | BG133: 60 | BH133: 390 | BI133: 60 | BJ133: 390 | BK133: 60 | BL133: 400 | BM133: 60 | BN133: 540 | BO133: 60 | BP133: 550 | BQ133: 60 | BR133: 550 | BS133: 60 | BT133: 550 | BU133: 60 | BV133: 560 | BW133: 60 | BX133: 570 | BY133: 60 | BZ133: 570 | CA133: 60 | CB133: 550 | CC133: 70 | CD133: 500 | CE133: 80 | CF133: 500 | CG133: 90 | CH133: 510 | CI133: 90 | CJ133: 510 | CK133: 90 | CL133: 600 | CM133: 110 | CN133: 600 | CO133: 110 | CP133: 590 | CQ133: 110 | CR133: 842 | CS133: 68 | CT133: 832 | CU133: 104.10874 | CV133: 825 | CW133: 98.33491 | CX133: 674 | CY133: 80.99163 | CZ133: 669 | DA133: 80.99163 | DB133: 680 | DC133: 95 | DD133: 579 | DE133: 80.47058868 | DF133: 578 | DG133: 77.1155 | DH133: 631 | DI133: 90 | DJ133: 647 | DK133: 73 | DL133: 841 | DM133: 86 | DN133: 659 | DO133: 86 | DP133: 713 | DQ133: 86 | DR133: 686 | DS133: 149 | DT133: 731 | DU133: 87 | DV133: 27412.5 | DW133: 3262.5
A134: 17 | B134: B | C134: JCT BASIN ROAD | D134: 550.679 | E134: 551.39 | G134: 0.711 | H134: SW0123 | I134: 2 | J134: 1.422 | K134: P | L134: 17 | M134: US | N134: 191 | O134: STP | P134: SW | Q134: 6 | R134: 40 | S134: 6 | T134: 60 | U134: 12 | V134: 80 | W134: 12 | X134: 80 | Y134: 14 | Z134: 140 | AA134: 18 | AB134: 270 | AC134: 18 | AD134: 300 | AE134: 24 | AF134: 280 | AG134: 30 | AH134: 340 | AI134: 32 | AJ134: 280 | AK134: 30 | AL134: 280 | AM134: 30 | AN134: 400 | AO134: 40 | AP134: 410 | AQ134: 40 | AR134: 400 | AS134: 50 | AT134: 410 | AU134: 50 | AV134: 400 | AW134: 50 | AX134: 400 | AY134: 50 | AZ134: 400 | BA134: 50 | BB134: 390 | BC134: 50 | BD134: 400 | BE134: 50 | BF134: 410 | BG134: 50 | BH134: 410 | BI134: 50 | BJ134: 410 | BK134: 50 | BL134: 420 | BM134: 50 | BN134: 540 | BO134: 50 | BP134: 550 | BQ134: 50 | BR134: 550 | BS134: 50 | BT134: 550 | BU134: 50 | BV134: 560 | BW134: 50 | BX134: 580 | BY134: 50 | BZ134: 580 | CA134: 50 | CB134: 600 | CC134: 70 | CD134: 700 | CE134: 80 | CF134: 500 | CG134: 90 | CH134: 500 | CI134: 90 | CJ134: 500 | CK134: 90 | CL134: 630 | CM134: 110 | CN134: 630 | CO134: 110 | CP134: 620 | CQ134: 110 | CR134: 902 | CS134: 72 | CT134: 891 | CU134: 111.49146 | CV134: 885 | CW134: 105.48654 | CX134: 787 | CY134: 94.57035 | CZ134: 781 | DA134: 94.57035 | DB134: 793 | DC134: 111 | DD134: 658 | DE134: 94.02352905 | DF134: 657 | DG134: 87.68986 | DH134: 717 | DI134: 92 | DJ134: 826 | DK134: 85 | DL134: 841 | DM134: 86 | DN134: 659 | DO134: 86 | DP134: 713 | DQ134: 86 | DR134: 686 | DS134: 149 | DT134: 731 | DU134: 87 | DV134: 519.741 | DW134: 61.857
A135: 18 | B135: B | C135: JCT I 80 (CRESTON JCT INT) | D135: 0 | E135: 28.4 | G135: 28.426 | H135: 000163 | I135: 2 | J135: 56.852 | K135: P | L135: 18 | M135: WY | N135: 789 | O135: STP | P135: SW | Q135: 6 | R135: 330 | S135: 86 | T135: 350 | U135: 111 | V135: 420 | W135: 106 | X135: 450 | Y135: 112 | Z135: 460 | AA135: 118 | AB135: 510 | AC135: 128 | AD135: 540 | AE135: 134 | AF135: 590 | AG135: 140 | AH135: 620 | AI135: 155 | AJ135: 710 | AK135: 168 | AL135: 800 | AM135: 228 | AN135: 850 | AO135: 289 | AP135: 780 | AQ135: 275 | AR135: 850 | AS135: 270 | AT135: 810 | AU135: 265 | AV135: 790 | AW135: 260 | AX135: 790 | AY135: 260 | AZ135: 780 | BA135: 260 | BB135: 800 | BC135: 260 | BD135: 800 | BE135: 260 | BF135: 810 | BG135: 260 | BH135: 810 | BI135: 260 | BJ135: 830 | BK135: 260 | BL135: 850 | BM135: 260 | BN135: 870 | BO135: 230 | BP135: 870 | BQ135: 160 | BR135: 790 | BS135: 160 | BT135: 840 | BU135: 160 | BV135: 850 | BW135: 160 | BX135: 850 | BY135: 160 | BZ135: 860 | CA135: 160 | CB135: 1000 | CC135: 230 | CD135: 1120 | CE135: 230 | CF135: 1180 | CG135: 260 | CH135: 1090 | CI135: 290 | CJ135: 1280 | CK135: 380 | CL135: 1360 | CM135: 380 | CN135: 1480 | CO135: 410 | CP135: 1520 | CQ135: 440 | CR135: 1265 | CS135: 316 | CT135: 1148 | CU135: 269 | CV135: 1171 | CW135: 302.69926 | CX135: 1139 | CY135: 315.79648 | CZ135: 1054 | DA135: 275 | DB135: 1011 | DC135: 255 | DD135: 964 | DE135: 216 | DF135: 893 | DG135: 211 | DH135: 1028 | DI135: 490 | DJ135: 1112 | DK135: 299 | DL135: 1214 | DM135: 321 | DN135: 892 | DO135: 230 | DP135: 878 | DQ135: 228 | DR135: 932 | DS135: 228 | DT135: 1193 | DU135: 228 | DV135: 33912.218 | DW135: 6481.128
A136: 18 | B136: B | C136: MEXICAN FLATS ROAD | D136: 28.4 | E136: 49.52 | G136: 21.12 | H136: CB0102 | I136: 2 | J136: 42.24 | K136: P | L136: 18 | M136: WY | N136: 789 | O136: STP | P136: CB | Q136: 6 | R136: 330 | S136: 86 | T136: 350 | U136: 111 | V136: 420 | W136: 106 | X136: 450 | Y136: 112 | Z136: 460 | AA136: 118 | AB136: 510 | AC136: 128 | AD136: 540 | AE136: 134 | AF136: 590 | AG136: 140 | AH136: 620 | AI136: 155 | AJ136: 710 | AK136: 168 | AL136: 800 | AM136: 228 | AN136: 850 | AO136: 289 | AP136: 780 | AQ136: 275 | AR136: 810 | AS136: 250 | AT136: 770 | AU136: 245 | AV136: 750 | AW136: 240 | AX136: 750 | AY136: 240 | AZ136: 740 | BA136: 240 | BB136: 760 | BC136: 240 | BD136: 710 | BE136: 240 | BF136: 720 | BG136: 240 | BH136: 720 | BI136: 240 | BJ136: 740 | BK136: 240 | BL136: 760 | BM136: 240 | BN136: 790 | BO136: 210 | BP136: 790 | BQ136: 150 | BR136: 710 | BS136: 150 | BT136: 700 | BU136: 150 | BV136: 710 | BW136: 150 | BX136: 710 | BY136: 150 | BZ136: 720 | CA136: 150 | CB136: 890 | CC136: 210 | CD136: 860 | CE136: 210 | CF136: 960 | CG136: 250 | CH136: 1070 | CI136: 230 | CJ136: 1260 | CK136: 320 | CL136: 1400 | CM136: 400 | CN136: 1560 | CO136: 500 | CP136: 1600 | CQ136: 530 | CR136: 1486 | CS136: 405 | CT136: 1486 | CU136: 242.87869 | CV136: 1768 | CW136: 345.72588 | CX136: 1676 | CY136: 330.39039 | CZ136: 1594 | DA136: 276 | DB136: 1548 | DC136: 271 | DD136: 1127 | DE136: 258.2237244 | DF136: 1103 | DG136: 175.60148 | DH136: 1636 | DI136: 500 | DJ136: 1667 | DK136: 331 | DL136: 1595 | DM136: 332 | DN136: 1618 | DO136: 331 | DP136: 1750 | DQ136: 331 | DR136: 1684 | DS136: 331 | DT136: 1793 | DU136: 280 | DV136: 37868.16 | DW136: 5913.6
A137: 18 | B137: B | C137: JCT COUNTY ROAD 700 WEST | D137: 49.52 | E137: 50.57 | G137: 1.05 | H137: CB0103 | I137: 2 | J137: 2.1 | K137: P | L137: 18 | M137: WY | N137: 789 | O137: STP | P137: CB | Q137: 6 | R137: 330 | S137: 86 | T137: 350 | U137: 111 | V137: 420 | W137: 106 | X137: 450 | Y137: 112 | Z137: 460 | AA137: 118 | AB137: 510 | AC137: 128 | AD137: 540 | AE137: 134 | AF137: 590 | AG137: 140 | AH137: 620 | AI137: 155 | AJ137: 710 | AK137: 168 | AL137: 800 | AM137: 228 | AN137: 850 | AO137: 289 | AP137: 900 | AQ137: 275 | AR137: 1000 | AS137: 270 | AT137: 950 | AU137: 265 | AV137: 930 | AW137: 260 | AX137: 930 | AY137: 26 | AZ137: 920 | BA137: 260 | BB137: 940 | BC137: 260 | BD137: 940 | BE137: 260 | BF137: 950 | BG137: 260 | BH137: 950 | BI137: 260 | BJ137: 970 | BK137: 260 | BL137: 990 | BM137: 260 | BN137: 1020 | BO137: 230 | BP137: 1020 | BQ137: 160 | BR137: 950 | BS137: 160 | BT137: 950 | BU137: 160 | BV137: 970 | BW137: 160 | BX137: 970 | BY137: 160 | BZ137: 980 | CA137: 160 | CB137: 1200 | CC137: 200 | CD137: 1110 | CE137: 220 | CF137: 1200 | CG137: 260 | CH137: 1300 | CI137: 250 | CJ137: 1490 | CK137: 340 | CL137: 1630 | CM137: 420 | CN137: 1900 | CO137: 520 | CP137: 1940 | CQ137: 550 | CR137: 1801 | CS137: 427 | CT137: 1801 | CU137: 351.36701 | CV137: 2557 | CW137: 500.01192 | CX137: 2424 | CY137: 477.84385 | CZ137: 2305 | DA137: 399 | DB137: 2238 | DC137: 390 | DD137: 1544 | DE137: 383.6693726 | DF137: 1093 | DG137: 240.65674 | DH137: 2365 | DI137: 510 | DJ137: 2411 | DK137: 479 | DL137: 2307 | DM137: 479 | DN137: 2339 | DO137: 479 | DP137: 2531 | DQ137: 479 | DR137: 2435 | DS137: 479 | DT137: 2593 | DU137: 280 | DV137: 2722.65 | DW137: 294
A138: 18 | B138: B | C138: JCT ROUTE 401 (WY 70) | D138: 50.57 | E138: 50.819 | G138: 0.249 | H138: CB0105 | I138: 2 | J138: 0.498 | K138: P | L138: 18 | M138: WY | N138: 789 | O138: STP | P138: CB | Q138: 6 | R138: 540 | S138: 104 | T138: 560 | U138: 129 | V138: 620 | W138: 118 | X138: 650 | Y138: 124 | Z138: 660 | AA138: 132 | AB138: 660 | AC138: 142 | AD138: 690 | AE138: 144 | AF138: 740 | AG138: 152 | AH138: 800 | AI138: 170 | AJ138: 880 | AK138: 184 | AL138: 900 | AM138: 245 | AN138: 1100 | AO138: 305 | AP138: 1200 | AQ138: 290 | AR138: 1300 | AS138: 280 | AT138: 1240 | AU138: 275 | AV138: 1210 | AW138: 270 | AX138: 1220 | AY138: 270 | AZ138: 1210 | BA138: 270 | BB138: 1230 | BC138: 270 | BD138: 1230 | BE138: 270 | BF138: 1240 | BG138: 270 | BH138: 1240 | BI138: 270 | BJ138: 1260 | BK138: 270 | BL138: 1280 | BM138: 270 | BN138: 1300 | BO138: 270 | BP138: 1450 | BQ138: 190 | BR138: 1380 | BS138: 190 | BT138: 1380 | BU138: 190 | BV138: 1450 | BW138: 190 | BX138: 1450 | BY138: 190 | BZ138: 1500 | CA138: 200 | CB138: 1450 | CC138: 220 | CD138: 2100 | CE138: 240 | CF138: 2190 | CG138: 280 | CH138: 2400 | CI138: 300 | CJ138: 2590 | CK138: 390 | CL138: 2700 | CM138: 400 | CN138: 2900 | CO138: 450 | CP138: 2930 | CQ138: 460 | CR138: 2641 | CS138: 338 | CT138: 2641 | CU138: 381.39838 | CV138: 2776 | CW138: 542.83656 | CX138: 2161 | CY138: 425.99858 | CZ138: 2055 | DA138: 355 | DB138: 1995 | DC138: 348 | DD138: 1977 | DE138: 343.1838684 | DF138: 2149 | DG138: 308.09789 | DH138: 2109 | DI138: 507 | DJ138: 2150 | DK138: 427 | DL138: 2056 | DM138: 427 | DN138: 2085 | DO138: 427 | DP138: 2256 | DQ138: 427 | DR138: 2171 | DS138: 369 | DT138: 2312 | DU138: 280 | DV138: 575.688 | DW138: 69.72
A139: 18 | B139: B | C139: BAGGS SOUTH CORP LIMITS | D139: 50.819 | E139: 52.062 | G139: 1.243 | H139: CB0106 | I139: 2 | J139: 2.486 | K139: P | L139: 18 | M139: WY | N139: 789 | O139: STP | P139: CB | Q139: 6 | R139: 410 | S139: 96 | T139: 430 | U139: 129 | V139: 490 | W139: 93 | X139: 520 | Y139: 100 | Z139: 540 | AA139: 108 | AB139: 600 | AC139: 116 | AD139: 630 | AE139: 136 | AF139: 680 | AG139: 144 | AH139: 720 | AI139: 161 | AJ139: 730 | AK139: 174 | AL139: 800 | AM139: 235 | AN139: 890 | AO139: 195 | AP139: 780 | AQ139: 200 | AR139: 800 | AS139: 180 | AT139: 760 | AU139: 175 | AV139: 740 | AW139: 175 | AX139: 740 | AY139: 175 | AZ139: 730 | BA139: 175 | BB139: 750 | BC139: 175 | BD139: 710 | BE139: 175 | BF139: 720 | BG139: 175 | BH139: 720 | BI139: 175 | BJ139: 740 | BK139: 175 | BL139: 760 | BM139: 175 | BN139: 770 | BO139: 175 | BP139: 850 | BQ139: 110 | BR139: 780 | BS139: 110 | BT139: 780 | BU139: 110 | BV139: 790 | BW139: 110 | BX139: 790 | BY139: 110 | BZ139: 740 | CA139: 100 | CB139: 1000 | CC139: 150 | CD139: 1800 | CE139: 230 | CF139: 1900 | CG139: 270 | CH139: 2100 | CI139: 200 | CJ139: 2210 | CK139: 220 | CL139: 1200 | CM139: 250 | CN139: 1250 | CO139: 260 | CP139: 1260 | CQ139: 260 | CR139: 1117 | CS139: 240 | CT139: 1117 | CU139: 187.57092 | CV139: 1159 | CW139: 226.63818 | CX139: 1099 | CY139: 216.6462 | CZ139: 1045 | DA139: 181 | DB139: 1015 | DC139: 196 | DD139: 1021 | DE139: 194 | DF139: 1917 | DG139: 159.21837 | DH139: 1089 | DI139: 175 | DJ139: 1110 | DK139: 221 | DL139: 1062 | DM139: 221 | DN139: 1077 | DO139: 221 | DP139: 1165 | DQ139: 221 | DR139: 1121 | DS139: 221 | DT139: 1194 | DU139: 280 | DV139: 1484.142 | DW139: 348.04
A140: 18 | B140: B | C140: Port of Entry | D140: 52.062 | E140: 53.249 | G140: 1.187 | H140: CB0306 | I140: 2 | J140: 2.374 | K140: P | L140: 18 | M140: WY | N140: 789 | O140: STP | P140: CB | Q140: 6 | R140: 410 | S140: 96 | T140: 430 | U140: 129 | V140: 490 | W140: 93 | X140: 520 | Y140: 100 | Z140: 540 | AA140: 108 | AB140: 600 | AC140: 116 | AD140: 630 | AE140: 136 | AF140: 680 | AG140: 144 | AH140: 720 | AI140: 161 | AJ140: 730 | AK140: 174 | AL140: 800 | AM140: 235 | AN140: 890 | AO140: 195 | AP140: 780 | AQ140: 200 | AR140: 800 | AS140: 180 | AT140: 760 | AU140: 175 | AV140: 740 | AW140: 175 | AX140: 740 | AY140: 175 | AZ140: 730 | BA140: 175 | BB140: 750 | BC140: 175 | BD140: 710 | BE140: 175 | BF140: 720 | BG140: 175 | BH140: 720 | BI140: 175 | BJ140: 740 | BK140: 175 | BL140: 760 | BM140: 175 | BN140: 770 | BO140: 175 | BP140: 850 | BQ140: 110 | BR140: 780 | BS140: 110 | BT140: 780 | BU140: 110 | BV140: 790 | BW140: 110 | BX140: 790 | BY140: 110 | BZ140: 740 | CA140: 100 | CB140: 1000 | CC140: 150 | CD140: 1800 | CE140: 230 | CF140: 1900 | CG140: 270 | CH140: 2100 | CI140: 200 | CJ140: 2210 | CK140: 220 | CL140: 1200 | CM140: 250 | CN140: 1250 | CO140: 260 | CP140: 1260 | CQ140: 260 | CR140: 1117 | CS140: 240 | CT140: 1117 | CU140: 187.57092 | CV140: 1159 | CW140: 226.63818 | CX140: 1099 | CY140: 216.6462 | CZ140: 1045 | DL140: 1467 | DM140: 162 | DN140: 1435 | DO140: 162 | DP140: 1552 | DQ140: 162 | DR140: 1494 | DS140: 162 | DT140: 1590 | DU140: 280 | DV140: 1887.33 | DW140: 332.36
A141: 19 | B141: B | C141: JCT ROUTE 54 (US 30 BUS & I-80 BUS INT) | D141: 0.77 | E141: 1.024 | G141: 0.254 | H141: CB0107 | I141: 2 | J141: 0.508 | K141: P | L141: 21 | M141: US | N141: 287bypass | O141: NHS | P141: CB | Q141: 14 | R141: 750 | S141: 165 | T141: 750 | U141: 168 | V141: 800 | W141: 170 | X141: 780 | Y141: 170 | Z141: 830 | AA141: 250 | AB141: 850 | AC141: 258 | AD141: 910 | AE141: 276 | AF141: 4540 | AG141: 210 | AH141: 4920 | AI141: 240 | AJ141: 4920 | AK141: 240 | AL141: 4950 | AM141: 260 | AN141: 5000 | AO141: 300 | AP141: 5100 | AQ141: 380 | AR141: 5200 | AS141: 400 | AT141: 6500 | AU141: 385 | AV141: 6520 | AW141: 390 | AX141: 6400 | AY141: 320 | AZ141: 6350 | BA141: 320 | BB141: 6400 | BC141: 330 | BD141: 6500 | BE141: 330 | BF141: 6520 | BG141: 330 | BH141: 6420 | BI141: 350 | BJ141: 6440 | BK141: 350 | BL141: 6510 | BM141: 380 | BN141: 6310 | BO141: 420 | BP141: 6310 | BQ141: 420 | BR141: 6330 | BS141: 420 | BT141: 6400 | BU141: 420 | BV141: 6500 | BW141: 420 | BX141: 6600 | BY141: 420 | BZ141: 6600 | CA141: 420 | CB141: 9160 | CC141: 500 | CD141: 7910 | CE141: 430 | CF141: 7870 | CG141: 430 | CH141: 8570 | CI141: 710 | CJ141: 8400 | CK141: 690 | CL141: 8800 | CM141: 720 | CN141: 8950 | CO141: 730 | CP141: 8950 | CQ141: 730 | CR141: 9013 | CS141: 148.1391187 | CT141: 9013 | CU141: 148 | CV141: 9103 | CW141: 148.15793 | CX141: 8994 | CY141: 561 | CZ141: 8922 | DA141: 541 | DB141: 8931 | DC141: 473 | DD141: 9038 | DE141: 401.4064636 | DF141: 8302 | DG141: 350 | DH141: 8480 | DI141: 494 | DJ141: 8822 | DK141: 439 | DL141: 9013 | DM141: 470 | DN141: 8420 | DO141: 410 | DP141: 9165 | DQ141: 560 | DR141: 9080 | DS141: 560 | DT141: 9166 | DU141: 560 | DV141: 2328.164 | DW141: 142.24
A142: 19 | B142: B | C142: Daley St | D142: 1.024 | E142: 1.219 | G142: 0.195 | H142: CB0108 | I142: 2 | J142: 0.39 | K142: P | L142: 21 | M142: US | N142: 287bypass | O142: NHS | P142: CB | Q142: 14 | R142: 790 | S142: 174 | T142: 790 | U142: 176 | V142: 850 | W142: 170 | X142: 830 | Y142: 178 | Z142: 880 | AA142: 250 | AB142: 910 | AC142: 258 | AD142: 970 | AE142: 276 | AF142: 2500 | AG142: 176 | AH142: 2710 | AI142: 200 | AJ142: 2920 | AK142: 200 | AL142: 2930 | AM142: 220 | AN142: 3000 | AO142: 230 | AP142: 2500 | AQ142: 310 | AR142: 2450 | AS142: 340 | AT142: 2430 | AU142: 325 | AV142: 2450 | AW142: 320 | AX142: 2400 | AY142: 270 | AZ142: 2350 | BA142: 270 | BB142: 2400 | BC142: 280 | BD142: 2500 | BE142: 280 | BF142: 2520 | BG142: 280 | BH142: 2440 | BI142: 300 | BJ142: 2460 | BK142: 300 | BL142: 2530 | BM142: 330 | BN142: 2330 | BO142: 370 | BP142: 2330 | BQ142: 370 | BR142: 2350 | BS142: 370 | BT142: 2400 | BU142: 370 | BV142: 2450 | BW142: 370 | BX142: 2500 | BY142: 370 | BZ142: 2500 | CA142: 370 | CB142: 6790 | CC142: 520 | CD142: 5870 | CE142: 430 | CF142: 5840 | CG142: 430 | CH142: 6360 | CI142: 710 | CJ142: 6360 | CK142: 690 | CL142: 6760 | CM142: 720 | CN142: 6910 | CO142: 730 | CP142: 6910 | CQ142: 730 | CR142: 5237 | CS142: 86.0761749 | CT142: 5237 | CU142: 86 | CV142: 5311 | CW142: 86 | CX142: 5247 | CY142: 489 | CZ142: 5205 | DA142: 373 | DB142: 5210 | DC142: 381 | DD142: 5273 | DE142: 323.3316345 | DF142: 4842 | DG142: 277 | DH142: 7620 | DI142: 443 | DJ142: 7925 | DK142: 395 | DL142: 5258 | DM142: 457 | DN142: 4912 | DO142: 410 | DP142: 5347 | DQ142: 560 | DR142: 5297 | DS142: 560 | DT142: 5347 | DU142: 560 | DV142: 1042.665 | DW142: 109.2
A143: 19 | B143: B | C143: JCT MURRAY STREET | D143: 1.219 | E143: 1.513 | G143: 0.294 | H143: CB0109 | I143: 2 | J143: 0.588 | K143: P | L143: 21 | M143: US | N143: 287bypass | O143: NHS | P143: CB | Q143: 14 | R143: 790 | S143: 174 | T143: 790 | U143: 176 | V143: 850 | W143: 170 | X143: 830 | Y143: 178 | Z143: 880 | AA143: 250 | AB143: 910 | AC143: 258 | AD143: 970 | AE143: 276 | AF143: 2500 | AG143: 176 | AH143: 2710 | AI143: 200 | AJ143: 2920 | AK143: 200 | AL143: 2930 | AM143: 220 | AN143: 3000 | AO143: 230 | AP143: 2500 | AQ143: 310 | AR143: 2450 | AS143: 340 | AT143: 2430 | AU143: 325 | AV143: 2450 | AW143: 320 | AX143: 2400 | AY143: 270 | AZ143: 2350 | BA143: 270 | BB143: 3900 | BC143: 300 | BD143: 4000 | BE143: 300 | BF143: 4020 | BG143: 300 | BH143: 3720 | BI143: 320 | BJ143: 3740 | BK143: 320 | BL143: 3640 | BM143: 350 | BN143: 3340 | BO143: 390 | BP143: 3340 | BQ143: 390 | BR143: 3360 | BS143: 390 | BT143: 3400 | BU143: 390 | BV143: 3500 | BW143: 390 | BX143: 3550 | BY143: 440 | BZ143: 3600 | CA143: 450 | CB143: 3850 | CC143: 530 | CD143: 3330 | CE143: 440 | CF143: 3310 | CG143: 440 | CH143: 3600 | CI143: 720 | CJ143: 3700 | CK143: 680 | CL143: 4160 | CM143: 710 | CN143: 4300 | CO143: 720 | CP143: 4300 | CQ143: 720 | CR143: 4330 | CS143: 71.1685769 | CT143: 4330 | CU143: 71 | CV143: 4374 | CW143: 71 | CX143: 3687 | CY143: 432 | CZ143: 3640 | DA143: 261 | DB143: 3644 | DC143: 259 | DD143: 3538 | DE143: 219.7976227 | DF143: 3249 | DG143: 215 | DH143: 7050 | DI143: 410 | DJ143: 7335 | DK143: 365 | DL143: 3494 | DM143: 441 | DN143: 3264 | DO143: 410 | DP143: 5437 | DQ143: 560 | DR143: 5387 | DS143: 560 | DT143: 5438 | DU143: 560 | DV143: 1598.772 | DW143: 164.64
A144: 19 | B144: B | C144: Inverness St | D144: 1.513 | E144: 2.29 | G144: 0.777 | H144: RW1960 | I144: 2 | J144: 1.554 | K144: P | L144: 21 | M144: US | N144: 287bypass | O144: NHS | P144: CB | Q144: 14 | R144: 790 | S144: 174 | T144: 790 | U144: 176 | V144: 850 | W144: 170 | X144: 830 | Y144: 178 | Z144: 880 | AA144: 250 | AB144: 910 | AC144: 258 | AD144: 970 | AE144: 276 | AF144: 2500 | AG144: 176 | AH144: 2710 | AI144: 200 | AJ144: 2920 | AK144: 200 | AL144: 2930 | AM144: 220 | AN144: 3000 | AO144: 230 | AP144: 2500 | AQ144: 310 | AR144: 2450 | AS144: 340 | AT144: 2430 | AU144: 325 | AV144: 2450 | AW144: 320 | AX144: 2400 | AY144: 270 | AZ144: 2350 | BA144: 270 | BB144: 3900 | BC144: 300 | BD144: 4000 | BE144: 300 | BF144: 4020 | BG144: 300 | BH144: 3720 | BI144: 320 | BJ144: 3740 | BK144: 320 | BL144: 3640 | BM144: 350 | BN144: 3340 | BO144: 390 | BP144: 3340 | BQ144: 390 | BR144: 3360 | BS144: 390 | BT144: 3400 | BU144: 390 | BV144: 3500 | BW144: 390 | BX144: 3550 | BY144: 440 | BZ144: 3600 | CA144: 450 | CB144: 3850 | CC144: 530 | CD144: 3330 | CE144: 440 | CF144: 3310 | CG144: 440 | CH144: 3600 | CI144: 720 | CJ144: 3700 | CK144: 680 | CL144: 4160 | CM144: 710 | CN144: 4300 | CO144: 720 | CP144: 4300 | CQ144: 720 | CR144: 4330 | CS144: 71.1685769 | CT144: 4330 | CU144: 71 | CV144: 4374 | CW144: 71 | CX144: 3687 | CY144: 432 | CZ144: 3640 | DL144: 5314 | DM144: 450 | DN144: 4437 | DO144: 410 | DP144: 4829 | DQ144: 560 | DR144: 4785 | DS144: 560 | DT144: 4830 | DU144: 560 | DV144: 3752.91 | DW144: 435.12
A145: 20 | B145: B | C145: JCT ROUTE 21 (MUDDY GAP JCT) | D145: 0 | E145: 6.412 | G145: 6.412 | H145: 0013NW | I145: 2 | J145: 12.824 | K145: P | L145: 20 | M145: US/WY | N145: 287/789 | O145: NHS | P145: CB | Q145: 2 | R145: 670 | S145: 88 | T145: 640 | U145: 84 | V145: 690 | W145: 81 | X145: 720 | Y145: 114 | Z145: 690 | AA145: 114 | AB145: 760 | AC145: 136 | AD145: 900 | AE145: 152 | AF145: 980 | AG145: 156 | AH145: 1070 | AI145: 200 | AJ145: 1010 | AK145: 190 | AL145: 850 | AM145: 185 | AN145: 820 | AO145: 145 | AP145: 760 | AQ145: 125 | AR145: 810 | AS145: 180 | AT145: 780 | AU145: 150 | AV145: 760 | AW145: 145 | AX145: 770 | AY145: 145 | AZ145: 740 | BA145: 150 | BB145: 760 | BC145: 155 | BD145: 760 | BE145: 155 | BF145: 810 | BG145: 165 | BH145: 780 | BI145: 100 | BJ145: 760 | BK145: 95 | BL145: 770 | BM145: 95 | BN145: 790 | BO145: 95 | BP145: 770 | BQ145: 95 | BR145: 770 | BS145: 95 | BT145: 840 | BU145: 120 | BV145: 860 | BW145: 120 | BX145: 840 | BY145: 120 | BZ145: 820 | CA145: 120 | CB145: 900 | CC145: 130 | CD145: 910 | CE145: 150 | CF145: 910 | CG145: 150 | CH145: 950 | CI145: 150 | CJ145: 910 | CK145: 140 | CL145: 900 | CM145: 140 | CN145: 990 | CO145: 160 | CP145: 950 | CQ145: 140 | CR145: 917 | CS145: 128 | CT145: 901 | CU145: 124 | CV145: 790 | CW145: 107 | CX145: 785 | CY145: 107.34682 | CZ145: 734 | DA145: 96 | DB145: 755 | DC145: 97 | DD145: 810 | DE145: 140 | DF145: 838 | DG145: 99.10422 | DH145: 923 | DI145: 124 | DJ145: 987 | DK145: 129 | DL145: 994 | DM145: 131 | DN145: 877 | DO145: 115 | DP145: 994 | DQ145: 121 | DR145: 913 | DS145: 121 | DT145: 546 | DU145: 82 | DV145: 3500.952 | DW145: 525.784
A146: 20 | B146: B | C146: CARBON - FREMONT COUNTY LINE | D146: 6.412 | E146: 6.518 | G146: 0.106 | H146: 0013NW | I146: 2 | J146: 0.212 | K146: P | L146: 20 | M146: US/WY | N146: 287/789 | O146: NHS | P146: FR | Q146: 2 | R146: 670 | S146: 88 | T146: 640 | U146: 84 | V146: 690 | W146: 81 | X146: 720 | Y146: 114 | Z146: 690 | AA146: 114 | AB146: 760 | AC146: 136 | AD146: 900 | AE146: 152 | AF146: 980 | AG146: 156 | AH146: 1070 | AI146: 200 | AJ146: 1010 | AK146: 190 | AL146: 850 | AM146: 185 | AN146: 820 | AO146: 145 | AP146: 760 | AQ146: 125 | AR146: 730 | AS146: 120 | AT146: 700 | AU146: 100 | AV146: 680 | AW146: 95 | AX146: 760 | AY146: 140 | AZ146: 730 | BA146: 145 | BB146: 750 | BC146: 150 | BD146: 750 | BE146: 150 | BF146: 800 | BG146: 160 | BH146: 770 | BI146: 95 | BJ146: 750 | BK146: 90 | BL146: 760 | BM146: 90 | BN146: 780 | BO146: 90 | BP146: 760 | BQ146: 90 | BR146: 760 | BS146: 90 | BT146: 820 | BU146: 120 | BV146: 840 | BW146: 120 | BX146: 820 | BY146: 120 | BZ146: 800 | CA146: 120 | CB146: 810 | CC146: 130 | CD146: 850 | CE146: 150 | CF146: 970 | CG146: 170 | CH146: 950 | CI146: 150 | CJ146: 910 | CK146: 140 | CL146: 900 | CM146: 140 | CN146: 990 | CO146: 160 | CP146: 950 | CQ146: 140 | CR146: 960 | CS146: 128 | CT146: 960 | CU146: 124 | CV146: 946 | CW146: 107 | CX146: 957 | CY146: 107.34682 | CZ146: 755 | DA146: 96 | DB146: 769 | DC146: 103 | DD146: 786 | DE146: 146.286911 | DF146: 970 | DG146: 108.75069 | DH146: 923 | DI146: 124 | DJ146: 987 | DK146: 129 | DL146: 994 | DM146: 131 | DN146: 877 | DO146: 115 | DP146: 994 | DQ146: 121 | DR146: 913 | DS146: 121 | DT146: 546 | DU146: 82 | DV146: 57.876 | DW146: 8.692
A147: 20 | B147: B | C147: FREMONT - NATRONA COUNTY LINE | D147: 6.412 | E147: 7.917 | G147: 1.399 | H147: 0013NW | I147: 2 | J147: 2.798 | K147: P | L147: 20 | M147: US/WY | N147: 287/789 | O147: NHS | P147: NA | Q147: 2 | R147: 670 | S147: 88 | T147: 640 | U147: 84 | V147: 690 | W147: 81 | X147: 720 | Y147: 114 | Z147: 690 | AA147: 114 | AB147: 760 | AC147: 136 | AD147: 900 | AE147: 152 | AF147: 980 | AG147: 156 | AH147: 1070 | AI147: 200 | AJ147: 1010 | AK147: 190 | AL147: 850 | AM147: 185 | AN147: 820 | AO147: 145 | AP147: 760 | AQ147: 125 | AR147: 730 | AS147: 120 | AT147: 700 | AU147: 100 | AV147: 680 | AW147: 95 | AX147: 760 | AY147: 140 | AZ147: 730 | BA147: 145 | BB147: 750 | BC147: 150 | BD147: 750 | BE147: 150 | BF147: 800 | BG147: 160 | BH147: 770 | BI147: 95 | BJ147: 750 | BK147: 90 | BL147: 760 | BM147: 90 | BN147: 780 | BO147: 90 | BP147: 760 | BQ147: 90 | BR147: 760 | BS147: 90 | BT147: 820 | BU147: 120 | BV147: 840 | BW147: 120 | BX147: 820 | BY147: 120 | BZ147: 800 | CA147: 120 | CB147: 810 | CC147: 130 | CD147: 850 | CE147: 150 | CF147: 970 | CG147: 170 | CH147: 950 | CI147: 150 | CJ147: 910 | CK147: 140 | CL147: 900 | CM147: 140 | CN147: 990 | CO147: 160 | CP147: 950 | CQ147: 140 | CR147: 960 | CS147: 128 | CT147: 960 | CU147: 124 | CV147: 946 | CW147: 107 | CX147: 957 | CY147: 107 | CZ147: 755 | DA147: 96 | DB147: 769 | DC147: 103 | DD147: 786 | DE147: 145.7389984 | DF147: 810 | DG147: 89 | DH147: 923 | DI147: 124 | DJ147: 987 | DK147: 129 | DL147: 994 | DM147: 131 | DN147: 877 | DO147: 115 | DP147: 994 | DQ147: 121 | DR147: 913 | DS147: 121 | DT147: 546 | DU147: 82 | DV147: 763.854 | DW147: 114.718
A148: 20 | B148: B | C148: NATRONA - FREMONT COUNTY LINE | D148: 6.412 | E148: 22.41 | G148: 14.493 | H148: 0013NW | I148: 2 | J148: 28.986 | K148: P | L148: 20 | M148: US/WY | N148: 287/789 | O148: NHS | P148: FR | Q148: 2 | R148: 660 | S148: 88 | T148: 630 | U148: 84 | V148: 690 | W148: 81 | X148: 720 | Y148: 114 | Z148: 690 | AA148: 114 | AB148: 760 | AC148: 136 | AD148: 900 | AE148: 152 | AF148: 980 | AG148: 156 | AH148: 1070 | AI148: 200 | AJ148: 1010 | AK148: 190 | AL148: 850 | AM148: 185 | AN148: 820 | AO148: 145 | AP148: 760 | AQ148: 125 | AR148: 730 | AS148: 120 | AT148: 700 | AU148: 100 | AV148: 680 | AW148: 95 | AX148: 760 | AY148: 140 | AZ148: 730 | BA148: 145 | BB148: 750 | BC148: 150 | BD148: 750 | BE148: 150 | BF148: 800 | BG148: 160 | BH148: 770 | BI148: 95 | BJ148: 750 | BK148: 90 | BL148: 760 | BM148: 90 | BN148: 780 | BO148: 90 | BP148: 760 | BQ148: 90 | BR148: 760 | BS148: 90 | BT148: 820 | BU148: 120 | BV148: 840 | BW148: 120 | BX148: 820 | BY148: 120 | BZ148: 800 | CA148: 120 | CB148: 890 | CC148: 130 | CD148: 930 | CE148: 150 | CF148: 1060 | CG148: 170 | CH148: 860 | CI148: 150 | CJ148: 860 | CK148: 140 | CL148: 850 | CM148: 140 | CN148: 940 | CO148: 160 | CP148: 950 | CQ148: 140 | CR148: 960 | CS148: 128 | CT148: 960 | CU148: 124 | CV148: 996 | CW148: 107 | CX148: 1008 | CY148: 106.8843933 | CZ148: 777 | DA148: 96 | DB148: 925 | DC148: 124 | DD148: 945 | DE148: 168.4877167 | DF148: 970 | DG148: 108.75069 | DH148: 923 | DI148: 124 | DJ148: 987 | DK148: 129 | DL148: 994 | DM148: 131 | DN148: 877 | DO148: 115 | DP148: 994 | DQ148: 121 | DR148: 913 | DS148: 121 | DT148: 546 | DU148: 82 | DV148: 7913.178 | DW148: 1188.426
A149: 20 | B149: B | C149: JEFFREY CITY - EAST SIDE | D149: 6.412 | E149: 23.03 | G149: 0.62 | H149: 0013NW | I149: 2 | J149: 1.24 | K149: P | L149: 20 | M149: US/WY | N149: 287/789 | O149: NHS | P149: FR | Q149: 2 | R149: 670 | S149: 86 | T149: 710 | U149: 82 | V149: 700 | W149: 79 | X149: 750 | Y149: 110 | Z149: 740 | AA149: 116 | AB149: 800 | AC149: 132 | AD149: 930 | AE149: 136 | AF149: 1010 | AG149: 140 | AH149: 1100 | AI149: 180 | AJ149: 1040 | AK149: 154 | AL149: 880 | AM149: 155 | AN149: 860 | AO149: 139 | AP149: 790 | AQ149: 120 | AR149: 750 | AS149: 110 | AT149: 720 | AU149: 90 | AV149: 700 | AW149: 85 | AX149: 860 | AY149: 145 | AZ149: 830 | BA149: 150 | BB149: 850 | BC149: 155 | BD149: 850 | BE149: 155 | BF149: 900 | BG149: 165 | BH149: 870 | BI149: 100 | BJ149: 850 | BK149: 95 | BL149: 860 | BM149: 95 | BN149: 890 | BO149: 95 | BP149: 870 | BQ149: 95 | BR149: 870 | BS149: 95 | BT149: 920 | BU149: 120 | BV149: 940 | BW149: 120 | BX149: 920 | BY149: 120 | BZ149: 900 | CA149: 120 | CB149: 900 | CC149: 120 | CD149: 940 | CE149: 140 | CF149: 1070 | CG149: 160 | CH149: 850 | CI149: 140 | CJ149: 850 | CK149: 140 | CL149: 890 | CM149: 140 | CN149: 1100 | CO149: 190 | CP149: 1060 | CQ149: 170 | CR149: 1072 | CS149: 140 | CT149: 1072 | CU149: 141 | CV149: 1056 | CW149: 118 | CX149: 1069 | CY149: 118 | CZ149: 867 | DA149: 115 | DB149: 883 | DC149: 119 | DD149: 902 | DE149: 155.1816559 | DF149: 963 | DG149: 108 | DH149: 923 | DI149: 124 | DJ149: 987 | DK149: 129 | DL149: 994 | DM149: 131 | DN149: 877 | DO149: 115 | DP149: 994 | DQ149: 121 | DR149: 913 | DS149: 121 | DT149: 546 | DU149: 82 | DV149: 338.52 | DW149: 50.84
A150: 20 | B150: B | C150: JEFFREY CITY - WEST SIDE | D150: 23.03 | E150: 42.11 | G150: 19.08 | H150: FR0123 | I150: 2 | J150: 38.16 | K150: P | L150: 20 | M150: US/WY | N150: 287/789 | O150: NHS | P150: FR | Q150: 2 | R150: 670 | S150: 86 | T150: 710 | U150: 82 | V150: 700 | W150: 79 | X150: 750 | Y150: 110 | Z150: 740 | AA150: 116 | AB150: 800 | AC150: 132 | AD150: 930 | AE150: 136 | AF150: 1010 | AG150: 140 | AH150: 1100 | AI150: 180 | AJ150: 1040 | AK150: 154 | AL150: 880 | AM150: 155 | AN150: 860 | AO150: 139 | AP150: 790 | AQ150: 120 | AR150: 750 | AS150: 110 | AT150: 720 | AU150: 90 | AV150: 700 | AW150: 85 | AX150: 760 | AY150: 145 | AZ150: 730 | BA150: 145 | BB150: 750 | BC150: 150 | BD150: 750 | BE150: 150 | BF150: 800 | BG150: 160 | BH150: 770 | BI150: 95 | BJ150: 750 | BK150: 90 | BL150: 760 | BM150: 90 | BN150: 790 | BO150: 90 | BP150: 770 | BQ150: 90 | BR150: 770 | BS150: 90 | BT150: 820 | BU150: 120 | BV150: 840 | BW150: 120 | BX150: 820 | BY150: 120 | BZ150: 800 | CA150: 120 | CB150: 820 | CC150: 120 | CD150: 930 | CE150: 140 | CF150: 1060 | CG150: 160 | CH150: 860 | CI150: 140 | CJ150: 860 | CK150: 140 | CL150: 900 | CM150: 140 | CN150: 950 | CO150: 160 | CP150: 910 | CQ150: 140 | CR150: 958 | CS150: 128 | CT150: 958 | CU150: 141.26926 | CV150: 958 | CW150: 118 | CX150: 969 | CY150: 118 | CZ150: 967 | DA150: 129 | DB150: 985 | DC150: 132 | DD150: 1007 | DE150: 163.041214 | DF150: 908 | DG150: 104 | DH150: 950 | DI150: 144 | DJ150: 1207 | DK150: 146 | DL150: 1230 | DM150: 149 | DN150: 1176 | DO150: 126 | DP150: 1272 | DQ150: 629 | DR150: 1219 | DS150: 145 | DT150: 1283 | DU150: 145 | DV150: 24479.64 | DW150: 2766.6
A151: 20 | B151: B | C151: BISON BASIN ROAD | D151: 42.11 | E151: 42.25 | G151: 0.14 | H151: FR0126 | I151: 2 | J151: 0.28 | K151: P | L151: 20 | M151: US/WY | N151: 287/789 | O151: NHS | P151: FR | Q151: 2 | R151: 670 | S151: 86 | T151: 710 | U151: 88 | V151: 720 | W151: 87 | X151: 760 | Y151: 108 | Z151: 750 | AA151: 120 | AB151: 770 | AC151: 122 | AD151: 860 | AE151: 120 | AF151: 1050 | AG151: 120 | AH151: 1050 | AI151: 160 | AJ151: 1000 | AK151: 137 | AL151: 860 | AM151: 143 | AN151: 840 | AO151: 130 | AP151: 780 | AQ151: 120 | AR151: 740 | AS151: 110 | AT151: 710 | AU151: 90 | AV151: 690 | AW151: 85 | AX151: 760 | AY151: 145 | AZ151: 730 | BA151: 145 | BB151: 700 | BC151: 120 | BD151: 700 | BE151: 120 | BF151: 750 | BG151: 130 | BH151: 800 | BI151: 90 | BJ151: 820 | BK151: 85 | BL151: 830 | BM151: 85 | BN151: 860 | BO151: 85 | BP151: 840 | BQ151: 85 | BR151: 840 | BS151: 85 | BT151: 860 | BU151: 90 | BV151: 880 | BW151: 90 | BX151: 860 | BY151: 90 | BZ151: 840 | CA151: 90 | CB151: 830 | CC151: 90 | CD151: 900 | CE151: 140 | CF151: 1020 | CG151: 160 | CH151: 900 | CI151: 140 | CJ151: 900 | CK151: 140 | CL151: 950 | CM151: 140 | CN151: 980 | CO151: 160 | CP151: 950 | CQ151: 140 | CR151: 1447 | CS151: 128 | CT151: 1447 | CU151: 129 | CV151: 1129 | CW151: 109 | CX151: 1143 | CY151: 110 | CZ151: 1141 | DA151: 144 | DB151: 1230 | DC151: 165 | DD151: 1257 | DE151: 192.8923798 | DF151: 1005 | DG151: 119 | DH151: 1322 | DI151: 178 | DJ151: 1330 | DK151: 156 | DL151: 910 | DM151: 168 | DN151: 871 | DO151: 146 | DP151: 941 | DQ151: 629 | DR151: 902 | DS151: 186 | DT151: 915 | DU151: 191 | DV151: 128.1 | DW151: 26.74
A152: 20 | B152: B | C152: JCT ROUTE 708 (WY 135) | D152: 42.25 | E152: 46.34 | G152: 4.09 | H152: FR0126 | I152: 2 | J152: 8.18 | K152: P | L152: 20 | M152: US/WY | N152: 287/789 | O152: NHS | P152: FR | Q152: 2 | R152: 670 | S152: 86 | T152: 710 | U152: 88 | V152: 720 | W152: 87 | X152: 760 | Y152: 108 | Z152: 750 | AA152: 120 | AB152: 770 | AC152: 122 | AD152: 860 | AE152: 120 | AF152: 1080 | AG152: 120 | AH152: 1080 | AI152: 160 | AJ152: 1120 | AK152: 137 | AL152: 980 | AM152: 143 | AN152: 890 | AO152: 130 | AP152: 750 | AQ152: 110 | AR152: 600 | AS152: 90 | AT152: 540 | AU152: 75 | AV152: 530 | AW152: 75 | AX152: 540 | AY152: 85 | AZ152: 500 | BA152: 90 | BB152: 500 | BC152: 90 | BD152: 510 | BE152: 90 | BF152: 560 | BG152: 100 | BH152: 540 | BI152: 75 | BJ152: 560 | BK152: 70 | BL152: 550 | BM152: 70 | BN152: 580 | BO152: 70 | BP152: 560 | BQ152: 50 | BR152: 560 | BS152: 50 | BT152: 560 | BU152: 50 | BV152: 550 | BW152: 50 | BX152: 530 | BY152: 50 | BZ152: 520 | CA152: 50 | CB152: 520 | CC152: 50 | CD152: 570 | CE152: 90 | CF152: 650 | CG152: 100 | CH152: 520 | CI152: 140 | CJ152: 520 | CK152: 140 | CL152: 560 | CM152: 140 | CN152: 590 | CO152: 160 | CP152: 560 | CQ152: 140 | CR152: 872 | CS152: 128 | CT152: 872 | CU152: 128.58747 | CV152: 755 | CW152: 109 | CX152: 764 | CY152: 109.5406 | CZ152: 762 | DA152: 169 | DB152: 613 | DC152: 168 | DD152: 626 | DE152: 193.7630768 | DF152: 631 | DG152: 76 | DH152: 888 | DI152: 120 | DJ152: 893 | DK152: 105 | DL152: 910 | DM152: 168 | DN152: 871 | DO152: 146 | DP152: 941 | DQ152: 629 | DR152: 902 | DS152: 186 | DT152: 915 | DU152: 191 | DV152: 3742.35 | DW152: 781.19
A153: 20 | B153: B | C153: ANTELOPE CREEK | D153: 46.34 | E153: 54.429 | G153: 80.089 | H153: FR0126 | I153: 2 | J153: 160.178 | K153: P | L153: 20 | M153: US/WY | N153: 287/789 | O153: NHS | P153: FR | Q153: 2 | R153: 670 | S153: 86 | T153: 710 | U153: 88 | V153: 720 | W153: 87 | X153: 760 | Y153: 108 | Z153: 750 | AA153: 120 | AB153: 770 | AC153: 122 | AD153: 860 | AE153: 120 | AF153: 1080 | AG153: 120 | AH153: 1080 | AI153: 160 | AJ153: 1120 | AK153: 137 | AL153: 980 | AM153: 143 | AN153: 890 | AO153: 130 | AP153: 750 | AQ153: 110 | AR153: 600 | AS153: 90 | AT153: 540 | AU153: 75 | AV153: 530 | AW153: 75 | AX153: 540 | AY153: 85 | AZ153: 500 | BA153: 90 | BB153: 500 | BC153: 90 | BD153: 510 | BE153: 90 | BF153: 560 | BG153: 100 | BH153: 540 | BI153: 75 | BJ153: 560 | BK153: 70 | BL153: 550 | BM153: 70 | BN153: 580 | BO153: 70 | BP153: 560 | BQ153: 50 | BR153: 560 | BS153: 50 | BT153: 560 | BU153: 50 | BV153: 550 | BW153: 50 | BX153: 530 | BY153: 50 | BZ153: 520 | CA153: 50 | CB153: 520 | CC153: 50 | CD153: 570 | CE153: 90 | CF153: 650 | CG153: 100 | CH153: 720 | CI153: 160 | CJ153: 720 | CK153: 160 | CL153: 740 | CM153: 160 | CN153: 770 | CO153: 170 | CP153: 740 | CQ153: 150 | CR153: 842 | CS153: 134 | CT153: 842 | CU153: 124.16359 | CV153: 842 | CW153: 108 | CX153: 852 | CY153: 122.15785 | CZ153: 850 | DA153: 113 | DB153: 826 | DC153: 111 | DD153: 844 | DE153: 123.3050919 | DF153: 631 | DG153: 76 | DH153: 888 | DI153: 120 | DJ153: 893 | DK153: 105 | DL153: 910 | DM153: 168 | DN153: 871 | DO153: 146 | DP153: 941 | DQ153: 629 | DR153: 902 | DS153: 186 | DT153: 915 | DU153: 191 | DV153: 73281.435 | DW153: 15296.999
A154: 20 | B154: B | C154: JCT OLD HIGHWAY | D154: 55.004 | E154: 72.868 | G154: 17.864 | H154: 00011E | I154: 2 | J154: 35.728 | K154: P | L154: 20 | M154: US/WY | N154: 287/789 | O154: NHS | P154: FR | Q154: 2 | R154: 640 | S154: 76 | T154: 700 | U154: 83 | V154: 720 | W154: 87 | X154: 760 | Y154: 108 | Z154: 750 | AA154: 116 | AB154: 770 | AC154: 118 | AD154: 860 | AE154: 120 | AF154: 1080 | AG154: 120 | AH154: 1080 | AI154: 160 | AJ154: 1120 | AK154: 137 | AL154: 980 | AM154: 143 | AN154: 920 | AO154: 130 | AP154: 770 | AQ154: 110 | AR154: 670 | AS154: 90 | AT154: 600 | AU154: 75 | AV154: 570 | AW154: 70 | AX154: 580 | AY154: 85 | AZ154: 540 | BA154: 90 | BB154: 540 | BC154: 90 | BD154: 560 | BE154: 90 | BF154: 610 | BG154: 100 | BH154: 590 | BI154: 75 | BJ154: 610 | BK154: 70 | BL154: 600 | BM154: 70 | BN154: 640 | BO154: 70 | BP154: 640 | BQ154: 50 | BR154: 640 | BS154: 50 | BT154: 660 | BU154: 50 | BV154: 650 | BW154: 50 | BX154: 640 | BY154: 50 | BZ154: 630 | CA154: 50 | CB154: 680 | CC154: 60 | CD154: 740 | CE154: 90 | CF154: 840 | CG154: 100 | CH154: 720 | CI154: 160 | CJ154: 720 | CK154: 160 | CL154: 740 | CM154: 150 | CN154: 770 | CO154: 160 | CP154: 740 | CQ154: 140 | CR154: 754 | CS154: 128 | CT154: 773 | CU154: 129 | CV154: 742 | CW154: 107 | CX154: 723 | CY154: 103.66212 | CZ154: 719 | DA154: 126 | DB154: 719 | DC154: 117 | DD154: 793 | DE154: 119 | DF154: 818 | DG154: 99 | DH154: 869 | DI154: 117 | DJ154: 854 | DK154: 101 | DL154: 840 | DM154: 174 | DN154: 798 | DO154: 154 | DP154: 862 | DQ154: 629 | DR154: 788 | DS154: 186 | DT154: 602 | DU154: 215 | DV154: 10754.128 | DW154: 3840.76
A155: 20 | B155: B | C155: JCT ROUTE 14 (WY 28) | D155: 72.868 | E155: 78.539 | G155: 5.906 | H155: 00011N | I155: 2 | J155: 11.812 | K155: P | L155: 20 | M155: US/WY | N155: 287/789 | O155: NHS | P155: FR | Q155: 2 | R155: 1350 | S155: 186 | T155: 1480 | U155: 189 | V155: 1430 | W155: 190 | X155: 1470 | Y155: 196 | Z155: 1550 | AA155: 220 | AB155: 1600 | AC155: 238 | AD155: 1710 | AE155: 240 | AF155: 1940 | AG155: 270 | AH155: 2030 | AI155: 346 | AJ155: 2080 | AK155: 297 | AL155: 1900 | AM155: 314 | AN155: 2100 | AO155: 300 | AP155: 1910 | AQ155: 250 | AR155: 1680 | AS155: 210 | AT155: 1440 | AU155: 195 | AV155: 1460 | AW155: 200 | AX155: 1540 | AY155: 350 | AZ155: 1480 | BA155: 350 | BB155: 1640 | BC155: 360 | BD155: 1630 | BE155: 360 | BF155: 1720 | BG155: 370 | BH155: 1730 | BI155: 420 | BJ155: 1810 | BK155: 430 | BL155: 1840 | BM155: 430 | BN155: 1870 | BO155: 430 | BP155: 1950 | BQ155: 430 | BR155: 1920 | BS155: 380 | BT155: 2030 | BU155: 380 | BV155: 2040 | BW155: 400 | BX155: 2070 | BY155: 400 | BZ155: 2000 | CA155: 380 | CB155: 2100 | CC155: 390 | CD155: 2160 | CE155: 400 | CF155: 2180 | CG155: 400 | CH155: 2120 | CI155: 380 | CJ155: 2170 | CK155: 390 | CL155: 2250 | CM155: 390 | CN155: 2280 | CO155: 400 | CP155: 2330 | CQ155: 380 | CR155: 1885 | CS155: 378 | CT155: 1686 | CU155: 358 | CV155: 2186 | CW155: 315 | CX155: 2268 | CY155: 325.18075 | CZ155: 2218 | DA155: 107 | DB155: 2237 | DC155: 302 | DD155: 2267 | DE155: 352.460083 | DF155: 2278 | DG155: 306.98149 | DH155: 2303 | DI155: 161 | DJ155: 2304 | DK155: 271 | DL155: 1860 | DM155: 205 | DN155: 2177 | DO155: 164 | DP155: 2221 | DQ155: 618 | DR155: 2267 | DS155: 263 | DT155: 2100 | DU155: 223 | DV155: 12402.6 | DW155: 1317.038
A156: 20 | B156: B | C156: JCT WILLOW CREEK ROAD | D156: 78.539 | E156: 79.29 | G156: 0.751 | H156: FR0128 | I156: 2 | J156: 1.502 | K156: P | L156: 20 | M156: US/WY | N156: 287/789 | O156: NHS | P156: FR | Q156: 2 | R156: 1420 | S156: 190 | T156: 1550 | U156: 192 | V156: 1500 | W156: 193 | X156: 1540 | Y156: 200 | Z156: 1630 | AA156: 224 | AB156: 1700 | AC156: 242 | AD156: 1810 | AE156: 244 | AF156: 2050 | AG156: 274 | AH156: 2140 | AI156: 350 | AJ156: 2200 | AK156: 300 | AL156: 2200 | AM156: 300 | AN156: 2800 | AO156: 350 | AP156: 2500 | AQ156: 300 | AR156: 2200 | AS156: 250 | AT156: 1960 | AU156: 235 | AV156: 1990 | AW156: 240 | AX156: 2100 | AY156: 390 | AZ156: 2020 | BA156: 390 | BB156: 2180 | BC156: 400 | BD156: 2170 | BE156: 400 | BF156: 2260 | BG156: 410 | BH156: 2280 | BI156: 460 | BJ156: 2360 | BK156: 470 | BL156: 2390 | BM156: 470 | BN156: 2420 | BO156: 470 | BP156: 2500 | BQ156: 470 | BR156: 2470 | BS156: 420 | BT156: 2500 | BU156: 420 | BV156: 2550 | BW156: 440 | BX156: 2580 | BY156: 440 | BZ156: 2500 | CA156: 420 | CB156: 2600 | CC156: 500 | CD156: 2680 | CE156: 500 | CF156: 2710 | CG156: 500 | CH156: 2640 | CI156: 380 | CJ156: 2690 | CK156: 390 | CL156: 2770 | CM156: 400 | CN156: 2800 | CO156: 410 | CP156: 3170 | CQ156: 390 | CR156: 3409 | CS156: 388 | CT156: 3409 | CU156: 368 | CV156: 2682 | CW156: 325 | CX156: 2714 | CY156: 325 | CZ156: 2751 | DA156: 329 | DB156: 2904 | DC156: 307 | DD156: 2968 | DE156: 372.7189636 | DF156: 2963 | DG156: 289 | DH156: 3120 | DI156: 219 | DJ156: 3141 | DK156: 370 | DL156: 3089 | DM156: 358 | DN156: 2886 | DO156: 196 | DP156: 3141 | DQ156: 518 | DR156: 3112 | DS156: 337 | DT156: 3277 | DU156: 227 | DV156: 2461.027 | DW156: 170.477
A157: 20 | B157: B | C157: JCT MORTIMORE LANE | D157: 79.29 | E157: 80.77 | G157: 1.48 | H157: FR0129 | I157: 2 | J157: 2.96 | K157: P | L157: 20 | M157: US/WY | N157: 287/789 | O157: NHS | P157: FR | Q157: 14 | R157: 1420 | S157: 190 | T157: 1550 | U157: 192 | V157: 1500 | W157: 193 | X157: 1540 | Y157: 200 | Z157: 1630 | AA157: 224 | AB157: 1700 | AC157: 242 | AD157: 1810 | AE157: 244 | AF157: 2050 | AG157: 274 | AH157: 2140 | AI157: 350 | AJ157: 2200 | AK157: 300 | AL157: 3900 | AM157: 340 | AN157: 4000 | AO157: 400 | AP157: 3600 | AQ157: 350 | AR157: 3200 | AS157: 300 | AT157: 2850 | AU157: 280 | AV157: 2890 | AW157: 285 | AX157: 3060 | AY157: 435 | AZ157: 2960 | BA157: 435 | BB157: 3120 | BC157: 445 | BD157: 3100 | BE157: 445 | BF157: 3190 | BG157: 455 | BH157: 3200 | BI157: 505 | BJ157: 3340 | BK157: 515 | BL157: 3380 | BM157: 515 | BN157: 3410 | BO157: 515 | BP157: 3510 | BQ157: 515 | BR157: 3480 | BS157: 460 | BT157: 3500 | BU157: 460 | BV157: 3600 | BW157: 460 | BX157: 3650 | BY157: 460 | BZ157: 3600 | CA157: 460 | CB157: 3650 | CC157: 560 | CD157: 5100 | CE157: 560 | CF157: 5150 | CG157: 570 | CH157: 5030 | CI157: 380 | CJ157: 5080 | CK157: 390 | CL157: 4550 | CM157: 400 | CN157: 4750 | CO157: 410 | CP157: 5370 | CQ157: 390 | CR157: 5617 | CS157: 388 | CT157: 5617 | CU157: 368.46378 | CV157: 4498 | CW157: 329 | CX157: 4444 | CY157: 329 | CZ157: 3058 | DA157: 408 | DB157: 3061 | DC157: 348 | DD157: 3098 | DE157: 437.285553 | DF157: 6970 | DG157: 382 | DH157: 4435 | DI157: 249 | DJ157: 4612 | DK157: 230 | DL157: 4441 | DM157: 365 | DN157: 4149 | DO157: 196 | DP157: 4516 | DQ157: 506 | DR157: 4474 | DS157: 379 | DT157: 4547 | DU157: 354 | DV157: 6729.56 | DW157: 523.92
A158: 20 | B158: B | C158: JCT LEEDY DR | D158: 80.77 | E158: 81.05 | G158: 0.277 | H158: FR0131 | I158: 4 | J158: 1.108 | K158: P | L158: 20 | M158: US/WY | N158: 287/789 | O158: NHS | P158: FR | Q158: 14 | R158: 4210 | S158: 196 | T158: 4650 | U158: 284 | V158: 4630 | W158: 286 | X158: 4670 | Y158: 294 | Z158: 4760 | AA158: 298 | AB158: 4950 | AC158: 300 | AD158: 5060 | AE158: 302 | AF158: 5740 | AG158: 332 | AH158: 5000 | AI158: 426 | AJ158: 4370 | AK158: 365 | AL158: 5250 | AM158: 370 | AN158: 6360 | AO158: 600 | AP158: 6800 | AQ158: 550 | AR158: 6200 | AS158: 500 | AT158: 5890 | AU158: 465 | AV158: 5970 | AW158: 475 | AX158: 6150 | AY158: 625 | AZ158: 6030 | BA158: 625 | BB158: 6190 | BC158: 635 | BD158: 6100 | BE158: 635 | BF158: 6190 | BG158: 645 | BH158: 6210 | BI158: 695 | BJ158: 6350 | BK158: 695 | BL158: 6400 | BM158: 705 | BN158: 6900 | BO158: 705 | BP158: 7000 | BQ158: 705 | BR158: 7000 | BS158: 650 | BT158: 7100 | BU158: 650 | BV158: 7200 | BW158: 670 | BX158: 7250 | BY158: 670 | BZ158: 7100 | CA158: 660 | CB158: 8400 | CC158: 680 | CD158: 8580 | CE158: 780 | CF158: 8670 | CG158: 780 | CH158: 10230 | CI158: 400 | CJ158: 10600 | CK158: 400 | CL158: 10000 | CM158: 500 | CN158: 10330 | CO158: 530 | CP158: 11230 | CQ158: 510 | CR158: 10730 | CS158: 501 | CT158: 10730 | CU158: 489 | CV158: 6968 | CW158: 443 | CX158: 6884 | CY158: 443 | CZ158: 7829 | DA158: 443 | DB158: 7837 | DC158: 416 | DD158: 7931 | DE158: 530.0805664 | DF158: 8919 | DG158: 317 | DH158: 7300 | DI158: 410 | DJ158: 7585 | DK158: 378 | DL158: 10548 | DM158: 208 | DN158: 9904 | DO158: 227 | DP158: 10780 | DQ158: 483 | DR158: 10681 | DS158: 291 | DT158: 11246 | DU158: 341 | DV158: 3115.142 | DW158: 94.457
A159: 20 | B159: B | C159: JCT ROUTE 15 (US 287) | D159: 81.05 | E159: 81.214 | G159: 0.164 | H159: LD1850 | I159: 2 | J159: 0.328 | K159: P | L159: 20 | M159: WY | N159: 789 | O159: NHS | P159: FR | Q159: 14 | R159: 3680 | S159: 240 | T159: 2960 | U159: 280 | V159: 4630 | W159: 286 | X159: 4670 | Y159: 294 | Z159: 4120 | AA159: 292 | AB159: 4280 | AC159: 294 | AD159: 4390 | AE159: 296 | AF159: 4980 | AG159: 326 | AH159: 5200 | AI159: 418 | AJ159: 4630 | AK159: 415 | AL159: 4900 | AM159: 405 | AN159: 5220 | AO159: 550 | AP159: 5300 | AQ159: 520 | AR159: 5000 | AS159: 480 | AT159: 4800 | AU159: 445 | AV159: 4750 | AW159: 450 | AX159: 4890 | AY159: 600 | AZ159: 4780 | BA159: 600 | BB159: 4940 | BC159: 610 | BD159: 4900 | BE159: 610 | BF159: 4990 | BG159: 620 | BH159: 5010 | BI159: 630 | BJ159: 5110 | BK159: 640 | BL159: 5160 | BM159: 640 | BN159: 6080 | BO159: 640 | BP159: 6180 | BQ159: 640 | BR159: 6180 | BS159: 590 | BT159: 6200 | BU159: 590 | BV159: 6300 | BW159: 590 | BX159: 6350 | BY159: 590 | BZ159: 6300 | CA159: 590 | CB159: 7900 | CC159: 600 | CD159: 8070 | CE159: 740 | CF159: 8050 | CG159: 740 | CH159: 9660 | CI159: 520 | CJ159: 9680 | CK159: 510 | CL159: 9250 | CM159: 460 | CN159: 9500 | CO159: 520 | CP159: 10400 | CQ159: 500 | CR159: 10082 | CS159: 492 | CT159: 10082 | CU159: 480 | CV159: 10223 | CW159: 440 | CX159: 10100 | CY159: 440 | CZ159: 10019 | DA159: 440 | DB159: 10029 | DC159: 430 | DD159: 10149 | DE159: 551 | DF159: 6603 | DG159: 229 | DH159: 10300 | DI159: 579 | DJ159: 10757 | DK159: 536 | DL159: 8577 | DM159: 196 | DN159: 8109 | DO159: 227 | DP159: 8827 | DQ159: 478 | DR159: 8746 | DS159: 292 | DT159: 4771 | DU159: 341 | DV159: 782.444 | DW159: 55.924
A160: 20 | B160: B | C160: Valley View Dr | D160: 81.214 | E160: 81.727 | G160: 0.513 | H160: LD1860 | I160: 2 | J160: 1.026 | K160: P | L160: 20 | M160: WY | N160: 789 | O160: NHS | P160: FR | Q160: 14 | R160: 3680 | S160: 240 | T160: 2960 | U160: 280 | V160: 4630 | W160: 286 | X160: 4670 | Y160: 294 | Z160: 4120 | AA160: 292 | AB160: 4280 | AC160: 294 | AD160: 4390 | AE160: 296 | AF160: 4980 | AG160: 326 | AH160: 5200 | AI160: 418 | AJ160: 4630 | AK160: 415 | AL160: 4900 | AM160: 405 | AN160: 4800 | AO160: 500 | AP160: 4900 | AQ160: 480 | AR160: 4600 | AS160: 450 | AT160: 4800 | AU160: 445 | AV160: 4750 | AW160: 450 | AX160: 4550 | AY160: 575 | AZ160: 4450 | BA160: 575 | BB160: 4610 | BC160: 585 | BD160: 4570 | BE160: 585 | BF160: 4640 | BG160: 595 | BH160: 4660 | BI160: 605 | BJ160: 4760 | BK160: 615 | BL160: 4810 | BM160: 615 | BN160: 4910 | BO160: 615 | BP160: 5010 | BQ160: 615 | BR160: 5010 | BS160: 560 | BT160: 5010 | BU160: 560 | BV160: 5050 | BW160: 560 | BX160: 5100 | BY160: 560 | BZ160: 5100 | CA160: 560 | CB160: 6490 | CC160: 560 | CD160: 6630 | CE160: 610 | CF160: 6610 | CG160: 610 | CH160: 6730 | CI160: 500 | CJ160: 6730 | CK160: 500 | CL160: 6600 | CM160: 500 | CN160: 6900 | CO160: 560 | CP160: 7810 | CQ160: 540 | CR160: 7865 | CS160: 530 | CT160: 7865 | CU160: 515.92801 | CV160: 7942 | CW160: 476 | CX160: 7847 | CY160: 476 | CZ160: 7784 | DA160: 475 | DB160: 7792 | DC160: 465 | DD160: 7886 | DE160: 584.0092163 | DF160: 6603 | DG160: 229 | DH160: 9000 | DI160: 507 | DJ160: 9366 | DK160: 467 | DL160: 7812 | DM160: 182 | DN160: 7335 | DO160: 242 | DP160: 7984 | DQ160: 476 | DR160: 7911 | DS160: 292 | DT160: 7555 | DU160: 341 | DV160: 3875.715 | DW160: 174.933
A161: 20 | B161: B | C161: Enterprise BLVD | D161: 81.727 | E161: 83.44 | G161: 1.713 | H161: FR0134 | I161: 2 | J161: 3.426 | K161: P | L161: 20 | M161: WY | N161: 789 | O161: NHS | P161: FR | Q161: 14 | R161: 2070 | S161: 198 | T161: 2080 | U161: 196 | V161: 2130 | W161: 200 | X161: 2190 | Y161: 280 | Z161: 2330 | AA161: 280 | AB161: 2420 | AC161: 282 | AD161: 2530 | AE161: 284 | AF161: 2730 | AG161: 300 | AH161: 2850 | AI161: 384 | AJ161: 4110 | AK161: 381 | AL161: 4350 | AM161: 370 | AN161: 3980 | AO161: 400 | AP161: 4000 | AQ161: 390 | AR161: 3600 | AS161: 350 | AT161: 3490 | AU161: 325 | AV161: 3320 | AW161: 330 | AX161: 3420 | AY161: 480 | AZ161: 3340 | BA161: 480 | BB161: 3440 | BC161: 490 | BD161: 3400 | BE161: 490 | BF161: 3450 | BG161: 510 | BH161: 3500 | BI161: 520 | BJ161: 3600 | BK161: 530 | BL161: 3640 | BM161: 530 | BN161: 3740 | BO161: 530 | BP161: 3840 | BQ161: 530 | BR161: 3840 | BS161: 480 | BT161: 3840 | BU161: 480 | BV161: 3850 | BW161: 480 | BX161: 3900 | BY161: 480 | BZ161: 3900 | CA161: 480 | CB161: 5250 | CC161: 450 | CD161: 5580 | CE161: 510 | CF161: 5560 | CG161: 510 | CH161: 5960 | CI161: 500 | CJ161: 5950 | CK161: 490 | CL161: 5800 | CM161: 490 | CN161: 6100 | CO161: 550 | CP161: 6900 | CQ161: 530 | CR161: 6459 | CS161: 520 | CT161: 6459 | CU161: 423.69727 | CV161: 6549 | CW161: 384 | CX161: 6470 | CY161: 384 | CZ161: 7418 | DA161: 384 | DB161: 7425 | DC161: 373 | DD161: 7514 | DE161: 453.101593 | DF161: 6603 | DG161: 229 | DH161: 9480 | DI161: 534 | DJ161: 9863 | DK161: 492 | DL161: 7863 | DM161: 440 | DN161: 7346 | DO161: 260 | DP161: 7996 | DQ161: 336 | DR161: 5532 | DS161: 294 | DT161: 5825 | DU161: 341 | DV161: 9978.225 | DW161: 584.133
A162: 20 | B162: B | C162: LANDER NORTH URBAN LIMITS | D162: 83.44 | E162: 87.858 | G162: 4.418 | H162: FR0134 | I162: 2 | J162: 8.836 | K162: P | L162: 20 | M162: WY | N162: 789 | O162: NHS | P162: FR | Q162: 2 | R162: 2070 | S162: 198 | T162: 2080 | U162: 196 | V162: 2130 | W162: 200 | X162: 2190 | Y162: 280 | Z162: 2330 | AA162: 280 | AB162: 2420 | AC162: 282 | AD162: 2530 | AE162: 284 | AF162: 2730 | AG162: 300 | AH162: 2850 | AI162: 384 | AJ162: 4110 | AK162: 381 | AL162: 4350 | AM162: 370 | AN162: 3980 | AO162: 400 | AP162: 4000 | AQ162: 390 | AR162: 3600 | AS162: 350 | AT162: 3490 | AU162: 325 | AV162: 3320 | AW162: 330 | AX162: 3420 | AY162: 480 | AZ162: 3330 | BA162: 480 | BB162: 3430 | BC162: 490 | BD162: 3390 | BE162: 490 | BF162: 3440 | BG162: 500 | BH162: 3490 | BI162: 510 | BJ162: 3550 | BK162: 520 | BL162: 3590 | BM162: 520 | BN162: 3690 | BO162: 520 | BP162: 3740 | BQ162: 520 | BR162: 3740 | BS162: 470 | BT162: 3740 | BU162: 470 | BV162: 3750 | BW162: 470 | BX162: 3800 | BY162: 470 | BZ162: 3800 | CA162: 470 | CB162: 5000 | CC162: 430 | CD162: 5350 | CE162: 510 | CF162: 5330 | CG162: 510 | CH162: 5890 | CI162: 500 | CJ162: 5000 | CK162: 350 | CL162: 4850 | CM162: 350 | CN162: 5100 | CO162: 410 | CP162: 5780 | CQ162: 390 | CR162: 5820 | CS162: 354 | CT162: 5487 | CU162: 359.93605 | CV162: 5547 | CW162: 320 | CX162: 5480 | CY162: 320 | CZ162: 5436 | DA162: 320 | DB162: 5441 | DC162: 310 | DD162: 5506 | DE162: 334.5159912 | DF162: 4839 | DG162: 229 | DH162: 4561 | DI162: 269 | DJ162: 4775 | DK162: 272 | DL162: 7863 | DM162: 440 | DN162: 7346 | DO162: 260 | DP162: 7996 | DQ162: 336 | DR162: 5532 | DS162: 294 | DT162: 5825 | DU162: 341 | DV162: 25734.85 | DW162: 1506.538
A163: 20 | B163: B | C163: JCT LYONS VALLEY ROAD | D163: 87.858 | E163: 91.01 | G163: 3.152 | H163: FR0136 | I163: 2 | J163: 6.304 | K163: P | L163: 20 | M163: WY | N163: 789 | O163: NHS | P163: FR | Q163: 2 | R163: 1990 | S163: 180 | T163: 2000 | U163: 164 | V163: 2050 | W163: 168 | X163: 2110 | Y163: 268 | Z163: 2270 | AA163: 268 | AB163: 2360 | AC163: 266 | AD163: 2470 | AE163: 268 | AF163: 2670 | AG163: 284 | AH163: 2790 | AI163: 364 | AJ163: 2850 | AK163: 361 | AL163: 3020 | AM163: 349 | AN163: 3000 | AO163: 380 | AP163: 3020 | AQ163: 370 | AR163: 2900 | AS163: 330 | AT163: 2810 | AU163: 305 | AV163: 2670 | AW163: 310 | AX163: 2750 | AY163: 460 | AZ163: 2670 | BA163: 460 | BB163: 2760 | BC163: 470 | BD163: 2720 | BE163: 470 | BF163: 2770 | BG163: 480 | BH163: 2810 | BI163: 490 | BJ163: 2870 | BK163: 500 | BL163: 2910 | BM163: 500 | BN163: 3010 | BO163: 500 | BP163: 3400 | BQ163: 500 | BR163: 3400 | BS163: 450 | BT163: 3400 | BU163: 450 | BV163: 3500 | BW163: 450 | BX163: 3550 | BY163: 450 | BZ163: 3500 | CA163: 450 | CB163: 4510 | CC163: 390 | CD163: 4610 | CE163: 420 | CF163: 4600 | CG163: 420 | CH163: 4780 | CI163: 420 | CJ163: 5150 | CK163: 360 | CL163: 4900 | CM163: 360 | CN163: 5150 | CO163: 420 | CP163: 5830 | CQ163: 400 | CR163: 5894 | CS163: 362 | CT163: 6281 | CU163: 368 | CV163: 6268 | CW163: 323 | CX163: 6343 | CY163: 323 | CZ163: 6330 | DA163: 321 | DB163: 6450 | DC163: 311 | DD163: 6592 | DE163: 281.3556824 | DF163: 5793 | DG163: 231 | DH163: 4561 | DI163: 269 | DJ163: 4775 | DK163: 272 | DL163: 6012 | DM163: 227 | DN163: 5749 | DO163: 276 | DP163: 4193 | DQ163: 332 | DR163: 4019 | DS163: 332 | DT163: 4232 | DU163: 332 | DV163: 13339.264 | DW163: 1046.464
A164: 20 | B164: B | C164: HUDSON NORTH CORP LIMITS | D164: 90.383 | E164: 92.054 | G164: 1.671 | H164: 000063 | I164: 2 | J164: 3.342 | K164: P | L164: 20 | M164: WY | N164: 789 | O164: NHS | P164: FR | Q164: 2 | R164: 2050 | S164: 163 | T164: 2060 | U164: 146 | V164: 2030 | W164: 154 | X164: 2090 | Y164: 254 | Z164: 2250 | AA164: 254 | AB164: 2310 | AC164: 256 | AD164: 2090 | AE164: 302 | AF164: 2560 | AG164: 318 | AH164: 2890 | AI164: 382 | AJ164: 2800 | AK164: 379 | AL164: 2960 | AM164: 369 | AN164: 2850 | AO164: 415 | AP164: 2970 | AQ164: 400 | AR164: 2650 | AS164: 350 | AT164: 2570 | AU164: 325 | AV164: 2440 | AW164: 330 | AX164: 2510 | AY164: 480 | AZ164: 2440 | BA164: 400 | BB164: 2530 | BC164: 410 | BD164: 2300 | BE164: 410 | BF164: 2350 | BG164: 420 | BH164: 2420 | BI164: 430 | BJ164: 2480 | BK164: 440 | BL164: 2520 | BM164: 440 | BN164: 2720 | BO164: 440 | BP164: 2770 | BQ164: 440 | BR164: 2770 | BS164: 390 | BT164: 2770 | BU164: 390 | BV164: 2800 | BW164: 390 | BX164: 2900 | BY164: 480 | BZ164: 2900 | CA164: 480 | CB164: 3400 | CC164: 420 | CD164: 3480 | CE164: 440 | CF164: 3470 | CG164: 440 | CH164: 3480 | CI164: 430 | CJ164: 3540 | CK164: 370 | CL164: 4140 | CM164: 370 | CN164: 4350 | CO164: 430 | CP164: 5170 | CQ164: 400 | CR164: 5167 | CS164: 362 | CT164: 5299 | CU164: 316 | CV164: 5061 | CW164: 303 | CX164: 5039 | CY164: 313.30995 | CZ164: 5018 | DA164: 310 | DB164: 4949 | DC164: 300 | DD164: 4880 | DE164: 240 | DF164: 4843 | DG164: 231 | DH164: 4764 | DI164: 273 | DJ164: 4818 | DK164: 275 | DL164: 4804 | DM164: 261 | DN164: 4501 | DO164: 267 | DP164: 5075 | DQ164: 281 | DR164: 4928 | DS164: 279 | DT164: 4747 | DU164: 288 | DV164: 7932.237 | DW164: 481.248
A165: 20 | B165: B | C165: JCT ROUTE 138 (WY 138) | D165: 92.054 | E165: 103.484 | G165: 11.43 | H165: FR0139 | I165: 2 | J165: 22.86 | K165: P | L165: 20 | M165: WY | N165: 789 | O165: NHS | P165: FR | Q165: 2 | R165: 2050 | S165: 163 | T165: 2060 | U165: 146 | V165: 2110 | W165: 158 | X165: 2170 | Y165: 258 | Z165: 2280 | AA165: 258 | AB165: 2320 | AC165: 256 | AD165: 1240 | AE165: 284 | AF165: 2260 | AG165: 300 | AH165: 2650 | AI165: 372 | AJ165: 2570 | AK165: 369 | AL165: 2720 | AM165: 358 | AN165: 2670 | AO165: 405 | AP165: 2590 | AQ165: 390 | AR165: 2250 | AS165: 340 | AT165: 2180 | AU165: 315 | AV165: 2070 | AW165: 320 | AX165: 2130 | AY165: 470 | AZ165: 2070 | BA165: 400 | BB165: 2160 | BC165: 410 | BD165: 2070 | BE165: 410 | BF165: 2120 | BG165: 420 | BH165: 2190 | BI165: 430 | BJ165: 2250 | BK165: 440 | BL165: 2290 | BM165: 440 | BN165: 2490 | BO165: 440 | BP165: 2590 | BQ165: 440 | BR165: 2590 | BS165: 390 | BT165: 2590 | BU165: 390 | BV165: 2600 | BW165: 390 | BX165: 2750 | BY165: 480 | BZ165: 2700 | CA165: 480 | CB165: 3100 | CC165: 420 | CD165: 4570 | CE165: 430 | CF165: 4560 | CG165: 430 | CH165: 4430 | CI165: 420 | CJ165: 5550 | CK165: 360 | CL165: 3690 | CM165: 360 | CN165: 3850 | CO165: 420 | CP165: 4360 | CQ165: 390 | CR165: 2644 | CS165: 350 | CT165: 2644 | CU165: 315 | CV165: 2644 | CW165: 302 | CX165: 2676 | CY165: 383.67887 | CZ165: 4031 | DA165: 383.67887 | DB165: 4007 | DC165: 384 | DD165: 4095 | DE165: 317.4194946 | DF165: 4741 | DG165: 232 | DH165: 4110 | DI165: 242 | DJ165: 4334 | DK165: 510 | DL165: 4416 | DM165: 317 | DN165: 4211 | DO165: 266 | DP165: 3481 | DQ165: 248 | DR165: 3337 | DS165: 248 | DT165: 3514 | DU165: 248 | DV165: 40165.02 | DW165: 2834.64
A166: 20 | B166: B | C166: JCT ROUTE 711 (WY 137) | D166: 103.484 | E166: 103.835 | G166: 0.351 | H166: FR0141 | I166: 4 | J166: 1.404 | K166: P | L166: 20 | M166: WY | N166: 789 | O166: NHS | P166: FR | Q166: 2 | R166: 3200 | S166: 204 | T166: 3150 | U166: 206 | V166: 3180 | W166: 226 | X166: 3270 | Y166: 344 | Z166: 3430 | AA166: 426 | AB166: 3570 | AC166: 396 | AD166: 3720 | AE166: 364 | AF166: 4020 | AG166: 380 | AH166: 4710 | AI166: 452 | AJ166: 4660 | AK166: 449 | AL166: 5000 | AM166: 419 | AN166: 5300 | AO166: 465 | AP166: 5100 | AQ166: 450 | AR166: 4800 | AS166: 400 | AT166: 4700 | AU166: 375 | AV166: 4470 | AW166: 380 | AX166: 4610 | AY166: 530 | AZ166: 4520 | BA166: 530 | BB166: 4610 | BC166: 540 | BD166: 5400 | BE166: 540 | BF166: 5450 | BG166: 550 | BH166: 5790 | BI166: 560 | BJ166: 5850 | BK166: 570 | BL166: 6000 | BM166: 570 | BN166: 6200 | BO166: 570 | BP166: 8030 | BQ166: 510 | BR166: 8030 | BS166: 460 | BT166: 8030 | BU166: 460 | BV166: 8100 | BW166: 460 | BX166: 8600 | BY166: 530 | BZ166: 8500 | CA166: 520 | CB166: 9240 | CC166: 510 | CD166: 9240 | CE166: 550 | CF166: 9210 | CG166: 550 | CH166: 10520 | CI166: 540 | CJ166: 10550 | CK166: 510 | CL166: 11000 | CM166: 510 | CN166: 12840 | CO166: 680 | CP166: 13240 | CQ166: 660 | CR166: 11347 | CS166: 603 | CT166: 17000 | CU166: 603 | CV166: 11347 | CW166: 599 | CX166: 11483 | CY166: 599 | CZ166: 11460 | DA166: 599 | DB166: 11678 | DC166: 650.0202899 | DD166: 11935 | DE166: 557.4057617 | DF166: 6561 | DG166: 232 | DH166: 12549 | DI166: 707 | DJ166: 13135 | DK166: 1486 | DL166: 12871 | DM166: 428 | DN166: 12308 | DO166: 315 | DP166: 13309 | DQ166: 285 | DR166: 12759 | DS166: 563 | DT166: 13433 | DU166: 467 | DV166: 4714.983 | DW166: 163.917
A167: 20 | B167: B | C167: JCT ROUTE 708 (WY 135) | D167: 103.835 | E167: 104.162 | G167: 0.327 | H167: FR0143 | I167: 4 | J167: 1.308 | K167: P | L167: 20 | M167: WY | N167: 789 | O167: NHS | P167: FR | Q167: 2 | R167: 3830 | S167: 272 | T167: 3790 | U167: 270 | V167: 3820 | W167: 290 | X167: 3930 | Y167: 408 | Z167: 4000 | AA167: 438 | AB167: 4160 | AC167: 406 | AD167: 4370 | AE167: 430 | AF167: 4720 | AG167: 446 | AH167: 5410 | AI167: 518 | AJ167: 6210 | AK167: 514 | AL167: 6410 | AM167: 484 | AN167: 6500 | AO167: 530 | AP167: 6800 | AQ167: 520 | AR167: 6500 | AS167: 480 | AT167: 6370 | AU167: 445 | AV167: 6050 | AW167: 450 | AX167: 6200 | AY167: 600 | AZ167: 6110 | BA167: 600 | BB167: 6200 | BC167: 600 | BD167: 6120 | BE167: 600 | BF167: 6170 | BG167: 610 | BH167: 7300 | BI167: 620 | BJ167: 7360 | BK167: 630 | BL167: 7510 | BM167: 630 | BN167: 7710 | BO167: 630 | BP167: 8510 | BQ167: 630 | BR167: 8510 | BS167: 580 | BT167: 8600 | BU167: 580 | BV167: 8750 | BW167: 580 | BX167: 9100 | BY167: 650 | BZ167: 9000 | CA167: 640 | CB167: 10300 | CC167: 630 | CD167: 9520 | CE167: 590 | CF167: 9490 | CG167: 590 | CH167: 11550 | CI167: 580 | CJ167: 11550 | CK167: 570 | CL167: 11650 | CM167: 570 | CN167: 12260 | CO167: 750 | CP167: 12460 | CQ167: 730 | CR167: 12597 | CS167: 705 | CT167: 18000 | CU167: 705 | CV167: 12410 | CW167: 701 | CX167: 12559 | CY167: 701 | CZ167: 12534 | DA167: 701 | DB167: 12772 | DC167: 701 | DD167: 13053 | DE167: 602.2304688 | DF167: 10269 | DG167: 232 | DH167: 13726 | DI167: 773 | DJ167: 14367 | DK167: 1625 | DL167: 15647 | DM167: 441 | DN167: 14617 | DO167: 316 | DP167: 15910 | DQ167: 287 | DR167: 15764 | DS167: 566 | DT167: 12808 | DU167: 603 | DV167: 4188.216 | DW167: 197.181
A168: 20 | B168: B | C168: RIVERTON SOUTH URBAN LIMITS | D168: 104.162 | E168: 104.558 | G168: 0.396 | H168: FR0143 | I168: 4 | J168: 1.584 | K168: P | L168: 20 | M168: WY | N168: 789 | O168: NHS | P168: FR | Q168: 14 | R168: 3900 | S168: 280 | T168: 3870 | U168: 282 | V168: 3900 | W168: 302 | X168: 3980 | Y168: 418 | Z168: 4040 | AA168: 446 | AB168: 4200 | AC168: 414 | AD168: 4400 | AE168: 438 | AF168: 4750 | AG168: 454 | AH168: 5440 | AI168: 526 | AJ168: 6410 | AK168: 522 | AL168: 6610 | AM168: 492 | AN168: 7000 | AO168: 540 | AP168: 8000 | AQ168: 530 | AR168: 7750 | AS168: 500 | AT168: 7630 | AU168: 465 | AV168: 7250 | AW168: 470 | AX168: 7410 | AY168: 620 | AZ168: 7310 | BA168: 620 | BB168: 7390 | BC168: 610 | BD168: 7310 | BE168: 610 | BF168: 7310 | BG168: 620 | BH168: 7600 | BI168: 630 | BJ168: 7660 | BK168: 640 | BL168: 7810 | BM168: 640 | BN168: 8010 | BO168: 640 | BP168: 8710 | BQ168: 640 | BR168: 8790 | BS168: 590 | BT168: 8900 | BU168: 590 | BV168: 9050 | BW168: 590 | BX168: 9300 | BY168: 640 | BZ168: 9200 | CA168: 630 | CB168: 11300 | CC168: 620 | CD168: 10450 | CE168: 640 | CF168: 10420 | CG168: 640 | CH168: 12670 | CI168: 650 | CJ168: 12670 | CK168: 640 | CL168: 12700 | CM168: 640 | CN168: 13360 | CO168: 800 | CP168: 13560 | CQ168: 780 | CR168: 13655 | CS168: 754 | CT168: 19000 | CU168: 754 | CV168: 13792 | CW168: 749 | CX168: 13626 | CY168: 749 | CZ168: 15489 | DA168: 749 | DB168: 15504 | DC168: 749 | DD168: 15690 | DE168: 644.3251343 | DF168: 10269 | DG168: 232 | DH168: 13726 | DI168: 773 | DJ168: 14367 | DK168: 1625 | DL168: 15647 | DM168: 441 | DN168: 14617 | DO168: 316 | DP168: 15910 | DQ168: 287 | DR168: 15764 | DS168: 566 | DT168: 12808 | DU168: 603 | DV168: 5071.968 | DW168: 238.788
A169: 20 | B169: B | C169: MARKET AVENUE | D169: 104.558 | E169: 105.169 | G169: 0.623 | H169: RV0871 | I169: 4 | J169: 2.492 | K169: P | L169: 20 | M169: WY | N169: 789 | O169: NHS | P169: FR | Q169: 14 | R169: 6620 | S169: 302 | T169: 6590 | U169: 300 | V169: 6650 | W169: 320 | X169: 6750 | Y169: 436 | Z169: 6800 | AA169: 452 | AB169: 7070 | AC169: 420 | AD169: 7270 | AE169: 444 | AF169: 7500 | AG169: 460 | AH169: 8190 | AI169: 532 | AJ169: 9650 | AK169: 527 | AL169: 9700 | AM169: 500 | AN169: 10300 | AO169: 550 | AP169: 11550 | AQ169: 540 | AR169: 11500 | AS169: 550 | AT169: 11390 | AU169: 510 | AV169: 10820 | AW169: 515 | AX169: 11000 | AY169: 665 | AZ169: 10890 | BA169: 665 | BB169: 10980 | BC169: 645 | BD169: 10900 | BE169: 645 | BF169: 10950 | BG169: 655 | BH169: 11040 | BI169: 665 | BJ169: 11100 | BK169: 675 | BL169: 11350 | BM169: 675 | BN169: 11650 | BO169: 675 | BP169: 11850 | BQ169: 685 | BR169: 11850 | BS169: 630 | BT169: 12800 | BU169: 630 | BV169: 13000 | BW169: 630 | BX169: 13200 | BY169: 630 | BZ169: 13100 | CA169: 620 | CB169: 15400 | CC169: 610 | CD169: 14240 | CE169: 630 | CF169: 14200 | CG169: 630 | CH169: 17000 | CI169: 650 | CJ169: 17000 | CK169: 650 | CL169: 17100 | CM169: 650 | CN169: 18000 | CO169: 810 | CP169: 18000 | CQ169: 790 | CR169: 18126 | CS169: 758 | CT169: 19126 | CU169: 758 | CV169: 16086 | CW169: 753 | CX169: 15893 | CY169: 753 | CZ169: 15766 | DA169: 753 | DB169: 15782 | DC169: 753 | DD169: 15971 | DE169: 649.534729 | DF169: 13743 | DG169: 232 | DH169: 18200 | DI169: 1025 | DJ169: 17385 | DK169: 865 | DL169: 13660 | DM169: 435 | DN169: 13432 | DO169: 319 | DP169: 14621 | DQ169: 292 | DR169: 14486 | DS169: 576 | DT169: 16819 | DU169: 480 | DV169: 10478.237 | DW169: 299.04
A170: 20 | B170: B | C170: JCT ROUTE 30 (US 26 & 287) | D170: 105.169 | E170: 105.306 | G170: 0.137 | H170: FR0145 | I170: 4 | J170: 0.548 | K170: P | L170: 20 | M170: US/WY | N170: 26/789 | O170: NHS | P170: FR | Q170: 14 | R170: 8640 | S170: 452 | T170: 8750 | U170: 434 | V170: 8810 | W170: 450 | X170: 8910 | Y170: 566 | Z170: 8920 | AA170: 548 | AB170: 9670 | AC170: 536 | AD170: 9870 | AE170: 560 | AF170: 10190 | AG170: 576 | AH170: 11150 | AI170: 730 | AJ170: 12340 | AK170: 724 | AL170: 9900 | AM170: 695 | AN170: 13000 | AO170: 750 | AP170: 14000 | AQ170: 760 | AR170: 14000 | AS170: 700 | AT170: 13970 | AU170: 650 | AV170: 13270 | AW170: 655 | AX170: 13450 | AY170: 805 | AZ170: 13340 | BA170: 800 | BB170: 13430 | BC170: 760 | BD170: 12630 | BE170: 760 | BF170: 12680 | BG170: 770 | BH170: 12740 | BI170: 770 | BJ170: 12800 | BK170: 780 | BL170: 13050 | BM170: 780 | BN170: 13250 | BO170: 780 | BP170: 13450 | BQ170: 780 | BR170: 13450 | BS170: 730 | BT170: 13800 | BU170: 730 | BV170: 14000 | BW170: 730 | BX170: 14200 | BY170: 730 | BZ170: 14100 | CA170: 720 | CB170: 19400 | CC170: 710 | CD170: 17930 | CE170: 710 | CF170: 17880 | CG170: 710 | CH170: 20900 | CI170: 710 | CJ170: 19580 | CK170: 650 | CL170: 19620 | CM170: 650 | CN170: 20650 | CO170: 680 | CP170: 20600 | CQ170: 670 | CR170: 20744 | CS170: 641 | CT170: 20744 | CU170: 641 | CV170: 16581 | CW170: 638 | CX170: 16382 | CY170: 638 | CZ170: 17280 | DA170: 638 | DB170: 17297 | DC170: 638 | DD170: 17505 | DE170: 553.3005371 | DF170: 15063 | DG170: 232 | DH170: 20020 | DI170: 1128 | DJ170: 20825 | DK170: 1037 | DL170: 17456 | DM170: 454 | DN170: 16307 | DO170: 322 | DP170: 17750 | DQ170: 297 | DR170: 17586 | DS170: 579 | DT170: 18516 | DU170: 484 | DV170: 2536.692 | DW170: 66.308
A171: 20 | B171: B | C171: Park Ave | D171: 105.306 | E171: 105.539 | G171: 0.233 | H171: RV0901 | I171: 4 | J171: 0.932 | K171: P | L171: 20 | M171: US/WY | N171: 26/789 | O171: NHS | P171: FR | Q171: 14 | R171: 3740 | S171: 344 | T171: 3880 | U171: 320 | V171: 3940 | W171: 342 | X171: 4000 | Y171: 394 | Z171: 3970 | AA171: 406 | AB171: 4300 | AC171: 398 | AD171: 4500 | AE171: 422 | AF171: 4640 | AG171: 438 | AH171: 4300 | AI171: 386 | AJ171: 3740 | AK171: 471 | AL171: 3750 | AM171: 440 | AN171: 6420 | AO171: 490 | AP171: 7000 | AQ171: 480 | AR171: 6800 | AS171: 450 | AT171: 6700 | AU171: 420 | AV171: 6370 | AW171: 425 | AX171: 6520 | AY171: 705 | AZ171: 6420 | BA171: 700 | BB171: 6510 | BC171: 645 | BD171: 6430 | BE171: 645 | BF171: 6480 | BG171: 655 | BH171: 6520 | BI171: 655 | BJ171: 6580 | BK171: 665 | BL171: 6730 | BM171: 665 | BN171: 6930 | BO171: 665 | BP171: 8500 | BQ171: 665 | BR171: 8500 | BS171: 610 | BT171: 8500 | BU171: 610 | BV171: 8600 | BW171: 610 | BX171: 8700 | BY171: 610 | BZ171: 8600 | CA171: 600 | CB171: 14720 | CC171: 600 | CD171: 13500 | CE171: 600 | CF171: 13460 | CG171: 600 | CH171: 13810 | CI171: 610 | CJ171: 13800 | CK171: 610 | CL171: 13840 | CM171: 610 | CN171: 14560 | CO171: 640 | CP171: 14500 | CQ171: 620 | CR171: 14500 | CS171: 620 | CT171: 14500 | CU171: 620 | CV171: 14748 | CW171: 617 | CX171: 14571 | CY171: 617 | CZ171: 14454 | DA171: 617 | DB171: 14468 | DC171: 617 | DD171: 14642 | DE171: 536.7736206 | DF171: 17453 | DG171: 232 | DH171: 14465 | DI171: 851 | DJ171: 15376 | DK171: 934 | DL171: 14370 | DM171: 408 | DN171: 14130 | DO171: 323 | DP171: 15380 | DQ171: 299 | DR171: 15239 | DS171: 580 | DT171: 19213 | DU171: 485 | DV171: 4476.629 | DW171: 113.005
A172: 20 | B172: B | C172: Pershing Ave | D172: 105.539 | E172: 105.772 | G172: 0.233 | H172: RV0931 | I172: 4 | J172: 0.932 | K172: P | L172: 20 | M172: US/WY | N172: 26/789 | O172: NHS | P172: FR | Q172: 14 | R172: 3740 | S172: 344 | T172: 3880 | U172: 320 | V172: 3940 | W172: 342 | X172: 4000 | Y172: 394 | Z172: 3970 | AA172: 406 | AB172: 4300 | AC172: 398 | AD172: 4500 | AE172: 422 | AF172: 4640 | AG172: 438 | AH172: 4300 | AI172: 386 | AJ172: 3740 | AK172: 471 | AL172: 3750 | AM172: 440 | AN172: 6420 | AO172: 490 | AP172: 7000 | AQ172: 480 | AR172: 6800 | AS172: 450 | AT172: 6700 | AU172: 420 | AV172: 6370 | AW172: 425 | AX172: 6520 | AY172: 705 | AZ172: 6420 | BA172: 700 | BB172: 6510 | BC172: 645 | BD172: 6430 | BE172: 645 | BF172: 6480 | BG172: 655 | BH172: 6520 | BI172: 655 | BJ172: 6580 | BK172: 665 | BL172: 6730 | BM172: 665 | BN172: 6930 | BO172: 665 | BP172: 8500 | BQ172: 665 | BR172: 8500 | BS172: 610 | BT172: 8500 | BU172: 610 | BV172: 8600 | BW172: 610 | BX172: 8700 | BY172: 610 | BZ172: 8600 | CA172: 600 | CB172: 14720 | CC172: 600 | CD172: 13500 | CE172: 600 | CF172: 13460 | CG172: 600 | CH172: 13810 | CI172: 610 | CJ172: 13800 | CK172: 610 | CL172: 13840 | CM172: 610 | CN172: 14560 | CO172: 640 | CP172: 14500 | CQ172: 620 | CR172: 14500 | CS172: 620 | CT172: 14500 | CU172: 620 | CV172: 14748 | CW172: 617 | CX172: 14571 | CY172: 617 | CZ172: 14454 | DL172: 14661 | DM172: 405 | DN172: 14417 | DO172: 324 | DP172: 15693 | DQ172: 334 | DR172: 15548 | DS172: 583 | DT172: 18002 | DU172: 488 | DV172: 4194.466 | DW172: 113.704
A173: 20 | B173: B | C173: Sunset Dr | D173: 105.772 | E173: 106.242 | G173: 0.47 | H173: FR0132 | I173: 4 | J173: 1.88 | K173: P | L173: 20 | M173: US/WY | N173: 26/789 | O173: NHS | P173: FR | Q173: 14 | R173: 3740 | S173: 344 | T173: 3880 | U173: 320 | V173: 3940 | W173: 342 | X173: 4000 | Y173: 394 | Z173: 3970 | AA173: 406 | AB173: 4300 | AC173: 398 | AD173: 4500 | AE173: 422 | AF173: 4640 | AG173: 438 | AH173: 4300 | AI173: 386 | AJ173: 3740 | AK173: 471 | AL173: 3750 | AM173: 440 | AN173: 6420 | AO173: 490 | AP173: 7000 | AQ173: 480 | AR173: 6800 | AS173: 450 | AT173: 6700 | AU173: 420 | AV173: 6370 | AW173: 425 | AX173: 6520 | AY173: 705 | AZ173: 6420 | BA173: 700 | BB173: 6510 | BC173: 645 | BD173: 6430 | BE173: 645 | BF173: 6480 | BG173: 655 | BH173: 6520 | BI173: 655 | BJ173: 6580 | BK173: 665 | BL173: 6730 | BM173: 665 | BN173: 6930 | BO173: 665 | BP173: 8500 | BQ173: 665 | BR173: 8500 | BS173: 610 | BT173: 8500 | BU173: 610 | BV173: 8600 | BW173: 610 | BX173: 8700 | BY173: 610 | BZ173: 8600 | CA173: 600 | CB173: 14720 | CC173: 600 | CD173: 13500 | CE173: 600 | CF173: 13460 | CG173: 600 | CH173: 13810 | CI173: 610 | CJ173: 13800 | CK173: 610 | CL173: 13840 | CM173: 610 | CN173: 14560 | CO173: 640 | CP173: 14500 | CQ173: 620 | CR173: 14500 | CS173: 620 | CT173: 14500 | CU173: 620 | CV173: 14748 | CW173: 617 | CX173: 14571 | CY173: 617 | CZ173: 14454 | DL173: 7863 | DM173: 440 | DN173: 7346 | DO173: 260 | DP173: 7996 | DQ173: 336 | DR173: 7922 | DS173: 503 | DT173: 8341 | DU173: 490 | DV173: 3920.27 | DW173: 230.3
A174: 20 | B174: B | C174: RIVERTON NORTH CORP LIMITS | D174: 106.242 | E174: 107.179 | G174: 0.937 | H174: FR0149 | I174: 4 | J174: 3.748 | K174: P | L174: 20 | M174: US/WY | N174: 26/789 | O174: NHS | P174: FR | Q174: 14 | R174: 3740 | S174: 344 | T174: 3880 | U174: 320 | V174: 3940 | W174: 342 | X174: 4000 | Y174: 394 | Z174: 3970 | AA174: 406 | AB174: 4300 | AC174: 398 | AD174: 4500 | AE174: 422 | AF174: 4640 | AG174: 438 | AH174: 4300 | AI174: 386 | AJ174: 3740 | AK174: 471 | AL174: 3750 | AM174: 440 | AN174: 6420 | AO174: 490 | AP174: 6700 | AQ174: 480 | AR174: 6400 | AS174: 450 | AT174: 6300 | AU174: 420 | AV174: 5990 | AW174: 425 | AX174: 6140 | AY174: 705 | AZ174: 6050 | BA174: 700 | BB174: 6140 | BC174: 645 | BD174: 6060 | BE174: 645 | BF174: 6110 | BG174: 655 | BH174: 6140 | BI174: 655 | BJ174: 6200 | BK174: 665 | BL174: 6300 | BM174: 665 | BN174: 6510 | BO174: 665 | BP174: 6560 | BQ174: 665 | BR174: 6560 | BS174: 610 | BT174: 6600 | BU174: 610 | BV174: 6700 | BW174: 610 | BX174: 6800 | BY174: 610 | BZ174: 6700 | CA174: 600 | CB174: 8120 | CC174: 600 | CD174: 8170 | CE174: 600 | CF174: 8150 | CG174: 600 | CH174: 9670 | CI174: 610 | CJ174: 9660 | CK174: 610 | CL174: 9700 | CM174: 610 | CN174: 10200 | CO174: 640 | CP174: 10200 | CQ174: 620 | CR174: 10271 | CS174: 609 | CT174: 10271 | CU174: 609 | CV174: 8661 | CW174: 607 | CX174: 8557 | CY174: 627 | CZ174: 8489 | DA174: 627 | DB174: 8497 | DC174: 627 | DD174: 8599 | DE174: 546.9387207 | DF174: 17453 | DG174: 232 | DH174: 14465 | DI174: 851 | DJ174: 15376 | DK174: 934 | DL174: 7551 | DM174: 450 | DN174: 7054 | DO174: 332 | DP174: 7678 | DQ174: 351 | DR174: 7608 | DS174: 508 | DT174: 7680 | DU174: 495 | DV174: 7196.16 | DW174: 463.815
A175: 20 | B175: B | C175: WY PENITENTIARY FARM | D175: 107.179 | E175: 108.88 | G175: 1.701 | H175: FR0149 | I175: 4 | J175: 6.804 | K175: P | L175: 20 | M175: US/WY | N175: 26/789 | O175: NHS | P175: FR | Q175: 14 | R175: 2490 | S175: 320 | T175: 2630 | U175: 294 | V175: 2690 | W175: 318 | X175: 2690 | Y175: 370 | Z175: 2660 | AA175: 394 | AB175: 2880 | AC175: 386 | AD175: 3080 | AE175: 410 | AF175: 3180 | AG175: 426 | AH175: 3590 | AI175: 538 | AJ175: 3120 | AK175: 657 | AL175: 3130 | AM175: 621 | AN175: 3250 | AO175: 670 | AP175: 3500 | AQ175: 650 | AR175: 3100 | AS175: 600 | AT175: 3020 | AU175: 560 | AV175: 2870 | AW175: 565 | AX175: 4820 | AY175: 695 | AZ175: 4700 | BA175: 680 | BB175: 4790 | BC175: 625 | BD175: 4710 | BE175: 625 | BF175: 4760 | BG175: 635 | BH175: 5270 | BI175: 635 | BJ175: 5330 | BK175: 645 | BL175: 5380 | BM175: 645 | BN175: 5480 | BO175: 645 | BP175: 5530 | BQ175: 645 | BR175: 5500 | BS175: 590 | BT175: 5500 | BU175: 590 | BV175: 5550 | BW175: 590 | BX175: 5600 | BY175: 590 | BZ175: 5600 | CA175: 590 | CB175: 7510 | CC175: 580 | CD175: 7670 | CE175: 580 | CF175: 7650 | CG175: 580 | CH175: 7900 | CI175: 590 | CJ175: 7900 | CK175: 600 | CL175: 7940 | CM175: 600 | CN175: 8350 | CO175: 630 | CP175: 8300 | CQ175: 610 | CR175: 8358 | CS175: 537 | CT175: 8358 | CU175: 537 | CV175: 8442 | CW175: 540 | CX175: 8341 | CY175: 550 | CZ175: 8274 | DA175: 550 | DB175: 8282 | DC175: 550 | DD175: 8381 | DE175: 482.3044434 | DF175: 8584 | DG175: 571.54396 | DH175: 7481 | DI175: 439 | DJ175: 7646 | DK175: 483 | DL175: 9624 | DM175: 606 | DN175: 8990 | DO175: 606 | DP175: 7678 | DQ175: 351 | DR175: 7608 | DS175: 508 | DT175: 7680 | DU175: 495 | DV175: 13063.68 | DW175: 841.995
A176: 20 | B176: B | C176: HAYMAKER ROAD | D176: 108.88 | E176: 119.04 | G176: 9.873 | H176: FR0151 | I176: 2 | J176: 19.746 | K176: P | L176: 20 | M176: US/WY | N176: 26/789 | O176: NHS | P176: FR | Q176: 2 | R176: 2490 | S176: 320 | T176: 2630 | U176: 294 | V176: 2690 | W176: 318 | X176: 2690 | Y176: 370 | Z176: 2660 | AA176: 394 | AB176: 2880 | AC176: 386 | AD176: 3080 | AE176: 410 | AF176: 3180 | AG176: 426 | AH176: 3590 | AI176: 538 | AJ176: 3120 | AK176: 657 | AL176: 3130 | AM176: 621 | AN176: 3250 | AO176: 670 | AP176: 3500 | AQ176: 650 | AR176: 3100 | AS176: 600 | AT176: 3020 | AU176: 560 | AV176: 2870 | AW176: 565 | AX176: 4820 | AY176: 695 | AZ176: 4700 | BA176: 680 | BB176: 4790 | BC176: 625 | BD176: 4710 | BE176: 625 | BF176: 4760 | BG176: 635 | BH176: 5270 | BI176: 635 | BJ176: 5330 | BK176: 645 | BL176: 5380 | BM176: 645 | BN176: 5480 | BO176: 645 | BP176: 5530 | BQ176: 645 | BR176: 5500 | BS176: 590 | BT176: 5500 | BU176: 590 | BV176: 5550 | BW176: 590 | BX176: 5600 | BY176: 590 | BZ176: 5600 | CA176: 590 | CB176: 6200 | CC176: 580 | CD176: 6330 | CE176: 580 | CF176: 6310 | CG176: 580 | CH176: 7660 | CI176: 590 | CJ176: 7660 | CK176: 600 | CL176: 7660 | CM176: 600 | CN176: 8060 | CO176: 630 | CP176: 8000 | CQ176: 610 | CR176: 7521 | CS176: 524 | CT176: 7521 | CU176: 524 | CV176: 7627 | CW176: 527 | CX176: 7535 | CY176: 537 | CZ176: 7475 | DA176: 537 | DB176: 7482 | DC176: 537 | DD176: 7572 | DE176: 473.1477966 | DF176: 8366 | DG176: 232 | DH176: 7481 | DI176: 439 | DJ176: 7646 | DK176: 483 | DL176: 5767 | DM176: 428 | DN176: 5515 | DO176: 320 | DP176: 5964 | DQ176: 372 | DR176: 5717 | DS176: 535 | DT176: 5796 | DU176: 524 | DV176: 57223.908 | DW176: 5173.452
A177: 20 | B177: B | C177: JCT BURMA ROAD | D177: 119.04 | E177: 127.3 | G177: 8.26 | H177: FR0153 | I177: 2 | J177: 16.52 | K177: P | L177: 20 | M177: US/WY | N177: 26/789 | O177: NHS | P177: FR | Q177: 2 | R177: 2130 | S177: 281 | T177: 2260 | U177: 270 | V177: 2300 | W177: 272 | X177: 2330 | Y177: 316 | Z177: 2290 | AA177: 348 | AB177: 2460 | AC177: 340 | AD177: 2630 | AE177: 368 | AF177: 2640 | AG177: 384 | AH177: 2990 | AI177: 488 | AJ177: 3070 | AK177: 596 | AL177: 3080 | AM177: 559 | AN177: 3200 | AO177: 610 | AP177: 3400 | AQ177: 600 | AR177: 2950 | AS177: 550 | AT177: 2870 | AU177: 510 | AV177: 2730 | AW177: 515 | AX177: 3910 | AY177: 665 | AZ177: 3800 | BA177: 640 | BB177: 3890 | BC177: 585 | BD177: 3810 | BE177: 585 | BF177: 3860 | BG177: 595 | BH177: 4090 | BI177: 595 | BJ177: 4150 | BK177: 605 | BL177: 4200 | BM177: 605 | BN177: 4300 | BO177: 605 | BP177: 4350 | BQ177: 605 | BR177: 4300 | BS177: 550 | BT177: 4300 | BU177: 550 | BV177: 4350 | BW177: 550 | BX177: 4400 | BY177: 550 | BZ177: 4400 | CA177: 550 | CB177: 4600 | CC177: 530 | CD177: 5140 | CE177: 540 | CF177: 5130 | CG177: 540 | CH177: 7100 | CI177: 550 | CJ177: 7100 | CK177: 560 | CL177: 6260 | CM177: 560 | CN177: 6590 | CO177: 590 | CP177: 6570 | CQ177: 580 | CR177: 6642 | CS177: 506 | CT177: 6329 | CU177: 506 | CV177: 6316 | CW177: 508 | CX177: 6392 | CY177: 518 | CZ177: 6379 | DA177: 518 | DB177: 6500 | DC177: 523 | DD177: 6643 | DE177: 463.4046936 | DF177: 7559 | DG177: 232 | DH177: 6985 | DI177: 948 | DJ177: 7031 | DK177: 828 | DL177: 9624 | DM177: 606 | DN177: 8990 | DO177: 606 | DP177: 3560 | DQ177: 629 | DR177: 3413 | DS177: 629 | DT177: 3460 | DU177: 629 | DV177: 28579.6 | DW177: 5195.54
A178: 21 | B178: B | C178: JCT ROUTE 54 (US 30 BUS & I-80 BUS INT) | D178: 0.2 | E178: 0.75 | G178: 0.55 | H178: 000117 | I178: 2 | J178: 1.1 | K178: P | L178: 21 | M178: US/WY | N178: 287/789 | O178: STP | P178: CB | Q178: 14 | R178: 3530 | S178: 132 | T178: 3540 | U178: 140 | V178: 2040 | W178: 110 | X178: 2020 | Y178: 112 | Z178: 3930 | AA178: 192 | AB178: 4130 | AC178: 202 | AD178: 4330 | AE178: 206 | AF178: 1090 | AG178: 300 | AH178: 1500 | AI178: 320 | AJ178: 2050 | AK178: 368 | AL178: 2060 | AM178: 388 | AN178: 5000 | AO178: 500 | AP178: 6000 | AQ178: 450 | AR178: 6290 | AS178: 400 | AT178: 6200 | AU178: 385 | AV178: 5810 | AW178: 380 | AX178: 5690 | AY178: 295 | AZ178: 5610 | BA178: 340 | BB178: 5720 | BC178: 350 | BD178: 5740 | BE178: 390 | BF178: 5620 | BG178: 390 | BH178: 5510 | BI178: 430 | BJ178: 5350 | BK178: 400 | BL178: 5350 | BM178: 400 | BN178: 5660 | BO178: 450 | BP178: 5350 | BQ178: 450 | BR178: 5170 | BS178: 450 | BT178: 4950 | BU178: 450 | BV178: 4850 | BW178: 450 | BX178: 4960 | BY178: 450 | BZ178: 5000 | CA178: 450 | CB178: 4970 | CC178: 450 | CD178: 4760 | CE178: 380 | CF178: 4700 | CG178: 340 | CH178: 4740 | CI178: 270 | CJ178: 4810 | CK178: 290 | CL178: 4890 | CM178: 300 | CN178: 4960 | CO178: 330 | CP178: 4870 | CQ178: 330 | CR178: 4729 | CS178: 297 | CT178: 4746 | CU178: 311 | CV178: 4870 | CW178: 356.30404 | CX178: 5108 | CY178: 432.2939 | CZ178: 4946 | DA178: 432.2939 | DB178: 4950 | DC178: 431 | DD178: 4924 | DE178: 432 | DF178: 4675 | DG178: 950 | DH178: 5350 | DI178: 190 | DJ178: 6408 | DK178: 319 | DL178: 4317 | DM178: 348 | DN178: 3862 | DO178: 581 | DP178: 4026 | DQ178: 581 | DR178: 3930 | DS178: 575 | DT178: 3943 | DU178: 433 | DV178: 2168.65 | DW178: 238.15
A179: 21 | B179: B | C179: RAWLINS NORTH CORP LIMITS | D179: 0.75 | E179: 1.919 | G179: 1.169 | H179: CB0110 | I179: 2 | J179: 2.338 | K179: P | L179: 21 | M179: US/WY | N179: 287/789 | O179: STP | P179: CB | Q179: 14 | R179: 1880 | S179: 102 | T179: 1890 | U179: 108 | V179: 1080 | W179: 58 | X179: 1060 | Y179: 69 | Z179: 1120 | AA179: 98 | AB179: 1180 | AC179: 102 | AD179: 2380 | AE179: 172 | AF179: 1050 | AG179: 300 | AH179: 1460 | AI179: 320 | AJ179: 1900 | AK179: 368 | AL179: 1910 | AM179: 388 | AN179: 2000 | AO179: 400 | AP179: 2800 | AQ179: 350 | AR179: 2800 | AS179: 250 | AT179: 2760 | AU179: 240 | AV179: 2760 | AW179: 235 | AX179: 2710 | AY179: 180 | AZ179: 2660 | BA179: 210 | BB179: 2770 | BC179: 220 | BD179: 2790 | BE179: 260 | BF179: 2700 | BG179: 350 | BH179: 2650 | BI179: 350 | BJ179: 2540 | BK179: 320 | BL179: 2540 | BM179: 320 | BN179: 3150 | BO179: 370 | BP179: 2840 | BQ179: 370 | BR179: 2700 | BS179: 370 | BT179: 2700 | BU179: 370 | BV179: 2600 | BW179: 370 | BX179: 2900 | BY179: 390 | BZ179: 2900 | CA179: 390 | CB179: 3000 | CC179: 400 | CD179: 2800 | CE179: 360 | CF179: 2670 | CG179: 320 | CH179: 2690 | CI179: 280 | CJ179: 2840 | CK179: 360 | CL179: 2950 | CM179: 370 | CN179: 3070 | CO179: 400 | CP179: 2980 | CQ179: 400 | CR179: 3559 | CS179: 358 | CT179: 3559 | CU179: 329 | CV179: 3609 | CW179: 264.04544 | CX179: 3129 | CY179: 414 | CZ179: 3427 | DA179: 414 | DB179: 3430 | DC179: 425 | DD179: 3198 | DE179: 425.5557861 | DF179: 3042 | DG179: 980 | DH179: 3780 | DI179: 192 | DJ179: 3929 | DK179: 196 | DL179: 2991 | DM179: 326 | DN179: 2794 | DO179: 577 | DP179: 3066 | DQ179: 437 | DR179: 3038 | DS179: 437 | DT179: 3067 | DU179: 437 | DV179: 3585.323 | DW179: 510.853
A180: 21 | B180: B | C180: JCT ROUTE 19 (US 287 BYPASS) | D180: 1.919 | E180: 3.09 | G180: 1.171 | H180: CB0112 | I180: 2 | J180: 2.342 | K180: P | L180: 21 | M180: US/WY | N180: 287/789 | O180: NHS | P180: CB | Q180: 14 | R180: 1380 | S180: 196 | T180: 1390 | U180: 208 | V180: 1500 | W180: 211 | X180: 1460 | Y180: 212 | Z180: 1570 | AA180: 300 | AB180: 1700 | AC180: 348 | AD180: 1810 | AE180: 356 | AF180: 1950 | AG180: 380 | AH180: 1990 | AI180: 500 | AJ180: 2050 | AK180: 576 | AL180: 2060 | AM180: 595 | AN180: 2120 | AO180: 600 | AP180: 2400 | AQ180: 530 | AR180: 2300 | AS180: 520 | AT180: 2280 | AU180: 500 | AV180: 2320 | AW180: 495 | AX180: 2270 | AY180: 380 | AZ180: 2230 | BA180: 440 | BB180: 2340 | BC180: 450 | BD180: 2360 | BE180: 490 | BF180: 2380 | BG180: 490 | BH180: 2380 | BI180: 590 | BJ180: 2400 | BK180: 560 | BL180: 2470 | BM180: 590 | BN180: 2390 | BO180: 640 | BP180: 2400 | BQ180: 640 | BR180: 2350 | BS180: 640 | BT180: 2350 | BU180: 690 | BV180: 2400 | BW180: 730 | BX180: 2550 | BY180: 740 | BZ180: 2600 | CA180: 770 | CB180: 3300 | CC180: 700 | CD180: 3200 | CE180: 690 | CF180: 3050 | CG180: 620 | CH180: 3080 | CI180: 560 | CJ180: 3260 | CK180: 600 | CL180: 4230 | CM180: 850 | CN180: 4400 | CO180: 880 | CP180: 4310 | CQ180: 860 | CR180: 5241 | CS180: 786 | CT180: 5241 | CU180: 573 | CV180: 5315 | CW180: 388.8616 | CX180: 3528 | CY180: 610 | CZ180: 2488 | DA180: 643 | DB180: 2490 | DC180: 567 | DD180: 3211 | DE180: 567.1070557 | DF180: 3062 | DG180: 1046 | DH180: 4240 | DI180: 195 | DJ180: 4412 | DK180: 220 | DL180: 2958 | DM180: 618 | DN180: 2763 | DO180: 565 | DP180: 3008 | DQ180: 565 | DR180: 2980 | DS180: 711 | DT180: 3008 | DU180: 470 | DV180: 3522.368 | DW180: 550.37
A181: 21 | B181: B | C181: RAWLINS NORTH URBAN LIMITS | D181: 3.09 | E181: 28.784 | G181: 25.694 | H181: CB0112 | I181: 2 | J181: 51.388 | K181: P | L181: 21 | M181: US/WY | N181: 287/789 | O181: NHS | P181: CB | Q181: 2 | R181: 1380 | S181: 196 | T181: 1390 | U181: 208 | V181: 1500 | W181: 211 | X181: 1460 | Y181: 212 | Z181: 1570 | AA181: 300 | AB181: 1700 | AC181: 348 | AD181: 1810 | AE181: 356 | AF181: 1950 | AG181: 380 | AH181: 1990 | AI181: 500 | AJ181: 2050 | AK181: 576 | AL181: 2060 | AM181: 595 | AN181: 2120 | AO181: 600 | AP181: 2400 | AQ181: 530 | AR181: 2300 | AS181: 520 | AT181: 2280 | AU181: 500 | AV181: 2320 | AW181: 495 | AX181: 2270 | AY181: 380 | AZ181: 2230 | BA181: 440 | BB181: 2340 | BC181: 450 | BD181: 2360 | BE181: 490 | BF181: 2380 | BG181: 490 | BH181: 2380 | BI181: 540 | BJ181: 2400 | BK181: 510 | BL181: 2470 | BM181: 590 | BN181: 2390 | BO181: 590 | BP181: 2400 | BQ181: 590 | BR181: 2350 | BS181: 640 | BT181: 2350 | BU181: 690 | BV181: 2400 | BW181: 730 | BX181: 2550 | BY181: 740 | BZ181: 2600 | CA181: 770 | CB181: 2400 | CC181: 680 | CD181: 2400 | CE181: 670 | CF181: 2290 | CG181: 600 | CH181: 2310 | CI181: 540 | CJ181: 2470 | CK181: 580 | CL181: 2440 | CM181: 630 | CN181: 2540 | CO181: 690 | CP181: 2450 | CQ181: 670 | CR181: 3839 | CS181: 583 | CT181: 3839 | CU181: 562 | CV181: 3893 | CW181: 284.82375 | CX181: 3846 | CY181: 590 | CZ181: 2815 | DA181: 623 | DB181: 2818 | DC181: 545 | DD181: 2900 | DE181: 540.8310547 | DF181: 2812 | DG181: 971 | DH181: 2865 | DI181: 208 | DJ181: 2995 | DK181: 618 | DL181: 2958 | DM181: 618 | DN181: 2763 | DO181: 565 | DP181: 3008 | DQ181: 565 | DR181: 2980 | DS181: 711 | DT181: 3008 | DU181: 470 | DV181: 77287.552 | DW181: 12076.18
A182: 21 | B182: B | C182: JCT UNION 76 MINE ROAD | D182: 28.784 | E182: 33.264 | G182: 4.48 | H182: CB0113 | I182: 2 | J182: 8.96 | K182: P | L182: 21 | M182: US/WY | N182: 287/789 | O182: NHS | P182: CB | Q182: 2 | R182: 1390 | S182: 195 | T182: 1390 | U182: 208 | V182: 1500 | W182: 211 | X182: 1460 | Y182: 212 | Z182: 1550 | AA182: 300 | AB182: 1680 | AC182: 348 | AD182: 1790 | AE182: 356 | AF182: 1930 | AG182: 380 | AH182: 1980 | AI182: 500 | AJ182: 2040 | AK182: 576 | AL182: 2050 | AM182: 595 | AN182: 2000 | AO182: 600 | AP182: 1900 | AQ182: 530 | AR182: 1800 | AS182: 520 | AT182: 1780 | AU182: 500 | AV182: 1810 | AW182: 495 | AX182: 1770 | AY182: 380 | AZ182: 1740 | BA182: 440 | BB182: 1850 | BC182: 450 | BD182: 1870 | BE182: 490 | BF182: 1890 | BG182: 490 | BH182: 1890 | BI182: 540 | BJ182: 1910 | BK182: 510 | BL182: 1980 | BM182: 540 | BN182: 2030 | BO182: 590 | BP182: 2040 | BQ182: 590 | BR182: 2000 | BS182: 590 | BT182: 2000 | BU182: 650 | BV182: 2050 | BW182: 690 | BX182: 2070 | BY182: 690 | BZ182: 2100 | CA182: 690 | CB182: 2310 | CC182: 680 | CD182: 2310 | CE182: 670 | CF182: 2200 | CG182: 600 | CH182: 2220 | CI182: 540 | CJ182: 2370 | CK182: 580 | CL182: 2290 | CM182: 630 | CN182: 2380 | CO182: 690 | CP182: 2290 | CQ182: 670 | CR182: 3536 | CS182: 582 | CT182: 3536 | CU182: 560 | CV182: 3536 | CW182: 509.36115 | CX182: 2620 | CY182: 590 | CZ182: 2615 | DA182: 623 | DB182: 2665 | DC182: 545 | DD182: 2724 | DE182: 531.1619873 | DF182: 2428 | DG182: 531 | DH182: 2864 | DI182: 388 | DJ182: 2882 | DK182: 339 | DL182: 2937 | DM182: 453 | DN182: 2809 | DO182: 495 | DP182: 3037 | DQ182: 575 | DR182: 2911 | DS182: 221 | DT182: 2952 | DU182: 521 | DV182: 13224.96 | DW182: 2334.08
A183: 21 | B183: B | C183: JCT ROUTE 406 AT LAMONT | D183: 33.264 | E183: 44.311 | G183: 11.047 | H183: 000027 | I183: 2 | J183: 22.094 | K183: P | L183: 21 | M183: US/WY | N183: 287/789 | O183: NHS | P183: CB | Q183: 2 | R183: 1110 | S183: 188 | T183: 1130 | U183: 196 | V183: 1280 | W183: 197 | X183: 1290 | Y183: 198 | Z183: 1410 | AA183: 294 | AB183: 1520 | AC183: 330 | AD183: 1620 | AE183: 340 | AF183: 1760 | AG183: 364 | AH183: 1780 | AI183: 484 | AJ183: 1830 | AK183: 558 | AL183: 1840 | AM183: 577 | AN183: 1910 | AO183: 580 | AP183: 1790 | AQ183: 510 | AR183: 1680 | AS183: 490 | AT183: 1700 | AU183: 470 | AV183: 1730 | AW183: 495 | AX183: 1690 | AY183: 380 | AZ183: 1660 | BA183: 440 | BB183: 1770 | BC183: 450 | BD183: 1790 | BE183: 490 | BF183: 1810 | BG183: 490 | BH183: 1800 | BI183: 540 | BJ183: 1820 | BK183: 510 | BL183: 1890 | BM183: 510 | BN183: 1960 | BO183: 560 | BP183: 1970 | BQ183: 560 | BR183: 1950 | BS183: 560 | BT183: 2030 | BU183: 620 | BV183: 2090 | BW183: 660 | BX183: 2110 | BY183: 660 | BZ183: 2100 | CA183: 660 | CB183: 2280 | CC183: 690 | CD183: 2280 | CE183: 680 | CF183: 2170 | CG183: 610 | CH183: 2260 | CI183: 660 | CJ183: 2400 | CK183: 700 | CL183: 2400 | CM183: 690 | CN183: 2550 | CO183: 720 | CP183: 2460 | CQ183: 700 | CR183: 2303 | CS183: 620 | CT183: 2259 | CU183: 558 | CV183: 2338 | CW183: 590.08865 | CX183: 2606 | CY183: 642.4535 | CZ183: 2567 | DA183: 667 | DB183: 2494 | DC183: 565 | DD183: 2556 | DE183: 541 | DF183: 2428 | DG183: 531 | DH183: 2486 | DI183: 337 | DJ183: 2570 | DK183: 564 | DL183: 2604 | DM183: 563 | DN183: 2306 | DO183: 530 | DP183: 2629 | DQ183: 588 | DR183: 2531 | DS183: 567 | DT183: 2395 | DU183: 541 | DV183: 26457.565 | DW183: 5976.427
A184: 21 | B184: B | C184: JCT ROUTE 20 (MUDDY GAP) | D184: 44.311 | E184: 57.014 | G184: 12.703 | H184: 0013NE | I184: 2 | J184: 25.406 | K184: P | L184: 21 | M184: WY | N184: 220 | O184: NHS | P184: CB | Q184: 2 | R184: 760 | S184: 138 | T184: 790 | U184: 144 | V184: 830 | W184: 156 | X184: 850 | Y184: 142 | Z184: 900 | AA184: 230 | AB184: 1040 | AC184: 278 | AD184: 1210 | AE184: 288 | AF184: 1190 | AG184: 312 | AH184: 1400 | AI184: 378 | AJ184: 1360 | AK184: 470 | AL184: 1400 | AM184: 486 | AN184: 1480 | AO184: 510 | AP184: 1400 | AQ184: 420 | AR184: 1320 | AS184: 400 | AT184: 1340 | AU184: 410 | AV184: 1320 | AW184: 405 | AX184: 1290 | AY184: 315 | AZ184: 1250 | BA184: 365 | BB184: 1330 | BC184: 375 | BD184: 1270 | BE184: 455 | BF184: 1290 | BG184: 455 | BH184: 1290 | BI184: 505 | BJ184: 1310 | BK184: 465 | BL184: 1370 | BM184: 495 | BN184: 1420 | BO184: 545 | BP184: 1400 | BQ184: 545 | BR184: 1380 | BS184: 545 | BT184: 1520 | BU184: 520 | BV184: 1530 | BW184: 560 | BX184: 1560 | BY184: 560 | BZ184: 1600 | CA184: 560 | CB184: 1720 | CC184: 600 | CD184: 1720 | CE184: 580 | CF184: 1640 | CG184: 520 | CH184: 1810 | CI184: 610 | CJ184: 1890 | CK184: 620 | CL184: 1910 | CM184: 620 | CN184: 1990 | CO184: 640 | CP184: 1980 | CQ184: 620 | CR184: 1756 | CS184: 544 | CT184: 1825 | CU184: 534 | CV184: 1894 | CW184: 563.06951 | CX184: 2004 | CY184: 610.59322 | CZ184: 1946 | DA184: 562 | DB184: 1982 | DC184: 545 | DD184: 1982 | DE184: 787 | DF184: 2232 | DG184: 531 | DH184: 1930 | DI184: 552 | DJ184: 1950 | DK184: 538 | DL184: 1945 | DM184: 544 | DN184: 1726 | DO184: 484 | DP184: 1978 | DQ184: 541 | DR184: 1860 | DS184: 513 | DT184: 1771 | DU184: 494 | DV184: 22497.013 | DW184: 6275.282
A185: 21 | B185: B | C185: CARBON - NATRONA COUNTY LINE | D185: 57.014 | E185: 67.531 | G185: 10.517 | H185: 0013NE | I185: 2 | J185: 21.034 | K185: P | L185: 21 | M185: WY | N185: 220 | O185: NHS | P185: NA | Q185: 2 | R185: 760 | S185: 138 | T185: 790 | U185: 144 | V185: 820 | W185: 156 | X185: 840 | Y185: 142 | Z185: 890 | AA185: 230 | AB185: 1020 | AC185: 278 | AD185: 1200 | AE185: 288 | AF185: 1190 | AG185: 312 | AH185: 1400 | AI185: 378 | AJ185: 1360 | AK185: 470 | AL185: 1400 | AM185: 486 | AN185: 1680 | AO185: 510 | AP185: 1460 | AQ185: 420 | AR185: 1380 | AS185: 400 | AT185: 1400 | AU185: 410 | AV185: 1380 | AW185: 405 | AX185: 1350 | AY185: 315 | AZ185: 1310 | BA185: 365 | BB185: 1390 | BC185: 375 | BD185: 1350 | BE185: 455 | BF185: 1370 | BG185: 455 | BH185: 1370 | BI185: 505 | BJ185: 1390 | BK185: 465 | BL185: 1450 | BM185: 495 | BN185: 1500 | BO185: 545 | BP185: 1480 | BQ185: 545 | BR185: 1460 | BS185: 545 | BT185: 1500 | BU185: 520 | BV185: 1520 | BW185: 560 | BX185: 1550 | BY185: 560 | BZ185: 1600 | CA185: 600 | CB185: 1720 | CC185: 600 | CD185: 1720 | CE185: 580 | CF185: 1640 | CG185: 520 | CH185: 1810 | CI185: 610 | CJ185: 1890 | CK185: 620 | CL185: 1910 | CM185: 620 | CN185: 1990 | CO185: 640 | CP185: 1980 | CQ185: 620 | CR185: 1756 | CS185: 544 | CT185: 1825 | CU185: 534 | CV185: 1894 | CW185: 563.06951 | CX185: 1996 | CY185: 732 | CZ185: 1646 | DA185: 577 | DB185: 1672 | DC185: 545 | DD185: 1714 | DE185: 723.6803589 | DF185: 1930 | DG185: 291 | DH185: 1802 | DI185: 243 | DJ185: 1814 | DK185: 213 | DL185: 1945 | DM185: 544 | DN185: 1726 | DO185: 484 | DP185: 1978 | DQ185: 541 | DR185: 1860 | DS185: 513 | DT185: 1771 | DU185: 494 | DV185: 18625.607 | DW185: 5195.398
A186: 21 | B186: B | C186: DRY CREEK RD | D186: 67.531 | E186: 80.69 | G186: 13.306 | H186: NA0103 | I186: 2 | J186: 26.612 | K186: P | L186: 21 | M186: WY | N186: 220 | O186: NHS | P186: NA | Q186: 2 | R186: 760 | S186: 138 | T186: 790 | U186: 144 | V186: 820 | W186: 156 | X186: 840 | Y186: 142 | Z186: 890 | AA186: 230 | AB186: 1020 | AC186: 278 | AD186: 1200 | AE186: 288 | AF186: 1180 | AG186: 312 | AH186: 1390 | AI186: 378 | AJ186: 1360 | AK186: 470 | AL186: 1450 | AM186: 486 | AN186: 1680 | AO186: 510 | AP186: 1500 | AQ186: 420 | AR186: 1420 | AS186: 410 | AT186: 1440 | AU186: 420 | AV186: 1420 | AW186: 415 | AX186: 1370 | AY186: 335 | AZ186: 1330 | BA186: 385 | BB186: 1410 | BC186: 395 | BD186: 1370 | BE186: 475 | BF186: 1390 | BG186: 475 | BH186: 1400 | BI186: 525 | BJ186: 1420 | BK186: 485 | BL186: 1480 | BM186: 515 | BN186: 1530 | BO186: 565 | BP186: 1510 | BQ186: 565 | BR186: 1510 | BS186: 565 | BT186: 1500 | BU186: 540 | BV186: 1550 | BW186: 600 | BX186: 1600 | BY186: 600 | BZ186: 1600 | CA186: 600 | CB186: 1700 | CC186: 630 | CD186: 1720 | CE186: 580 | CF186: 1640 | CG186: 520 | CH186: 1820 | CI186: 610 | CJ186: 1900 | CK186: 620 | CL186: 1920 | CM186: 620 | CN186: 2000 | CO186: 640 | CP186: 1990 | CQ186: 620 | CR186: 1812 | CS186: 543 | CT186: 2012 | CU186: 533 | CV186: 1982 | CW186: 533 | CX186: 2006 | CY186: 718 | CZ186: 2002 | DA186: 569 | DB186: 2040 | DC186: 569 | DD186: 2085 | DE186: 682.3760986 | DF186: 2165 | DG186: 381 | DH186: 2217 | DI186: 300 | DJ186: 2231 | DK186: 262 | DL186: 2273 | DM186: 696 | DN186: 2174 | DO186: 599 | DP186: 2351 | DQ186: 616 | DR186: 2254 | DS186: 662 | DT186: 2285 | DU186: 603 | DV186: 30404.21 | DW186: 8023.518
A187: 21 | B187: B | C187: JCT PATHFINDER ROAD | D187: 80.69 | E187: 97.31 | G187: 16.62 | H187: NA0104 | I187: 2 | J187: 33.24 | K187: P | L187: 21 | M187: WY | N187: 220 | O187: NHS | P187: NA | Q187: 2 | R187: 830 | S187: 142 | T187: 880 | U187: 148 | V187: 910 | W187: 180 | X187: 930 | Y187: 144 | Z187: 990 | AA187: 230 | AB187: 1140 | AC187: 278 | AD187: 1310 | AE187: 288 | AF187: 1290 | AG187: 312 | AH187: 1480 | AI187: 396 | AJ187: 1750 | AK187: 492 | AL187: 1650 | AM187: 509 | AN187: 1870 | AO187: 530 | AP187: 1630 | AQ187: 440 | AR187: 1550 | AS187: 450 | AT187: 1570 | AU187: 460 | AV187: 1550 | AW187: 450 | AX187: 1520 | AY187: 350 | AZ187: 1600 | BA187: 405 | BB187: 1650 | BC187: 415 | BD187: 1560 | BE187: 495 | BF187: 1580 | BG187: 495 | BH187: 1610 | BI187: 545 | BJ187: 1550 | BK187: 505 | BL187: 1580 | BM187: 535 | BN187: 1640 | BO187: 585 | BP187: 1610 | BQ187: 585 | BR187: 1650 | BS187: 585 | BT187: 1700 | BU187: 570 | BV187: 1800 | BW187: 630 | BX187: 1850 | BY187: 630 | BZ187: 1900 | CA187: 660 | CB187: 2160 | CC187: 710 | CD187: 1970 | CE187: 640 | CF187: 1800 | CG187: 680 | CH187: 2090 | CI187: 660 | CJ187: 2160 | CK187: 680 | CL187: 2210 | CM187: 720 | CN187: 2370 | CO187: 710 | CP187: 2340 | CQ187: 690 | CR187: 2297 | CS187: 601 | CT187: 2286 | CU187: 591 | CV187: 2281 | CW187: 591 | CX187: 2308 | CY187: 749 | CZ187: 2303 | DA187: 571 | DB187: 2347 | DC187: 571 | DD187: 2399 | DE187: 625.8156738 | DF187: 2165 | DG187: 381 | DH187: 2217 | DI187: 300 | DJ187: 2231 | DK187: 262 | DL187: 3050 | DM187: 680 | DN187: 2917 | DO187: 616 | DP187: 3154 | DQ187: 642 | DR187: 3024 | DS187: 621 | DT187: 3066 | DU187: 655 | DV187: 50956.92 | DW187: 10886.1
